Workbook

Sheet Forside
A1: der
B23: Rettes endeligt til, når vi har besluttet, om der skal et andet billede ind.
C29: Kommentarer til værktøjet modtages på klimatilpasning@mst.dk

Sheet Om værktøjet
D1: =MID(CELL("filename",D1),1+FIND("]",CELL("filename",D1)),99) -> Om værktøjet
D3: Brugervejledning
D4: Opbygningen af PLASK er illustreret i figuren nedenfor under "Oversigt over modellen". Her kan du også navigere rundt imellem fanerne ved at trykke på de faner i figuren, som du ønsker at gå til. Tryk på + i venstre side for at folde rækkerne ud. På udvalgte faner er der lavet bokse, som du kan trykke på for at navigere mellem fanerne samt en brugervejledning i toppen. For at hjælpe dig er modellen opbygget efter nøje udvalgte standarder for faner og tal, men du har nogle steder mulighed for indtaste egne tal, hvis du ønsker en anden standard. | Q4: Genvej til:
D5: Oplysninger om projektet indtastes i fanen "Omkostninger og tiltag". Du har mulighed for at indtaste tiltagsomkostninger for tre forskellige typer af afhjælpning (sædvanlig afhjælpning samt to alternative klimatilpasningstiltag), som antages af medføre den samme reduktion i skadesomkostningerne. Når disse data er indtastet, vil modellen kunne beregne de samfundsøkonomiske konsekvenser ved et eller flere tiltag, afhængig af dit valg.
D7: Oversigt over modellen
D9: Nedenfor kan du finde en oversigt og beskrivelse af de forskellige faner i modellen og en genvej til at tilgå den pågældende fane. Figuren nedenfor fanerne er udarbejdet til den bruger, som gerne vil vide, hvordan modellen er opbygget. Det er en illustration af, hvordan de enkelte ark spiller sammen i modellen.
D11: Faner med information om værktøjet: Bruges ikke i modellens beregninger
D14: Velkommen til værktøjet PLASK. | F14: Brugervejledning giver en introduktion til modellen og de standarder der benyttes for tal og ark. | H14: Fanen EAD beregning forklarer dybdegående, hvordan EAD beregningen er opsat.
D15: Faner, som anvendes til værktøjets beregninger
D18: I denne fane skal du angive alle data for projektet; generelle informationer, skadesomkostninger, hvis der ikke investeres i klimatilpasningstiltag, investeringer i klimapasningstiltag og reduktionen i skadesomkostninger som følge af investeringen. | F18: I denne fane indtastes og vises resultaterne for merværdier.
D19: Faner med resultater
D22: I denne fordeles omkostningen mellem kommune, forsyningsselskab og andre (private, foreninger og andre organisationer). | F22: Fanen indeholder en ovesigt over modellens resultater i detaljer. | H22: En printvenlig udgave af resultaterne, der kan gemmes direkte som PDF ved et enkelt tryk. | J22: I denne fane udføres en følsomhedsanalyse og opsummeres følsomhedsresultaterne.
D23: Faner for særligt interesserede
D25: Faner, som viser beregning af tiltags- og skadesomkostninger
D28: Beregningsfane for tiltagsomkostninger ud over hele tidshorisonten. | F28: Beregningsfane for skadesomkostninger ud over hele tidshorisonten.
D30: Priser og forudsætninger for beregningerne. Disse kan ændres manuelt, hvis ønsket
D33: Denne fane indeholder de beregningsmæssige forudsætninger i forhold til diskontering, fremskrivning af priser og nettoafgiftsfaktor. | F33: I denne fane beskrives enhedspriserne for skadesomkostningerne, der værdisættes i modellen. | H33: I denne fane beskrives enhedspriserne for tiltagsomkostninger. Det af disse typer af tiltag og dertilhørende omkostninger, som kan vælges i modellen. | J33: Her kan du beregne regnintensiteten og klimafaktoren for projektområdet. Disse beregninger går ind i beregningen for skadesomkostninger.
D36: Modellens opbyning
D57: Ordliste
D60: Diskontering | F60: Diskontering er et udtryk for vægtning af effekter nu og i fremtiden. Ved en høj diskontering nedskrives fremtidige effekter mere i forhold til nutidige. Finansministeret forslår i samfundsøkonomiske vurderinger en diskonteringsrate på 3,5% for år 0-35, 2,5% for år 36-70 og 1,5% efter år 70.
D61: Nettonutidsværdi | F61: Nettonutidsværdien er den diskonterede værdi over hele analysehorisonten. Nettonutidsværdien er altså den samlede omkostning eller gevinst ved at implementere tiltaget, når der tages højde for at omkostningerne og gevinsterne falder på forskellige tidspunkter. I nettonutidsværdien er tiltagsomkostningerne fratrukket gevinsterne fra de sparede skadesomkostninger.
D62: Reinvestering | F62: Hvis den tekniske levetid af en investering er kortere end analyseperioden, er det nødvendigt at foretage en ny investering for resten af perioden.
D63: Scrapværdi | F63: Scrapværdien er den værdi investeringen har ved analyseperiodens afslutning. Denne værdi fratrækkes de samlede omkostninger så det kun er den investeringsandel for analyseperioden der medtages.
D64: Sædvanlig afhjælpning | F64: Sædvanlig afhjælpning forstås som den klassiske afhjælpning udført af forsyningsselskabet alene, som typisk ikke medregner merværdier.
D66: PLASK
D68: Formål Formålet med værktøjet er at hjælpe kommuner og spildevandsselskaber med at beregne de samfundsøkonomiske effekter af forskellige klimatilpasningsløsninger. Sammenligningen foretages ud fra fire parametre: 1.”Snæver” samfundsøkonomi - kan det betale sig at klimatilpasse? PLASK giver mulighed for at sammenligne omkostningen til at klimatilpasse med den samfundsøkonomiske gevinst i form af færre skadesudgifter, der vil være af det konkrete tiltag. 2. Hensigtsmæssigt serviceniveau - PLASK giver mulighed for at undersøge det mest hensigtsmæssige serviceniveau for tiltag for et projekt og sammenligne det med et alternativt projekt. 3. Omkostningsfordeling – hvem skal betale? PLASK giver mulighed for at beskrive omkostningsfordelingen mellem de involverede parter, eksempelvis forsyningsselskab, kommune og privat bygherre. 4. Hvilke merværdier kommer der ud af at samarbejde? Redskabet kan anvendes til at vurdere de forventede afledte merværdier i form af 16 kvaliteter, der indikerer projektets evne til at fremme eksempelvis sundhed, biodiversitet, byliv og CO2-reduktion. Værktøjet har karakter af et screeningsværktøj i den tidlige fase, hvor det skal besluttes hvilket konkret klimatilpasningstiltag, der skal tages i anvendelse i et konkret område. PLASK lever op til de krav, som er angivet i serviceniveaubekendtgørelsen for undersøgelse af samfundsøkonomi for forskellige serviceniveauer. Værktøjet er udarbejdet til at kunne sammenligne forskellige tiltag (alternativer) til løse et problem i et konkret risikoområde (og ikke til at prioritere mellem risikoområder). | H68: Serviceniveaubekendgørelsen Plask 4.0 er bygget til at leve op til de krav som er fastsat i Bekendtgørelse om fastsættelse af serviceniveau m.v. for håndtering af tag- og overfladevand. PLASK 4.0 kan derved undersøge, hvilket serviceniveau, som er det mest hensigtsmæssige serviceniveau for et givent projekt. Det mest hensigtsmæssige serviniveau er defineret, som det serviceniveau med den højeste nettonutidværdi. Kravene fra serviceniveaubekendtgørelsen til den samfundsøkonomiske metode der er inkluderet i PLASK 4.0 er beskrevet herunder. - Mulighed for analyse af flere vandoplande. Dette krav kan opfyldes ved at udfylde en PLASK model for hvert vandopland. Det er ikke muligt at have en samlet analyse af flere oplande i én PLASK. - Nationale standardværdier med mulighed for ændring. Standardværdier for enhedsomkostninger for skader, tiltag samt økonomiske parametre fra Finansministeriet. Med mulighed for ændring hvis lokale forhold kendes eller tal opdateres. - Sikring af retvisende antal regnhændelser. Dette krav opfyldes ved at indføre mulighed for fleksibelt antal skadesberegninger samt automatisk beregning som viser om datatæthed påvirker EAD resultater. - To løsningstiltagsprojekter Der er i arket inkluderet mulighed for at beregne optimalt serviceniveau to to projekter. - Analyse af flere forskellige serviceniveauer. Det er nu muligt at sammenligne forskellige serviceniveauer afhængig af størrelse på investering. - Følsomhedsanalyse Følsomhedsanalyse og påvirkning på nettogevinst og optimalt servicenivceau. OBS 1: hver gang forudsætningerne ændrer sig væsentligt skal analyen genberegnes på de opdaterede forudsætninger. OBS 2: vær opmærksom på at analysen omkring merværdier ikke må medtages i beslutningen om det mest hensigtsmæssige serviceniveau iht. serviceniveaubekendtgørelsen Hvilke krav i serviceniveaubekendtgørelsen dækker PLASK 4.0 ikke: - PLASK 4.0 har ikke funktioner til at generere oversvømmelseskort og værdikort. Det er derfor brugerens ansvar at udarbejde disse kort i overensstemmelse med serviceniveaubekendtgørelsen. - PLASK 4.0 har ikke en funktion som foretager en risikokortlægning. Det er derfor brugerens ansvar at gennemføre en risikokortlægning, der er i overensstemmelse med serviceniveaubekendtgørelsen, inden de anvender PLASK 4.0. | L68: Hovedresultater Værktøjet giver tre hovedresultater: - Sammenligning af omkostninger ved klimatilpasningstiltag med sparede skadesomkostninger for mellem 2 og 5 forskellige serviceniveauer. - Merværdier ved klimatilpasningstiltag (grafisk sammenligning for en række udvalgte merværdier) - Fordeling af omkostninger mellem kommuner, forsyningsselskaber og andre | O68: Om værktøjet PLASK (Projekt om Lokale Analyser af Samfundsøkonomi i Klimatilpasning) er et beregningsværktøj, udarbejdet for Miljøstyrelsen af NIRAS og COWI A/S. Miljøstyrelsen kan ikke gøres ansvarlig for informationerne fra værktøjet, herunder ikke for mangelfulde eller ukorrekte informationer og resultater. Ligeledes kan Miljøstyrelsen ikke gøres ansvarlig for brug eller tolkninger af værktøjet og resultaterne af dets beregninger. PLASK 4.0 er blevet udviklet med henblik på at PLASK lever op til de krav, som er angivet i Bekendtgørelse om fastsættelse af serviceniveau m.v. for håndtering af tag- og overfladevand (serviceniveaubekendtgørelsen). Brugeren skal dog være opmærksom på de begrænsninger PLASK har i forhold til udarbejdelsen af input data, og hvilke af PLASK resultater som må medtages i vurderingen af, hvilket serviceniveau som er det mest hensigtsmæssige. Kommentarer modtages gerne på klimatilpasning@mst.dk | T68: Genvej til:

Sheet EAD beregning (hidden)
B1: =MID(CELL("filename",B1),1+FIND("]",CELL("filename",B1)),99) -> EAD beregning
B3: EAD beregning | P3: Genvej til:
B6: Detaljeret beskrive af EAD beregning
B8: Step 1 | F8: Step 2 | J8: Step 3 | N8: Step 4 | R8: Step 5
B10: Gentagelsesperiode for hændelse I beregningen af sandsynligheden for en hændelse tages der udgangspunkt i sammenhængen mellem gentagelsesperiode og regnintensitet. Denne sammenhæng er trukket ud af SVK regneark version 2023 for alle gen-tagelsesperioder fra 1 til 500 år eller op til den største hændelse som er beregnet. Sammenhængen er udtrukket uden klimafaktor. Koordinater i SVK regneark sættes til det specifikke analyseopland. | F10: Skade ved hændelse Der gennemføres en række oversvømmelsesberegninger og de samlede skadesomkostninger for hver hændelse opgøres med udgangspunkt i de valgte skadestyper og enhedsomkostninger. Mellem de beregnede hændelser antages en proportionel stigning i ska-desomkostningen i forhold til intensiteten for de beregnede hændelser. Der beregnes en skadesomkostning for hver T-værdi mellem 2 og 500 år baseret på en lineær regression mellem de beregnede hændelser. | J10: Risiko for skade Beregning af risikoen for skade følger anbefalet metode i serviceniveaubekendtgørelsen. For hver T-værdi beregnes den forventede årlige skadesrisiko for at den hændelse forekommer (frekvensandel): Frekvensandel T_n= (S_n+S_(n+1))/2∙(p_n - p_(n+1) ) Hvor S_n og p_ner henholdsvis skade og sandsynlighed i år n. Herefter beregnes årlig risiko for skade (EAD) som summen af frekvensandel ved alle T-værdier op til T500. Skader over 500 års hændelsen beregnes: Frekvensandel T_(>500)= S_500∙ p_500 | N10: Fremtidig risiko for skade Udvikling i risiko for skade over den 100-årige periode antages at stige som følge af kraftigere regn. Intensitet i regn antages at stige fra 1,0 i dag til de klimafaktorer, som er an-givet i Spildevandskomiteens Skrift 30. Klimafaktor for en specifik gentagelsesperiode bestemmes med formel defineret i Spildevandskomiteens Skrift 32: Klimafaktor〗_T=0,0506*ln(T)+1,1718 Klimafaktor for hændelser over T100 sættes til 1,4. Der antages en lineær udvikling af klimafakor hen over de næste 100 år. Der-ved kan klimafaktoren beregnes for alle gentagelsesperioder over perioden på 100 år. Ved at anvende klimafaktor på hver intensitet kan der identificeres et frem-skrevet skadesniveau fra sammenhængen mellem skader og intensiteter ved skadeskurven uden klimafaktor. Dette gøres for alle intensiteter i 100-års pe-rioden . Denne sammenhæng anvendes til at beskrive forventet skades-omkostning for hvert enkelt år over den 100-årige analyseperiode. | R10: Forventet årlig skadesomkostning Den forventede årlige skadesomkostning beregnes som sum for alle genta-gelsesperioder for hvert enkelt år .

Sheet Omkostninger og tiltag
E1: =MID(CELL("filename",E1),1+FIND("]",CELL("filename",E1)),99) -> Omkostninger og tiltag
H3: Start beregning ved at trykke her: | I3: Genvej til:
E4: Brugervejledning:
E5: I denne fane skal du indtaste alle data for projektet. Du skal igennem trin 1-4 og udfylde de hvide celler med blå kant for at resultater kan beregnes.
E6: ="Modellen regner med, at alle data er indtastet i samme års priser (her "&Prisaar&"-priser). Prisåret kan ændres i Trin 1." -> Modellen regner med, at alle data er indtastet i samme års priser (her -priser). Prisåret kan ændres i Trin 1.
E9: Trin 1 Oplysninger om projektet
E11: Navn på projekt
E13: Kommune
E15: Navn på opland
E17: Kort beskrivelse af projektet | I17: Når du har indsat projektområdets koordinater skal du køre intensitetsberegningen. Denne beregning kalder på arket "SVKs Regionale Regnrækkeværktøj v2023 låst", som du skal have downloadet ned på din computer fra hjemmesiden, hvor du har downloadet PLASK. Inden du kører intensitetsberegningerne skal du åbne SVK regnearket og trykke "Enable content". Når du trykker på "Kør intensitetsberegning" skal du vælge regnearket i den filbrowser, som kommer op. Når koden er kørt vil intensitets- og klimafaktorerne være opdateret i forhold til det område projektet befinder sig i.
E19: Udarbejdet af
E21: Projekt startår
E23: Analysens prisår
E25: Projektområdets koordinater, nord (WGS84, Zone 32)
E27: Projektområdets koordinater, øst (WGS84, Zone 32)
E29: Trin 2 Oplysninger om serviceniveauer og antal hændelser
E31: Vælg antal serviceninveauer | F31: 2 | H31: Serviceniveaubekendtgørelsens krav til antal undersøgte serviceniveauer på baggrund af investeringsstørrelse
H32: Investeringsstørrelse | I32: 0-10 mio. kr | J32: 10-20 mio. kr. | K32: 20-50 mio. kr. | L32: >50 mio. kr.
E33: Vælg antal hændelser | F33: 4 | H33: Antal serviceniveauer | I33: 2 serviceniveauer | J33: 3 serviceniveauer | K33: 4 servieniveauer | L33: 5 serviceniveauer
E35: A: Indtast serviceniveauer (Txx)
F36: Serviceniveau (Tgentagelsesperiode)
E37: Serviceniveau 1 | F37: Txx | H37: Vælg år for serviceniveau
E38: =IF(OR($F$31>=Lister!E14,$F$31=$S$36),Lister!D14," ") -> Serviceniveau 2 | F38: Txx | H38: OBS: her kan vælges enten projektets startår eller projektets startår + 100 år
E39: =IF(OR($F$31>=Lister!E15,$F$31=$S$36),Lister!D15," ") -> 
E40: =IF(OR($F$31>=Lister!E16,$F$31=$S$36),Lister!D16," ") -> 
E41: =IF(OR($F$31>=Lister!E17,$F$31=$S$36),Lister!D17," ") -> 
E42: OBS: her skal du indskrive serviceniveauerne som Txx, f.eks. Serviceniveau T10. | G42: =IF(COUNTIF(F37:F41,"")<>5-Antal_serviceniveauer,"OBS alle felter med serviceniveauer skal udfyldes"," ") -> 
E43: B: Indtast hændelser
E45: Indtast hvilke hændelser for hvilke der angives skadesdata. Det antages, at hændelserne og detilhørende skadesomkosniger angives som hændelser og skader i år 1 af projektperioden.
F47: Før tiltag (gentagelsesperiode) | G47: Efter tiltag (gentagelsesperiode)
E48: Hændelse 1 | F48: 0 | G48: 0
E49: Hændelse 2 | F49: 0 | G49: 0 | H49: =IF(COUNTIF(F48:F57,">0")<>Antal_haendelser,"OBS alle felter med hændelser før tiltag skal udfyldes, ellers kan modellen ikke køre"," ") -> OBS alle felter med hændelser før tiltag skal udfyldes, ellers kan modellen ikke køre
E50: Hændelse 3 | F50: 0 | G50: 0 | H50: =IF(COUNTIF(G48:G57,">0")<>Antal_haendelser,"OBS alle felter med hændelser før tiltag skal udfyldes, ellers kan modellen ikke køre"," ") -> OBS alle felter med hændelser før tiltag skal udfyldes, ellers kan modellen ikke køre
E51: Hændelse 4 | F51: 0 | G51: 0
E52: =IF(OR($F$33>=Lister!E35,$F$33=$S$48),Lister!D35," ") -> 
E53: =IF(OR($F$33>=Lister!E36,$F$33=$S$48),Lister!D36," ") -> 
E54: =IF(OR($F$33>=Lister!E37,$F$33=$S$48),Lister!D37," ") -> 
E55: =IF(OR($F$33>=Lister!E38,$F$33=$S$48),Lister!D38," ") -> 
E56: =IF(OR($F$33>=Lister!E39,$F$33=$S$48),Lister!D39," ") -> 
E57: =IF(OR($F$33>=Lister!E40,$F$33=$S$48),Lister!D40," ") -> 
E58: OBS: vær opmærksom på at den første hændelse skal angives som et nul punkt i Trin 3. Dvs. at omkostningerne for første hændelse skal sættes lig med 0.
E60: Trin 3 Skadesomkostninger med og uden klimatilpasning
E63: Indtast enten skadesomkostningerne i mio. kr. for hver hændelse eller indtast arealet af kældre, stueetage mm., der oversvømmes og antal af eksempelvis elsvigt. Disse vil i modellen blive værdisat på baggrund af gennemsnitsværdier, som fremgår af fanen "enhedspriser". Hvis du kender til lokaler skadesværdier kan enhedspriserne i fanen overskrives med de lokalt kendte værdier.
E69: Vælg at indtaste skadesomkostninger i mio. kr. eller i arealer og antal
E73: Note: Bemærk, at det kun er muligt at indtaste i A eller B. Det er kun omkostninger for den valgte indtastningsmetode som medtages i den samfundsøkonomiske analyse.
E75: A: Indtast skadesomkostninger for hvert serviceniveau og hver hændelse
E76: OBS: Skadesomkostningerne for den første hændelse skal sættes til 0. | I76: =IF(Antal_serviceniveauer=5,IF(OR(COUNTIF(F79:O79,"")<>10-Antal_haendelser,COUNTIF(F82:O82,"")<>10-Antal_haendelser,COUNTIF(F83:O83,"")<>10-Antal_haendelser,COUNTIF(F84:O84,"")<>10-Antal_haendelser,COUNTIF(F85:O85,"")<>10-Antal_haendelser,COUNTIF(F86:O86,"")<>10-Antal_haendelser),"OBS alle skadesomkostninger skal udfyldes i tabellen"," "), IF(Antal_serviceniveauer=4,IF(OR(COUNTIF(F79:O79,"")<>10-Antal_haendelser,COUNTIF(F82:O82,"")<>10-Antal_haendelser,COUNTIF(F83:O83,"")<>10-Antal_haendelser,COUNTIF(F84:O84,"")<>10-Antal_haendelser,COUNTIF(F85:O85,"")<>10-Antal_haendelser),"OBS alle skadesomkostninger skal udfyldes i tabellen"," "), IF(Antal_serviceniveauer=3,IF(OR(COUNTIF(F79:O79,"")<>10-Antal_haendelser,COUNTIF(F82:O82,"")<>10-Antal_haendelser,COUNTIF(F83:O83,"")<>10-Antal_haendelser,COUNTIF(F84:O84,"")<>10-Antal_haendelser),"OBS alle skadesomkostninger skal udfyldes i tabellen"," "), IF(Antal_serviceniveauer=2,IF(OR(COUNTIF(F79:O79,"")<>10-Antal_haendelser,COUNTIF(F82:O82,"")<>10-Antal_haendelser,COUNTIF(F83:O83,"")<>10-Antal_haendelser),"OBS alle skadesomkostninger skal udfyldes i tabellen"," "))))) -> OBS alle skadesomkostninger skal udfyldes i tabellen
H77: Skadesomkostninger (mio. kr.)
F78: =$F$48&"-års-hændelse " -> 0-års-hændelse | G78: =$F$49&"-års-hændelse " -> 0-års-hændelse | H78: =$F$50&"-års-hændelse " -> 0-års-hændelse | I78: =$F$51&"-års-hændelse " -> 0-års-hændelse | J78: =$F$52&"-års-hændelse " -> -års-hændelse | K78: =$F$53&"-års-hændelse " -> -års-hændelse | L78: =$F$54&"-års-hændelse " -> -års-hændelse | M78: =$F$55&"-års-hændelse " -> -års-hændelse | N78: =$F$56&"-års-hændelse " -> -års-hændelse | O78: =$F$57&"-års-hændelse " -> -års-hændelse
E79: Før tiltag
H80: Skadesomkostninger (mio. kr.)
F81: =$G$48&"-års-hændelse " -> 0-års-hændelse | G81: =$G$49&"-års-hændelse " -> 0-års-hændelse | H81: =$G$50&"-års-hændelse " -> 0-års-hændelse | I81: =$G$51&"-års-hændelse " -> 0-års-hændelse | J81: =$G$52&"-års-hændelse " -> -års-hændelse | K81: =$G$53&"-års-hændelse " -> -års-hændelse | L81: =$G$54&"-års-hændelse " -> -års-hændelse | M81: =$G$55&"-års-hændelse " -> -års-hændelse | N81: =$G$56&"-års-hændelse " -> -års-hændelse | O81: =$G$57&"-års-hændelse " -> -års-hændelse
E82: =IF($F$37="", " ",$F$37) -> Txx
E83: =IF($F$38="", " ",$F$38) -> Txx
E84: =IF($F$39="", " ",$F$39) -> 
E85: =IF($F$40="", " ",$F$40) -> 
E86: =IF($F$41="", " ",$F$41) -> 
F87: =IF(SUM(F82:F86)+F79>0,"FEJL: Omkostninger angivet i den første hændelse skal være nul. Ellers regner modellen forkert."," ") -> 
E88: B: Indtast arealer og antal
E90: Her skal du vælge, hvilke skadestyper som skal inkluderes i analysen. Efterfølgende skal du indtaste størrelser og antal for de skadestyper, som du har tilføjet til modellen.
E91: Du kan tilføje op til 6 forskellige skadestyper. Det er vigtigt, at du tilføjer alle relevante skadestsyper inden, at du fylder data ind for antal og størrelser.
E93: =Enhedspriser!D151 -> Skadeskategori | F93: =Enhedspriser!E151 -> Skade | G93: Skal skaden tilføjes?
E94: =Enhedspriser!D152 -> Bebyggelse | F94: =Enhedspriser!E152 -> Privat, kælder | G94: -
E95: =Enhedspriser!D153 -> Bebyggelse | F95: =Enhedspriser!E153 -> Privat, stueetage | G95: -
E96: =Enhedspriser!D154 -> Bebyggelse | F96: =Enhedspriser!E154 -> Erhverv, bygningsskader | G96: -
E97: =Enhedspriser!D155 -> Bebyggelse | F97: =Enhedspriser!E155 -> Erhverv, drifts-/produktionstab | G97: -
E98: =Enhedspriser!D156 -> Bebyggelse | F98: =Enhedspriser!E156 -> Erhverv, tab af løsøre | G98: -
E99: =Enhedspriser!D157 -> Infrastruktur og trafik | F99: =Enhedspriser!E157 -> Oprydning | G99: -
E100: =Enhedspriser!D158 -> Infrastruktur og trafik | F100: =Enhedspriser!E158 -> Genopførelse | G100: -
E101: =Enhedspriser!D159 -> Infrastruktur og trafik | F101: =Enhedspriser!E159 -> Trafikforstyrrelse, bilister | G101: -
E102: =Enhedspriser!D160 -> Infrastruktur og trafik | F102: =Enhedspriser!E160 -> Trafikforstyrrelse, kollektivt rejsende | G102: -
E103: =Enhedspriser!D161 -> Elsvigt | F103: =Enhedspriser!E161 -> Elsvigt, private | G103: -
E104: =Enhedspriser!D162 -> Elsvigt | F104: =Enhedspriser!E162 -> Elsvigt, offentlige | G104: -
E105: =Enhedspriser!D163 -> Elsvigt | F105: =Enhedspriser!E163 -> Elsvigt, erhverv | G105: -
E106: =Enhedspriser!D164 -> Landbrug | F106: =Enhedspriser!E164 -> Husdyr, kvæg | G106: -
E107: =Enhedspriser!D165 -> Landbrug | F107: =Enhedspriser!E165 -> Husdyr, svin | G107: -
E108: =Enhedspriser!D166 -> Landbrug | F108: =Enhedspriser!E166 -> Afgrøder | G108: -
E109: =Enhedspriser!D167 -> Tilføj individuel skade | F109: =Enhedspriser!E167 -> Angiv skadestype | G109: - | H109: Hvis du ønsker at indtaste din egen skadeskategori skal du gå til fanen enhedspriser og tilføje den.
E111: Angiv antallet af skader tilføjet i ovenstående tabel | F111: 0 | G111: Dette felt skal svare til det angivne antal skadeskategorier
E113: B1: Indtastning af skader
E115: ="Skadestype 1 - " & _xlfn.XLOOKUP(1,Lister!$K$47:$K$62,Lister!$G$47:$G$62,"-",0,1) -> Skadestype 1 - -
E116: OBS: Skadesomkostningerne for den første hændelse skal sættes til 0. | I116: =IF(Antal_serviceniveauer=5,IF(OR(COUNTIF(F122:O122,"")<>10-Antal_haendelser,COUNTIF(F123:O123,"")<>10-Antal_haendelser,COUNTIF(F124:O124,"")<>10-Antal_haendelser,COUNTIF(F125:O125,"")<>10-Antal_haendelser,COUNTIF(F126:O126,"")<>10-Antal_haendelser,COUNTIF(F119:O119,"")<>10-Antal_haendelser),"OBS alle skader skal udfyldes i tabellen"," "), IF(Antal_serviceniveauer=4,IF(OR(COUNTIF(F122:O122,"")<>10-Antal_haendelser,COUNTIF(F123:O123,"")<>10-Antal_haendelser,COUNTIF(F124:O124,"")<>10-Antal_haendelser,COUNTIF(F125:O125,"")<>10-Antal_haendelser,COUNTIF(F119:O119,"")<>10-Antal_haendelser),"OBS alle skader skal udfyldes i tabellen"," "), IF(Antal_serviceniveauer=3,IF(OR(COUNTIF(F122:O122,"")<>10-Antal_haendelser,COUNTIF(F123:O123,"")<>10-Antal_haendelser,COUNTIF(F124:O124,"")<>10-Antal_haendelser,COUNTIF(F119:O119,"")<>10-Antal_haendelser),"OBS alle skader skal udfyldes i tabellen"," "), IF(Antal_serviceniveauer=2,IF(OR(COUNTIF(F122:O122,"")<>10-Antal_haendelser,COUNTIF(F123:O123,"")<>10-Antal_haendelser,COUNTIF(F119:O119,"")<>10-Antal_haendelser),"OBS alle skader skal udfyldes i tabellen"," "))))) -> OBS alle skader skal udfyldes i tabellen
H117: =_xlfn.IFNA("Skader for " & _xlfn.XLOOKUP(1,Lister!$K$47:$K$62,Lister!$G$47:$G$62,"-",0,1) & " (skal angives i " & VLOOKUP( _xlfn.XLOOKUP(1,Lister!$K$47:$K$62,Lister!$G$47:$G$62,"-",0,1),Enhedspriser!$E$152:$F$167,2,FALSE) & " )","") -> 
F118: =$F$48&"-års-hændelse " -> 0-års-hændelse | G118: =$F$49&"-års-hændelse " -> 0-års-hændelse | H118: =$F$50&"-års-hændelse " -> 0-års-hændelse | I118: =$F$51&"-års-hændelse " -> 0-års-hændelse | J118: =$F$52&"-års-hændelse " -> -års-hændelse | K118: =$F$53&"-års-hændelse " -> -års-hændelse | L118: =$F$54&"-års-hændelse " -> -års-hændelse | M118: =$F$55&"-års-hændelse " -> -års-hændelse | N118: =$F$56&"-års-hændelse " -> -års-hændelse | O118: =$F$57&"-års-hændelse " -> -års-hændelse
E119: Før tiltag
H120: =_xlfn.IFNA( "Skader for " & _xlfn.XLOOKUP(1,Lister!$K$47:$K$62,Lister!$G$47:$G$62,"-",0,1) & " (skal angives i " & VLOOKUP( _xlfn.XLOOKUP(1,Lister!$K$47:$K$62,Lister!$G$47:$G$62,"-",0,1),Enhedspriser!$E$152:$F$167,2,FALSE) & " )","") -> 
F121: =$G$48&"-års-hændelse " -> 0-års-hændelse | G121: =$G$49&"-års-hændelse " -> 0-års-hændelse | H121: =$G$50&"-års-hændelse " -> 0-års-hændelse | I121: =$G$51&"-års-hændelse " -> 0-års-hændelse | J121: =$G$52&"-års-hændelse " -> -års-hændelse | K121: =$G$53&"-års-hændelse " -> -års-hændelse | L121: =$G$54&"-års-hændelse " -> -års-hændelse | M121: =$G$55&"-års-hændelse " -> -års-hændelse | N121: =$G$56&"-års-hændelse " -> -års-hændelse | O121: =$G$57&"-års-hændelse " -> -års-hændelse
E122: =IF($F$37="", " ",$F$37) -> Txx
E123: =IF($F$38="", " ",$F$38) -> Txx
E124: =IF($F$39="", " ",$F$39) -> 
E125: =IF($F$40="", " ",$F$40) -> 
E126: =IF($F$41="", " ",$F$41) -> 
F127: =IF(SUM(F122:F126)+F119>0,"FEJL: Omkostninger angivet i den første hændelse skal være nul. Ellers regner modellen forkert."," ") -> 
E128: ="Skadestype 2 - " & _xlfn.XLOOKUP(2,Lister!$K$47:$K$62,Lister!$G$47:$G$62,"-",0,1) -> Skadestype 2 - -
E129: OBS: Skadesomkostningerne for den første hændelse skal sættes til 0. | I129: =IF(Antal_serviceniveauer=5,IF(OR(COUNTIF(F135:O135,"")<>10-Antal_haendelser,COUNTIF(F136:O136,"")<>10-Antal_haendelser,COUNTIF(F137:O137,"")<>10-Antal_haendelser,COUNTIF(F138:O138,"")<>10-Antal_haendelser,COUNTIF(F139:O139,"")<>10-Antal_haendelser,COUNTIF(F132:O132,"")<>10-Antal_haendelser),"OBS alle skader skal udfyldes i tabellen"," "), IF(Antal_serviceniveauer=4,IF(OR(COUNTIF(F135:O135,"")<>10-Antal_haendelser,COUNTIF(F136:O136,"")<>10-Antal_haendelser,COUNTIF(F137:O137,"")<>10-Antal_haendelser,COUNTIF(F138:O138,"")<>10-Antal_haendelser,COUNTIF(F132:O132,"")<>10-Antal_haendelser),"OBS alle skader skal udfyldes i tabellen"," "), IF(Antal_serviceniveauer=3,IF(OR(COUNTIF(F135:O135,"")<>10-Antal_haendelser,COUNTIF(F136:O136,"")<>10-Antal_haendelser,COUNTIF(F137:O137,"")<>10-Antal_haendelser,COUNTIF(F132:O132,"")<>10-Antal_haendelser),"OBS alle skader skal udfyldes i tabellen"," "), IF(Antal_serviceniveauer=2,IF(OR(COUNTIF(F135:O135,"")<>10-Antal_haendelser,COUNTIF(F136:O136,"")<>10-Antal_haendelser,COUNTIF(F132:O132,"")<>10-Antal_haendelser),"OBS alle skader skal udfyldes i tabellen"," "))))) -> OBS alle skader skal udfyldes i tabellen
H130: =_xlfn.IFNA( "Skader for " & _xlfn.XLOOKUP(2,Lister!$K$47:$K$62,Lister!$G$47:$G$62,"-",0,1) & " (skal angives i " & VLOOKUP( _xlfn.XLOOKUP(2,Lister!$K$47:$K$62,Lister!$G$47:$G$62,"-",0,1),Enhedspriser!$E$152:$F$167,2,FALSE) & " )","") -> 
F131: =$F$48&"-års-hændelse " -> 0-års-hændelse | G131: =$F$49&"-års-hændelse " -> 0-års-hændelse | H131: =$F$50&"-års-hændelse " -> 0-års-hændelse | I131: =$F$51&"-års-hændelse " -> 0-års-hændelse | J131: =$F$52&"-års-hændelse " -> -års-hændelse | K131: =$F$53&"-års-hændelse " -> -års-hændelse | L131: =$F$54&"-års-hændelse " -> -års-hændelse | M131: =$F$55&"-års-hændelse " -> -års-hændelse | N131: =$F$56&"-års-hændelse " -> -års-hændelse | O131: =$F$57&"-års-hændelse " -> -års-hændelse
E132: Før tiltag
H133: =_xlfn.IFNA("Skader for " & _xlfn.XLOOKUP(2,Lister!$K$47:$K$62,Lister!$G$47:$G$62,"-",0,1) & " (skal angives i " & VLOOKUP( _xlfn.XLOOKUP(2,Lister!$K$47:$K$62,Lister!$G$47:$G$62,"-",0,1),Enhedspriser!$E$152:$F$167,2,FALSE) & " )","") -> 
F134: =$G$48&"-års-hændelse " -> 0-års-hændelse | G134: =$G$49&"-års-hændelse " -> 0-års-hændelse | H134: =$G$50&"-års-hændelse " -> 0-års-hændelse | I134: =$G$51&"-års-hændelse " -> 0-års-hændelse | J134: =$G$52&"-års-hændelse " -> -års-hændelse | K134: =$G$53&"-års-hændelse " -> -års-hændelse | L134: =$G$54&"-års-hændelse " -> -års-hændelse | M134: =$G$55&"-års-hændelse " -> -års-hændelse | N134: =$G$56&"-års-hændelse " -> -års-hændelse | O134: =$G$57&"-års-hændelse " -> -års-hændelse
E135: =IF($F$37="", " ",$F$37) -> Txx
E136: =IF($F$38="", " ",$F$38) -> Txx
E137: =IF($F$39="", " ",$F$39) -> 
E138: =IF($F$40="", " ",$F$40) -> 
E139: =IF($F$41="", " ",$F$41) -> 
F140: =IF(SUM(F135:F139)+F132>0,"FEJL: Omkostninger angivet i den første hændelse skal være nul. Ellers regner modellen forkert."," ") -> 
E141: ="Skadestype 3 - " & _xlfn.XLOOKUP(3,Lister!$K$47:$K$62,Lister!$G$47:$G$62,"-",0,1) -> Skadestype 3 - -
E142: OBS: Skadesomkostningerne for den første hændelse skal sættes til 0. | I142: =IF(Antal_serviceniveauer=5,IF(OR(COUNTIF(F148:O148,"")<>10-Antal_haendelser,COUNTIF(F149:O149,"")<>10-Antal_haendelser,COUNTIF(F150:O150,"")<>10-Antal_haendelser,COUNTIF(F151:O151,"")<>10-Antal_haendelser,COUNTIF(F152:O152,"")<>10-Antal_haendelser,COUNTIF(F145:O145,"")<>10-Antal_haendelser),"OBS alle skader skal udfyldes i tabellen"," "), IF(Antal_serviceniveauer=4,IF(OR(COUNTIF(F148:O148,"")<>10-Antal_haendelser,COUNTIF(F149:O149,"")<>10-Antal_haendelser,COUNTIF(F150:O150,"")<>10-Antal_haendelser,COUNTIF(F151:O151,"")<>10-Antal_haendelser,COUNTIF(F145:O145,"")<>10-Antal_haendelser),"OBS alle skader skal udfyldes i tabellen"," "), IF(Antal_serviceniveauer=3,IF(OR(COUNTIF(F148:O148,"")<>10-Antal_haendelser,COUNTIF(F149:O149,"")<>10-Antal_haendelser,COUNTIF(F150:O150,"")<>10-Antal_haendelser,COUNTIF(F145:O145,"")<>10-Antal_haendelser),"OBS alle skader skal udfyldes i tabellen"," "), IF(Antal_serviceniveauer=2,IF(OR(COUNTIF(F148:O148,"")<>10-Antal_haendelser,COUNTIF(F149:O149,"")<>10-Antal_haendelser,COUNTIF(F145:O145,"")<>10-Antal_haendelser),"OBS alle skader skal udfyldes i tabellen"," "))))) -> OBS alle skader skal udfyldes i tabellen
H143: =_xlfn.IFNA("Skader for " & _xlfn.XLOOKUP(3,Lister!$K$47:$K$62,Lister!$G$47:$G$62,"-",0,1) & " (skal angives i " & VLOOKUP( _xlfn.XLOOKUP(3,Lister!$K$47:$K$62,Lister!$G$47:$G$62,"-",0,1),Enhedspriser!$E$152:$F$167,2,FALSE) & " )","") -> 
F144: =$F$48&"-års-hændelse " -> 0-års-hændelse | G144: =$F$49&"-års-hændelse " -> 0-års-hændelse | H144: =$F$50&"-års-hændelse " -> 0-års-hændelse | I144: =$F$51&"-års-hændelse " -> 0-års-hændelse | J144: =$F$52&"-års-hændelse " -> -års-hændelse | K144: =$F$53&"-års-hændelse " -> -års-hændelse | L144: =$F$54&"-års-hændelse " -> -års-hændelse | M144: =$F$55&"-års-hændelse " -> -års-hændelse | N144: =$F$56&"-års-hændelse " -> -års-hændelse | O144: =$F$57&"-års-hændelse " -> -års-hændelse
E145: Før tiltag
H146: =_xlfn.IFNA("Skader for " & _xlfn.XLOOKUP(3,Lister!$K$47:$K$62,Lister!$G$47:$G$62,"-",0,1) & " (skal angives i " & VLOOKUP( _xlfn.XLOOKUP(3,Lister!$K$47:$K$62,Lister!$G$47:$G$62,"-",0,1),Enhedspriser!$E$152:$F$167,2,FALSE) & " )","") -> 
F147: =$G$48&"-års-hændelse " -> 0-års-hændelse | G147: =$G$49&"-års-hændelse " -> 0-års-hændelse | H147: =$G$50&"-års-hændelse " -> 0-års-hændelse | I147: =$G$51&"-års-hændelse " -> 0-års-hændelse | J147: =$G$52&"-års-hændelse " -> -års-hændelse | K147: =$G$53&"-års-hændelse " -> -års-hændelse | L147: =$G$54&"-års-hændelse " -> -års-hændelse | M147: =$G$55&"-års-hændelse " -> -års-hændelse | N147: =$G$56&"-års-hændelse " -> -års-hændelse | O147: =$G$57&"-års-hændelse " -> -års-hændelse
E148: =IF($F$37="", " ",$F$37) -> Txx
E149: =IF($F$38="", " ",$F$38) -> Txx
E150: =IF($F$39="", " ",$F$39) -> 
E151: =IF($F$40="", " ",$F$40) -> 
E152: =IF($F$41="", " ",$F$41) -> 
F153: =IF(SUM(F148:F152)+F145>0,"FEJL: Omkostninger angivet i den første hændelse skal være nul. Ellers regner modellen forkert."," ") -> 
E154: ="Skadestype 4 - " & _xlfn.XLOOKUP(4,Lister!$K$47:$K$62,Lister!$G$47:$G$62,"-",0,1) -> Skadestype 4 - -
E155: OBS: Skadesomkostningerne for den første hændelse skal sættes til 0. | I155: =IF(Antal_serviceniveauer=5,IF(OR(COUNTIF(F161:O161,"")<>10-Antal_haendelser,COUNTIF(F162:O162,"")<>10-Antal_haendelser,COUNTIF(F163:O163,"")<>10-Antal_haendelser,COUNTIF(F164:O164,"")<>10-Antal_haendelser,COUNTIF(F165:O165,"")<>10-Antal_haendelser,COUNTIF(F158:O158,"")<>10-Antal_haendelser),"OBS alle skader skal udfyldes i tabellen"," "), IF(Antal_serviceniveauer=4,IF(OR(COUNTIF(F161:O161,"")<>10-Antal_haendelser,COUNTIF(F162:O162,"")<>10-Antal_haendelser,COUNTIF(F163:O163,"")<>10-Antal_haendelser,COUNTIF(F164:O164,"")<>10-Antal_haendelser,COUNTIF(F158:O158,"")<>10-Antal_haendelser),"OBS alle skader skal udfyldes i tabellen"," "), IF(Antal_serviceniveauer=3,IF(OR(COUNTIF(F161:O161,"")<>10-Antal_haendelser,COUNTIF(F162:O162,"")<>10-Antal_haendelser,COUNTIF(F163:O163,"")<>10-Antal_haendelser,COUNTIF(F158:O158,"")<>10-Antal_haendelser),"OBS alle skader skal udfyldes i tabellen"," "), IF(Antal_serviceniveauer=2,IF(OR(COUNTIF(F161:O161,"")<>10-Antal_haendelser,COUNTIF(F162:O162,"")<>10-Antal_haendelser,COUNTIF(F158:O158,"")<>10-Antal_haendelser),"OBS alle skader skal udfyldes i tabellen"," "))))) -> OBS alle skader skal udfyldes i tabellen
H156: =_xlfn.IFNA("Skader for " & _xlfn.XLOOKUP(4,Lister!$K$47:$K$62,Lister!$G$47:$G$62,"-",0,1) & " (skal angives i " & VLOOKUP( _xlfn.XLOOKUP(4,Lister!$K$47:$K$62,Lister!$G$47:$G$62,"-",0,1),Enhedspriser!$E$152:$F$167,2,FALSE) & " )","") -> 
F157: =$F$48&"-års-hændelse " -> 0-års-hændelse | G157: =$F$49&"-års-hændelse " -> 0-års-hændelse | H157: =$F$50&"-års-hændelse " -> 0-års-hændelse | I157: =$F$51&"-års-hændelse " -> 0-års-hændelse | J157: =$F$52&"-års-hændelse " -> -års-hændelse | K157: =$F$53&"-års-hændelse " -> -års-hændelse | L157: =$F$54&"-års-hændelse " -> -års-hændelse | M157: =$F$55&"-års-hændelse " -> -års-hændelse | N157: =$F$56&"-års-hændelse " -> -års-hændelse | O157: =$F$57&"-års-hændelse " -> -års-hændelse
E158: Før tiltag
H159: =_xlfn.IFNA("Skader for " & _xlfn.XLOOKUP(4,Lister!$K$47:$K$62,Lister!$G$47:$G$62,"-",0,1) & " (skal angives i " & VLOOKUP( _xlfn.XLOOKUP(4,Lister!$K$47:$K$62,Lister!$G$47:$G$62,"-",0,1),Enhedspriser!$E$152:$F$167,2,FALSE) & " )","") -> 
F160: =$G$48&"-års-hændelse " -> 0-års-hændelse | G160: =$G$49&"-års-hændelse " -> 0-års-hændelse | H160: =$G$50&"-års-hændelse " -> 0-års-hændelse | I160: =$G$51&"-års-hændelse " -> 0-års-hændelse | J160: =$G$52&"-års-hændelse " -> -års-hændelse | K160: =$G$53&"-års-hændelse " -> -års-hændelse | L160: =$G$54&"-års-hændelse " -> -års-hændelse | M160: =$G$55&"-års-hændelse " -> -års-hændelse | N160: =$G$56&"-års-hændelse " -> -års-hændelse | O160: =$G$57&"-års-hændelse " -> -års-hændelse
E161: =IF($F$37="", " ",$F$37) -> Txx
E162: =IF($F$38="", " ",$F$38) -> Txx
E163: =IF($F$39="", " ",$F$39) -> 
E164: =IF($F$40="", " ",$F$40) -> 
E165: =IF($F$41="", " ",$F$41) -> 
F166: =IF(SUM(F161:F165)+F158>0,"FEJL: Omkostninger angivet i den første hændelse skal være nul. Ellers regner modellen forkert."," ") -> 
E167: ="Skadestype 5 - " & _xlfn.XLOOKUP(5,Lister!$K$47:$K$62,Lister!$G$47:$G$62,"-",0,1) -> Skadestype 5 - -
E168: OBS: Skadesomkostningerne for den første hændelse skal sættes til 0. | I168: =IF(Antal_serviceniveauer=5,IF(OR(COUNTIF(F174:O174,"")<>10-Antal_haendelser,COUNTIF(F175:O175,"")<>10-Antal_haendelser,COUNTIF(F176:O176,"")<>10-Antal_haendelser,COUNTIF(F177:O177,"")<>10-Antal_haendelser,COUNTIF(F178:O178,"")<>10-Antal_haendelser,COUNTIF(F171:O171,"")<>10-Antal_haendelser),"OBS alle skader skal udfyldes i tabellen"," "), IF(Antal_serviceniveauer=4,IF(OR(COUNTIF(F174:O174,"")<>10-Antal_haendelser,COUNTIF(F175:O175,"")<>10-Antal_haendelser,COUNTIF(F176:O176,"")<>10-Antal_haendelser,COUNTIF(F177:O177,"")<>10-Antal_haendelser,COUNTIF(F171:O171,"")<>10-Antal_haendelser),"OBS alle skader skal udfyldes i tabellen"," "), IF(Antal_serviceniveauer=3,IF(OR(COUNTIF(F174:O174,"")<>10-Antal_haendelser,COUNTIF(F175:O175,"")<>10-Antal_haendelser,COUNTIF(F176:O176,"")<>10-Antal_haendelser,COUNTIF(F171:O171,"")<>10-Antal_haendelser),"OBS alle skader skal udfyldes i tabellen"," "), IF(Antal_serviceniveauer=2,IF(OR(COUNTIF(F174:O174,"")<>10-Antal_haendelser,COUNTIF(F175:O175,"")<>10-Antal_haendelser,COUNTIF(F171:O171,"")<>10-Antal_haendelser),"OBS alle skader skal udfyldes i tabellen"," "))))) -> OBS alle skader skal udfyldes i tabellen
H169: =_xlfn.IFNA("Skader for " & _xlfn.XLOOKUP(5,Lister!$K$47:$K$62,Lister!$G$47:$G$62,"-",0,1) & " (skal angives i " & VLOOKUP( _xlfn.XLOOKUP(5,Lister!$K$47:$K$62,Lister!$G$47:$G$62,"-",0,1),Enhedspriser!$E$152:$F$167,2,FALSE) & " )","") -> 
F170: =$F$48&"-års-hændelse " -> 0-års-hændelse | G170: =$F$49&"-års-hændelse " -> 0-års-hændelse | H170: =$F$50&"-års-hændelse " -> 0-års-hændelse | I170: =$F$51&"-års-hændelse " -> 0-års-hændelse | J170: =$F$52&"-års-hændelse " -> -års-hændelse | K170: =$F$53&"-års-hændelse " -> -års-hændelse | L170: =$F$54&"-års-hændelse " -> -års-hændelse | M170: =$F$55&"-års-hændelse " -> -års-hændelse | N170: =$F$56&"-års-hændelse " -> -års-hændelse | O170: =$F$57&"-års-hændelse " -> -års-hændelse
E171: Før tiltag
H172: =_xlfn.IFNA("Skader for " & _xlfn.XLOOKUP(5,Lister!$K$47:$K$62,Lister!$G$47:$G$62,"-",0,1) & " (skal angives i " & VLOOKUP( _xlfn.XLOOKUP(5,Lister!$K$47:$K$62,Lister!$G$47:$G$62,"-",0,1),Enhedspriser!$E$152:$F$167,2,FALSE) & " )","") -> 
F173: =$G$48&"-års-hændelse " -> 0-års-hændelse | G173: =$G$49&"-års-hændelse " -> 0-års-hændelse | H173: =$G$50&"-års-hændelse " -> 0-års-hændelse | I173: =$G$51&"-års-hændelse " -> 0-års-hændelse | J173: =$G$52&"-års-hændelse " -> -års-hændelse | K173: =$G$53&"-års-hændelse " -> -års-hændelse | L173: =$G$54&"-års-hændelse " -> -års-hændelse | M173: =$G$55&"-års-hændelse " -> -års-hændelse | N173: =$G$56&"-års-hændelse " -> -års-hændelse | O173: =$G$57&"-års-hændelse " -> -års-hændelse
E174: =IF($F$37="", " ",$F$37) -> Txx
E175: =IF($F$38="", " ",$F$38) -> Txx
E176: =IF($F$39="", " ",$F$39) -> 
E177: =IF($F$40="", " ",$F$40) -> 
E178: =IF($F$41="", " ",$F$41) -> 
F179: =IF(SUM(F174:F178)+F171>0,"FEJL: Omkostninger angivet i den første hændelse skal være nul. Ellers regner modellen forkert."," ") -> 
E180: ="Skadestype 6 - " & _xlfn.XLOOKUP(6,Lister!$K$47:$K$62,Lister!$G$47:$G$62,"-",0,1) -> Skadestype 6 - -
E181: OBS: Skadesomkostningerne for den første hændelse skal sættes til 0. | I181: =IF(Antal_serviceniveauer=5,IF(OR(COUNTIF(F187:O187,"")<>10-Antal_haendelser,COUNTIF(F188:O188,"")<>10-Antal_haendelser,COUNTIF(F189:O189,"")<>10-Antal_haendelser,COUNTIF(F190:O190,"")<>10-Antal_haendelser,COUNTIF(F191:O191,"")<>10-Antal_haendelser,COUNTIF(F184:O184,"")<>10-Antal_haendelser),"OBS alle skader skal udfyldes i tabellen"," "), IF(Antal_serviceniveauer=4,IF(OR(COUNTIF(F187:O187,"")<>10-Antal_haendelser,COUNTIF(F188:O188,"")<>10-Antal_haendelser,COUNTIF(F189:O189,"")<>10-Antal_haendelser,COUNTIF(F190:O190,"")<>10-Antal_haendelser,COUNTIF(F184:O184,"")<>10-Antal_haendelser),"OBS alle skader skal udfyldes i tabellen"," "), IF(Antal_serviceniveauer=3,IF(OR(COUNTIF(F187:O187,"")<>10-Antal_haendelser,COUNTIF(F188:O188,"")<>10-Antal_haendelser,COUNTIF(F189:O189,"")<>10-Antal_haendelser,COUNTIF(F184:O184,"")<>10-Antal_haendelser),"OBS alle skader skal udfyldes i tabellen"," "), IF(Antal_serviceniveauer=2,IF(OR(COUNTIF(F187:O187,"")<>10-Antal_haendelser,COUNTIF(F188:O188,"")<>10-Antal_haendelser,COUNTIF(F184:O184,"")<>10-Antal_haendelser),"OBS alle skader skal udfyldes i tabellen"," "))))) -> OBS alle skader skal udfyldes i tabellen
H182: =_xlfn.IFNA("Skader for " & _xlfn.XLOOKUP(6,Lister!$K$47:$K$62,Lister!$G$47:$G$62,"-",0,1) & " (skal angives i " & VLOOKUP( _xlfn.XLOOKUP(6,Lister!$K$47:$K$62,Lister!$G$47:$G$62,"-",0,1),Enhedspriser!$E$152:$F$167,2,FALSE) & " )","") -> 
F183: =$F$48&"-års-hændelse " -> 0-års-hændelse | G183: =$F$49&"-års-hændelse " -> 0-års-hændelse | H183: =$F$50&"-års-hændelse " -> 0-års-hændelse | I183: =$F$51&"-års-hændelse " -> 0-års-hændelse | J183: =$F$52&"-års-hændelse " -> -års-hændelse | K183: =$F$53&"-års-hændelse " -> -års-hændelse | L183: =$F$54&"-års-hændelse " -> -års-hændelse | M183: =$F$55&"-års-hændelse " -> -års-hændelse | N183: =$F$56&"-års-hændelse " -> -års-hændelse | O183: =$F$57&"-års-hændelse " -> -års-hændelse
E184: Før tiltag
H185: =_xlfn.IFNA("Skader for " & _xlfn.XLOOKUP(6,Lister!$K$47:$K$62,Lister!$G$47:$G$62,"-",0,1) & " (skal angives i " & VLOOKUP( _xlfn.XLOOKUP(6,Lister!$K$47:$K$62,Lister!$G$47:$G$62,"-",0,1),Enhedspriser!$E$152:$F$167,2,FALSE) & " )","") -> 
F186: =$G$48&"-års-hændelse " -> 0-års-hændelse | G186: =$G$49&"-års-hændelse " -> 0-års-hændelse | H186: =$G$50&"-års-hændelse " -> 0-års-hændelse | I186: =$G$51&"-års-hændelse " -> 0-års-hændelse | J186: =$G$52&"-års-hændelse " -> -års-hændelse | K186: =$G$53&"-års-hændelse " -> -års-hændelse | L186: =$G$54&"-års-hændelse " -> -års-hændelse | M186: =$G$55&"-års-hændelse " -> -års-hændelse | N186: =$G$56&"-års-hændelse " -> -års-hændelse | O186: =$G$57&"-års-hændelse " -> -års-hændelse
E187: =IF($F$37="", " ",$F$37) -> Txx
E188: =IF($F$38="", " ",$F$38) -> Txx
E189: =IF($F$39="", " ",$F$39) -> 
E190: =IF($F$40="", " ",$F$40) -> 
E191: =IF($F$41="", " ",$F$41) -> 
F192: =IF(SUM(F187:F191)+F184>0,"FEJL: Omkostninger angivet i den første hændelse skal være nul. Ellers regner modellen forkert."," ") -> 
E193: ="Skadestype 7 - " & _xlfn.XLOOKUP(7,Lister!$K$47:$K$62,Lister!$G$47:$G$62,"-",0,1) -> Skadestype 7 - -
E194: OBS: Skadesomkostningerne for den første hændelse skal sættes til 0. | I194: =IF(Antal_serviceniveauer=5,IF(OR(COUNTIF(F200:O200,"")<>10-Antal_haendelser,COUNTIF(F201:O201,"")<>10-Antal_haendelser,COUNTIF(F202:O202,"")<>10-Antal_haendelser,COUNTIF(F203:O203,"")<>10-Antal_haendelser,COUNTIF(F204:O204,"")<>10-Antal_haendelser,COUNTIF(F197:O197,"")<>10-Antal_haendelser),"OBS alle skader skal udfyldes i tabellen"," "), IF(Antal_serviceniveauer=4,IF(OR(COUNTIF(F200:O200,"")<>10-Antal_haendelser,COUNTIF(F201:O201,"")<>10-Antal_haendelser,COUNTIF(F202:O202,"")<>10-Antal_haendelser,COUNTIF(F203:O203,"")<>10-Antal_haendelser,COUNTIF(F197:O197,"")<>10-Antal_haendelser),"OBS alle skader skal udfyldes i tabellen"," "), IF(Antal_serviceniveauer=3,IF(OR(COUNTIF(F200:O200,"")<>10-Antal_haendelser,COUNTIF(F201:O201,"")<>10-Antal_haendelser,COUNTIF(F202:O202,"")<>10-Antal_haendelser,COUNTIF(F197:O197,"")<>10-Antal_haendelser),"OBS alle skader skal udfyldes i tabellen"," "), IF(Antal_serviceniveauer=2,IF(OR(COUNTIF(F200:O200,"")<>10-Antal_haendelser,COUNTIF(F201:O201,"")<>10-Antal_haendelser,COUNTIF(F197:O197,"")<>10-Antal_haendelser),"OBS alle skader skal udfyldes i tabellen"," "))))) -> OBS alle skader skal udfyldes i tabellen
H195: =_xlfn.IFNA("Skader for " & _xlfn.XLOOKUP(7,Lister!$K$47:$K$62,Lister!$G$47:$G$62,"-",0,1) & " (skal angives i " & VLOOKUP( _xlfn.XLOOKUP(7,Lister!$K$47:$K$62,Lister!$G$47:$G$62,"-",0,1),Enhedspriser!$E$152:$F$167,2,FALSE) & " )","") -> 
F196: =$F$48&"-års-hændelse " -> 0-års-hændelse | G196: =$F$49&"-års-hændelse " -> 0-års-hændelse | H196: =$F$50&"-års-hændelse " -> 0-års-hændelse | I196: =$F$51&"-års-hændelse " -> 0-års-hændelse | J196: =$F$52&"-års-hændelse " -> -års-hændelse | K196: =$F$53&"-års-hændelse " -> -års-hændelse | L196: =$F$54&"-års-hændelse " -> -års-hændelse | M196: =$F$55&"-års-hændelse " -> -års-hændelse | N196: =$F$56&"-års-hændelse " -> -års-hændelse | O196: =$F$57&"-års-hændelse " -> -års-hændelse
E197: Før tiltag
H198: =_xlfn.IFNA("Skader for " & _xlfn.XLOOKUP(7,Lister!$K$47:$K$62,Lister!$G$47:$G$62,"-",0,1) & " (skal angives i " & VLOOKUP( _xlfn.XLOOKUP(7,Lister!$K$47:$K$62,Lister!$G$47:$G$62,"-",0,1),Enhedspriser!$E$152:$F$167,2,FALSE) & " )","") -> 
F199: =$G$48&"-års-hændelse " -> 0-års-hændelse | G199: =$G$49&"-års-hændelse " -> 0-års-hændelse | H199: =$G$50&"-års-hændelse " -> 0-års-hændelse | I199: =$G$51&"-års-hændelse " -> 0-års-hændelse | J199: =$G$52&"-års-hændelse " -> -års-hændelse | K199: =$G$53&"-års-hændelse " -> -års-hændelse | L199: =$G$54&"-års-hændelse " -> -års-hændelse | M199: =$G$55&"-års-hændelse " -> -års-hændelse | N199: =$G$56&"-års-hændelse " -> -års-hændelse | O199: =$G$57&"-års-hændelse " -> -års-hændelse
E200: =IF($F$37="", " ",$F$37) -> Txx
E201: =IF($F$38="", " ",$F$38) -> Txx
E202: =IF($F$39="", " ",$F$39) -> 
E203: =IF($F$40="", " ",$F$40) -> 
E204: =IF($F$41="", " ",$F$41) -> 
F205: =IF(SUM(F200:F204)+F197>0,"FEJL: Omkostninger angivet i den første hændelse skal være nul. Ellers regner modellen forkert."," ") -> 
E206: ="Skadestype 8 - " & _xlfn.XLOOKUP(8,Lister!$K$47:$K$62,Lister!$G$47:$G$62,"-",0,1) -> Skadestype 8 - -
E207: OBS: Skadesomkostningerne for den første hændelse skal sættes til 0. | I207: =IF(Antal_serviceniveauer=5,IF(OR(COUNTIF(F213:O213,"")<>10-Antal_haendelser,COUNTIF(F214:O214,"")<>10-Antal_haendelser,COUNTIF(F215:O215,"")<>10-Antal_haendelser,COUNTIF(F216:O216,"")<>10-Antal_haendelser,COUNTIF(F217:O217,"")<>10-Antal_haendelser,COUNTIF(F210:O210,"")<>10-Antal_haendelser),"OBS alle skader skal udfyldes i tabellen"," "), IF(Antal_serviceniveauer=4,IF(OR(COUNTIF(F213:O213,"")<>10-Antal_haendelser,COUNTIF(F214:O214,"")<>10-Antal_haendelser,COUNTIF(F215:O215,"")<>10-Antal_haendelser,COUNTIF(F216:O216,"")<>10-Antal_haendelser,COUNTIF(F210:O210,"")<>10-Antal_haendelser),"OBS alle skader skal udfyldes i tabellen"," "), IF(Antal_serviceniveauer=3,IF(OR(COUNTIF(F213:O213,"")<>10-Antal_haendelser,COUNTIF(F214:O214,"")<>10-Antal_haendelser,COUNTIF(F215:O215,"")<>10-Antal_haendelser,COUNTIF(F210:O210,"")<>10-Antal_haendelser),"OBS alle skader skal udfyldes i tabellen"," "), IF(Antal_serviceniveauer=2,IF(OR(COUNTIF(F213:O213,"")<>10-Antal_haendelser,COUNTIF(F214:O214,"")<>10-Antal_haendelser,COUNTIF(F210:O210,"")<>10-Antal_haendelser),"OBS alle skader skal udfyldes i tabellen"," "))))) -> OBS alle skader skal udfyldes i tabellen
H208: =_xlfn.IFNA( "Skader for " & _xlfn.XLOOKUP(8,Lister!$K$47:$K$62,Lister!$G$47:$G$62,"-",0,1) & " (skal angives i " & VLOOKUP( _xlfn.XLOOKUP(8,Lister!$K$47:$K$62,Lister!$G$47:$G$62,"-",0,1),Enhedspriser!$E$152:$F$167,2,FALSE) & " )","") -> 
F209: =$F$48&"-års-hændelse " -> 0-års-hændelse | G209: =$F$49&"-års-hændelse " -> 0-års-hændelse | H209: =$F$50&"-års-hændelse " -> 0-års-hændelse | I209: =$F$51&"-års-hændelse " -> 0-års-hændelse | J209: =$F$52&"-års-hændelse " -> -års-hændelse | K209: =$F$53&"-års-hændelse " -> -års-hændelse | L209: =$F$54&"-års-hændelse " -> -års-hændelse | M209: =$F$55&"-års-hændelse " -> -års-hændelse | N209: =$F$56&"-års-hændelse " -> -års-hændelse | O209: =$F$57&"-års-hændelse " -> -års-hændelse
E210: Før tiltag
H211: =_xlfn.IFNA("Skader for " & _xlfn.XLOOKUP(8,Lister!$K$47:$K$62,Lister!$G$47:$G$62,"-",0,1) & " (skal angives i " & VLOOKUP( _xlfn.XLOOKUP(8,Lister!$K$47:$K$62,Lister!$G$47:$G$62,"-",0,1),Enhedspriser!$E$152:$F$167,2,FALSE) & " )","") -> 
F212: =$G$48&"-års-hændelse " -> 0-års-hændelse | G212: =$G$49&"-års-hændelse " -> 0-års-hændelse | H212: =$G$50&"-års-hændelse " -> 0-års-hændelse | I212: =$G$51&"-års-hændelse " -> 0-års-hændelse | J212: =$G$52&"-års-hændelse " -> -års-hændelse | K212: =$G$53&"-års-hændelse " -> -års-hændelse | L212: =$G$54&"-års-hændelse " -> -års-hændelse | M212: =$G$55&"-års-hændelse " -> -års-hændelse | N212: =$G$56&"-års-hændelse " -> -års-hændelse | O212: =$G$57&"-års-hændelse " -> -års-hændelse
E213: =IF($F$37="", " ",$F$37) -> Txx
E214: =IF($F$38="", " ",$F$38) -> Txx
E215: =IF($F$39="", " ",$F$39) -> 
E216: =IF($F$40="", " ",$F$40) -> 
E217: =IF($F$41="", " ",$F$41) -> 
F218: =IF(SUM(F213:F217)+F210>0,"FEJL: Omkostninger angivet i den første hændelse skal være nul. Ellers regner modellen forkert."," ") -> 
E219: ="Skadestype 9 - " & _xlfn.XLOOKUP(9,Lister!$K$47:$K$62,Lister!$G$47:$G$62,"-",0,1) -> Skadestype 9 - -
E220: OBS: Skadesomkostningerne for den første hændelse skal sættes til 0. | I220: =IF(Antal_serviceniveauer=5,IF(OR(COUNTIF(F226:O226,"")<>10-Antal_haendelser,COUNTIF(F227:O227,"")<>10-Antal_haendelser,COUNTIF(F228:O228,"")<>10-Antal_haendelser,COUNTIF(F229:O229,"")<>10-Antal_haendelser,COUNTIF(F230:O230,"")<>10-Antal_haendelser,COUNTIF(F223:O223,"")<>10-Antal_haendelser),"OBS alle skader skal udfyldes i tabellen"," "), IF(Antal_serviceniveauer=4,IF(OR(COUNTIF(F226:O226,"")<>10-Antal_haendelser,COUNTIF(F227:O227,"")<>10-Antal_haendelser,COUNTIF(F228:O228,"")<>10-Antal_haendelser,COUNTIF(F229:O229,"")<>10-Antal_haendelser,COUNTIF(F223:O223,"")<>10-Antal_haendelser),"OBS alle skader skal udfyldes i tabellen"," "), IF(Antal_serviceniveauer=3,IF(OR(COUNTIF(F226:O226,"")<>10-Antal_haendelser,COUNTIF(F227:O227,"")<>10-Antal_haendelser,COUNTIF(F228:O228,"")<>10-Antal_haendelser,COUNTIF(F223:O223,"")<>10-Antal_haendelser),"OBS alle skader skal udfyldes i tabellen"," "), IF(Antal_serviceniveauer=2,IF(OR(COUNTIF(F226:O226,"")<>10-Antal_haendelser,COUNTIF(F227:O227,"")<>10-Antal_haendelser,COUNTIF(F223:O223,"")<>10-Antal_haendelser),"OBS alle skader skal udfyldes i tabellen"," "))))) -> OBS alle skader skal udfyldes i tabellen
H221: =_xlfn.IFNA("Skader for " & _xlfn.XLOOKUP(9,Lister!$K$47:$K$62,Lister!$G$47:$G$62,"-",0,1) & " (skal angives i " & VLOOKUP( _xlfn.XLOOKUP(9,Lister!$K$47:$K$62,Lister!$G$47:$G$62,"-",0,1),Enhedspriser!$E$152:$F$167,2,FALSE) & " )","") -> 
F222: =$F$48&"-års-hændelse " -> 0-års-hændelse | G222: =$F$49&"-års-hændelse " -> 0-års-hændelse | H222: =$F$50&"-års-hændelse " -> 0-års-hændelse | I222: =$F$51&"-års-hændelse " -> 0-års-hændelse | J222: =$F$52&"-års-hændelse " -> -års-hændelse | K222: =$F$53&"-års-hændelse " -> -års-hændelse | L222: =$F$54&"-års-hændelse " -> -års-hændelse | M222: =$F$55&"-års-hændelse " -> -års-hændelse | N222: =$F$56&"-års-hændelse " -> -års-hændelse | O222: =$F$57&"-års-hændelse " -> -års-hændelse
E223: Før tiltag
H224: =_xlfn.IFNA( "Skader for " & _xlfn.XLOOKUP(9,Lister!$K$47:$K$62,Lister!$G$47:$G$62,"-",0,1) & " (skal angives i " & VLOOKUP( _xlfn.XLOOKUP(9,Lister!$K$47:$K$62,Lister!$G$47:$G$62,"-",0,1),Enhedspriser!$E$152:$F$167,2,FALSE) & " )","") -> 
F225: =$G$48&"-års-hændelse " -> 0-års-hændelse | G225: =$G$49&"-års-hændelse " -> 0-års-hændelse | H225: =$G$50&"-års-hændelse " -> 0-års-hændelse | I225: =$G$51&"-års-hændelse " -> 0-års-hændelse | J225: =$G$52&"-års-hændelse " -> -års-hændelse | K225: =$G$53&"-års-hændelse " -> -års-hændelse | L225: =$G$54&"-års-hændelse " -> -års-hændelse | M225: =$G$55&"-års-hændelse " -> -års-hændelse | N225: =$G$56&"-års-hændelse " -> -års-hændelse | O225: =$G$57&"-års-hændelse " -> -års-hændelse
E226: =IF($F$37="", " ",$F$37) -> Txx
E227: =IF($F$38="", " ",$F$38) -> Txx
E228: =IF($F$39="", " ",$F$39) -> 
E229: =IF($F$40="", " ",$F$40) -> 
E230: =IF($F$41="", " ",$F$41) -> 
F231: =IF(SUM(F226:F230)+F223>0,"FEJL: Omkostninger angivet i den første hændelse skal være nul. Ellers regner modellen forkert."," ") -> 
E232: ="Skadestype 10 - " & _xlfn.XLOOKUP(10,Lister!$K$47:$K$62,Lister!$G$47:$G$62,"-",0,1) -> Skadestype 10 - -
E233: OBS: Skadesomkostningerne for den første hændelse skal sættes til 0. | I233: =IF(Antal_serviceniveauer=5,IF(OR(COUNTIF(F239:O239,"")<>10-Antal_haendelser,COUNTIF(F240:O240,"")<>10-Antal_haendelser,COUNTIF(F241:O241,"")<>10-Antal_haendelser,COUNTIF(F242:O242,"")<>10-Antal_haendelser,COUNTIF(F243:O243,"")<>10-Antal_haendelser,COUNTIF(F236:O236,"")<>10-Antal_haendelser),"OBS alle skader skal udfyldes i tabellen"," "), IF(Antal_serviceniveauer=4,IF(OR(COUNTIF(F239:O239,"")<>10-Antal_haendelser,COUNTIF(F240:O240,"")<>10-Antal_haendelser,COUNTIF(F241:O241,"")<>10-Antal_haendelser,COUNTIF(F242:O242,"")<>10-Antal_haendelser,COUNTIF(F236:O236,"")<>10-Antal_haendelser),"OBS alle skader skal udfyldes i tabellen"," "), IF(Antal_serviceniveauer=3,IF(OR(COUNTIF(F239:O239,"")<>10-Antal_haendelser,COUNTIF(F240:O240,"")<>10-Antal_haendelser,COUNTIF(F241:O241,"")<>10-Antal_haendelser,COUNTIF(F236:O236,"")<>10-Antal_haendelser),"OBS alle skader skal udfyldes i tabellen"," "), IF(Antal_serviceniveauer=2,IF(OR(COUNTIF(F239:O239,"")<>10-Antal_haendelser,COUNTIF(F240:O240,"")<>10-Antal_haendelser,COUNTIF(F236:O236,"")<>10-Antal_haendelser),"OBS alle skader skal udfyldes i tabellen"," "))))) -> OBS alle skader skal udfyldes i tabellen
H234: =_xlfn.IFNA("Skader for " & _xlfn.XLOOKUP(10,Lister!$K$47:$K$62,Lister!$G$47:$G$62,"-",0,1) & " (skal angives i " & VLOOKUP( _xlfn.XLOOKUP(10,Lister!$K$47:$K$62,Lister!$G$47:$G$62,"-",0,1),Enhedspriser!$E$152:$F$167,2,FALSE) & " )","") -> 
... 344 more rows

Sheet Merværdier
D1: =MID(CELL("filename",D1),1+FIND("]",CELL("filename",D1)),99) -> Merværdier
D3: Brugervejledning
D4: I relation til klimatilpasningsprojekterne kan der være en række merværdier, og i værktøjet arbejdes der med fire overordnede kategorier. Kategorierne er ’By- og landskabsrum’, ’Friluftsaktiviteter’, ’Natur og biodiversitet’ og ’CO2’. Der kan opnås andre merværdier som funktion af klimatilpasning, men værktøjet opererer kun med disse fire kategorier. Der er både tale om merværdier, der opstår alene som følge af et klimatilpasningsprojekt, og de potentialer og synergieffekter, der kan opstå som følge af tilførsel af yderligere midler til tiltag eller anlæg der ligger uden for den snævre hydrauliske løsning, som skal imødekomme klimaudfordringen. Blandt andet vil en del af merværdierne under friluftsliv kræve, at der anlægges nye stier og faciliteter, der ikke umiddelbart er nødvendige for funktionsdygtigheden af den hydrauliske løsning. Indenfor hver kategori er defineret en række parametre, som bruges til at vurdere merværdierne med. Merværdierne vurderes som værende enten ’høj’, ’middel’, ’lav’ eller ’ingen/negativ', og vurderingen kan ske med baggrund i informationer fra Danmarks Miljøportal og/eller MiljøGIS (Miljøstyrelsen). Som supplement kan orthofoto, kort, samt kommunale planer og strategier bruges. Vurderingen kræver en række forskellige faglige forudsætninger samt et vist lokalkendskab, derfor anbefales det at inddrage flere fagligheder i arbejdet. Værktøjets resultater kan vise forskellen mellem projekter i forhold til, hvilke merværdier det enkelte projekt giver i forhold til den nuværende situation. De enkelte projektalternativer kan alene sammenlignes i forhold til, hvor meget de øger hver af parametrene i merværdierne. Scoren på de enkelte parametre kan ikke lægges sammen til én samlet score , og det giver derfor ikke mening at tale om hvilke projekter, der overordnet set giver ”mest” merværdi. Det afhænger nemlig af prioriteringen af hver af merværdierne i det enkelte projekt eller den givne politiske kontekst. Projekterne skal løse den samme hydrauliske udfordring i et opland, enten på samme lokalitet eller på forskellige lokaliteter indenfor samme opland. Således er vurderingerne og værktøjets resultater kontekstbaserede. Projekter i forskellige dele af landet og dermed i forskellige oplande, som håndterer forskellige hydrauliske udfordringer og i forskellig kontekst, kan derfor ikke direkte sammenlignes i forhold til merværdierne i hvert projekt.
D7: OBS: vær opmærksom på at analysen omkring merværdier ikke må medtages i beslutningen om det mest hensigtsmæssige serviceniveau iht. serviceniveaubekendtgørelsen
D8: Merværdier
E38: =IF('Omkostninger og tiltag'!F332=0," ",'Omkostninger og tiltag'!F332) -> Projekt | H38: =IF('Omkostninger og tiltag'!G332=0," ",'Omkostninger og tiltag'!G332) -> Alternativ projekt | L38: =IF('Omkostninger og tiltag'!H332=0," ",'Omkostninger og tiltag'!H332) -> 
D41: Kort beskrivelse af de merværdier, der er i fokus i projektet: | E41: >> Noter her, hvis relevant << | H41: >> Noter her, hvis relevant <<
D46: Parametrene i merværdierne kan vurderes som enten høj, middel, lav eller ingen/negativ. Vurderingen ’høj’ gives i projektområder, hvor den pågældende merværdi i dag er svagt eller slet ikke udviklet, men hvor ambitionen er at den pågældende merværdi i væsentligt højere grad skal indgå i arealet og den kontekst (landskab, byrum, natur, befolkning mm.), som arealet indgår i. Vurderingen ’middel’ gives, hvor der i væsentlig grad bygges videre på markante eksisterende eller svagt/ikke udnyttede merværdier, og hvor ambitionen er at merværdierne fortsat skal være en væsentlig del af projektområdet. Vurderingen ’lav’ gives, hvor der sker mindre forbedringer inden for den pågældende merværdi – uanset om det er fra et eksisterende højt eller lavt niveau og uanset ambitionsniveauet for den pågældende merværdi. Vurderingen ingen/negativ gives hvor merværdien slet ikke udvikles eller decideret forringes.
B48: =Lister!G159 -> By- og landskabsrum
D51: =Lister!I159 -> Tryghed | F51: =Projekt_navn -> Projekt | I51: =Alternativt_projekt_navn -> Alternativ projekt
D52: =Lister!I160 -> (omhandler menneskers oplevelse af at være trygge, som funktion af udformningen af bymæssige eller landskabelige rum) | F52: Vælg fra listen | G52: =HYPERLINK("#"&ADDRESS(ROW(),COLUMN()-1),CHAR(128)) -> € | I52: Vælg fra listen | J52: =HYPERLINK("#"&ADDRESS(ROW(),COLUMN()-1),CHAR(128)) -> €
D57: =Lister!L159 -> Ophold | F57: =F51 -> Projekt | I57: =I51 -> Alternativ projekt
D58: =Lister!L160 -> (mulighed for fysisk ophold af forskellig form i det bymæssige eller landskabelige rum) | F58: Vælg fra listen | G58: =HYPERLINK("#"&ADDRESS(ROW(),COLUMN()-1),CHAR(128)) -> € | I58: Vælg fra listen | J58: €
D63: =Lister!O159 -> Æstetik | F63: =F51 -> Projekt | I63: =I51 -> Alternativ projekt
D64: =Lister!O160 -> (omhandler klimatiltagets bidrag til forskønnelse og forbedring af eksisterende eller skabelse af nye bymæssige eller landskabelige kvaliteter, eksempelvis vedrørende arkitektur og egenart) | F64: Vælg fra listen | G64: € | I64: Vælg fra listen | J64: €
D69: =Lister!R159 -> Adgang | F69: =F51 -> Projekt | I69: =I51 -> Alternativ projekt
D70: =Lister!R160 -> (offentlig adgang i tid og rum) | F70: Vælg fra listen | G70: =HYPERLINK("#"&ADDRESS(ROW(),COLUMN()-1),CHAR(128)) -> € | I70: Vælg fra listen | J70: =HYPERLINK("#"&ADDRESS(ROW(),COLUMN()-1),CHAR(128)) -> €
B76: =Lister!G170 -> Friluftsaktiviteter (rekreation)
D79: =Lister!I170 -> Sundhed
D80: =Lister!I171 -> (fysiske udendørsaktiviteter som sport/motion, spil, leg, badning, læring og samvær mange mennesker sammen)
F81: =F51 -> Projekt | I81: =I51 -> Alternativ projekt
F82: Vælg fra listen | G82: =HYPERLINK("#"&ADDRESS(ROW(),COLUMN()-1),CHAR(128)) -> € | I82: Vælg fra listen | J82: =HYPERLINK("#"&ADDRESS(ROW(),COLUMN()-1),CHAR(128)) -> €
D85: =Lister!L170 -> Fordybelse
D86: =Lister!L171 -> (mental sundhed, afslapning og oplevelse af ro i bymæssig eller landskabelige omgivelser)
F87: =F51 -> Projekt | I87: =I51 -> Alternativ projekt
F88: Vælg fra listen | G88: € | I88: Vælg fra listen | J88: €
D91: =Lister!O$170 -> Oplevelser
D92: =Lister!O$171 -> (mulighederne for at opleve landskabet: at opleve naturgrundlaget, kulturhistorien og arealanvendelsen, samt det, vi sanser eller oplever.
F93: =F51 -> Projekt | I93: =I51 -> Alternativ projekt
F94: Vælg fra listen | G94: € | I94: Vælg fra listen | J94: €
D97: =Lister!R170 -> Rekreative forbindelser
D98: =Lister!R171 -> (sammenhæng i rekreative forbindelser i bymæssig eller landskabelige omgivelser)
F99: =F51 -> Projekt | I99: =I51 -> Alternativ projekt
F100: Vælg fra listen | G100: € | I100: Vælg fra listen | J100: €
B104: =Lister!G181 -> Natur og biodiversitet
D107: =Lister!I181 -> Natur
D108: =Lister!I182 -> (samlet naturareal og areal samt kvalitet af beskyttet natur)
F109: =F51 -> Projekt | I109: =I51 -> Alternativ projekt
F110: Vælg fra listen | G110: =HYPERLINK("#"&ADDRESS(ROW(),COLUMN()-1),CHAR(128)) -> € | I110: Vælg fra listen | J110: =HYPERLINK("#"&ADDRESS(ROW(),COLUMN()-1),CHAR(128)) -> €
D114: =Lister!L181 -> Levesteder
D115: =Lister!L182 -> (levesteder for arter med særligt fokus på lokaliteter egnet til stor artsdiversitet)
F116: =F51 -> Projekt | I116: =I51 -> Alternativ projekt
F117: Vælg fra listen | G117: =HYPERLINK("#"&ADDRESS(ROW(),COLUMN()-1),CHAR(128)) -> € | I117: Vælg fra listen | J117: =HYPERLINK("#"&ADDRESS(ROW(),COLUMN()-1),CHAR(128)) -> €
D120: =Lister!O181 -> Økologiske forbindelser
D121: =Lister!O182 -> (grønne områder, som kan bidrage til et sammenhængende økologisk netværk)
F122: =F51 -> Projekt | I122: =I51 -> Alternativ projekt
F123: Vælg fra listen | G123: =HYPERLINK("#"&ADDRESS(ROW(),COLUMN()-1),CHAR(128)) -> € | I123: Vælg fra listen | J123: =HYPERLINK("#"&ADDRESS(ROW(),COLUMN()-1),CHAR(128)) -> €
D127: =Lister!R181 -> Vandkvalitet
D128: =Lister!R182 -> (alle typer overfladevandområder – kystnære og ferske)
F129: =F51 -> Projekt | I129: =I51 -> Alternativ projekt
F130: Vælg fra listen | G130: =HYPERLINK("#"&ADDRESS(ROW(),COLUMN()-1),CHAR(128)) -> € | I130: Vælg fra listen | J130: =HYPERLINK("#"&ADDRESS(ROW(),COLUMN()-1),CHAR(128)) -> €
B134: =Lister!G192 -> CO2
D138: =Lister!I192 -> Vådområder
D139: =Lister!I193 -> (vandspejl i eller tæt ved jordoverfladen, eller jorden mættet med vand)
F140: =E38 -> Projekt | I140: =H38 -> Alternativ projekt
F141: Vælg fra listen | G141: =HYPERLINK("#"&ADDRESS(ROW(),COLUMN()-1),CHAR(128)) -> € | I141: Vælg fra listen | J141: =HYPERLINK("#"&ADDRESS(ROW(),COLUMN()-1),CHAR(128)) -> €
D144: =Lister!L192 -> Beplantning
D145: =Lister!L193 -> (græsarealer, bede, buske og træer. Også langs veje, på tage etc.)
F146: =F140 -> Projekt | I146: =I140 -> Alternativ projekt
F147: Vælg fra listen | G147: =HYPERLINK("#"&ADDRESS(ROW(),COLUMN()-1),CHAR(128)) -> € | I147: Vælg fra listen | J147: =HYPERLINK("#"&ADDRESS(ROW(),COLUMN()-1),CHAR(128)) -> €
D150: =Lister!O192 -> Materialevalg
D151: =Lister!O193 -> (beton og stål, asfalt, belægningssten og andre mere forarbejdede materialer)
F152: =F146 -> Projekt | I152: =I146 -> Alternativ projekt
F153: Vælg fra listen | G153: =HYPERLINK("#"&ADDRESS(ROW(),COLUMN()-1),CHAR(128)) -> € | I153: Vælg fra listen | J153: =HYPERLINK("#"&ADDRESS(ROW(),COLUMN()-1),CHAR(128)) -> €
D156: =Lister!R192 -> Transport af regnvand
D157: =Lister!R193 -> (gravitation eller pumper)
F158: =F152 -> Projekt | I158: =I152 -> Alternativ projekt
F159: Vælg fra listen | G159: =HYPERLINK("#"&ADDRESS(ROW(),COLUMN()-1),CHAR(128)) -> € | I159: Vælg fra listen | J159: =HYPERLINK("#"&ADDRESS(ROW(),COLUMN()-1),CHAR(128)) -> €
G161: Ingen/negativ: Uændret/reduktion af arealer med status som vådområde.
N164: Se præsentation af merværdier
B169: Forringelser af eksisterende merværdier
D172: Her er det muligt at notere eventuelle forringelser af eksisterende merværdier ved projekterne. Forringelser af merværdier fremgår ikke tydeligt i figurerne ovenfor, derfor er der her mulighed for at selv at kommentere på forringelser af merværdier.
F173: =Projekt_navn -> Projekt | I173: =Alternativt_projekt_navn -> Alternativ projekt
D175: Beskrivelse af forringede merværdier ved projekterne | F175: >> Noter her, hvis relevant << | I175: >> Noter her, hvis relevant <<
N178: Gå videre til fanen "Resultater"

Sheet Resultatoversigt
C1: =IF('Omkostninger og tiltag'!F11=0,"Resultatoversigt","Resultatoversigt "&'Omkostninger og tiltag'!F11) -> Resultatoversigt | L1: Side 1 af 6
C3: ='Omkostninger og tiltag'!$E$11 -> Navn på projekt | D3: ='Omkostninger og tiltag'!$E$17 -> Kort beskrivelse af projektet | G3: ='Omkostninger og tiltag'!$E$19 -> Udarbejdet af | J3: ='Omkostninger og tiltag'!$E$21 -> Projekt startår
C5: =IF('Omkostninger og tiltag'!$F$11=0," ",'Omkostninger og tiltag'!$F$11) ->  | D5: =IF('Omkostninger og tiltag'!$F$17=0," ",'Omkostninger og tiltag'!$F$17) ->  | G5: =IF('Omkostninger og tiltag'!$F$19=0," ",'Omkostninger og tiltag'!$F$19) ->  | J5: =IF('Omkostninger og tiltag'!$F$21=0," ",'Omkostninger og tiltag'!$F$21) -> 
C10: ='Detaljeret resultater'!D9 -> Samfundsøkonomisk resultat i nettonutidsværdi over 100 år, mio. kr.
C13: ='Detaljeret resultater'!D11 -> Projekt | D13: ='Detaljeret resultater'!E11 -> Serviceniveau | E13: ='Detaljeret resultater'!F11 -> Skadesomkostning før tiltag | F13: ='Detaljeret resultater'!G11 -> Skadesomkostning efter tiltag | G13: ='Detaljeret resultater'!H11 -> Afværget skade | H13: ='Detaljeret resultater'!I11 -> Tiltagsomkostning | I13: ='Detaljeret resultater'!J11 -> Nettogevinst | J13: Øvrig nettogevinst
A14: =IF(Antal_serviceniveauer>0,1,0) -> 1 | C14: =IF(Antal_serviceniveauer>0,'Detaljeret resultater'!D12,0) -> Projekt | D14: =IF(Antal_serviceniveauer>0,'Detaljeret resultater'!E12,0) -> Txx | E14: =IF(Antal_serviceniveauer>0,'Detaljeret resultater'!F12," ") -> 90.06510631 | F14: =IF(Antal_serviceniveauer>0,'Detaljeret resultater'!G12," ") -> 41.06596042 | G14: =IF(Antal_serviceniveauer>0,'Detaljeret resultater'!H12," ") -> 48.99914589 | H14: =IF(Antal_serviceniveauer>0,'Detaljeret resultater'!I12," ") -> -17.79292824 | I14: =IF(Antal_serviceniveauer>0,'Detaljeret resultater'!J12," ") -> 31.20621765
A15: =IF(Antal_serviceniveauer>1,1,0) -> 1 | C15: =IF(Antal_serviceniveauer>1,'Detaljeret resultater'!D13,0) -> Projekt | D15: =IF(Antal_serviceniveauer>1,'Detaljeret resultater'!E13,0) -> Txx | E15: =IF(Antal_serviceniveauer>1,'Detaljeret resultater'!F13," ") -> 90.06510631 | F15: =IF(Antal_serviceniveauer>1,'Detaljeret resultater'!G13," ") -> 36.95913877 | G15: =IF(Antal_serviceniveauer>1,'Detaljeret resultater'!H13," ") -> 53.10596754 | H15: =IF(Antal_serviceniveauer>1,'Detaljeret resultater'!I13," ") -> -21.18493825 | I15: =IF(Antal_serviceniveauer>1,'Detaljeret resultater'!J13," ") -> 31.92102929
A16: =IF(Antal_serviceniveauer>2,1,0) -> 0 | C16: =IF(Antal_serviceniveauer>2,'Detaljeret resultater'!D14,"") ->  | D16: =IF(Antal_serviceniveauer>2,'Detaljeret resultater'!E14,"") ->  | E16: =IF(Antal_serviceniveauer>2,'Detaljeret resultater'!F14," ") ->  | F16: =IF(Antal_serviceniveauer>2,'Detaljeret resultater'!G14," ") ->  | G16: =IF(Antal_serviceniveauer>2,'Detaljeret resultater'!H14," ") ->  | H16: =IF(Antal_serviceniveauer>2,'Detaljeret resultater'!I14," ") ->  | I16: =IF(Antal_serviceniveauer>2,'Detaljeret resultater'!J14," ") -> 
A17: =IF(Antal_serviceniveauer>3,1,0) -> 0 | C17: =IF(Antal_serviceniveauer>3,'Detaljeret resultater'!D15," ") ->  | D17: =IF(Antal_serviceniveauer>3,'Detaljeret resultater'!E15," ") ->  | E17: =IF(Antal_serviceniveauer>3,'Detaljeret resultater'!F15," ") ->  | F17: =IF(Antal_serviceniveauer>3,'Detaljeret resultater'!G15," ") ->  | G17: =IF(Antal_serviceniveauer>3,'Detaljeret resultater'!H15," ") ->  | H17: =IF(Antal_serviceniveauer>3,'Detaljeret resultater'!I15," ") ->  | I17: =IF(Antal_serviceniveauer>3,'Detaljeret resultater'!J15," ") -> 
A18: =IF(Antal_serviceniveauer>4,1,0) -> 0 | C18: =IF(Antal_serviceniveauer>4,'Detaljeret resultater'!D16," ") ->  | D18: =IF(Antal_serviceniveauer>4,'Detaljeret resultater'!E16," ") ->  | E18: =IF(Antal_serviceniveauer>3,'Detaljeret resultater'!F16," ") ->  | F18: =IF(Antal_serviceniveauer>4,'Detaljeret resultater'!G16," ") ->  | G18: =IF(Antal_serviceniveauer>4,'Detaljeret resultater'!H16," ") ->  | H18: =IF(Antal_serviceniveauer>4,'Detaljeret resultater'!I16," ") ->  | I18: =IF(Antal_serviceniveauer>4,'Detaljeret resultater'!J16," ") -> 
A19: =IF(Antal_serviceniveauer>0,1,0) -> 1 | C19: =IF(Antal_serviceniveauer>0,'Detaljeret resultater'!D17,0) -> Alternativ projekt | D19: =IF(Antal_serviceniveauer>0,'Detaljeret resultater'!E17,0) -> Txx | E19: =IF(Antal_serviceniveauer>0,'Detaljeret resultater'!F17," ") -> 90.06510631 | F19: =IF(Antal_serviceniveauer>0,'Detaljeret resultater'!G17," ") -> 41.06596042 | G19: =IF(Antal_serviceniveauer>0,'Detaljeret resultater'!H17," ") -> 48.99914589 | H19: =IF(Antal_serviceniveauer>0,'Detaljeret resultater'!I17," ") -> -21.71375935 | I19: =IF(Antal_serviceniveauer>0,'Detaljeret resultater'!J17," ") -> 27.28538653
A20: =IF(Antal_serviceniveauer>1,1,0) -> 1 | C20: =IF(Antal_serviceniveauer>1,'Detaljeret resultater'!D18,0) -> Alternativ projekt | D20: =IF(Antal_serviceniveauer>1,'Detaljeret resultater'!E18,0) -> Txx | E20: =IF(Antal_serviceniveauer>1,'Detaljeret resultater'!F18," ") -> 90.06510631 | F20: =IF(Antal_serviceniveauer>1,'Detaljeret resultater'!G18," ") -> 36.95913877 | G20: =IF(Antal_serviceniveauer>1,'Detaljeret resultater'!H18," ") -> 53.10596754 | H20: =IF(Antal_serviceniveauer>1,'Detaljeret resultater'!I18," ") -> -26.48019433 | I20: =IF(Antal_serviceniveauer>1,'Detaljeret resultater'!J18," ") -> 26.62577321
A21: =IF(Antal_serviceniveauer>2,1,0) -> 0 | C21: =IF(Antal_serviceniveauer>2,'Detaljeret resultater'!D19,"") ->  | D21: =IF(Antal_serviceniveauer>2,'Detaljeret resultater'!E19,"") ->  | E21: =IF(Antal_serviceniveauer>2,'Detaljeret resultater'!F19," ") ->  | F21: =IF(Antal_serviceniveauer>2,'Detaljeret resultater'!G19," ") ->  | G21: =IF(Antal_serviceniveauer>2,'Detaljeret resultater'!H19," ") ->  | H21: =IF(Antal_serviceniveauer>2,'Detaljeret resultater'!I19," ") ->  | I21: =IF(Antal_serviceniveauer>2,'Detaljeret resultater'!J19," ") -> 
A22: =IF(Antal_serviceniveauer>3,1,0) -> 0 | C22: =IF(Antal_serviceniveauer>3,'Detaljeret resultater'!D20," ") ->  | D22: =IF(Antal_serviceniveauer>3,'Detaljeret resultater'!E20," ") ->  | E22: =IF(Antal_serviceniveauer>3,'Detaljeret resultater'!F20," ") ->  | F22: =IF(Antal_serviceniveauer>3,'Detaljeret resultater'!G20," ") ->  | G22: =IF(Antal_serviceniveauer>3,'Detaljeret resultater'!H20," ") ->  | H22: =IF(Antal_serviceniveauer>3,'Detaljeret resultater'!I20," ") ->  | I22: =IF(Antal_serviceniveauer>3,'Detaljeret resultater'!J20," ") -> 
A23: =IF(Antal_serviceniveauer>4,1,0) -> 0 | C23: =IF(Antal_serviceniveauer>4,'Detaljeret resultater'!D21," ") ->  | D23: =IF(Antal_serviceniveauer>4,'Detaljeret resultater'!E21," ") ->  | E23: =IF(Antal_serviceniveauer>4,'Detaljeret resultater'!F21," ") ->  | F23: =IF(Antal_serviceniveauer>4,'Detaljeret resultater'!G21," ") ->  | G23: =IF(Antal_serviceniveauer>4,'Detaljeret resultater'!H21," ") ->  | H23: =IF(Antal_serviceniveauer>4,'Detaljeret resultater'!I21," ") ->  | I23: =IF(Antal_serviceniveauer>4,'Detaljeret resultater'!J21," ") -> 
C24: ="Note: resultaterne er angivet i "&Prisaar&"-priser" -> Note: resultaterne er angivet i -priser
C25: ="Figur 1: Samfundsøkonomisk resultat for "& Projekt_navn -> Figur 1: Samfundsøkonomisk resultat for Projekt
I27: =IF(SUM(Nulpunkt_førtiltag,Nulpunkt_eftertiltag)>0,"Modellen regner ikke rigtigt fordi, at der ikke er angivet et nulpunkt for skadesomkostninger for alle serviceniveauer og skadestyper"," ") -> 
I31: =Fejl_antalservice -> Antallet af undersøgte serviceniveauer i forhold til investeringsstørrelsen lever ikke op til kravene i serviceniveaubekendtgørelsen
I35: =Fejl_antalserviceniveau2 -> Antallet af undersøgte serviceniveauer i forhold til investeringsstørrelsen lever ikke op til kravene i serviceniveaubekendtgørelsen
C46: ="Note: resultaterne er angivet i "&Prisaar&"-priser" -> Note: resultaterne er angivet i -priser
C48: ="Figur 2: Samfundsøkonomisk resultat for "& Alternativt_projekt_navn -> Figur 2: Samfundsøkonomisk resultat for Alternativ projekt
C70: Note: resultaterne er angivet i 2022-priser
J72: =TODAY() -> 2024-07-19
C74: =C1 -> Resultatoversigt | L74: Side 2 af 6
C76: ='Omkostninger og tiltag'!$E$11 -> Navn på projekt | D76: ='Omkostninger og tiltag'!$E$17 -> Kort beskrivelse af projektet | G76: ='Omkostninger og tiltag'!$E$19 -> Udarbejdet af | J76: ='Omkostninger og tiltag'!$E$21 -> Projekt startår
C78: =IF('Omkostninger og tiltag'!$F$11=0," ",'Omkostninger og tiltag'!$F$11) ->  | D78: =IF('Omkostninger og tiltag'!$F$17=0," ",'Omkostninger og tiltag'!$F$17) ->  | G78: =IF('Omkostninger og tiltag'!$F$19=0," ",'Omkostninger og tiltag'!$F$19) ->  | J78: =IF('Omkostninger og tiltag'!$F$21=0," ",'Omkostninger og tiltag'!$F$21) -> 
C84: ="Figur 3: Samfundsøkonomisk resultat, sammenligning af nettonutidsværdier for " -> Figur 3: Samfundsøkonomisk resultat, sammenligning af nettonutidsværdier for
C85: =Projekt_navn&" og "&Alternativt_projekt_navn -> Projekt og Alternativ projekt
C107: ="Note: resultaterne er angivet i "&Prisaar&"-priser" -> Note: resultaterne er angivet i -priser
C111: ="Figur 4: Usikkerhed af risikotæthedskurve ved indførelse af ekstra punkter imellem skadesberegninger og variation af disse" -> Figur 4: Usikkerhed af risikotæthedskurve ved indførelse af ekstra punkter imellem skadesberegninger og variation af disse
J146: =TODAY() -> 2024-07-19
C148: =C74 -> Resultatoversigt | L148: Side 3 af 6
C150: ='Omkostninger og tiltag'!$E$11 -> Navn på projekt | D150: ='Omkostninger og tiltag'!$E$17 -> Kort beskrivelse af projektet | G150: ='Omkostninger og tiltag'!$E$19 -> Udarbejdet af | J150: ='Omkostninger og tiltag'!$E$21 -> Projekt startår
C152: =IF('Omkostninger og tiltag'!$F$11=0," ",'Omkostninger og tiltag'!$F$11) ->  | D152: =IF('Omkostninger og tiltag'!$F$17=0," ",'Omkostninger og tiltag'!$F$17) ->  | G152: =IF('Omkostninger og tiltag'!$F$19=0," ",'Omkostninger og tiltag'!$F$19) ->  | J152: =IF('Omkostninger og tiltag'!$F$21=0," ",'Omkostninger og tiltag'!$F$21) -> 
C156: ="Skadeskurve og risikotæthedskurve" -> Skadeskurve og risikotæthedskurve
C159: ="Figur 5: Skadeskurve for basis scenarie og alle serviceniveauer for år 1" -> Figur 5: Skadeskurve for basis scenarie og alle serviceniveauer for år 1
C185: ="Figur 6: Risikotæthedskurve for basis scenarie og alle serviceniveauer for år 1 og 100" -> Figur 6: Risikotæthedskurve for basis scenarie og alle serviceniveauer for år 1 og 100
N191: Husk at du kan fjerne grafer i figuren hvis du ønsker af færre grafer skal sammenlignes.
N192: Husk at du kan ændre på x-aksen, hvis du ønsker at færre gentagelsesperioder vises.
J218: =TODAY() -> 2024-07-19
C220: =C148 -> Resultatoversigt | L220: Side 4 af 6
C222: ='Omkostninger og tiltag'!$E$11 -> Navn på projekt | D222: ='Omkostninger og tiltag'!$E$17 -> Kort beskrivelse af projektet | G222: ='Omkostninger og tiltag'!$E$19 -> Udarbejdet af | J222: ='Omkostninger og tiltag'!$E$21 -> Projekt startår
C224: =IF('Omkostninger og tiltag'!$F$11=0," ",'Omkostninger og tiltag'!$F$11) ->  | D224: =IF('Omkostninger og tiltag'!$F$17=0," ",'Omkostninger og tiltag'!$F$17) ->  | G224: =IF('Omkostninger og tiltag'!$F$19=0," ",'Omkostninger og tiltag'!$F$19) ->  | J224: =IF('Omkostninger og tiltag'!$F$21=0," ",'Omkostninger og tiltag'!$F$21) -> 
C228: =Følsomheder!D9 -> Følsomhed: Samfundsøkonomisk resultat i nettonutidsværdi over 100 år, mio. kr.
C231: ="Figur 7: Følsomhed på samfundsøkonomisk resultat for "& Projekt_navn -> Figur 7: Følsomhed på samfundsøkonomisk resultat for Projekt
C257: Note: resultaterne er angivet i 2022-priser
C259: ="Figur 8: Følsomhed på samfundsøkonomisk resultat for "& Alternativt_projekt_navn -> Figur 8: Følsomhed på samfundsøkonomisk resultat for Alternativ projekt
C284: Note: resultaterne er angivet i 2022-priser
J292: =TODAY() -> 2024-07-19
C294: =C220 -> Resultatoversigt | L294: Side 5 af 6
C296: ='Omkostninger og tiltag'!$E$11 -> Navn på projekt | D296: ='Omkostninger og tiltag'!$E$17 -> Kort beskrivelse af projektet | G296: ='Omkostninger og tiltag'!$E$19 -> Udarbejdet af | J296: ='Omkostninger og tiltag'!$E$21 -> Projekt startår
C298: =IF('Omkostninger og tiltag'!$F$11=0," ",'Omkostninger og tiltag'!$F$11) ->  | D298: =IF('Omkostninger og tiltag'!$F$17=0," ",'Omkostninger og tiltag'!$F$17) ->  | G298: =IF('Omkostninger og tiltag'!$F$19=0," ",'Omkostninger og tiltag'!$F$19) ->  | J298: =IF('Omkostninger og tiltag'!$F$21=0," ",'Omkostninger og tiltag'!$F$21) -> 
C301: ="Omkostningsfordeling, "& Prisaar &"-priser" -> Omkostningsfordeling, -priser
C303: Her sammenholdes omkostningsforelingen for de forskellige afhjælpningsmuligheder. Anlægsomkostningerne, drift- og veligeholdelsesomkostninger samt en samlet nutidsværdi (inkl. anlægsomkostninger, eventuelle reinvesteringer og drift- og veligelholdelsesværdi) sammenlignes for alle projekter.
C309: =Omkostningsfordeling!D10 -> Anlægsinvesteringer
D310: =Omkostningsfordeling!E11 -> Projekt
D312: =Omkostningsfordeling!E14 -> Mio. kr.
D313: =Omkostningsfordeling!E15 -> Txx | E313: =Omkostningsfordeling!F15 -> Txx | F313: =Omkostningsfordeling!G15 ->  | G313: =Omkostningsfordeling!H15 ->  | H313: =Omkostningsfordeling!I15 -> 
C314: =Omkostningsfordeling!D16 -> Anlægsinvestering | D314: =IF(Omkostningsfordeling!E16=0, " ",Omkostningsfordeling!E16) ->  | E314: =IF(Omkostningsfordeling!F16=0, " ",Omkostningsfordeling!F16) ->  | F314: =IF(Omkostningsfordeling!G16=0, " ",Omkostningsfordeling!G16) ->  | G314: =IF(Omkostningsfordeling!H16=0, " ",Omkostningsfordeling!H16) ->  | H314: =IF(Omkostningsfordeling!I16=0, " ",Omkostningsfordeling!I16) -> 
C315: =Omkostningsfordeling!D17 -> Herunder andel betalt af: | D315: =IF(Omkostningsfordeling!E17=0, " ",Omkostningsfordeling!E17) ->  | E315: =IF(Omkostningsfordeling!F17=0, " ",Omkostningsfordeling!F17) ->  | F315: =IF(Omkostningsfordeling!G17=0, " ",Omkostningsfordeling!G17) ->  | G315: =IF(Omkostningsfordeling!H17=0, " ",Omkostningsfordeling!H17) ->  | H315: =IF(Omkostningsfordeling!I17=0, " ",Omkostningsfordeling!I17) -> 
C316: =Omkostningsfordeling!D18 -> Forsyningsselskabet | D316: =IF(Omkostningsfordeling!E18=0, " ",Omkostningsfordeling!E18) ->  | E316: =IF(Omkostningsfordeling!F18=0, " ",Omkostningsfordeling!F18) ->  | F316: =IF(Omkostningsfordeling!G18=0, " ",Omkostningsfordeling!G18) ->  | G316: =IF(Omkostningsfordeling!H18=0, " ",Omkostningsfordeling!H18) ->  | H316: =IF(Omkostningsfordeling!I18=0, " ",Omkostningsfordeling!I18) -> 
C317: =Omkostningsfordeling!D19 -> Kommunen | D317: =IF(Omkostningsfordeling!E19=0, " ",Omkostningsfordeling!E19) ->  | E317: =IF(Omkostningsfordeling!F19=0, " ",Omkostningsfordeling!F19) ->  | F317: =IF(Omkostningsfordeling!G19=0, " ",Omkostningsfordeling!G19) ->  | G317: =IF(Omkostningsfordeling!H19=0, " ",Omkostningsfordeling!H19) ->  | H317: =IF(Omkostningsfordeling!I19=0, " ",Omkostningsfordeling!I19) -> 
C318: =Omkostningsfordeling!D20 -> Private, foreninger og andre | D318: =IF(Omkostningsfordeling!E20=0, " ",Omkostningsfordeling!E20) ->  | E318: =IF(Omkostningsfordeling!F20=0, " ",Omkostningsfordeling!F20) ->  | F318: =IF(Omkostningsfordeling!G20=0, " ",Omkostningsfordeling!G20) ->  | G318: =IF(Omkostningsfordeling!H20=0, " ",Omkostningsfordeling!H20) ->  | H318: =IF(Omkostningsfordeling!I20=0, " ",Omkostningsfordeling!I20) -> 
D320: =Omkostningsfordeling!J11 -> Alternativ projekt
D322: =D312 -> Mio. kr.
D323: =Omkostningsfordeling!J15 -> Txx | E323: =Omkostningsfordeling!K15 -> Txx | F323: =Omkostningsfordeling!L15 ->  | G323: =Omkostningsfordeling!M15 ->  | H323: =Omkostningsfordeling!N15 -> 
C324: =Omkostningsfordeling!D16 -> Anlægsinvestering | D324: =IF(Omkostningsfordeling!J16=0, " ",Omkostningsfordeling!J16) ->  | E324: =IF(Omkostningsfordeling!K16=0, " ",Omkostningsfordeling!K16) ->  | F324: =IF(Omkostningsfordeling!L16=0, " ",Omkostningsfordeling!L16) ->  | G324: =IF(Omkostningsfordeling!M16=0, " ",Omkostningsfordeling!M16) ->  | H324: =IF(Omkostningsfordeling!N16=0, " ",Omkostningsfordeling!N16) -> 
C325: =Omkostningsfordeling!D17 -> Herunder andel betalt af: | D325: =IF(Omkostningsfordeling!J17=0, " ",Omkostningsfordeling!J17) ->  | E325: =IF(Omkostningsfordeling!K17=0, " ",Omkostningsfordeling!K17) ->  | F325: =IF(Omkostningsfordeling!L17=0, " ",Omkostningsfordeling!L17) ->  | G325: =IF(Omkostningsfordeling!M17=0, " ",Omkostningsfordeling!M17) ->  | H325: =IF(Omkostningsfordeling!N17=0, " ",Omkostningsfordeling!N17) -> 
C326: =Omkostningsfordeling!D18 -> Forsyningsselskabet | D326: =IF(Omkostningsfordeling!J18=0, " ",Omkostningsfordeling!J18) ->  | E326: =IF(Omkostningsfordeling!K18=0, " ",Omkostningsfordeling!K18) ->  | F326: =IF(Omkostningsfordeling!L18=0, " ",Omkostningsfordeling!L18) ->  | G326: =IF(Omkostningsfordeling!M18=0, " ",Omkostningsfordeling!M18) ->  | H326: =IF(Omkostningsfordeling!N18=0, " ",Omkostningsfordeling!N18) -> 
C327: =Omkostningsfordeling!D19 -> Kommunen | D327: =IF(Omkostningsfordeling!J19=0, " ",Omkostningsfordeling!J19) ->  | E327: =IF(Omkostningsfordeling!K19=0, " ",Omkostningsfordeling!K19) ->  | F327: =IF(Omkostningsfordeling!L19=0, " ",Omkostningsfordeling!L19) ->  | G327: =IF(Omkostningsfordeling!M19=0, " ",Omkostningsfordeling!M19) ->  | H327: =IF(Omkostningsfordeling!N19=0, " ",Omkostningsfordeling!N19) -> 
C328: =Omkostningsfordeling!D20 -> Private, foreninger og andre | D328: =IF(Omkostningsfordeling!J20=0, " ",Omkostningsfordeling!J20) ->  | E328: =IF(Omkostningsfordeling!K20=0, " ",Omkostningsfordeling!K20) ->  | F328: =IF(Omkostningsfordeling!L20=0, " ",Omkostningsfordeling!L20) ->  | G328: =IF(Omkostningsfordeling!M20=0, " ",Omkostningsfordeling!M20) ->  | H328: =IF(Omkostningsfordeling!N20=0, " ",Omkostningsfordeling!N20) -> 
C332: =Omkostningsfordeling!D23 -> Drift og vedligeholdelse
D333: =Omkostningsfordeling!E24 -> Projekt
D335: =Omkostningsfordeling!E27 -> Mio. kr./år
D336: =Omkostningsfordeling!E28 -> Txx | E336: =Omkostningsfordeling!F28 -> Txx | F336: =Omkostningsfordeling!G28 ->  | G336: =Omkostningsfordeling!H28 ->  | H336: =Omkostningsfordeling!I28 -> 
C337: =Omkostningsfordeling!D29 -> Drift og vedligeholdelse | D337: =IF(Omkostningsfordeling!E29=0, " ",Omkostningsfordeling!E29) ->  | E337: =IF(Omkostningsfordeling!F29=0, " ",Omkostningsfordeling!F29) ->  | F337: =IF(Omkostningsfordeling!G29=0, " ",Omkostningsfordeling!G29) ->  | G337: =IF(Omkostningsfordeling!H29=0, " ",Omkostningsfordeling!H29) ->  | H337: =IF(Omkostningsfordeling!I29=0, " ",Omkostningsfordeling!I29) -> 
C338: =Omkostningsfordeling!D30 -> Herunder andel betalt af: | D338: =IF(Omkostningsfordeling!E30=0, " ",Omkostningsfordeling!E30) ->  | E338: =IF(Omkostningsfordeling!F30=0, " ",Omkostningsfordeling!F30) ->  | F338: =IF(Omkostningsfordeling!G30=0, " ",Omkostningsfordeling!G30) ->  | G338: =IF(Omkostningsfordeling!H30=0, " ",Omkostningsfordeling!H30) ->  | H338: =IF(Omkostningsfordeling!I30=0, " ",Omkostningsfordeling!I30) -> 
C339: =Omkostningsfordeling!D31 -> Forsyningsselskabet | D339: =IF(Omkostningsfordeling!E31=0, " ",Omkostningsfordeling!E31) ->  | E339: =IF(Omkostningsfordeling!F31=0, " ",Omkostningsfordeling!F31) ->  | F339: =IF(Omkostningsfordeling!G31=0, " ",Omkostningsfordeling!G31) ->  | G339: =IF(Omkostningsfordeling!H31=0, " ",Omkostningsfordeling!H31) ->  | H339: =IF(Omkostningsfordeling!I31=0, " ",Omkostningsfordeling!I31) -> 
C340: =Omkostningsfordeling!D32 -> Kommunen | D340: =IF(Omkostningsfordeling!E32=0, " ",Omkostningsfordeling!E32) ->  | E340: =IF(Omkostningsfordeling!F32=0, " ",Omkostningsfordeling!F32) ->  | F340: =IF(Omkostningsfordeling!G32=0, " ",Omkostningsfordeling!G32) ->  | G340: =IF(Omkostningsfordeling!H32=0, " ",Omkostningsfordeling!H32) ->  | H340: =IF(Omkostningsfordeling!I32=0, " ",Omkostningsfordeling!I32) -> 
C341: =Omkostningsfordeling!D33 -> Private, foreninger og andre | D341: =IF(Omkostningsfordeling!E33=0, " ",Omkostningsfordeling!E33) ->  | E341: =IF(Omkostningsfordeling!F33=0, " ",Omkostningsfordeling!F33) ->  | F341: =IF(Omkostningsfordeling!G33=0, " ",Omkostningsfordeling!G33) ->  | G341: =IF(Omkostningsfordeling!H33=0, " ",Omkostningsfordeling!H33) ->  | H341: =IF(Omkostningsfordeling!I33=0, " ",Omkostningsfordeling!I33) -> 
D343: =Omkostningsfordeling!J24 -> Alternativ projekt
D345: =D335 -> Mio. kr./år
D346: =Omkostningsfordeling!J28 -> Txx | E346: =Omkostningsfordeling!K28 -> Txx | F346: =Omkostningsfordeling!L28 ->  | G346: =Omkostningsfordeling!M28 ->  | H346: =Omkostningsfordeling!N28 -> 
C347: =Omkostningsfordeling!D29 -> Drift og vedligeholdelse | D347: =IF(Omkostningsfordeling!J29=0, " ",Omkostningsfordeling!J29) ->  | E347: =IF(Omkostningsfordeling!K29=0, " ",Omkostningsfordeling!K29) ->  | F347: =IF(Omkostningsfordeling!L29=0, " ",Omkostningsfordeling!L29) ->  | G347: =IF(Omkostningsfordeling!M29=0, " ",Omkostningsfordeling!M29) ->  | H347: =IF(Omkostningsfordeling!N29=0, " ",Omkostningsfordeling!N29) -> 
C348: =Omkostningsfordeling!D30 -> Herunder andel betalt af: | D348: =IF(Omkostningsfordeling!J30=0, " ",Omkostningsfordeling!J30) ->  | E348: =IF(Omkostningsfordeling!K30=0, " ",Omkostningsfordeling!K30) ->  | F348: =IF(Omkostningsfordeling!L30=0, " ",Omkostningsfordeling!L30) ->  | G348: =IF(Omkostningsfordeling!M30=0, " ",Omkostningsfordeling!M30) ->  | H348: =IF(Omkostningsfordeling!N30=0, " ",Omkostningsfordeling!N30) -> 
C349: =Omkostningsfordeling!D31 -> Forsyningsselskabet | D349: =IF(Omkostningsfordeling!J31=0, " ",Omkostningsfordeling!J31) ->  | E349: =IF(Omkostningsfordeling!K31=0, " ",Omkostningsfordeling!K31) ->  | F349: =IF(Omkostningsfordeling!L31=0, " ",Omkostningsfordeling!L31) ->  | G349: =IF(Omkostningsfordeling!M31=0, " ",Omkostningsfordeling!M31) ->  | H349: =IF(Omkostningsfordeling!N31=0, " ",Omkostningsfordeling!N31) -> 
C350: =Omkostningsfordeling!D32 -> Kommunen | D350: =IF(Omkostningsfordeling!J32=0, " ",Omkostningsfordeling!J32) ->  | E350: =IF(Omkostningsfordeling!K32=0, " ",Omkostningsfordeling!K32) ->  | F350: =IF(Omkostningsfordeling!L32=0, " ",Omkostningsfordeling!L32) ->  | G350: =IF(Omkostningsfordeling!M32=0, " ",Omkostningsfordeling!M32) ->  | H350: =IF(Omkostningsfordeling!N32=0, " ",Omkostningsfordeling!N32) -> 
C351: =Omkostningsfordeling!D33 -> Private, foreninger og andre | D351: =IF(Omkostningsfordeling!J33=0, " ",Omkostningsfordeling!J33) ->  | E351: =IF(Omkostningsfordeling!K33=0, " ",Omkostningsfordeling!K33) ->  | F351: =IF(Omkostningsfordeling!L33=0, " ",Omkostningsfordeling!L33) ->  | G351: =IF(Omkostningsfordeling!M33=0, " ",Omkostningsfordeling!M33) ->  | H351: =IF(Omkostningsfordeling!N33=0, " ",Omkostningsfordeling!N33) -> 
J368: =TODAY() -> 2024-07-19
C370: =IF('Omkostninger og tiltag'!F11=0,"Resultatoversigt","Resultatoversigt "&'Omkostninger og tiltag'!F11) -> Resultatoversigt | L370: Side 6 af 6
C372: ='Omkostninger og tiltag'!$E$11 -> Navn på projekt | D372: ='Omkostninger og tiltag'!$E$17 -> Kort beskrivelse af projektet | G372: ='Omkostninger og tiltag'!$E$19 -> Udarbejdet af | J372: ='Omkostninger og tiltag'!$E$21 -> Projekt startår
C374: =IF('Omkostninger og tiltag'!$F$11=0," ",'Omkostninger og tiltag'!$F$11) ->  | D374: =IF('Omkostninger og tiltag'!$F$17=0," ",'Omkostninger og tiltag'!$F$17) ->  | G374: =IF('Omkostninger og tiltag'!$F$19=0," ",'Omkostninger og tiltag'!$F$19) ->  | J374: =IF('Omkostninger og tiltag'!$F$21=0," ",'Omkostninger og tiltag'!$F$21) -> 
C378: Merværdi
C380: I figurene nedenfor sammenlignes merværdierne for de forskellige scenarier. Merværdierne afspejler de værdier ved scenariet, som ligger ud over den reducerede skadesomkostning. I kommentarfeltet nedenfor fremgår det, hvis der med projektet ønskes fokus på en særlig merværdi. Under figurerne fremgår det desuden, hvis der er forringelser af eksisterende merværdier forbundet med projekterne.
F385: =Merværdier!$E$38 -> Projekt
F388: =Merværdier!$D$41 -> Kort beskrivelse af de merværdier, der er i fokus i projektet:
F389: =Merværdier!E41 -> >> Noter her, hvis relevant <<
F397: =Merværdier!$D$175 -> Beskrivelse af forringede merværdier ved projekterne
F398: =Merværdier!F175 -> >> Noter her, hvis relevant <<
F407: =Merværdier!$H$38 -> Alternativ projekt
F410: =F388 -> Kort beskrivelse af de merværdier, der er i fokus i projektet:
F411: =Merværdier!H41 -> >> Noter her, hvis relevant <<
F419: =F397 -> Beskrivelse af forringede merværdier ved projekterne
F420: =Merværdier!I175 -> >> Noter her, hvis relevant <<
J440: =TODAY() -> 2024-07-19

Sheet Detaljeret resultater (hidden)
D1: =MID(CELL("filename",D1),1+FIND("]",CELL("filename",D1)),99) -> Detaljeret resultater | EAD1: 0.02559970941
D3: Brugervejledning
D4: I denne fane beregnes beregnes den samfundsøkonomiske gevinst (tab) for begge projekter og alle serviceniveauer
D9: Samfundsøkonomisk resultat i nettonutidsværdi over 100 år, mio. kr.
D11: Projekt | E11: Serviceniveau | F11: =F29 -> Skadesomkostning før tiltag | G11: =F30 -> Skadesomkostning efter tiltag | H11: =F31 -> Afværget skade | I11: =F32 -> Tiltagsomkostning | J11: =F33 -> Nettogevinst | K11: =Resultatoversigt!$J$13 -> Øvrig nettogevinst | L11: Nettogevinst inkl. øvrig nettogevinst | M11: Nullinje
B12: =IF(C12=0,0,1) -> 1 | C12: =IF(E12=0,0,IF(E12=" ",0,MID(E12,2,3))) -> xx | D12: =D29 -> Projekt | E12: =E29 -> Txx | F12: =TRANSPOSE(G29:G33) -> 90.06510631 | G12: 41.06596042 | H12: 48.99914589 | I12: -17.79292824 | J12: 31.20621765 | K12: =Resultatoversigt!$J14 -> 0 | L12: =J12+K12 -> 31.20621765 | M12: 0
B13: =IF(C13=0,0,1) -> 1 | C13: xx | D13: =D37 -> Projekt | E13: =E37 -> Txx | F13: =TRANSPOSE(G37:G41) -> 90.06510631 | G13: 36.95913877 | H13: 53.10596754 | I13: -21.18493825 | J13: 31.92102929 | K13: =Resultatoversigt!$J15 -> 0 | L13: =J13+K13 -> 31.92102929 | M13: 0
B14: 0 | C14: 0 | D14: =D45 -> Projekt | E14: =E45 ->  | F14: =TRANSPOSE(G45:G49) -> 90.06510631 | G14: 35.38306117 | H14: 54.68204514 | I14: -21.30011545 | J14: 33.38192969 | K14: =Resultatoversigt!$J16 -> 0 | L14: 33.38192969 | M14: 0
B15: 0 | C15: 0 | D15: =D53 -> Projekt | E15: =E53 ->  | F15: =TRANSPOSE(G53:G57) -> 90.06510631 | G15: 0 | H15: 90.06510631 | I15: 0 | J15: 90.06510631 | K15: =Resultatoversigt!$J17 -> 0 | L15: 90.06510631 | M15: 0
B16: 0 | C16: =IF(E16=0,0,IF(E16=" ",0,MID(E16,2,3))) -> 0 | D16: =D61 -> Projekt | E16: =E61 ->  | F16: =TRANSPOSE(G61:G65) -> 90.06510631 | G16: 0 | H16: 90.06510631 | I16: 0 | J16: 90.06510631 | K16: =Resultatoversigt!$J18 -> 0 | L16: 90.06510631 | M16: 0
B17: 1 | C17: xx | D17: =D71 -> Alternativ projekt | E17: =E71 -> Txx | F17: =TRANSPOSE(G71:G75) -> 90.06510631 | G17: 41.06596042 | H17: 48.99914589 | I17: -21.71375935 | J17: 27.28538653 | K17: =Resultatoversigt!$J19 -> 0 | L17: 27.28538653 | M17: 0
B18: 1 | C18: xx | D18: =D79 -> Alternativ projekt | E18: =E79 -> Txx | F18: =TRANSPOSE(G79:G83) -> 90.06510631 | G18: 36.95913877 | H18: 53.10596754 | I18: -26.48019433 | J18: 26.62577321 | K18: =Resultatoversigt!$J20 -> 0 | L18: 26.62577321 | M18: 0
B19: 0 | C19: 0 | D19: =D87 -> Alternativ projekt | E19: =E87 ->  | F19: =TRANSPOSE(G87:G91) -> 90.06510631 | G19: 35.38306117 | H19: 54.68204514 | I19: -35.30692578 | J19: 19.37511937 | K19: =Resultatoversigt!$J21 -> 0 | L19: 19.37511937 | M19: 0
B20: 0 | C20: 0 | D20: =D95 -> Alternativ projekt | E20: =E95 ->  | F20: =TRANSPOSE(G95:G99) -> 90.06510631 | G20: 0 | H20: 90.06510631 | I20: 0 | J20: 90.06510631 | K20: =Resultatoversigt!$J22 -> 0 | L20: 90.06510631 | M20: 0
B21: 0 | C21: =IF(E21=0,0,IF(E21=" ",0,MID(E21,2,3))) -> 0 | D21: =D103 -> Alternativ projekt | E21: =E103 ->  | F21: =TRANSPOSE(G103:G107) -> 90.06510631 | G21: 0 | H21: 90.06510631 | I21: 0 | J21: 90.06510631 | K21: =Resultatoversigt!$J23 -> 0 | L21: 90.06510631 | M21: 0
D23: Tryk på plus for at se de deltajlerede resultater for samfundsøkonomien
D24: Deltaljerede samfundsøkonomiske resultater for begge tiltagsprojekter og alle serviceniveauer, mio. kr.
D26: ='Omkostninger og tiltag'!F332 -> Projekt
G28: NNV | H28: =H115 -> 0 | I28: =I115 -> 1 | J28: 2 | K28: 3 | L28: 4 | M28: 5 | N28: 6 | O28: 7 | P28: 8 | Q28: 9 | R28: 10 | S28: 11 | T28: 12 | U28: 13 | V28: 14 | W28: 15 | X28: 16 | Y28: 17 | Z28: 18 | AA28: 19 | AB28: 20 | AC28: 21 | AD28: 22 | AE28: 23 | AF28: 24 | AG28: 25 | AH28: 26 | AI28: 27 | AJ28: 28 | AK28: 29 | AL28: 30 | AM28: 31 | AN28: =AN115 -> 32 | AO28: 33 | AP28: 34 | AQ28: 35 | AR28: 36 | AS28: 37 | AT28: 38 | AU28: 39 | AV28: 40 | AW28: 41 | AX28: 42 | AY28: 43 | AZ28: 44 | BA28: 45 | BB28: 46 | BC28: 47 | BD28: 48 | BE28: 49 | BF28: 50 | BG28: 51 | BH28: 52 | BI28: 53 | BJ28: 54 | BK28: 55 | BL28: 56 | BM28: 57 | BN28: 58 | BO28: 59 | BP28: 60 | BQ28: 61 | BR28: 62 | BS28: 63 | BT28: =BT115 -> 64 | BU28: 65 | BV28: 66 | BW28: 67 | BX28: 68 | BY28: 69 | BZ28: 70 | CA28: 71 | CB28: 72 | CC28: 73 | CD28: 74 | CE28: 75 | CF28: 76 | CG28: 77 | CH28: 78 | CI28: 79 | CJ28: 80 | CK28: 81 | CL28: 82 | CM28: 83 | CN28: 84 | CO28: 85 | CP28: 86 | CQ28: 87 | CR28: 88 | CS28: 89 | CT28: 90 | CU28: 91 | CV28: 92 | CW28: 93 | CX28: 94 | CY28: 95 | CZ28: =CZ115 -> 96 | DA28: 97 | DB28: 98 | DC28: 99
D29: =$D$116 -> Projekt | E29: =$E$116 -> Txx | F29: Skadesomkostning før tiltag | G29: =SUMPRODUCT(H29:DC29,'Økonomiske parametre'!$E$27:$CZ$27) -> 90.06510631 | H29: =H130 -> 1.978015232 | I29: =I130 -> 2.035949937 | J29: 2.064921075 | K29: 2.093908885 | L29: 2.122878688 | M29: 2.151892577 | N29: 2.180878333 | O29: 2.20990204 | P29: 2.238905444 | Q29: 2.268013238 | R29: 2.29712471 | S29: 2.326267012 | T29: 2.355381976 | U29: 2.384547264 | V29: 2.413671399 | W29: 2.44285462 | X29: 2.472001041 | Y29: 2.501178502 | Z29: 2.530358045 | AA29: 2.559517554 | AB29: 2.588813839 | AC29: 2.618101574 | AD29: 2.647424796 | AE29: 2.676757579 | AF29: 2.706275895 | AG29: 2.740231133 | AH29: 2.774161326 | AI29: 2.807633288 | AJ29: 2.84107441 | AK29: 2.874458364 | AL29: 2.907787518 | AM29: 2.941207527 | AN29: =AN130 -> 2.974591562 | AO29: 3.007925977 | AP29: 3.04143564 | AQ29: 3.07495819 | AR29: 3.108432554 | AS29: 3.14188157 | AT29: 3.175414651 | AU29: 3.208902133 | AV29: 3.242345499 | AW29: 3.275785872 | AX29: 3.309302684 | AY29: 3.342767868 | AZ29: 3.376161085 | BA29: 3.40959514 | BB29: 3.443085646 | BC29: 3.476531151 | BD29: 3.509920793 | BE29: 3.543248919 | BF29: 3.5767604 | BG29: 3.61026214 | BH29: 3.643843909 | BI29: 3.67733119 | BJ29: 3.710879252 | BK29: 3.744495162 | BL29: 3.778094185 | BM29: 3.81159613 | BN29: 3.845074062 | BO29: 3.878520608 | BP29: 3.912141097 | BQ29: 3.945699304 | BR29: 3.979188762 | BS29: 4.012651915 | BT29: =BT130 -> 4.051465348 | BU29: 4.092465878 | BV29: 4.133484458 | BW29: 4.174457482 | BX29: 4.215398447 | BY29: 4.256222587 | BZ29: 4.297036265 | CA29: 4.337925244 | CB29: 4.378907688 | CC29: 4.41987987 | CD29: 4.460742022 | CE29: 4.501790403 | CF29: 4.54282738 | CG29: 4.583734564 | CH29: 4.624846355 | CI29: 4.666061209 | CJ29: 4.707150282 | CK29: 4.748183777 | CL29: 4.789205166 | CM29: 4.830132815 | CN29: 4.870962337 | CO29: 4.911830279 | CP29: 4.953025502 | CQ29: 4.99404306 | CR29: 5.035047609 | CS29: 5.076039058 | CT29: 5.116931709 | CU29: 5.157708681 | CV29: 5.19847291 | CW29: 5.239222803 | CX29: 5.280128668 | CY29: 5.321105069 | CZ29: 5.362067776 | DA29: 5.403016967 | DB29: 5.443830005 | DC29: 5.484537107
D30: =$D$116 -> Projekt | E30: =$E$116 -> Txx | F30: Skadesomkostning efter tiltag | G30: =SUMPRODUCT(H30:DC30,'Økonomiske parametre'!$E$27:$CZ$27) -> 41.06596042 | H30: =(H$130-((H$130-H131)*DG142)) -> 0.8224682447 | I30: =(I$130-((I$130-I131)*DH142)) -> 0.8514657581 | J30: 0.8660375887 | K30: 0.8806810383 | L30: 0.8953458763 | M30: 0.9101181424 | N30: 0.9249001554 | O30: 0.9397807338 | P30: 0.9546809881 | Q30: 0.9702571043 | R30: 0.986005567 | S30: 1.001848733 | T30: 1.017701144 | U30: 1.033670175 | V30: 1.049628118 | W30: 1.065720086 | X30: 1.081809713 | Y30: 1.097990617 | Z30: 1.114222475 | AA30: 1.130474526 | AB30: 1.147474008 | AC30: 1.164732855 | AD30: 1.182090661 | AE30: 1.199511043 | AF30: 1.216920002 | AG30: 1.234488535 | AH30: 1.252070855 | AI30: 1.268990419 | AJ30: 1.285892805 | AK30: 1.302769226 | AL30: 1.319617861 | AM30: 1.33664039 | AN30: =(AN$130-((AN$130-AN131)*EM142)) -> 1.35365735 | AO30: 1.370648075 | AP30: 1.388811344 | AQ30: 1.407077577 | AR30: 1.425317898 | AS30: 1.443565973 | AT30: 1.46199866 | AU30: 1.480406131 | AV30: 1.498788863 | AW30: 1.517240949 | AX30: 1.535834855 | AY30: 1.554400962 | AZ30: 1.572931608 | BA30: 1.591547619 | BB30: 1.61031328 | BC30: 1.629053185 | BD30: 1.647763332 | BE30: 1.666446505 | BF30: 1.685417626 | BG30: 1.704925222 | BH30: 1.725244888 | BI30: 1.745519937 | BJ30: 1.765889199 | BK30: 1.78644725 | BL30: 1.806989246 | BM30: 1.827485277 | BN30: 1.847962334 | BO30: 1.868473447 | BP30: 1.889260953 | BQ30: 1.910015259 | BR30: 1.930733423 | BS30: 1.951431289 | BT30: =(BT$130-((BT$130-BT131)*FS142)) -> 1.9720776 | BU30: 1.992961765 | BV30: 2.013961213 | BW30: 2.034932645 | BX30: 2.055880816 | BY30: 2.076774997 | BZ30: 2.097653626 | CA30: 2.118708992 | CB30: 2.139963689 | CC30: 2.161203245 | CD30: 2.182417504 | CE30: 2.205462837 | CF30: 2.22849116 | CG30: 2.2514604 | CH30: 2.274747748 | CI30: 2.298179173 | CJ30: 2.321551585 | CK30: 2.344889883 | CL30: 2.368210052 | CM30: 2.391481733 | CN30: 2.414702955 | CO30: 2.437977045 | CP30: 2.461722522 | CQ30: 2.48538806 | CR30: 2.509034077 | CS30: 2.532660432 | CT30: 2.556235849 | CU30: 2.579752561 | CV30: 2.603250165 | CW30: 2.626726166 | CX30: 2.650551907 | CY30: 2.674550621 | CZ30: =(CZ$130-((CZ$130-CZ131)*GY142)) -> 2.698528842 | DA30: 2.722486797 | DB30: 2.74637808 | DC30: 2.770213072
D31: =$D$116 -> Projekt | E31: =$E$116 -> Txx | F31: Afværget skade | G31: =SUMPRODUCT(H31:DC31,'Økonomiske parametre'!$E$27:$CZ$27) -> 48.99914589 | H31: =H29-H30 -> 1.155546987 | I31: =I29-I30 -> 1.184484179 | J31: 1.198883486 | K31: 1.213227846 | L31: 1.227532812 | M31: 1.241774435 | N31: 1.255978178 | O31: 1.270121306 | P31: 1.284224456 | Q31: 1.297756134 | R31: 1.311119143 | S31: 1.324418278 | T31: 1.337680831 | U31: 1.35087709 | V31: 1.364043281 | W31: 1.377134534 | X31: 1.390191328 | Y31: 1.403187885 | Z31: 1.41613557 | AA31: 1.429043028 | AB31: 1.441339831 | AC31: 1.453368719 | AD31: 1.465334134 | AE31: 1.477246537 | AF31: 1.489355893 | AG31: 1.505742598 | AH31: 1.522090471 | AI31: 1.538642869 | AJ31: 1.555181605 | AK31: 1.571689137 | AL31: 1.588169657 | AM31: 1.604567137 | AN31: =AN29-AN30 -> 1.620934212 | AO31: 1.637277903 | AP31: 1.652624296 | AQ31: 1.667880613 | AR31: 1.683114656 | AS31: 1.698315597 | AT31: 1.713415991 | AU31: 1.728496002 | AV31: 1.743556636 | AW31: 1.758544923 | AX31: 1.773467829 | AY31: 1.788366906 | AZ31: 1.803229476 | BA31: 1.818047522 | BB31: 1.832772366 | BC31: 1.847477965 | BD31: 1.862157462 | BE31: 1.876802414 | BF31: 1.891342774 | BG31: 1.905336918 | BH31: 1.918599021 | BI31: 1.931811253 | BJ31: 1.944990053 | BK31: 1.958047912 | BL31: 1.971104939 | BM31: 1.984110853 | BN31: 1.997111728 | BO31: 2.010047161 | BP31: 2.022880144 | BQ31: 2.035684045 | BR31: 2.048455339 | BS31: 2.061220626 | BT31: =BT29-BT30 -> 2.079387748 | BU31: 2.099504113 | BV31: 2.119523245 | BW31: 2.139524837 | BX31: 2.159517631 | BY31: 2.179447589 | BZ31: 2.199382639 | CA31: 2.219216252 | CB31: 2.238943999 | CC31: 2.258676626 | CD31: 2.278324518 | CE31: 2.296327566 | CF31: 2.31433622 | CG31: 2.332274165 | CH31: 2.350098607 | CI31: 2.367882036 | CJ31: 2.385598698 | CK31: 2.403293894 | CL31: 2.420995114 | CM31: 2.438651082 | CN31: 2.456259382 | CO31: 2.473853234 | CP31: 2.49130298 | CQ31: 2.508655 | CR31: 2.526013531 | CS31: 2.543378626 | CT31: 2.56069586 | CU31: 2.57795612 | CV31: 2.595222744 | CW31: 2.612496637 | CX31: 2.62957676 | CY31: 2.646554448 | CZ31: =CZ29-CZ30 -> 2.663538935 | DA31: 2.680530169 | DB31: 2.697451925 | DC31: 2.714324035
D32: =$D$116 -> Projekt | E32: =$E$116 -> Txx | F32: Tiltagsomkostning | G32: =SUMPRODUCT(H32:DC32,'Økonomiske parametre'!$E$27:$CZ$27) -> -17.79292824 | H32: =-H116 -> -1.085952 | I32: =-I116 -> -1.10726016 | J32: -1.12856832 | K32: -1.14987648 | L32: -1.17118464 | M32: -1.1924928 | N32: -1.21380096 | O32: -1.23510912 | P32: -1.25641728 | Q32: -1.27772544 | R32: -0.2130816 | S32: -0.2130816 | T32: -0.2130816 | U32: -0.2130816 | V32: -0.2130816 | W32: -0.2130816 | X32: -0.2130816 | Y32: -0.2130816 | Z32: -0.2130816 | AA32: -0.2130816 | AB32: -0.2130816 | AC32: -0.2130816 | AD32: -0.2130816 | AE32: -0.2130816 | AF32: -0.2130816 | AG32: -0.2130816 | AH32: -0.2130816 | AI32: -0.2130816 | AJ32: -0.2130816 | AK32: -0.2130816 | AL32: -0.2130816 | AM32: -0.2130816 | AN32: -0.2130816 | AO32: -0.2130816 | AP32: -0.2130816 | AQ32: -0.2130816 | AR32: -0.2130816 | AS32: -0.2130816 | AT32: -0.2130816 | AU32: -0.2130816 | AV32: -1.2579456 | AW32: -1.2579456 | AX32: -1.2579456 | AY32: -1.2579456 | AZ32: -1.2579456 | BA32: -1.2579456 | BB32: -1.2579456 | BC32: -1.2579456 | BD32: -1.2579456 | BE32: -1.2579456 | BF32: -0.2541696 | BG32: -0.2541696 | BH32: -0.2541696 | BI32: -0.2541696 | BJ32: -0.2541696 | BK32: -0.2541696 | BL32: -0.2541696 | BM32: -0.2541696 | BN32: -0.2541696 | BO32: -0.2541696 | BP32: -0.2130816 | BQ32: -0.2130816 | BR32: -0.2130816 | BS32: -0.2130816 | BT32: -0.2130816 | BU32: =-BU116 -> -0.2130816 | BV32: -0.2130816 | BW32: -0.2130816 | BX32: -0.2130816 | BY32: -0.2130816 | BZ32: -0.2130816 | CA32: -0.2130816 | CB32: -0.2130816 | CC32: -0.2130816 | CD32: -0.2130816 | CE32: -0.2130816 | CF32: -0.2130816 | CG32: -0.2130816 | CH32: -0.2130816 | CI32: -0.2130816 | CJ32: -1.2579456 | CK32: -1.2579456 | CL32: -1.2579456 | CM32: -1.2579456 | CN32: -1.2579456 | CO32: -1.2579456 | CP32: -1.2579456 | CQ32: -1.2579456 | CR32: -1.2579456 | CS32: -1.2579456 | CT32: -0.2130816 | CU32: -0.2130816 | CV32: -0.2130816 | CW32: -0.2130816 | CX32: -0.2130816 | CY32: -0.2130816 | CZ32: -0.2130816 | DA32: -0.2130816 | DB32: -0.2130816 | DC32: 8.370860544
D33: =$D$116 -> Projekt | E33: =$E$116 -> Txx | F33: Nettogevinst | G33: =SUMPRODUCT(H33:DC33,'Økonomiske parametre'!$E$27:$CZ$27) -> 31.20621765 | H33: =H31+H32 -> 0.06959498677 | I33: =I31+I32 -> 0.07722401878 | J33: =J31+J32 -> 0.07031516614 | K33: =K31+K32 -> 0.06335136635 | L33: =L31+L32 -> 0.05634817193 | M33: =M31+M32 -> 0.04928163459 | N33: =N31+N32 -> 0.04217721774 | O33: =O31+O32 -> 0.03501218625 | P33: =P31+P32 -> 0.02780717552 | Q33: =Q31+Q32 -> 0.02003069412 | R33: =R31+R32 -> 1.098037543 | S33: =S31+S32 -> 1.111336678 | T33: =T31+T32 -> 1.124599231 | U33: =U31+U32 -> 1.13779549 | V33: =V31+V32 -> 1.150961681 | W33: =W31+W32 -> 1.164052934 | X33: =X31+X32 -> 1.177109728 | Y33: =Y31+Y32 -> 1.190106285 | Z33: =Z31+Z32 -> 1.20305397 | AA33: =AA31+AA32 -> 1.215961428 | AB33: =AB31+AB32 -> 1.228258231 | AC33: =AC31+AC32 -> 1.240287119 | AD33: =AD31+AD32 -> 1.252252534 | AE33: =AE31+AE32 -> 1.264164937 | AF33: =AF31+AF32 -> 1.276274293 | AG33: =AG31+AG32 -> 1.292660998 | AH33: =AH31+AH32 -> 1.309008871 | AI33: =AI31+AI32 -> 1.325561269 | AJ33: =AJ31+AJ32 -> 1.342100005 | AK33: =AK31+AK32 -> 1.358607537 | AL33: =AL31+AL32 -> 1.375088057 | AM33: =AM31+AM32 -> 1.391485537 | AN33: =AN31+AN32 -> 1.407852612 | AO33: =AO31+AO32 -> 1.424196303 | AP33: =AP31+AP32 -> 1.439542696 | AQ33: =AQ31+AQ32 -> 1.454799013 | AR33: =AR31+AR32 -> 1.470033056 | AS33: =AS31+AS32 -> 1.485233997 | AT33: =AT31+AT32 -> 1.500334391 | AU33: =AU31+AU32 -> 1.515414402 | AV33: =AV31+AV32 -> 0.4856110361 | AW33: =AW31+AW32 -> 0.5005993228 | AX33: =AX31+AX32 -> 0.5155222288 | AY33: =AY31+AY32 -> 0.5304213059 | AZ33: =AZ31+AZ32 -> 0.5452838761 | BA33: =BA31+BA32 -> 0.5601019218 | BB33: =BB31+BB32 -> 0.574826766 | BC33: =BC31+BC32 -> 0.5895323655 | BD33: =BD31+BD32 -> 0.6042118616 | BE33: =BE31+BE32 -> 0.6188568139 | BF33: =BF31+BF32 -> 1.637173174 | BG33: =BG31+BG32 -> 1.651167318 | BH33: =BH31+BH32 -> 1.664429421 | BI33: =BI31+BI32 -> 1.677641653 | BJ33: =BJ31+BJ32 -> 1.690820453 | BK33: =BK31+BK32 -> 1.703878312 | BL33: =BL31+BL32 -> 1.716935339 | BM33: =BM31+BM32 -> 1.729941253 | BN33: =BN31+BN32 -> 1.742942128 | BO33: =BO31+BO32 -> 1.755877561 | BP33: =BP31+BP32 -> 1.809798544 | BQ33: =BQ31+BQ32 -> 1.822602445 | BR33: =BR31+BR32 -> 1.835373739 | BS33: =BS31+BS32 -> 1.848139026 | BT33: =BT31+BT32 -> 1.866306148 | BU33: =BU31+BU32 -> 1.886422513 | BV33: =BV31+BV32 -> 1.906441645 | BW33: =BW31+BW32 -> 1.926443237 | BX33: =BX31+BX32 -> 1.946436031 | BY33: =BY31+BY32 -> 1.966365989 | BZ33: =BZ31+BZ32 -> 1.986301039 | CA33: =CA31+CA32 -> 2.006134652 | CB33: =CB31+CB32 -> 2.025862399 | CC33: =CC31+CC32 -> 2.045595026 | CD33: =CD31+CD32 -> 2.065242918 | CE33: =CE31+CE32 -> 2.083245966 | CF33: =CF31+CF32 -> 2.10125462 | CG33: =CG31+CG32 -> 2.119192565 | CH33: =CH31+CH32 -> 2.137017007 | CI33: =CI31+CI32 -> 2.154800436 | CJ33: =CJ31+CJ32 -> 1.127653098 | CK33: =CK31+CK32 -> 1.145348294 | CL33: =CL31+CL32 -> 1.163049514 | CM33: =CM31+CM32 -> 1.180705482 | CN33: =CN31+CN32 -> 1.198313782 | CO33: =CO31+CO32 -> 1.215907634 | CP33: =CP31+CP32 -> 1.23335738 | CQ33: =CQ31+CQ32 -> 1.2507094 | CR33: =CR31+CR32 -> 1.268067931 | CS33: =CS31+CS32 -> 1.285433026 | CT33: =CT31+CT32 -> 2.34761426 | CU33: =CU31+CU32 -> 2.36487452 | CV33: =CV31+CV32 -> 2.382141144 | CW33: =CW31+CW32 -> 2.399415037 | CX33: =CX31+CX32 -> 2.41649516 | CY33: =CY31+CY32 -> 2.433472848 | CZ33: =CZ31+CZ32 -> 2.450457335 | DA33: =DA31+DA32 -> 2.467448569 | DB33: =DB31+DB32 -> 2.484370325 | DC33: =DC31+DC32 -> 11.08518458
G36: =G28 -> NNV | H36: 0 | I36: 1 | J36: 2 | K36: 3 | L36: 4 | M36: 5 | N36: 6 | O36: 7 | P36: 8 | Q36: 9 | R36: 10 | S36: 11 | T36: 12 | U36: 13 | V36: 14 | W36: 15 | X36: 16 | Y36: 17 | Z36: 18 | AA36: 19 | AB36: 20 | AC36: 21 | AD36: 22 | AE36: 23 | AF36: 24 | AG36: 25 | AH36: 26 | AI36: 27 | AJ36: 28 | AK36: 29 | AL36: 30 | AM36: =AM28 -> 31 | AN36: 32 | AO36: 33 | AP36: 34 | AQ36: 35 | AR36: 36 | AS36: 37 | AT36: 38 | AU36: 39 | AV36: 40 | AW36: 41 | AX36: 42 | AY36: 43 | AZ36: 44 | BA36: 45 | BB36: 46 | BC36: 47 | BD36: 48 | BE36: 49 | BF36: 50 | BG36: 51 | BH36: 52 | BI36: 53 | BJ36: 54 | BK36: 55 | BL36: 56 | BM36: 57 | BN36: 58 | BO36: 59 | BP36: 60 | BQ36: 61 | BR36: 62 | BS36: =BS28 -> 63 | BT36: 64 | BU36: 65 | BV36: 66 | BW36: 67 | BX36: 68 | BY36: 69 | BZ36: 70 | CA36: 71 | CB36: 72 | CC36: 73 | CD36: 74 | CE36: 75 | CF36: 76 | CG36: 77 | CH36: 78 | CI36: 79 | CJ36: 80 | CK36: 81 | CL36: 82 | CM36: 83 | CN36: 84 | CO36: 85 | CP36: 86 | CQ36: 87 | CR36: 88 | CS36: 89 | CT36: 90 | CU36: 91 | CV36: 92 | CW36: 93 | CX36: 94 | CY36: 95 | CZ36: 96 | DA36: 97 | DB36: 98 | DC36: 99
D37: =$D$117 -> Projekt | E37: =$E$117 -> Txx | F37: =F29 -> Skadesomkostning før tiltag | G37: =SUMPRODUCT(H37:DC37,'Økonomiske parametre'!$E$27:$CZ$27) -> 90.06510631 | H37: =H130 -> 1.978015232 | I37: 2.035949937 | J37: 2.064921075 | K37: 2.093908885 | L37: 2.122878688 | M37: 2.151892577 | N37: 2.180878333 | O37: 2.20990204 | P37: 2.238905444 | Q37: 2.268013238 | R37: 2.29712471 | S37: 2.326267012 | T37: 2.355381976 | U37: 2.384547264 | V37: 2.413671399 | W37: 2.44285462 | X37: 2.472001041 | Y37: 2.501178502 | Z37: 2.530358045 | AA37: 2.559517554 | AB37: 2.588813839 | AC37: 2.618101574 | AD37: 2.647424796 | AE37: 2.676757579 | AF37: 2.706275895 | AG37: 2.740231133 | AH37: 2.774161326 | AI37: 2.807633288 | AJ37: 2.84107441 | AK37: 2.874458364 | AL37: 2.907787518 | AM37: 2.941207527 | AN37: =AN130 -> 2.974591562 | AO37: 3.007925977 | AP37: 3.04143564 | AQ37: 3.07495819 | AR37: 3.108432554 | AS37: 3.14188157 | AT37: 3.175414651 | AU37: 3.208902133 | AV37: 3.242345499 | AW37: 3.275785872 | AX37: 3.309302684 | AY37: 3.342767868 | AZ37: 3.376161085 | BA37: 3.40959514 | BB37: 3.443085646 | BC37: 3.476531151 | BD37: 3.509920793 | BE37: 3.543248919 | BF37: 3.5767604 | BG37: 3.61026214 | BH37: 3.643843909 | BI37: 3.67733119 | BJ37: 3.710879252 | BK37: 3.744495162 | BL37: 3.778094185 | BM37: 3.81159613 | BN37: 3.845074062 | BO37: 3.878520608 | BP37: 3.912141097 | BQ37: 3.945699304 | BR37: 3.979188762 | BS37: 4.012651915 | BT37: =BT130 -> 4.051465348 | BU37: 4.092465878 | BV37: 4.133484458 | BW37: 4.174457482 | BX37: 4.215398447 | BY37: 4.256222587 | BZ37: 4.297036265 | CA37: 4.337925244 | CB37: 4.378907688 | CC37: 4.41987987 | CD37: 4.460742022 | CE37: 4.501790403 | CF37: 4.54282738 | CG37: 4.583734564 | CH37: 4.624846355 | CI37: 4.666061209 | CJ37: 4.707150282 | CK37: 4.748183777 | CL37: 4.789205166 | CM37: 4.830132815 | CN37: 4.870962337 | CO37: 4.911830279 | CP37: 4.953025502 | CQ37: 4.99404306 | CR37: 5.035047609 | CS37: 5.076039058 | CT37: 5.116931709 | CU37: 5.157708681 | CV37: 5.19847291 | CW37: 5.239222803 | CX37: 5.280128668 | CY37: 5.321105069 | CZ37: 5.362067776 | DA37: 5.403016967 | DB37: 5.443830005 | DC37: 5.484537107
D38: =$D$117 -> Projekt | E38: =$E$117 -> Txx | F38: =F30 -> Skadesomkostning efter tiltag | G38: =SUMPRODUCT(H38:DC38,'Økonomiske parametre'!$E$27:$CZ$27) -> 36.95913877 | H38: =(H$130-((H$130-H132)*DG143)) -> 0.7445289381 | I38: 0.7704401348 | J38: 0.7834514822 | K38: 0.796513049 | L38: 0.8095975924 | M38: 0.8227506327 | N38: 0.8359211421 | O38: 0.8491553068 | P38: 0.8624118973 | Q38: 0.8763139398 | R38: 0.8903884256 | S38: 0.9045261767 | T38: 0.9186805567 | U38: 0.9329082786 | V38: 0.9471414706 | W38: 0.9614587031 | X38: 0.9757867891 | Y38: 0.9901751265 | Z38: 1.004602289 | AA38: 1.019051956 | AB38: 1.034199676 | AC38: 1.049623914 | AD38: 1.065112796 | AE38: 1.080646921 | AF38: 1.096186866 | AG38: 1.111823619 | AH38: 1.127479484 | AI38: 1.142589732 | AJ38: 1.157636282 | AK38: 1.172677684 | AL38: 1.187711366 | AM38: 1.202844001 | AN38: =(AN$130-((AN$130-AN132)*EM143)) -> 1.217979391 | AO38: 1.233106101 | AP38: 1.249360023 | AQ38: 1.265696084 | AR38: 1.282022912 | AS38: 1.298358805 | AT38: 1.314804621 | AU38: 1.331240493 | AV38: 1.347666144 | AW38: 1.364142081 | AX38: 1.380695616 | AY38: 1.397239178 | AZ38: 1.413774681 | BA38: 1.430355586 | BB38: 1.44702825 | BC38: 1.463689716 | BD38: 1.480340921 | BE38: 1.496986377 | BF38: 1.513785611 | BG38: 1.531153172 | BH38: 1.549337819 | BI38: 1.567515243 | BJ38: 1.58573664 | BK38: 1.604076583 | BL38: 1.622401149 | BM38: 1.640718076 | BN38: 1.659020002 | BO38: 1.677353321 | BP38: 1.695833764 | BQ38: 1.714302732 | BR38: 1.732760216 | BS38: 1.751202183 | BT38: =(BT$130-((BT$130-BT132)*FS143)) -> 1.769636719 | BU38: 1.78818823 | BV38: 1.806816963 | BW38: 1.825431324 | BX38: 1.844029638 | BY38: 1.862620424 | BZ38: 1.881192763 | CA38: 1.899869312 | CB38: 1.918661341 | CC38: 1.937434645 | CD38: 1.956227788 | CE38: 1.976866693 | CF38: 1.997485782 | CG38: 2.018097599 | CH38: 2.038877209 | CI38: 2.059722592 | CJ38: 2.080559131 | CK38: 2.101379526 | CL38: 2.122179294 | CM38: 2.142966339 | CN38: 2.16374065 | CO38: 2.184531898 | CP38: 2.20556683 | CQ38: 2.226596811 | CR38: 2.247604844 | CS38: 2.268590801 | CT38: 2.289563723 | CU38: 2.310523482 | CV38: 2.331461651 | CW38: 2.352376138 | CX38: 2.373503255 | CY38: 2.394732195 | CZ38: =(CZ$130-((CZ$130-CZ132)*GY143)) -> 2.415937725 | DA38: 2.437120343 | DB38: 2.458291487 | DC38: 2.479447188
D39: =$D$117 -> Projekt | E39: =$E$117 -> Txx | F39: =F31 -> Afværget skade | G39: =SUMPRODUCT(H39:DC39,'Økonomiske parametre'!$E$27:$CZ$27) -> 53.10596754 | H39: =H37-H38 -> 1.233486293 | I39: 1.265509802 | J39: 1.281469593 | K39: 1.297395836 | L39: 1.313281096 | M39: 1.329141944 | N39: 1.344957191 | O39: 1.360746733 | P39: 1.376493546 | Q39: 1.391699299 | R39: 1.406736285 | S39: 1.421740835 | T39: 1.436701419 | U39: 1.451638986 | V39: 1.466529928 | W39: 1.481395917 | X39: 1.496214252 | Y39: 1.511003375 | Z39: 1.525755756 | AA39: 1.540465598 | AB39: 1.554614164 | AC39: 1.56847766 | AD39: 1.582311999 | AE39: 1.596110659 | AF39: 1.610089029 | AG39: 1.628407514 | AH39: 1.646681843 | AI39: 1.665043556 | AJ39: 1.683438128 | AK39: 1.701780679 | AL39: 1.720076152 | AM39: 1.738363526 | AN39: 1.75661217 | AO39: 1.774819877 | AP39: 1.792075617 | AQ39: 1.809262106 | AR39: 1.826409643 | AS39: 1.843522765 | AT39: 1.86061003 | AU39: 1.87766164 | AV39: 1.894679355 | AW39: 1.911643791 | AX39: 1.928607067 | AY39: 1.945528691 | AZ39: 1.962386404 | BA39: 1.979239555 | BB39: 1.996057396 | BC39: 2.012841435 | BD39: 2.029579872 | BE39: 2.046262542 | BF39: 2.06297479 | BG39: 2.079108968 | BH39: 2.09450609 | BI39: 2.109815947 | BJ39: 2.125142612 | BK39: 2.140418579 | BL39: 2.155693036 | BM39: 2.170878054 | BN39: 2.18605406 | BO39: 2.201167286 | BP39: 2.216307333 | BQ39: 2.231396572 | BR39: 2.246428546 | BS39: 2.261449732 | BT39: =BT37-BT38 -> 2.28182863 | BU39: 2.304277648 | BV39: 2.326667495 | BW39: 2.349026158 | BX39: 2.371368809 | BY39: 2.393602163 | BZ39: 2.415843502 | CA39: 2.438055931 | CB39: 2.460246346 | CC39: 2.482445226 | CD39: 2.504514235 | CE39: 2.52492371 | CF39: 2.545341598 | CG39: 2.565636965 | CH39: 2.585969147 | CI39: 2.606338617 | CJ39: 2.626591152 | CK39: 2.646804251 | CL39: 2.667025872 | CM39: 2.687166476 | CN39: 2.707221687 | CO39: 2.727298381 | CP39: 2.747458672 | CQ39: 2.767446249 | CR39: 2.787442765 | CS39: 2.807448257 | CT39: 2.827367985 | CU39: 2.847185199 | CV39: 2.867011259 | CW39: 2.886846665 | CX39: 2.906625413 | CY39: 2.926372874 | CZ39: 2.946130051 | DA39: 2.965896624 | DB39: 2.985538518 | DC39: 3.005089919
D40: =$D$117 -> Projekt | E40: =$E$117 -> Txx | F40: =F32 -> Tiltagsomkostning | G40: =SUMPRODUCT(H40:DC40,'Økonomiske parametre'!$E$27:$CZ$27) -> -21.18493825 | H40: =-H117 -> -1.292416 | I40: =-I117 -> -1.31780096 | J40: -1.34318592 | K40: -1.36857088 | L40: -1.39395584 | M40: -1.4193408 | N40: -1.44472576 | O40: -1.47011072 | P40: -1.49549568 | Q40: -1.52088064 | R40: -0.2538496 | S40: -0.2538496 | T40: -0.2538496 | U40: -0.2538496 | V40: -0.2538496 | W40: -0.2538496 | X40: -0.2538496 | Y40: -0.2538496 | Z40: -0.2538496 | AA40: -0.2538496 | AB40: -0.2538496 | AC40: -0.2538496 | AD40: -0.2538496 | AE40: -0.2538496 | AF40: -0.2538496 | AG40: -0.2538496 | AH40: -0.2538496 | AI40: -0.2538496 | AJ40: -0.2538496 | AK40: -0.2538496 | AL40: -0.2538496 | AM40: -0.2538496 | AN40: -0.2538496 | AO40: -0.2538496 | AP40: -0.2538496 | AQ40: -0.2538496 | AR40: -0.2538496 | AS40: -0.2538496 | AT40: -0.2538496 | AU40: -0.2538496 | AV40: -1.4999296 | AW40: -1.4999296 | AX40: -1.4999296 | AY40: -1.4999296 | AZ40: -1.4999296 | BA40: -1.4999296 | BB40: -1.4999296 | BC40: -1.4999296 | BD40: -1.4999296 | BE40: -1.4999296 | BF40: -0.3001856 | BG40: -0.3001856 | BH40: -0.3001856 | BI40: -0.3001856 | BJ40: -0.3001856 | BK40: -0.3001856 | BL40: -0.3001856 | BM40: -0.3001856 | BN40: -0.3001856 | BO40: -0.3001856 | BP40: -0.2538496 | BQ40: -0.2538496 | BR40: -0.2538496 | BS40: -0.2538496 | BT40: -0.2538496 | BU40: =-BU117 -> -0.2538496 | BV40: -0.2538496 | BW40: -0.2538496 | BX40: -0.2538496 | BY40: -0.2538496 | BZ40: -0.2538496 | CA40: -0.2538496 | CB40: -0.2538496 | CC40: -0.2538496 | CD40: -0.2538496 | CE40: -0.2538496 | CF40: -0.2538496 | CG40: -0.2538496 | CH40: -0.2538496 | CI40: -0.2538496 | CJ40: -1.4999296 | CK40: -1.4999296 | CL40: -1.4999296 | CM40: -1.4999296 | CN40: -1.4999296 | CO40: -1.4999296 | CP40: -1.4999296 | CQ40: -1.4999296 | CR40: -1.4999296 | CS40: -1.4999296 | CT40: -0.2538496 | CU40: -0.2538496 | CV40: -0.2538496 | CW40: -0.2538496 | CX40: -0.2538496 | CY40: -0.2538496 | CZ40: -0.2538496 | DA40: -0.2538496 | DB40: -0.2538496 | DC40: 9.979404288
D41: =$D$117 -> Projekt | E41: =$E$117 -> Txx | F41: =F33 -> Nettogevinst | G41: =SUMPRODUCT(H41:DC41,'Økonomiske parametre'!$E$27:$CZ$27) -> 31.92102929 | H41: =H39+H40 -> -0.05892970664 | I41: =I39+I40 -> -0.05229115796 | J41: =J39+J40 -> -0.06171632734 | K41: =K39+K40 -> -0.07117504439 | L41: =L39+L40 -> -0.08067474417 | M41: =M39+M40 -> -0.09019885572 | N41: =N39+N40 -> -0.09976856894 | O41: =O39+O40 -> -0.1093639867 | P41: =P39+P40 -> -0.1190021336 | Q41: =Q39+Q40 -> -0.1291813414 | R41: =R39+R40 -> 1.152886685 | S41: =S39+S40 -> 1.167891235 | T41: =T39+T40 -> 1.182851819 | U41: =U39+U40 -> 1.197789386 | V41: =V39+V40 -> 1.212680328 | W41: =W39+W40 -> 1.227546317 | X41: =X39+X40 -> 1.242364652 | Y41: =Y39+Y40 -> 1.257153775 | Z41: =Z39+Z40 -> 1.271906156 | AA41: =AA39+AA40 -> 1.286615998 | AB41: =AB39+AB40 -> 1.300764564 | AC41: =AC39+AC40 -> 1.31462806 | AD41: =AD39+AD40 -> 1.328462399 | AE41: =AE39+AE40 -> 1.342261059 | AF41: =AF39+AF40 -> 1.356239429 | AG41: =AG39+AG40 -> 1.374557914 | AH41: =AH39+AH40 -> 1.392832243 | AI41: =AI39+AI40 -> 1.411193956 | AJ41: =AJ39+AJ40 -> 1.429588528 | AK41: =AK39+AK40 -> 1.447931079 | AL41: =AL39+AL40 -> 1.466226552 | AM41: =AM39+AM40 -> 1.484513926 | AN41: =AN39+AN40 -> 1.50276257 | AO41: =AO39+AO40 -> 1.520970277 | AP41: =AP39+AP40 -> 1.538226017 | AQ41: =AQ39+AQ40 -> 1.555412506 | AR41: =AR39+AR40 -> 1.572560043 | AS41: =AS39+AS40 -> 1.589673165 | AT41: =AT39+AT40 -> 1.60676043 | AU41: =AU39+AU40 -> 1.62381204 | AV41: =AV39+AV40 -> 0.3947497549 | AW41: =AW39+AW40 -> 0.4117141911 | AX41: =AX39+AX40 -> 0.4286774675 | AY41: =AY39+AY40 -> 0.4455990905 | AZ41: =AZ39+AZ40 -> 0.4624568038 | BA41: =BA39+BA40 -> 0.4793099547 | BB41: =BB39+BB40 -> 0.496127796 | BC41: =BC39+BC40 -> 0.512911835 | BD41: =BD39+BD40 -> 0.5296502717 | BE41: =BE39+BE40 -> 0.5463329418 | BF41: =BF39+BF40 -> 1.76278919 | BG41: =BG39+BG40 -> 1.778923368 | BH41: =BH39+BH40 -> 1.79432049 | BI41: =BI39+BI40 -> 1.809630347 | BJ41: =BJ39+BJ40 -> 1.824957012 | BK41: =BK39+BK40 -> 1.840232979 | BL41: =BL39+BL40 -> 1.855507436 | BM41: =BM39+BM40 -> 1.870692454 | BN41: =BN39+BN40 -> 1.88586846 | BO41: =BO39+BO40 -> 1.900981686 | BP41: =BP39+BP40 -> 1.962457733 | BQ41: =BQ39+BQ40 -> 1.977546972 | BR41: =BR39+BR40 -> 1.992578946 | BS41: =BS39+BS40 -> 2.007600132 | BT41: =BT39+BT40 -> 2.02797903 | BU41: =BU39+BU40 -> 2.050428048 | BV41: =BV39+BV40 -> 2.072817895 | BW41: =BW39+BW40 -> 2.095176558 | BX41: =BX39+BX40 -> 2.117519209 | BY41: =BY39+BY40 -> 2.139752563 | BZ41: =BZ39+BZ40 -> 2.161993902 | CA41: =CA39+CA40 -> 2.184206331 | CB41: =CB39+CB40 -> 2.206396746 | CC41: =CC39+CC40 -> 2.228595626 | CD41: =CD39+CD40 -> 2.250664635 | CE41: =CE39+CE40 -> 2.27107411 | CF41: =CF39+CF40 -> 2.291491998 | CG41: =CG39+CG40 -> 2.311787365 | CH41: =CH39+CH40 -> 2.332119547 | CI41: =CI39+CI40 -> 2.352489017 | CJ41: =CJ39+CJ40 -> 1.126661552 | CK41: =CK39+CK40 -> 1.146874651 | CL41: =CL39+CL40 -> 1.167096272 | CM41: =CM39+CM40 -> 1.187236876 | CN41: =CN39+CN40 -> 1.207292087 | CO41: =CO39+CO40 -> 1.227368781 | CP41: =CP39+CP40 -> 1.247529072 | CQ41: =CQ39+CQ40 -> 1.267516649 | CR41: =CR39+CR40 -> 1.287513165 | CS41: =CS39+CS40 -> 1.307518657 | CT41: =CT39+CT40 -> 2.573518385 | CU41: =CU39+CU40 -> 2.593335599 | CV41: =CV39+CV40 -> 2.613161659 | CW41: =CW39+CW40 -> 2.632997065 | CX41: =CX39+CX40 -> 2.652775813 | CY41: =CY39+CY40 -> 2.672523274 | CZ41: =CZ39+CZ40 -> 2.692280451 | DA41: =DA39+DA40 -> 2.712047024 | DB41: =DB39+DB40 -> 2.731688918 | DC41: =DC39+DC40 -> 12.98449421
G44: =G36 -> NNV | H44: 0 | I44: 1 | J44: 2 | K44: 3 | L44: 4 | M44: 5 | N44: 6 | O44: 7 | P44: 8 | Q44: 9 | R44: 10 | S44: 11 | T44: 12 | U44: 13 | V44: 14 | W44: 15 | X44: 16 | Y44: 17 | Z44: 18 | AA44: 19 | AB44: 20 | AC44: 21 | AD44: 22 | AE44: 23 | AF44: 24 | AG44: 25 | AH44: 26 | AI44: 27 | AJ44: 28 | AK44: 29 | AL44: 30 | AM44: =AM36 -> 31 | AN44: 32 | AO44: 33 | AP44: 34 | AQ44: 35 | AR44: 36 | AS44: 37 | AT44: 38 | AU44: 39 | AV44: 40 | AW44: 41 | AX44: 42 | AY44: 43 | AZ44: 44 | BA44: 45 | BB44: 46 | BC44: 47 | BD44: 48 | BE44: 49 | BF44: 50 | BG44: 51 | BH44: 52 | BI44: 53 | BJ44: 54 | BK44: 55 | BL44: 56 | BM44: 57 | BN44: 58 | BO44: 59 | BP44: 60 | BQ44: 61 | BR44: 62 | BS44: =BS36 -> 63 | BT44: 64 | BU44: 65 | BV44: 66 | BW44: 67 | BX44: 68 | BY44: 69 | BZ44: 70 | CA44: 71 | CB44: 72 | CC44: 73 | CD44: 74 | CE44: 75 | CF44: 76 | CG44: 77 | CH44: 78 | CI44: 79 | CJ44: 80 | CK44: 81 | CL44: 82 | CM44: 83 | CN44: 84 | CO44: 85 | CP44: 86 | CQ44: 87 | CR44: 88 | CS44: 89 | CT44: 90 | CU44: 91 | CV44: 92 | CW44: 93 | CX44: 94 | CY44: 95 | CZ44: 96 | DA44: 97 | DB44: 98 | DC44: 99
D45: =$D$118 -> Projekt | E45: =$E$118 ->  | F45: =F37 -> Skadesomkostning før tiltag | G45: =SUMPRODUCT(H45:DC45,'Økonomiske parametre'!$E$27:$CZ$27) -> 90.06510631 | H45: =H130 -> 1.978015232 | I45: 2.035949937 | J45: 2.064921075 | K45: 2.093908885 | L45: 2.122878688 | M45: 2.151892577 | N45: 2.180878333 | O45: 2.20990204 | P45: 2.238905444 | Q45: 2.268013238 | R45: 2.29712471 | S45: 2.326267012 | T45: 2.355381976 | U45: 2.384547264 | V45: 2.413671399 | W45: 2.44285462 | X45: 2.472001041 | Y45: 2.501178502 | Z45: 2.530358045 | AA45: 2.559517554 | AB45: 2.588813839 | AC45: 2.618101574 | AD45: 2.647424796 | AE45: 2.676757579 | AF45: 2.706275895 | AG45: 2.740231133 | AH45: 2.774161326 | AI45: 2.807633288 | AJ45: 2.84107441 | AK45: 2.874458364 | AL45: 2.907787518 | AM45: 2.941207527 | AN45: =AN130 -> 2.974591562 | AO45: 3.007925977 | AP45: 3.04143564 | AQ45: 3.07495819 | AR45: 3.108432554 | AS45: 3.14188157 | AT45: 3.175414651 | AU45: 3.208902133 | AV45: 3.242345499 | AW45: 3.275785872 | AX45: 3.309302684 | AY45: 3.342767868 | AZ45: 3.376161085 | BA45: 3.40959514 | BB45: 3.443085646 | BC45: 3.476531151 | BD45: 3.509920793 | BE45: 3.543248919 | BF45: 3.5767604 | BG45: 3.61026214 | BH45: 3.643843909 | BI45: 3.67733119 | BJ45: 3.710879252 | BK45: 3.744495162 | BL45: 3.778094185 | BM45: 3.81159613 | BN45: 3.845074062 | BO45: 3.878520608 | BP45: 3.912141097 | BQ45: 3.945699304 | BR45: 3.979188762 | BS45: 4.012651915 | BT45: =BT130 -> 4.051465348 | BU45: 4.092465878 | BV45: 4.133484458 | BW45: 4.174457482 | BX45: 4.215398447 | BY45: 4.256222587 | BZ45: 4.297036265 | CA45: 4.337925244 | CB45: 4.378907688 | CC45: 4.41987987 | CD45: 4.460742022 | CE45: 4.501790403 | CF45: 4.54282738 | CG45: 4.583734564 | CH45: 4.624846355 | CI45: 4.666061209 | CJ45: 4.707150282 | CK45: 4.748183777 | CL45: 4.789205166 | CM45: 4.830132815 | CN45: 4.870962337 | CO45: 4.911830279 | CP45: 4.953025502 | CQ45: 4.99404306 | CR45: 5.035047609 | CS45: 5.076039058 | CT45: 5.116931709 | CU45: 5.157708681 | CV45: 5.19847291 | CW45: 5.239222803 | CX45: 5.280128668 | CY45: 5.321105069 | CZ45: 5.362067776 | DA45: 5.403016967 | DB45: 5.443830005 | DC45: 5.484537107
D46: =$D$118 -> Projekt | E46: =$E$118 ->  | F46: =F38 -> Skadesomkostning efter tiltag | G46: =SUMPRODUCT(H46:DC46,'Økonomiske parametre'!$E$27:$CZ$27) -> 35.38306117 | H46: =(H$130-((H$130-H133)*DG144)) -> 0.7183764329 | I46: 0.7430165366 | J46: 0.7553777868 | K46: 0.7677788369 | L46: 0.7801928286 | M46: 0.7926655989 | N46: 0.8051451994 | O46: 0.8176788316 | P46: 0.8302245389 | Q46: 0.8434053659 | R46: 0.8567492648 | S46: 0.870145369 | T46: 0.8835479455 | U46: 0.897014182 | V46: 0.9104759975 | W46: 0.924010957 | X46: 0.9375462612 | Y46: 0.9511317639 | Z46: 0.9647459674 | AA46: 0.9783724768 | AB46: 0.9926867796 | AC46: 1.007267314 | AD46: 1.02190218 | AE46: 1.036571969 | AF46: 1.051237219 | AG46: 1.065989101 | AH46: 1.080749864 | AI46: 1.095029307 | AJ46: 1.10925921 | AK46: 1.123473881 | AL46: 1.137672079 | AM46: 1.151961227 | AN46: =(AN$130-((AN$130-AN133)*EM144)) -> 1.166245501 | AO46: 1.180513799 | AP46: 1.195898074 | AQ46: 1.21135614 | AR46: 1.22679821 | AS46: 1.242242251 | AT46: 1.257783511 | AU46: 1.2733089 | AV46: 1.288818567 | AW46: 1.304364155 | AX46: 1.319982655 | AY46: 1.33558397 | AZ46: 1.351164866 | BA46: 1.366788157 | BB46: 1.382489853 | BC46: 1.398175015 | BD46: 1.413841913 | BE46: 1.429492435 | BF46: 1.445293309 | BG46: 1.461647841 | BH46: 1.478819448 | BI46: 1.495966293 | BJ46: 1.513159107 | BK46: 1.530451765 | BL46: 1.547731426 | BM46: 1.564985514 | BN46: 1.582225272 | BO46: 1.599481568 | BP46: 1.61688163 | BQ46: 1.634261305 | BR46: 1.65161914 | BS46: 1.668961819 | BT46: =(BT$130-((BT$130-BT133)*FS144)) -> 1.686276191 | BU46: 1.703712267 | BV46: 1.721208287 | BW46: 1.738685658 | BX46: 1.756146249 | BY46: 1.773577199 | BZ46: 1.790994509 | CA46: 1.808503584 | CB46: 1.826116288 | CC46: 1.843715384 | CD46: 1.861313236 | CE46: 1.880752093 | CF46: 1.900176184 | CG46: 1.9195681 | CH46: 1.93912526 | CI46: 1.95875346 | CJ46: 1.978349146 | CK46: 1.997922686 | CL46: 2.017480699 | CM46: 2.037010423 | CN46: 2.056510879 | CO46: 2.076033502 | CP46: 2.095802031 | CQ46: 2.115528924 | CR46: 2.135239211 | CS46: 2.154932785 | CT46: 2.174596756 | CU46: 2.194227255 | CV46: 2.213841455 | CW46: 2.233437536 | CX46: 2.253219325 | CY46: 2.273089981 | CZ46: =(CZ$130-((CZ$130-CZ133)*GY144)) -> 2.292943047 | DA46: 2.312778819 | DB46: 2.332577679 | DC46: 2.352343633
D47: =$D$118 -> Projekt | E47: =$E$118 ->  | F47: =F39 -> Afværget skade | G47: =SUMPRODUCT(H47:DC47,'Økonomiske parametre'!$E$27:$CZ$27) -> 54.68204514 | H47: =H45-H46 -> 1.259638799 | I47: =I45-I46 -> 1.2929334 | J47: 1.309543288 | K47: 1.326130048 | L47: 1.34268586 | M47: 1.359226978 | N47: 1.375733134 | O47: 1.392223208 | P47: 1.408680905 | Q47: 1.424607872 | R47: 1.440375445 | S47: 1.456121643 | T47: 1.47183403 | U47: 1.487533082 | V47: 1.503195401 | W47: 1.518843663 | X47: 1.53445478 | Y47: 1.550046738 | Z47: 1.565612078 | AA47: 1.581145077 | AB47: 1.59612706 | AC47: 1.61083426 | AD47: 1.625522616 | AE47: 1.64018561 | AF47: 1.655038676 | AG47: 1.674242032 | AH47: 1.693411462 | AI47: 1.712603981 | AJ47: 1.7318152 | AK47: 1.750984483 | AL47: 1.770115439 | AM47: 1.7892463 | AN47: 1.80834606 | AO47: 1.827412179 | AP47: 1.845537566 | AQ47: 1.86360205 | AR47: 1.881634344 | AS47: 1.899639319 | AT47: 1.917631139 | AU47: 1.935593233 | AV47: 1.953526932 | AW47: 1.971421717 | AX47: 1.989320029 | AY47: 2.007183898 | AZ47: 2.024996218 | BA47: 2.042806983 | BB47: 2.060595794 | BC47: 2.078356135 | BD47: 2.096078881 | BE47: 2.113756484 | BF47: 2.131467092 | BG47: 2.148614298 | BH47: 2.165024461 | BI47: 2.181364897 | BJ47: 2.197720145 | BK47: 2.214043397 | BL47: 2.230362759 | BM47: 2.246610616 | BN47: 2.26284879 | BO47: 2.27903904 | BP47: 2.295259467 | BQ47: 2.311437998 | BR47: 2.327569622 | BS47: 2.343690096 | BT47: 2.365189157 | BU47: =BU45-BU46 -> 2.388753612 | BV47: 2.412276171 | BW47: 2.435771824 | BX47: 2.459252199 | BY47: 2.482645387 | BZ47: 2.506041756 | CA47: 2.52942166 | CB47: 2.5527914 | CC47: 2.576164486 | CD47: 2.599428786 | CE47: 2.62103831 | CF47: 2.642651196 | CG47: 2.664166464 | CH47: 2.685721095 | CI47: 2.70730775 | CJ47: 2.728801136 | CK47: 2.750261091 | CL47: 2.771724468 | CM47: 2.793122392 | CN47: 2.814451457 | CO47: 2.835796777 | CP47: 2.857223471 | CQ47: 2.878514135 | CR47: 2.899808398 | CS47: 2.921106273 | CT47: 2.942334953 | CU47: 2.963481425 | CV47: 2.984631455 | CW47: 3.005785267 | CX47: 3.026909343 | CY47: 3.048015087 | CZ47: 3.069124729 | DA47: 3.090238148 | DB47: 3.111252326 | DC47: 3.132193474
D48: =$D$118 -> Projekt | E48: =$E$118 ->  | F48: =F40 -> Tiltagsomkostning | G48: =SUMPRODUCT(H48:DC48,'Økonomiske parametre'!$E$27:$CZ$27) -> -21.30011545 | H48: =-H118 -> -0.4931264 | I48: =-I118 -> -0.502889344 | J48: -0.512652288 | K48: -0.522415232 | L48: -0.532178176 | M48: -0.54194112 | N48: -0.551704064 | O48: -0.561467008 | P48: -0.571229952 | Q48: -0.580992896 | R48: -0.59075584 | S48: -0.600518784 | T48: -0.610281728 | U48: -0.620044672 | V48: -0.629807616 | W48: -0.63957056 | X48: -0.649333504 | Y48: -0.659096448 | Z48: -0.668859392 | AA48: -0.678622336 | AB48: -0.68838528 | AC48: -0.698148224 | AD48: -0.707911168 | AE48: -0.717674112 | AF48: -0.727437056 | AG48: -0.7372 | AH48: -0.746962944 | AI48: -0.756725888 | AJ48: -0.766488832 | AK48: -0.776251776 | AL48: -0.78601472 | AM48: -0.795777664 | AN48: -0.805540608 | AO48: -0.815303552 | AP48: -0.825066496 | AQ48: -0.83482944 | AR48: -0.844592384 | AS48: -0.854355328 | AT48: -0.864118272 | AU48: -1.277049216 | AV48: -0.88364416 | AW48: -0.885343744 | AX48: -0.887043328 | AY48: -0.888742912 | AZ48: -0.890442496 | BA48: -0.89214208 | BB48: -0.893841664 | BC48: -0.895541248 | BD48: -0.897240832 | BE48: -0.908898816 | BF48: -0.90064 | BG48: -0.90224 | BH48: -0.90384 | BI48: -0.90544 | BJ48: -0.90704 | BK48: -0.90864 | BL48: -0.91024 | BM48: -0.91184 | BN48: -0.91344 | BO48: -0.91504 | BP48: -0.91664 | BQ48: -0.91824 | BR48: -0.91984 | BS48: -0.92144 | BT48: -0.92304 | BU48: =-BU118 -> -0.92464 | BV48: -0.92624 | BW48: -0.92784 | BX48: -0.92944 | BY48: -0.93104 | BZ48: -0.93264 | CA48: -0.93424 | CB48: -0.93584 | CC48: -0.93744 | CD48: -0.93904 | CE48: -0.94064 | CF48: -0.94224 | CG48: -0.94384 | CH48: -0.94544 | CI48: -1.02704 | CJ48: -0.94864 | CK48: -0.94864 | CL48: -0.94864 | CM48: -0.94864 | CN48: -0.94864 | CO48: -0.94864 | CP48: -0.94864 | CQ48: -0.94864 | CR48: -0.94864 | CS48: -0.94864 | CT48: -0.94864 | CU48: -0.94864 | CV48: -0.94864 | CW48: -0.94864 | CX48: -0.94864 | CY48: -0.94864 | CZ48: -0.94864 | DA48: -0.94864 | DB48: -0.94864 | DC48: 11.8371305
D49: =$D$118 -> Projekt | E49: =$E$118 ->  | F49: =F41 -> Nettogevinst | G49: =SUMPRODUCT(H49:DC49,'Økonomiske parametre'!$E$27:$CZ$27) -> 33.38192969 | H49: =H47+H48 -> 0.7665123986 | I49: =I47+I48 -> 0.7900440563 | J49: =J47+J48 -> 0.7968910001 | K49: =K47+K48 -> 0.8037148157 | L49: =L47+L48 -> 0.8105076836 | M49: =M47+M48 -> 0.817285858 | N49: =N47+N48 -> 0.8240290698 | O49: =O47+O48 -> 0.8307562005 | P49: =P47+P48 -> 0.8374509528 | Q49: =Q47+Q48 -> 0.8436149765 | R49: =R47+R48 -> 0.8496196055 | S49: =S47+S48 -> 0.8556028586 | T49: =T47+T48 -> 0.8615523021 | U49: =U47+U48 -> 0.8674884104 | V49: =V47+V48 -> 0.8733877851 | W49: =W47+W48 -> 0.8792731029 | X49: =X47+X48 -> 0.8851212759 | Y49: =Y47+Y48 -> 0.8909502901 | Z49: =Z47+Z48 -> 0.8967526858 | AA49: =AA47+AA48 -> 0.9025227412 | AB49: =AB47+AB48 -> 0.9077417798 | AC49: =AC47+AC48 -> 0.9126860356 | AD49: =AD47+AD48 -> 0.9176114478 | AE49: =AE47+AE48 -> 0.9225114983 | AF49: =AF47+AF48 -> 0.9276016197 | AG49: =AG47+AG48 -> 0.937042032 | AH49: =AH47+AH48 -> 0.9464485185 | AI49: =AI47+AI48 -> 0.9558780933 | AJ49: =AJ47+AJ48 -> 0.9653263676 | AK49: =AK47+AK48 -> 0.9747327071 | AL49: =AL47+AL48 -> 0.9841007189 | AM49: =AM47+AM48 -> 0.9934686359 | AN49: =AN47+AN48 -> 1.002805452 | AO49: =AO47+AO48 -> 1.012108627 | AP49: =AP47+AP48 -> 1.02047107 | AQ49: =AQ47+AQ48 -> 1.02877261 | AR49: =AR47+AR48 -> 1.03704196 | AS49: =AS47+AS48 -> 1.045283991 | AT49: =AT47+AT48 -> 1.053512867 | AU49: =AU47+AU48 -> 0.6585440172 | AV49: =AV47+AV48 -> 1.069882772 | AW49: =AW47+AW48 -> 1.086077973 | AX49: =AX47+AX48 -> 1.102276701 | AY49: =AY47+AY48 -> 1.118440986 | AZ49: =AZ47+AZ48 -> 1.134553722 | BA49: =BA47+BA48 -> 1.150664903 | BB49: =BB47+BB48 -> 1.16675413 | BC49: =BC47+BC48 -> 1.182814887 | BD49: =BD47+BD48 -> 1.198838049 | BE49: =BE47+BE48 -> 1.204857668 | BF49: =BF47+BF48 -> 1.230827092 | BG49: =BG47+BG48 -> 1.246374298 | BH49: =BH47+BH48 -> 1.261184461 | BI49: =BI47+BI48 -> 1.275924897 | BJ49: =BJ47+BJ48 -> 1.290680145 | BK49: =BK47+BK48 -> 1.305403397 | BL49: =BL47+BL48 -> 1.320122759 | BM49: =BM47+BM48 -> 1.334770616 | BN49: =BN47+BN48 -> 1.34940879 | BO49: =BO47+BO48 -> 1.36399904 | BP49: =BP47+BP48 -> 1.378619467 | BQ49: =BQ47+BQ48 -> 1.393197998 | BR49: =BR47+BR48 -> 1.407729622 | BS49: =BS47+BS48 -> 1.422250096 | BT49: =BT47+BT48 -> 1.442149157 | BU49: =BU47+BU48 -> 1.464113612 | BV49: =BV47+BV48 -> 1.486036171 | BW49: =BW47+BW48 -> 1.507931824 | BX49: =BX47+BX48 -> 1.529812199 | BY49: =BY47+BY48 -> 1.551605387 | BZ49: =BZ47+BZ48 -> 1.573401756 | CA49: =CA47+CA48 -> 1.59518166 | CB49: =CB47+CB48 -> 1.6169514 | CC49: =CC47+CC48 -> 1.638724486 | CD49: =CD47+CD48 -> 1.660388786 | CE49: =CE47+CE48 -> 1.68039831 | CF49: =CF47+CF48 -> 1.700411196 | CG49: =CG47+CG48 -> 1.720326464 | CH49: =CH47+CH48 -> 1.740281095 | CI49: =CI47+CI48 -> 1.68026775 | CJ49: =CJ47+CJ48 -> 1.780161136 | CK49: =CK47+CK48 -> 1.801621091 | CL49: =CL47+CL48 -> 1.823084468 | CM49: =CM47+CM48 -> 1.844482392 | CN49: =CN47+CN48 -> 1.865811457 | CO49: =CO47+CO48 -> 1.887156777 | CP49: =CP47+CP48 -> 1.908583471 | CQ49: =CQ47+CQ48 -> 1.929874135 | CR49: =CR47+CR48 -> 1.951168398 | CS49: =CS47+CS48 -> 1.972466273 | CT49: =CT47+CT48 -> 1.993694953 | CU49: =CU47+CU48 -> 2.014841425 | CV49: =CV47+CV48 -> 2.035991455 | CW49: =CW47+CW48 -> 2.057145267 | CX49: =CX47+CX48 -> 2.078269343 | CY49: =CY47+CY48 -> 2.099375087 | CZ49: =CZ47+CZ48 -> 2.120484729 | DA49: =DA47+DA48 -> 2.141598148 | DB49: =DB47+DB48 -> 2.162612326 | DC49: =DC47+DC48 -> 14.96932397
G52: =G44 -> NNV | H52: 0 | I52: 1 | J52: 2 | K52: 3 | L52: 4 | M52: 5 | N52: 6 | O52: 7 | P52: 8 | Q52: 9 | R52: 10 | S52: 11 | T52: 12 | U52: 13 | V52: 14 | W52: 15 | X52: 16 | Y52: 17 | Z52: 18 | AA52: 19 | AB52: 20 | AC52: 21 | AD52: 22 | AE52: 23 | AF52: 24 | AG52: 25 | AH52: 26 | AI52: 27 | AJ52: 28 | AK52: 29 | AL52: 30 | AM52: =AM44 -> 31 | AN52: 32 | AO52: 33 | AP52: 34 | AQ52: 35 | AR52: 36 | AS52: 37 | AT52: 38 | AU52: 39 | AV52: 40 | AW52: 41 | AX52: 42 | AY52: 43 | AZ52: 44 | BA52: 45 | BB52: 46 | BC52: 47 | BD52: 48 | BE52: 49 | BF52: 50 | BG52: 51 | BH52: 52 | BI52: 53 | BJ52: 54 | BK52: 55 | BL52: 56 | BM52: 57 | BN52: 58 | BO52: 59 | BP52: 60 | BQ52: 61 | BR52: 62 | BS52: =BS44 -> 63 | BT52: 64 | BU52: 65 | BV52: 66 | BW52: 67 | BX52: 68 | BY52: 69 | BZ52: 70 | CA52: 71 | CB52: 72 | CC52: 73 | CD52: 74 | CE52: 75 | CF52: 76 | CG52: 77 | CH52: 78 | CI52: 79 | CJ52: 80 | CK52: 81 | CL52: 82 | CM52: 83 | CN52: 84 | CO52: 85 | CP52: 86 | CQ52: 87 | CR52: 88 | CS52: 89 | CT52: 90 | CU52: 91 | CV52: 92 | CW52: 93 | CX52: 94 | CY52: 95 | CZ52: 96 | DA52: 97 | DB52: 98 | DC52: 99
D53: =$D$119 -> Projekt | E53: =$E$119 ->  | F53: =F45 -> Skadesomkostning før tiltag | G53: =SUMPRODUCT(H53:DC53,'Økonomiske parametre'!$E$27:$CZ$27) -> 90.06510631 | H53: =H130 -> 1.978015232 | I53: 2.035949937 | J53: 2.064921075 | K53: 2.093908885 | L53: 2.122878688 | M53: 2.151892577 | N53: 2.180878333 | O53: 2.20990204 | P53: 2.238905444 | Q53: 2.268013238 | R53: 2.29712471 | S53: 2.326267012 | T53: 2.355381976 | U53: 2.384547264 | V53: 2.413671399 | W53: 2.44285462 | X53: 2.472001041 | Y53: 2.501178502 | Z53: 2.530358045 | AA53: 2.559517554 | AB53: 2.588813839 | AC53: 2.618101574 | AD53: 2.647424796 | AE53: 2.676757579 | AF53: 2.706275895 | AG53: 2.740231133 | AH53: 2.774161326 | AI53: 2.807633288 | AJ53: 2.84107441 | AK53: 2.874458364 | AL53: 2.907787518 | AM53: 2.941207527 | AN53: =AN130 -> 2.974591562 | AO53: 3.007925977 | AP53: 3.04143564 | AQ53: 3.07495819 | AR53: 3.108432554 | AS53: 3.14188157 | AT53: 3.175414651 | AU53: 3.208902133 | AV53: 3.242345499 | AW53: 3.275785872 | AX53: 3.309302684 | AY53: 3.342767868 | AZ53: 3.376161085 | BA53: 3.40959514 | BB53: 3.443085646 | BC53: 3.476531151 | BD53: 3.509920793 | BE53: 3.543248919 | BF53: 3.5767604 | BG53: 3.61026214 | BH53: 3.643843909 | BI53: 3.67733119 | BJ53: 3.710879252 | BK53: 3.744495162 | BL53: 3.778094185 | BM53: 3.81159613 | BN53: 3.845074062 | BO53: 3.878520608 | BP53: 3.912141097 | BQ53: 3.945699304 | BR53: 3.979188762 | BS53: 4.012651915 | BT53: =BT130 -> 4.051465348 | BU53: 4.092465878 | BV53: 4.133484458 | BW53: 4.174457482 | BX53: 4.215398447 | BY53: 4.256222587 | BZ53: 4.297036265 | CA53: 4.337925244 | CB53: 4.378907688 | CC53: 4.41987987 | CD53: 4.460742022 | CE53: 4.501790403 | CF53: 4.54282738 | CG53: 4.583734564 | CH53: 4.624846355 | CI53: 4.666061209 | CJ53: 4.707150282 | CK53: 4.748183777 | CL53: 4.789205166 | CM53: 4.830132815 | CN53: 4.870962337 | CO53: 4.911830279 | CP53: 4.953025502 | CQ53: 4.99404306 | CR53: 5.035047609 | CS53: 5.076039058 | CT53: 5.116931709 | CU53: 5.157708681 | CV53: 5.19847291 | CW53: 5.239222803 | CX53: 5.280128668 | CY53: 5.321105069 | CZ53: 5.362067776 | DA53: 5.403016967 | DB53: 5.443830005 | DC53: 5.484537107
D54: =$D$119 -> Projekt | E54: =$E$119 ->  | F54: =F46 -> Skadesomkostning efter tiltag | G54: =SUMPRODUCT(H54:DC54,'Økonomiske parametre'!$E$27:$CZ$27) -> 0 | H54: =(H$130-((H$130-H134)*DG145)) -> 0 | I54: 0 | J54: 0 | K54: 0 | L54: 0 | M54: 0 | N54: 0 | O54: 0 | P54: 0 | Q54: 0 | R54: 0 | S54: 0 | T54: 0 | U54: 0 | V54: 0 | W54: 0 | X54: 0 | Y54: 0 | Z54: 0 | AA54: 0 | AB54: 0 | AC54: 0 | AD54: 0 | AE54: 0 | AF54: 0 | AG54: 0 | AH54: 0 | AI54: 0 | AJ54: 0 | AK54: 0 | AL54: 0 | AM54: 0 | AN54: =(AN$130-((AN$130-AN134)*EM145)) -> 0 | AO54: 0 | AP54: 0 | AQ54: 0 | AR54: 0 | AS54: 0 | AT54: 0 | AU54: 0 | AV54: 0 | AW54: 0 | AX54: 0 | AY54: 0 | AZ54: 0 | BA54: 0 | BB54: 0 | BC54: 0 | BD54: 0 | BE54: 0 | BF54: 0 | BG54: 0 | BH54: 0 | BI54: 0 | BJ54: 0 | BK54: 0 | BL54: 0 | BM54: 0 | BN54: 0 | BO54: 0 | BP54: 0 | BQ54: 0 | BR54: 0 | BS54: 0 | BT54: =(BT$130-((BT$130-BT134)*FS145)) -> 0 | BU54: 0 | BV54: 0 | BW54: 0 | BX54: 0 | BY54: 0 | BZ54: 0 | CA54: 0 | CB54: 0 | CC54: 0 | CD54: 0 | CE54: 0 | CF54: 0 | CG54: 0 | CH54: 0 | CI54: 0 | CJ54: 0 | CK54: 0 | CL54: 0 | CM54: 0 | CN54: 0 | CO54: 0 | CP54: 0 | CQ54: 0 | CR54: 0 | CS54: 0 | CT54: 0 | CU54: 0 | CV54: 0 | CW54: 0 | CX54: 0 | CY54: 0 | CZ54: =(CZ$130-((CZ$130-CZ134)*GY145)) -> 0 | DA54: 0 | DB54: 0 | DC54: 0
D55: =$D$119 -> Projekt | E55: =$E$119 ->  | F55: =F47 -> Afværget skade | G55: =SUMPRODUCT(H55:DC55,'Økonomiske parametre'!$E$27:$CZ$27) -> 90.06510631 | H55: =H53-H54 -> 1.978015232 | I55: 2.035949937 | J55: 2.064921075 | K55: 2.093908885 | L55: 2.122878688 | M55: 2.151892577 | N55: 2.180878333 | O55: 2.20990204 | P55: 2.238905444 | Q55: 2.268013238 | R55: 2.29712471 | S55: 2.326267012 | T55: 2.355381976 | U55: 2.384547264 | V55: 2.413671399 | W55: 2.44285462 | X55: 2.472001041 | Y55: 2.501178502 | Z55: 2.530358045 | AA55: 2.559517554 | AB55: 2.588813839 | AC55: 2.618101574 | AD55: 2.647424796 | AE55: 2.676757579 | AF55: 2.706275895 | AG55: 2.740231133 | AH55: 2.774161326 | AI55: 2.807633288 | AJ55: 2.84107441 | AK55: 2.874458364 | AL55: 2.907787518 | AM55: 2.941207527 | AN55: =AN53-AN54 -> 2.974591562 | AO55: 3.007925977 | AP55: 3.04143564 | AQ55: 3.07495819 | AR55: 3.108432554 | AS55: 3.14188157 | AT55: 3.175414651 | AU55: 3.208902133 | AV55: 3.242345499 | AW55: 3.275785872 | AX55: 3.309302684 | AY55: 3.342767868 | AZ55: 3.376161085 | BA55: 3.40959514 | BB55: 3.443085646 | BC55: 3.476531151 | BD55: 3.509920793 | BE55: 3.543248919 | BF55: 3.5767604 | BG55: 3.61026214 | BH55: 3.643843909 | BI55: 3.67733119 | BJ55: 3.710879252 | BK55: 3.744495162 | BL55: 3.778094185 | BM55: 3.81159613 | BN55: 3.845074062 | BO55: 3.878520608 | BP55: 3.912141097 | BQ55: 3.945699304 | BR55: 3.979188762 | BS55: 4.012651915 | BT55: =BT53-BT54 -> 4.051465348 | BU55: 4.092465878 | BV55: 4.133484458 | BW55: 4.174457482 | BX55: 4.215398447 | BY55: 4.256222587 | BZ55: 4.297036265 | CA55: 4.337925244 | CB55: 4.378907688 | CC55: 4.41987987 | CD55: 4.460742022 | CE55: 4.501790403 | CF55: 4.54282738 | CG55: 4.583734564 | CH55: 4.624846355 | CI55: 4.666061209 | CJ55: 4.707150282 | CK55: 4.748183777 | CL55: 4.789205166 | CM55: 4.830132815 | CN55: 4.870962337 | CO55: 4.911830279 | CP55: 4.953025502 | CQ55: 4.99404306 | CR55: 5.035047609 | CS55: 5.076039058 | CT55: 5.116931709 | CU55: 5.157708681 | CV55: 5.19847291 | CW55: 5.239222803 | CX55: 5.280128668 | CY55: 5.321105069 | CZ55: =CZ53-CZ54 -> 5.362067776 | DA55: 5.403016967 | DB55: 5.443830005 | DC55: 5.484537107
D56: =$D$119 -> Projekt | E56: =$E$119 ->  | F56: =F48 -> Tiltagsomkostning | G56: =SUMPRODUCT(H56:DC56,'Økonomiske parametre'!$E$27:$CZ$27) -> 0 | H56: =-H119 -> 0 | I56: =-I119 -> 0 | J56: 0 | K56: 0 | L56: 0 | M56: 0 | N56: 0 | O56: 0 | P56: 0 | Q56: 0 | R56: 0 | S56: 0 | T56: 0 | U56: 0 | V56: 0 | W56: 0 | X56: 0 | Y56: 0 | Z56: 0 | AA56: 0 | AB56: 0 | AC56: 0 | AD56: 0 | AE56: 0 | AF56: 0 | AG56: 0 | AH56: 0 | AI56: 0 | AJ56: 0 | AK56: 0 | AL56: 0 | AM56: 0 | AN56: 0 | AO56: 0 | AP56: 0 | AQ56: 0 | AR56: 0 | AS56: 0 | AT56: 0 | AU56: 0 | AV56: 0 | AW56: 0 | AX56: 0 | AY56: 0 | AZ56: 0 | BA56: 0 | BB56: 0 | BC56: 0 | BD56: 0 | BE56: 0 | BF56: 0 | BG56: 0 | BH56: 0 | BI56: 0 | BJ56: 0 | BK56: 0 | BL56: 0 | BM56: 0 | BN56: 0 | BO56: 0 | BP56: 0 | BQ56: 0 | BR56: 0 | BS56: 0 | BT56: 0 | BU56: =-BU119 -> 0 | BV56: 0 | BW56: 0 | BX56: 0 | BY56: 0 | BZ56: 0 | CA56: 0 | CB56: 0 | CC56: 0 | CD56: 0 | CE56: 0 | CF56: 0 | CG56: 0 | CH56: 0 | CI56: 0 | CJ56: 0 | CK56: 0 | CL56: 0 | CM56: 0 | CN56: 0 | CO56: 0 | CP56: 0 | CQ56: 0 | CR56: 0 | CS56: 0 | CT56: 0 | CU56: 0 | CV56: 0 | CW56: 0 | CX56: 0 | CY56: 0 | CZ56: 0 | DA56: 0 | DB56: 0 | DC56: 0
D57: =$D$119 -> Projekt | E57: =$E$119 ->  | F57: =F49 -> Nettogevinst | G57: =SUMPRODUCT(H57:DC57,'Økonomiske parametre'!$E$27:$CZ$27) -> 90.06510631 | H57: =H55+H56 -> 1.978015232 | I57: =I55+I56 -> 2.035949937 | J57: =J55+J56 -> 2.064921075 | K57: =K55+K56 -> 2.093908885 | L57: =L55+L56 -> 2.122878688 | M57: =M55+M56 -> 2.151892577 | N57: =N55+N56 -> 2.180878333 | O57: =O55+O56 -> 2.20990204 | P57: =P55+P56 -> 2.238905444 | Q57: =Q55+Q56 -> 2.268013238 | R57: =R55+R56 -> 2.29712471 | S57: =S55+S56 -> 2.326267012 | T57: =T55+T56 -> 2.355381976 | U57: =U55+U56 -> 2.384547264 | V57: =V55+V56 -> 2.413671399 | W57: =W55+W56 -> 2.44285462 | X57: =X55+X56 -> 2.472001041 | Y57: =Y55+Y56 -> 2.501178502 | Z57: =Z55+Z56 -> 2.530358045 | AA57: =AA55+AA56 -> 2.559517554 | AB57: =AB55+AB56 -> 2.588813839 | AC57: =AC55+AC56 -> 2.618101574 | AD57: =AD55+AD56 -> 2.647424796 | AE57: =AE55+AE56 -> 2.676757579 | AF57: =AF55+AF56 -> 2.706275895 | AG57: =AG55+AG56 -> 2.740231133 | AH57: =AH55+AH56 -> 2.774161326 | AI57: =AI55+AI56 -> 2.807633288 | AJ57: =AJ55+AJ56 -> 2.84107441 | AK57: =AK55+AK56 -> 2.874458364 | AL57: =AL55+AL56 -> 2.907787518 | AM57: =AM55+AM56 -> 2.941207527 | AN57: =AN55+AN56 -> 2.974591562 | AO57: =AO55+AO56 -> 3.007925977 | AP57: =AP55+AP56 -> 3.04143564 | AQ57: =AQ55+AQ56 -> 3.07495819 | AR57: =AR55+AR56 -> 3.108432554 | AS57: =AS55+AS56 -> 3.14188157 | AT57: =AT55+AT56 -> 3.175414651 | AU57: =AU55+AU56 -> 3.208902133 | AV57: =AV55+AV56 -> 3.242345499 | AW57: =AW55+AW56 -> 3.275785872 | AX57: =AX55+AX56 -> 3.309302684 | AY57: =AY55+AY56 -> 3.342767868 | AZ57: =AZ55+AZ56 -> 3.376161085 | BA57: =BA55+BA56 -> 3.40959514 | BB57: =BB55+BB56 -> 3.443085646 | BC57: =BC55+BC56 -> 3.476531151 | BD57: =BD55+BD56 -> 3.509920793 | BE57: =BE55+BE56 -> 3.543248919 | BF57: =BF55+BF56 -> 3.5767604 | BG57: =BG55+BG56 -> 3.61026214 | BH57: =BH55+BH56 -> 3.643843909 | BI57: =BI55+BI56 -> 3.67733119 | BJ57: =BJ55+BJ56 -> 3.710879252 | BK57: =BK55+BK56 -> 3.744495162 | BL57: =BL55+BL56 -> 3.778094185 | BM57: =BM55+BM56 -> 3.81159613 | BN57: =BN55+BN56 -> 3.845074062 | BO57: =BO55+BO56 -> 3.878520608 | BP57: =BP55+BP56 -> 3.912141097 | BQ57: =BQ55+BQ56 -> 3.945699304 | BR57: =BR55+BR56 -> 3.979188762 | BS57: =BS55+BS56 -> 4.012651915 | BT57: =BT55+BT56 -> 4.051465348 | BU57: =BU55+BU56 -> 4.092465878 | BV57: =BV55+BV56 -> 4.133484458 | BW57: =BW55+BW56 -> 4.174457482 | BX57: =BX55+BX56 -> 4.215398447 | BY57: =BY55+BY56 -> 4.256222587 | BZ57: =BZ55+BZ56 -> 4.297036265 | CA57: =CA55+CA56 -> 4.337925244 | CB57: =CB55+CB56 -> 4.378907688 | CC57: =CC55+CC56 -> 4.41987987 | CD57: =CD55+CD56 -> 4.460742022 | CE57: =CE55+CE56 -> 4.501790403 | CF57: =CF55+CF56 -> 4.54282738 | CG57: =CG55+CG56 -> 4.583734564 | CH57: =CH55+CH56 -> 4.624846355 | CI57: =CI55+CI56 -> 4.666061209 | CJ57: =CJ55+CJ56 -> 4.707150282 | CK57: =CK55+CK56 -> 4.748183777 | CL57: =CL55+CL56 -> 4.789205166 | CM57: =CM55+CM56 -> 4.830132815 | CN57: =CN55+CN56 -> 4.870962337 | CO57: =CO55+CO56 -> 4.911830279 | CP57: =CP55+CP56 -> 4.953025502 | CQ57: =CQ55+CQ56 -> 4.99404306 | CR57: =CR55+CR56 -> 5.035047609 | CS57: =CS55+CS56 -> 5.076039058 | CT57: =CT55+CT56 -> 5.116931709 | CU57: =CU55+CU56 -> 5.157708681 | CV57: =CV55+CV56 -> 5.19847291 | CW57: =CW55+CW56 -> 5.239222803 | CX57: =CX55+CX56 -> 5.280128668 | CY57: =CY55+CY56 -> 5.321105069 | CZ57: =CZ55+CZ56 -> 5.362067776 | DA57: =DA55+DA56 -> 5.403016967 | DB57: =DB55+DB56 -> 5.443830005 | DC57: =DC55+DC56 -> 5.484537107
G60: =G52 -> NNV | H60: 0 | I60: 1 | J60: 2 | K60: 3 | L60: 4 | M60: 5 | N60: 6 | O60: 7 | P60: 8 | Q60: 9 | R60: 10 | S60: 11 | T60: 12 | U60: 13 | V60: 14 | W60: 15 | X60: 16 | Y60: 17 | Z60: 18 | AA60: 19 | AB60: 20 | AC60: 21 | AD60: 22 | AE60: 23 | AF60: 24 | AG60: 25 | AH60: 26 | AI60: 27 | AJ60: 28 | AK60: 29 | AL60: 30 | AM60: =AM52 -> 31 | AN60: 32 | AO60: 33 | AP60: 34 | AQ60: 35 | AR60: 36 | AS60: 37 | AT60: 38 | AU60: 39 | AV60: 40 | AW60: 41 | AX60: 42 | AY60: 43 | AZ60: 44 | BA60: 45 | BB60: 46 | BC60: 47 | BD60: 48 | BE60: 49 | BF60: 50 | BG60: 51 | BH60: 52 | BI60: 53 | BJ60: 54 | BK60: 55 | BL60: 56 | BM60: 57 | BN60: 58 | BO60: 59 | BP60: 60 | BQ60: 61 | BR60: 62 | BS60: =BS52 -> 63 | BT60: 64 | BU60: 65 | BV60: 66 | BW60: 67 | BX60: 68 | BY60: 69 | BZ60: 70 | CA60: 71 | CB60: 72 | CC60: 73 | CD60: 74 | CE60: 75 | CF60: 76 | CG60: 77 | CH60: 78 | CI60: 79 | CJ60: 80 | CK60: 81 | CL60: 82 | CM60: 83 | CN60: 84 | CO60: 85 | CP60: 86 | CQ60: 87 | CR60: 88 | CS60: 89 | CT60: 90 | CU60: 91 | CV60: 92 | CW60: 93 | CX60: 94 | CY60: 95 | CZ60: 96 | DA60: 97 | DB60: 98 | DC60: 99
D61: =$D$120 -> Projekt | E61: =$E$120 ->  | F61: =F53 -> Skadesomkostning før tiltag | G61: =SUMPRODUCT(H61:DC61,'Økonomiske parametre'!$E$27:$CZ$27) -> 90.06510631 | H61: =H$130 -> 1.978015232 | I61: 2.035949937 | J61: 2.064921075 | K61: 2.093908885 | L61: 2.122878688 | M61: 2.151892577 | N61: 2.180878333 | O61: 2.20990204 | P61: 2.238905444 | Q61: 2.268013238 | R61: 2.29712471 | S61: 2.326267012 | T61: 2.355381976 | U61: 2.384547264 | V61: 2.413671399 | W61: 2.44285462 | X61: 2.472001041 | Y61: 2.501178502 | Z61: 2.530358045 | AA61: 2.559517554 | AB61: 2.588813839 | AC61: 2.618101574 | AD61: 2.647424796 | AE61: 2.676757579 | AF61: 2.706275895 | AG61: 2.740231133 | AH61: 2.774161326 | AI61: 2.807633288 | AJ61: 2.84107441 | AK61: 2.874458364 | AL61: 2.907787518 | AM61: 2.941207527 | AN61: =AN$130 -> 2.974591562 | AO61: 3.007925977 | AP61: 3.04143564 | AQ61: 3.07495819 | AR61: 3.108432554 | AS61: 3.14188157 | AT61: 3.175414651 | AU61: 3.208902133 | AV61: 3.242345499 | AW61: 3.275785872 | AX61: 3.309302684 | AY61: 3.342767868 | AZ61: 3.376161085 | BA61: 3.40959514 | BB61: 3.443085646 | BC61: 3.476531151 | BD61: 3.509920793 | BE61: 3.543248919 | BF61: 3.5767604 | BG61: 3.61026214 | BH61: 3.643843909 | BI61: 3.67733119 | BJ61: 3.710879252 | BK61: 3.744495162 | BL61: 3.778094185 | BM61: 3.81159613 | BN61: 3.845074062 | BO61: 3.878520608 | BP61: 3.912141097 | BQ61: 3.945699304 | BR61: 3.979188762 | BS61: 4.012651915 | BT61: =BT$130 -> 4.051465348 | BU61: 4.092465878 | BV61: 4.133484458 | BW61: 4.174457482 | BX61: 4.215398447 | BY61: 4.256222587 | BZ61: 4.297036265 | CA61: 4.337925244 | CB61: 4.378907688 | CC61: 4.41987987 | CD61: 4.460742022 | CE61: 4.501790403 | CF61: 4.54282738 | CG61: 4.583734564 | CH61: 4.624846355 | CI61: 4.666061209 | CJ61: 4.707150282 | CK61: 4.748183777 | CL61: 4.789205166 | CM61: 4.830132815 | CN61: 4.870962337 | CO61: 4.911830279 | CP61: 4.953025502 | CQ61: 4.99404306 | CR61: 5.035047609 | CS61: 5.076039058 | CT61: 5.116931709 | CU61: 5.157708681 | CV61: 5.19847291 | CW61: 5.239222803 | CX61: 5.280128668 | CY61: 5.321105069 | CZ61: 5.362067776 | DA61: 5.403016967 | DB61: 5.443830005 | DC61: 5.484537107
D62: =$D$120 -> Projekt | E62: =$E$120 ->  | F62: =F54 -> Skadesomkostning efter tiltag | G62: =SUMPRODUCT(H62:DC62,'Økonomiske parametre'!$E$27:$CZ$27) -> 0 | H62: =(H$130-((H$130-H135)*DG146)) -> 0 | I62: 0 | J62: 0 | K62: 0 | L62: 0 | M62: 0 | N62: 0 | O62: 0 | P62: 0 | Q62: 0 | R62: 0 | S62: 0 | T62: 0 | U62: 0 | V62: 0 | W62: 0 | X62: 0 | Y62: 0 | Z62: 0 | AA62: 0 | AB62: 0 | AC62: 0 | AD62: 0 | AE62: 0 | AF62: 0 | AG62: 0 | AH62: 0 | AI62: 0 | AJ62: 0 | AK62: 0 | AL62: 0 | AM62: 0 | AN62: =(AN$130-((AN$130-AN135)*EM146)) -> 0 | AO62: 0 | AP62: 0 | AQ62: 0 | AR62: 0 | AS62: 0 | AT62: 0 | AU62: 0 | AV62: 0 | AW62: 0 | AX62: 0 | AY62: 0 | AZ62: 0 | BA62: 0 | BB62: 0 | BC62: 0 | BD62: 0 | BE62: 0 | BF62: 0 | BG62: 0 | BH62: 0 | BI62: 0 | BJ62: 0 | BK62: 0 | BL62: 0 | BM62: 0 | BN62: 0 | BO62: 0 | BP62: 0 | BQ62: 0 | BR62: 0 | BS62: 0 | BT62: =(BT$130-((BT$130-BT135)*FS146)) -> 0 | BU62: 0 | BV62: 0 | BW62: 0 | BX62: 0 | BY62: 0 | BZ62: 0 | CA62: 0 | CB62: 0 | CC62: 0 | CD62: 0 | CE62: 0 | CF62: 0 | CG62: 0 | CH62: 0 | CI62: 0 | CJ62: 0 | CK62: 0 | CL62: 0 | CM62: 0 | CN62: 0 | CO62: 0 | CP62: 0 | CQ62: 0 | CR62: 0 | CS62: 0 | CT62: 0 | CU62: 0 | CV62: 0 | CW62: 0 | CX62: 0 | CY62: 0 | CZ62: =(CZ$130-((CZ$130-CZ135)*GY146)) -> 0 | DA62: 0 | DB62: 0 | DC62: 0
D63: =$D$120 -> Projekt | E63: =$E$120 ->  | F63: =F55 -> Afværget skade | G63: =SUMPRODUCT(H63:DC63,'Økonomiske parametre'!$E$27:$CZ$27) -> 90.06510631 | H63: =H61-H62 -> 1.978015232 | I63: 2.035949937 | J63: 2.064921075 | K63: 2.093908885 | L63: 2.122878688 | M63: 2.151892577 | N63: 2.180878333 | O63: 2.20990204 | P63: 2.238905444 | Q63: 2.268013238 | R63: 2.29712471 | S63: 2.326267012 | T63: 2.355381976 | U63: 2.384547264 | V63: 2.413671399 | W63: 2.44285462 | X63: 2.472001041 | Y63: 2.501178502 | Z63: 2.530358045 | AA63: 2.559517554 | AB63: 2.588813839 | AC63: 2.618101574 | AD63: 2.647424796 | AE63: 2.676757579 | AF63: 2.706275895 | AG63: 2.740231133 | AH63: 2.774161326 | AI63: 2.807633288 | AJ63: 2.84107441 | AK63: 2.874458364 | AL63: 2.907787518 | AM63: 2.941207527 | AN63: =AN61-AN62 -> 2.974591562 | AO63: 3.007925977 | AP63: 3.04143564 | AQ63: 3.07495819 | AR63: 3.108432554 | AS63: 3.14188157 | AT63: 3.175414651 | AU63: 3.208902133 | AV63: 3.242345499 | AW63: 3.275785872 | AX63: 3.309302684 | AY63: 3.342767868 | AZ63: 3.376161085 | BA63: 3.40959514 | BB63: 3.443085646 | BC63: 3.476531151 | BD63: 3.509920793 | BE63: 3.543248919 | BF63: 3.5767604 | BG63: 3.61026214 | BH63: 3.643843909 | BI63: 3.67733119 | BJ63: 3.710879252 | BK63: 3.744495162 | BL63: 3.778094185 | BM63: 3.81159613 | BN63: 3.845074062 | BO63: 3.878520608 | BP63: 3.912141097 | BQ63: 3.945699304 | BR63: 3.979188762 | BS63: 4.012651915 | BT63: =BT61-BT62 -> 4.051465348 | BU63: 4.092465878 | BV63: 4.133484458 | BW63: 4.174457482 | BX63: 4.215398447 | BY63: 4.256222587 | BZ63: 4.297036265 | CA63: 4.337925244 | CB63: 4.378907688 | CC63: 4.41987987 | CD63: 4.460742022 | CE63: 4.501790403 | CF63: 4.54282738 | CG63: 4.583734564 | CH63: 4.624846355 | CI63: 4.666061209 | CJ63: 4.707150282 | CK63: 4.748183777 | CL63: 4.789205166 | CM63: 4.830132815 | CN63: 4.870962337 | CO63: 4.911830279 | CP63: 4.953025502 | CQ63: 4.99404306 | CR63: 5.035047609 | CS63: 5.076039058 | CT63: 5.116931709 | CU63: 5.157708681 | CV63: 5.19847291 | CW63: 5.239222803 | CX63: 5.280128668 | CY63: 5.321105069 | CZ63: =CZ61-CZ62 -> 5.362067776 | DA63: 5.403016967 | DB63: 5.443830005 | DC63: 5.484537107
D64: =$D$120 -> Projekt | E64: =$E$120 ->  | F64: =F56 -> Tiltagsomkostning | G64: =SUMPRODUCT(H64:DC64,'Økonomiske parametre'!$E$27:$CZ$27) -> 0 | H64: =-H120 -> 0 | I64: =-I120 -> 0 | J64: 0 | K64: 0 | L64: 0 | M64: 0 | N64: 0 | O64: 0 | P64: 0 | Q64: 0 | R64: 0 | S64: 0 | T64: 0 | U64: 0 | V64: 0 | W64: 0 | X64: 0 | Y64: 0 | Z64: 0 | AA64: 0 | AB64: 0 | AC64: 0 | AD64: 0 | AE64: 0 | AF64: 0 | AG64: 0 | AH64: 0 | AI64: 0 | AJ64: 0 | AK64: 0 | AL64: 0 | AM64: 0 | AN64: 0 | AO64: 0 | AP64: 0 | AQ64: 0 | AR64: 0 | AS64: 0 | AT64: 0 | AU64: 0 | AV64: 0 | AW64: 0 | AX64: 0 | AY64: 0 | AZ64: 0 | BA64: 0 | BB64: 0 | BC64: 0 | BD64: 0 | BE64: 0 | BF64: 0 | BG64: 0 | BH64: 0 | BI64: 0 | BJ64: 0 | BK64: 0 | BL64: 0 | BM64: 0 | BN64: 0 | BO64: 0 | BP64: 0 | BQ64: 0 | BR64: 0 | BS64: 0 | BT64: 0 | BU64: =-BU120 -> 0 | BV64: 0 | BW64: 0 | BX64: 0 | BY64: 0 | BZ64: 0 | CA64: 0 | CB64: 0 | CC64: 0 | CD64: 0 | CE64: 0 | CF64: 0 | CG64: 0 | CH64: 0 | CI64: 0 | CJ64: 0 | CK64: 0 | CL64: 0 | CM64: 0 | CN64: 0 | CO64: 0 | CP64: 0 | CQ64: 0 | CR64: 0 | CS64: 0 | CT64: 0 | CU64: 0 | CV64: 0 | CW64: 0 | CX64: 0 | CY64: 0 | CZ64: 0 | DA64: 0 | DB64: 0 | DC64: 0
D65: =$D$120 -> Projekt | E65: =$E$120 ->  | F65: =F57 -> Nettogevinst | G65: =SUMPRODUCT(H65:DC65,'Økonomiske parametre'!$E$27:$CZ$27) -> 90.06510631 | H65: =H63+H64 -> 1.978015232 | I65: =I63+I64 -> 2.035949937 | J65: =J63+J64 -> 2.064921075 | K65: =K63+K64 -> 2.093908885 | L65: =L63+L64 -> 2.122878688 | M65: =M63+M64 -> 2.151892577 | N65: =N63+N64 -> 2.180878333 | O65: =O63+O64 -> 2.20990204 | P65: =P63+P64 -> 2.238905444 | Q65: =Q63+Q64 -> 2.268013238 | R65: =R63+R64 -> 2.29712471 | S65: =S63+S64 -> 2.326267012 | T65: =T63+T64 -> 2.355381976 | U65: =U63+U64 -> 2.384547264 | V65: =V63+V64 -> 2.413671399 | W65: =W63+W64 -> 2.44285462 | X65: =X63+X64 -> 2.472001041 | Y65: =Y63+Y64 -> 2.501178502 | Z65: =Z63+Z64 -> 2.530358045 | AA65: =AA63+AA64 -> 2.559517554 | AB65: =AB63+AB64 -> 2.588813839 | AC65: =AC63+AC64 -> 2.618101574 | AD65: =AD63+AD64 -> 2.647424796 | AE65: =AE63+AE64 -> 2.676757579 | AF65: =AF63+AF64 -> 2.706275895 | AG65: =AG63+AG64 -> 2.740231133 | AH65: =AH63+AH64 -> 2.774161326 | AI65: =AI63+AI64 -> 2.807633288 | AJ65: =AJ63+AJ64 -> 2.84107441 | AK65: =AK63+AK64 -> 2.874458364 | AL65: =AL63+AL64 -> 2.907787518 | AM65: =AM63+AM64 -> 2.941207527 | AN65: =AN63+AN64 -> 2.974591562 | AO65: =AO63+AO64 -> 3.007925977 | AP65: =AP63+AP64 -> 3.04143564 | AQ65: =AQ63+AQ64 -> 3.07495819 | AR65: =AR63+AR64 -> 3.108432554 | AS65: =AS63+AS64 -> 3.14188157 | AT65: =AT63+AT64 -> 3.175414651 | AU65: =AU63+AU64 -> 3.208902133 | AV65: =AV63+AV64 -> 3.242345499 | AW65: =AW63+AW64 -> 3.275785872 | AX65: =AX63+AX64 -> 3.309302684 | AY65: =AY63+AY64 -> 3.342767868 | AZ65: =AZ63+AZ64 -> 3.376161085 | BA65: =BA63+BA64 -> 3.40959514 | BB65: =BB63+BB64 -> 3.443085646 | BC65: =BC63+BC64 -> 3.476531151 | BD65: =BD63+BD64 -> 3.509920793 | BE65: =BE63+BE64 -> 3.543248919 | BF65: =BF63+BF64 -> 3.5767604 | BG65: =BG63+BG64 -> 3.61026214 | BH65: =BH63+BH64 -> 3.643843909 | BI65: =BI63+BI64 -> 3.67733119 | BJ65: =BJ63+BJ64 -> 3.710879252 | BK65: =BK63+BK64 -> 3.744495162 | BL65: =BL63+BL64 -> 3.778094185 | BM65: =BM63+BM64 -> 3.81159613 | BN65: =BN63+BN64 -> 3.845074062 | BO65: =BO63+BO64 -> 3.878520608 | BP65: =BP63+BP64 -> 3.912141097 | BQ65: =BQ63+BQ64 -> 3.945699304 | BR65: =BR63+BR64 -> 3.979188762 | BS65: =BS63+BS64 -> 4.012651915 | BT65: =BT63+BT64 -> 4.051465348 | BU65: =BU63+BU64 -> 4.092465878 | BV65: =BV63+BV64 -> 4.133484458 | BW65: =BW63+BW64 -> 4.174457482 | BX65: =BX63+BX64 -> 4.215398447 | BY65: =BY63+BY64 -> 4.256222587 | BZ65: =BZ63+BZ64 -> 4.297036265 | CA65: =CA63+CA64 -> 4.337925244 | CB65: =CB63+CB64 -> 4.378907688 | CC65: =CC63+CC64 -> 4.41987987 | CD65: =CD63+CD64 -> 4.460742022 | CE65: =CE63+CE64 -> 4.501790403 | CF65: =CF63+CF64 -> 4.54282738 | CG65: =CG63+CG64 -> 4.583734564 | CH65: =CH63+CH64 -> 4.624846355 | CI65: =CI63+CI64 -> 4.666061209 | CJ65: =CJ63+CJ64 -> 4.707150282 | CK65: =CK63+CK64 -> 4.748183777 | CL65: =CL63+CL64 -> 4.789205166 | CM65: =CM63+CM64 -> 4.830132815 | CN65: =CN63+CN64 -> 4.870962337 | CO65: =CO63+CO64 -> 4.911830279 | CP65: =CP63+CP64 -> 4.953025502 | CQ65: =CQ63+CQ64 -> 4.99404306 | CR65: =CR63+CR64 -> 5.035047609 | CS65: =CS63+CS64 -> 5.076039058 | CT65: =CT63+CT64 -> 5.116931709 | CU65: =CU63+CU64 -> 5.157708681 | CV65: =CV63+CV64 -> 5.19847291 | CW65: =CW63+CW64 -> 5.239222803 | CX65: =CX63+CX64 -> 5.280128668 | CY65: =CY63+CY64 -> 5.321105069 | CZ65: =CZ63+CZ64 -> 5.362067776 | DA65: =DA63+DA64 -> 5.403016967 | DB65: =DB63+DB64 -> 5.443830005 | DC65: =DC63+DC64 -> 5.484537107
D68: ='Omkostninger og tiltag'!G332 -> Alternativ projekt
G70: NNV | H70: =H60 -> 0 | I70: 1 | J70: 2 | K70: 3 | L70: 4 | M70: 5 | N70: 6 | O70: 7 | P70: 8 | Q70: 9 | R70: 10 | S70: 11 | T70: 12 | U70: 13 | V70: 14 | W70: 15 | X70: 16 | Y70: 17 | Z70: 18 | AA70: 19 | AB70: 20 | AC70: 21 | AD70: 22 | AE70: 23 | AF70: 24 | AG70: 25 | AH70: 26 | AI70: 27 | AJ70: 28 | AK70: 29 | AL70: 30 | AM70: 31 | AN70: =AN60 -> 32 | AO70: 33 | AP70: 34 | AQ70: 35 | AR70: 36 | AS70: 37 | AT70: 38 | AU70: 39 | AV70: 40 | AW70: 41 | AX70: 42 | AY70: 43 | AZ70: 44 | BA70: 45 | BB70: 46 | BC70: 47 | BD70: 48 | BE70: 49 | BF70: 50 | BG70: 51 | BH70: 52 | BI70: 53 | BJ70: 54 | BK70: 55 | BL70: 56 | BM70: 57 | BN70: 58 | BO70: 59 | BP70: 60 | BQ70: 61 | BR70: 62 | BS70: 63 | BT70: =BT60 -> 64 | BU70: 65 | BV70: 66 | BW70: 67 | BX70: 68 | BY70: 69 | BZ70: 70 | CA70: 71 | CB70: 72 | CC70: 73 | CD70: 74 | CE70: 75 | CF70: 76 | CG70: 77 | CH70: 78 | CI70: 79 | CJ70: 80 | CK70: 81 | CL70: 82 | CM70: 83 | CN70: 84 | CO70: 85 | CP70: 86 | CQ70: 87 | CR70: 88 | CS70: 89 | CT70: 90 | CU70: 91 | CV70: 92 | CW70: 93 | CX70: 94 | CY70: 95 | CZ70: 96 | DA70: 97 | DB70: 98 | DC70: 99
D71: =$D$121 -> Alternativ projekt | E71: =$E$121 -> Txx | F71: Skadesomkostning før tiltag | G71: =SUMPRODUCT(H71:DC71,'Økonomiske parametre'!$E$27:$CZ$27) -> 90.06510631 | H71: =H$130 -> 1.978015232 | I71: 2.035949937 | J71: 2.064921075 | K71: 2.093908885 | L71: 2.122878688 | M71: 2.151892577 | N71: 2.180878333 | O71: 2.20990204 | P71: 2.238905444 | Q71: 2.268013238 | R71: 2.29712471 | S71: 2.326267012 | T71: 2.355381976 | U71: 2.384547264 | V71: 2.413671399 | W71: 2.44285462 | X71: 2.472001041 | Y71: 2.501178502 | Z71: 2.530358045 | AA71: 2.559517554 | AB71: 2.588813839 | AC71: 2.618101574 | AD71: 2.647424796 | AE71: 2.676757579 | AF71: 2.706275895 | AG71: 2.740231133 | AH71: 2.774161326 | AI71: 2.807633288 | AJ71: 2.84107441 | AK71: 2.874458364 | AL71: 2.907787518 | AM71: 2.941207527 | AN71: =AN$130 -> 2.974591562 | AO71: 3.007925977 | AP71: 3.04143564 | AQ71: 3.07495819 | AR71: 3.108432554 | AS71: 3.14188157 | AT71: 3.175414651 | AU71: 3.208902133 | AV71: 3.242345499 | AW71: 3.275785872 | AX71: 3.309302684 | AY71: 3.342767868 | AZ71: 3.376161085 | BA71: 3.40959514 | BB71: 3.443085646 | BC71: 3.476531151 | BD71: 3.509920793 | BE71: 3.543248919 | BF71: 3.5767604 | BG71: 3.61026214 | BH71: 3.643843909 | BI71: 3.67733119 | BJ71: 3.710879252 | BK71: 3.744495162 | BL71: 3.778094185 | BM71: 3.81159613 | BN71: 3.845074062 | BO71: 3.878520608 | BP71: 3.912141097 | BQ71: 3.945699304 | BR71: 3.979188762 | BS71: 4.012651915 | BT71: =BT$130 -> 4.051465348 | BU71: 4.092465878 | BV71: 4.133484458 | BW71: 4.174457482 | BX71: 4.215398447 | BY71: 4.256222587 | BZ71: 4.297036265 | CA71: 4.337925244 | CB71: 4.378907688 | CC71: 4.41987987 | CD71: 4.460742022 | CE71: 4.501790403 | CF71: 4.54282738 | CG71: 4.583734564 | CH71: 4.624846355 | CI71: 4.666061209 | CJ71: 4.707150282 | CK71: 4.748183777 | CL71: 4.789205166 | CM71: 4.830132815 | CN71: 4.870962337 | CO71: 4.911830279 | CP71: 4.953025502 | CQ71: 4.99404306 | CR71: 5.035047609 | CS71: 5.076039058 | CT71: 5.116931709 | CU71: 5.157708681 | CV71: 5.19847291 | CW71: 5.239222803 | CX71: 5.280128668 | CY71: 5.321105069 | CZ71: 5.362067776 | DA71: 5.403016967 | DB71: 5.443830005 | DC71: 5.484537107
D72: =$D$121 -> Alternativ projekt | E72: =$E$121 -> Txx | F72: Skadesomkostning efter tiltag | G72: =SUMPRODUCT(H72:DC72,'Økonomiske parametre'!$E$27:$CZ$27) -> 41.06596042 | H72: =(H$130-((H$130-H131)*DG147)) -> 0.8224682447 | I72: 0.8514657581 | J72: 0.8660375887 | K72: 0.8806810383 | L72: 0.8953458763 | M72: 0.9101181424 | N72: 0.9249001554 | O72: 0.9397807338 | P72: 0.9546809881 | Q72: 0.9702571043 | R72: 0.986005567 | S72: 1.001848733 | T72: 1.017701144 | U72: 1.033670175 | V72: 1.049628118 | W72: 1.065720086 | X72: 1.081809713 | Y72: 1.097990617 | Z72: 1.114222475 | AA72: 1.130474526 | AB72: 1.147474008 | AC72: 1.164732855 | AD72: 1.182090661 | AE72: 1.199511043 | AF72: 1.216920002 | AG72: 1.234488535 | AH72: 1.252070855 | AI72: 1.268990419 | AJ72: 1.285892805 | AK72: 1.302769226 | AL72: 1.319617861 | AM72: 1.33664039 | AN72: =(AN$130-((AN$130-AN131)*EM147)) -> 1.35365735 | AO72: 1.370648075 | AP72: 1.388811344 | AQ72: 1.407077577 | AR72: 1.425317898 | AS72: 1.443565973 | AT72: 1.46199866 | AU72: 1.480406131 | AV72: 1.498788863 | AW72: 1.517240949 | AX72: 1.535834855 | AY72: 1.554400962 | AZ72: 1.572931608 | BA72: 1.591547619 | BB72: 1.61031328 | BC72: 1.629053185 | BD72: 1.647763332 | BE72: 1.666446505 | BF72: 1.685417626 | BG72: 1.704925222 | BH72: 1.725244888 | BI72: 1.745519937 | BJ72: 1.765889199 | BK72: 1.78644725 | BL72: 1.806989246 | BM72: 1.827485277 | BN72: 1.847962334 | BO72: 1.868473447 | BP72: 1.889260953 | BQ72: 1.910015259 | BR72: 1.930733423 | BS72: 1.951431289 | BT72: =(BT$130-((BT$130-BT131)*FS147)) -> 1.9720776 | BU72: 1.992961765 | BV72: 2.013961213 | BW72: 2.034932645 | BX72: 2.055880816 | BY72: 2.076774997 | BZ72: 2.097653626 | CA72: 2.118708992 | CB72: 2.139963689 | CC72: 2.161203245 | CD72: 2.182417504 | CE72: 2.205462837 | CF72: 2.22849116 | CG72: 2.2514604 | CH72: 2.274747748 | CI72: 2.298179173 | CJ72: 2.321551585 | CK72: 2.344889883 | CL72: 2.368210052 | CM72: 2.391481733 | CN72: 2.414702955 | CO72: 2.437977045 | CP72: 2.461722522 | CQ72: 2.48538806 | CR72: 2.509034077 | CS72: 2.532660432 | CT72: 2.556235849 | CU72: 2.579752561 | CV72: 2.603250165 | CW72: 2.626726166 | CX72: 2.650551907 | CY72: 2.674550621 | CZ72: =(CZ$130-((CZ$130-CZ131)*GY147)) -> 2.698528842 | DA72: 2.722486797 | DB72: 2.74637808 | DC72: 2.770213072
D73: =$D$121 -> Alternativ projekt | E73: =$E$121 -> Txx | F73: Afværges skade | G73: =SUMPRODUCT(H73:DC73,'Økonomiske parametre'!$E$27:$CZ$27) -> 48.99914589 | H73: =H71-H72 -> 1.155546987 | I73: 1.184484179 | J73: 1.198883486 | K73: 1.213227846 | L73: 1.227532812 | M73: 1.241774435 | N73: 1.255978178 | O73: 1.270121306 | P73: 1.284224456 | Q73: 1.297756134 | R73: 1.311119143 | S73: 1.324418278 | T73: 1.337680831 | U73: 1.35087709 | V73: 1.364043281 | W73: 1.377134534 | X73: 1.390191328 | Y73: 1.403187885 | Z73: 1.41613557 | AA73: 1.429043028 | AB73: 1.441339831 | AC73: 1.453368719 | AD73: 1.465334134 | AE73: 1.477246537 | AF73: 1.489355893 | AG73: 1.505742598 | AH73: 1.522090471 | AI73: 1.538642869 | AJ73: 1.555181605 | AK73: 1.571689137 | AL73: 1.588169657 | AM73: 1.604567137 | AN73: =AN71-AN72 -> 1.620934212 | AO73: 1.637277903 | AP73: 1.652624296 | AQ73: 1.667880613 | AR73: 1.683114656 | AS73: 1.698315597 | AT73: 1.713415991 | AU73: 1.728496002 | AV73: 1.743556636 | AW73: 1.758544923 | AX73: 1.773467829 | AY73: 1.788366906 | AZ73: 1.803229476 | BA73: 1.818047522 | BB73: 1.832772366 | BC73: 1.847477965 | BD73: 1.862157462 | BE73: 1.876802414 | BF73: 1.891342774 | BG73: 1.905336918 | BH73: 1.918599021 | BI73: 1.931811253 | BJ73: 1.944990053 | BK73: 1.958047912 | BL73: 1.971104939 | BM73: 1.984110853 | BN73: 1.997111728 | BO73: 2.010047161 | BP73: 2.022880144 | BQ73: 2.035684045 | BR73: 2.048455339 | BS73: 2.061220626 | BT73: =BT71-BT72 -> 2.079387748 | BU73: 2.099504113 | BV73: 2.119523245 | BW73: 2.139524837 | BX73: 2.159517631 | BY73: 2.179447589 | BZ73: 2.199382639 | CA73: 2.219216252 | CB73: 2.238943999 | CC73: 2.258676626 | CD73: 2.278324518 | CE73: 2.296327566 | CF73: 2.31433622 | CG73: 2.332274165 | CH73: 2.350098607 | CI73: 2.367882036 | CJ73: 2.385598698 | CK73: 2.403293894 | CL73: 2.420995114 | CM73: 2.438651082 | CN73: 2.456259382 | CO73: 2.473853234 | CP73: 2.49130298 | CQ73: 2.508655 | CR73: 2.526013531 | CS73: 2.543378626 | CT73: 2.56069586 | CU73: 2.57795612 | CV73: 2.595222744 | CW73: 2.612496637 | CX73: 2.62957676 | CY73: 2.646554448 | CZ73: =CZ71-CZ72 -> 2.663538935 | DA73: 2.680530169 | DB73: 2.697451925 | DC73: 2.714324035
D74: =$D$121 -> Alternativ projekt | E74: =$E$121 -> Txx | F74: Tiltagsomkostning | G74: =SUMPRODUCT(H74:DC74,'Økonomiske parametre'!$E$27:$CZ$27) -> -21.71375935 | H74: =-H121 -> -1.5744 | I74: =-I121 -> -1.605888 | J74: -1.637376 | K74: -1.668864 | L74: -1.700352 | M74: -1.73184 | N74: -1.763328 | O74: -1.794816 | P74: -1.826304 | Q74: -1.857792 | R74: -0.31488 | S74: -0.31488 | T74: -0.31488 | U74: -0.31488 | V74: -0.31488 | W74: -0.31488 | X74: -0.31488 | Y74: -0.31488 | Z74: -0.31488 | AA74: -0.31488 | AB74: -0.31488 | AC74: -0.31488 | AD74: -0.31488 | AE74: -0.31488 | AF74: -0.31488 | AG74: -0.31488 | AH74: -0.31488 | AI74: -0.31488 | AJ74: -0.31488 | AK74: -0.31488 | AL74: -0.31488 | AM74: -0.31488 | AN74: -0.31488 | AO74: -0.31488 | AP74: -0.31488 | AQ74: -0.31488 | AR74: -0.31488 | AS74: -0.31488 | AT74: -0.31488 | AU74: -0.31488 | AV74: -0.31488 | AW74: -0.31488 | AX74: -0.31488 | AY74: -0.31488 | AZ74: -0.31488 | BA74: -0.31488 | BB74: -0.31488 | BC74: -0.31488 | BD74: -0.31488 | BE74: -0.31488 | BF74: -0.31488 | BG74: -0.31488 | BH74: -0.31488 | BI74: -0.31488 | BJ74: -0.31488 | BK74: -0.31488 | BL74: -0.31488 | BM74: -0.31488 | BN74: -0.31488 | BO74: -0.31488 | BP74: -0.31488 | BQ74: -0.31488 | BR74: -0.31488 | BS74: -0.31488 | BT74: -0.31488 | BU74: =-BU121 -> -0.31488 | BV74: -0.31488 | BW74: -0.31488 | BX74: -0.31488 | BY74: -0.31488 | BZ74: -0.31488 | CA74: -0.31488 | CB74: -0.31488 | CC74: -0.31488 | CD74: -0.31488 | CE74: -0.31488 | CF74: -0.31488 | CG74: -0.31488 | CH74: -0.31488 | CI74: -0.31488 | CJ74: -0.31488 | CK74: -0.31488 | CL74: -0.31488 | CM74: -0.31488 | CN74: -0.31488 | CO74: -0.31488 | CP74: -0.31488 | CQ74: -0.31488 | CR74: -0.31488 | CS74: -0.31488 | CT74: -0.31488 | CU74: -0.31488 | CV74: -0.31488 | CW74: -0.31488 | CX74: -0.31488 | CY74: -0.31488 | CZ74: -0.31488 | DA74: -0.31488 | DB74: -0.31488 | DC74: -0.31488
D75: =$D$121 -> Alternativ projekt | E75: =$E$121 -> Txx | F75: Nettogevinst | G75: =SUMPRODUCT(H75:DC75,'Økonomiske parametre'!$E$27:$CZ$27) -> 27.28538653 | H75: =H73+H74 -> -0.4188530132 | I75: =I73+I74 -> -0.4214038212 | J75: =J73+J74 -> -0.4384925139 | K75: =K73+K74 -> -0.4556361536 | L75: =L73+L74 -> -0.4728191881 | M75: =M73+M74 -> -0.4900655654 | N75: =N73+N74 -> -0.5073498223 | O75: =O73+O74 -> -0.5246946938 | P75: =P73+P74 -> -0.5420795445 | Q75: =Q73+Q74 -> -0.5600358659 | R75: =R73+R74 -> 0.9962391432 | S75: =S73+S74 -> 1.009538278 | T75: =T73+T74 -> 1.022800831 | U75: =U73+U74 -> 1.03599709 | V75: =V73+V74 -> 1.049163281 | W75: =W73+W74 -> 1.062254534 | X75: =X73+X74 -> 1.075311328 | Y75: =Y73+Y74 -> 1.088307885 | Z75: =Z73+Z74 -> 1.10125557 | AA75: =AA73+AA74 -> 1.114163028 | AB75: =AB73+AB74 -> 1.126459831 | AC75: =AC73+AC74 -> 1.138488719 | AD75: =AD73+AD74 -> 1.150454134 | AE75: =AE73+AE74 -> 1.162366537 | AF75: =AF73+AF74 -> 1.174475893 | AG75: =AG73+AG74 -> 1.190862598 | AH75: =AH73+AH74 -> 1.207210471 | AI75: =AI73+AI74 -> 1.223762869 | AJ75: =AJ73+AJ74 -> 1.240301605 | AK75: =AK73+AK74 -> 1.256809137 | AL75: =AL73+AL74 -> 1.273289657 | AM75: =AM73+AM74 -> 1.289687137 | AN75: =AN73+AN74 -> 1.306054212 | AO75: =AO73+AO74 -> 1.322397903 | AP75: =AP73+AP74 -> 1.337744296 | AQ75: =AQ73+AQ74 -> 1.353000613 | AR75: =AR73+AR74 -> 1.368234656 | AS75: =AS73+AS74 -> 1.383435597 | AT75: =AT73+AT74 -> 1.398535991 | AU75: =AU73+AU74 -> 1.413616002 | AV75: =AV73+AV74 -> 1.428676636 | AW75: =AW73+AW74 -> 1.443664923 | AX75: =AX73+AX74 -> 1.458587829 | AY75: =AY73+AY74 -> 1.473486906 | AZ75: =AZ73+AZ74 -> 1.488349476 | BA75: =BA73+BA74 -> 1.503167522 | BB75: =BB73+BB74 -> 1.517892366 | BC75: =BC73+BC74 -> 1.532597965 | BD75: =BD73+BD74 -> 1.547277462 | BE75: =BE73+BE74 -> 1.561922414 | BF75: =BF73+BF74 -> 1.576462774 | BG75: =BG73+BG74 -> 1.590456918 | BH75: =BH73+BH74 -> 1.603719021 | BI75: =BI73+BI74 -> 1.616931253 | BJ75: =BJ73+BJ74 -> 1.630110053 | BK75: =BK73+BK74 -> 1.643167912 | BL75: =BL73+BL74 -> 1.656224939 | BM75: =BM73+BM74 -> 1.669230853 | BN75: =BN73+BN74 -> 1.682231728 | BO75: =BO73+BO74 -> 1.695167161 | BP75: =BP73+BP74 -> 1.708000144 | BQ75: =BQ73+BQ74 -> 1.720804045 | BR75: =BR73+BR74 -> 1.733575339 | BS75: =BS73+BS74 -> 1.746340626 | BT75: =BT73+BT74 -> 1.764507748 | BU75: =BU73+BU74 -> 1.784624113 | BV75: =BV73+BV74 -> 1.804643245 | BW75: =BW73+BW74 -> 1.824644837 | BX75: =BX73+BX74 -> 1.844637631 | BY75: =BY73+BY74 -> 1.864567589 | BZ75: =BZ73+BZ74 -> 1.884502639 | CA75: =CA73+CA74 -> 1.904336252 | CB75: =CB73+CB74 -> 1.924063999 | CC75: =CC73+CC74 -> 1.943796626 | CD75: =CD73+CD74 -> 1.963444518 | CE75: =CE73+CE74 -> 1.981447566 | CF75: =CF73+CF74 -> 1.99945622 | CG75: =CG73+CG74 -> 2.017394165 | CH75: =CH73+CH74 -> 2.035218607 | CI75: =CI73+CI74 -> 2.053002036 | CJ75: =CJ73+CJ74 -> 2.070718698 | CK75: =CK73+CK74 -> 2.088413894 | CL75: =CL73+CL74 -> 2.106115114 | CM75: =CM73+CM74 -> 2.123771082 | CN75: =CN73+CN74 -> 2.141379382 | CO75: =CO73+CO74 -> 2.158973234 | CP75: =CP73+CP74 -> 2.17642298 | CQ75: =CQ73+CQ74 -> 2.193775 | CR75: =CR73+CR74 -> 2.211133531 | CS75: =CS73+CS74 -> 2.228498626 | CT75: =CT73+CT74 -> 2.24581586 | CU75: =CU73+CU74 -> 2.26307612 | CV75: =CV73+CV74 -> 2.280342744 | CW75: =CW73+CW74 -> 2.297616637 | CX75: =CX73+CX74 -> 2.31469676 | CY75: =CY73+CY74 -> 2.331674448 | CZ75: =CZ73+CZ74 -> 2.348658935 | DA75: =DA73+DA74 -> 2.365650169 | DB75: =DB73+DB74 -> 2.382571925 | DC75: =DC73+DC74 -> 2.399444035
G78: =G70 -> NNV | H78: 0 | I78: 1 | J78: 2 | K78: 3 | L78: 4 | M78: 5 | N78: 6 | O78: 7 | P78: 8 | Q78: 9 | R78: 10 | S78: 11 | T78: 12 | U78: 13 | V78: 14 | W78: 15 | X78: 16 | Y78: 17 | Z78: 18 | AA78: 19 | AB78: 20 | AC78: 21 | AD78: 22 | AE78: 23 | AF78: 24 | AG78: 25 | AH78: 26 | AI78: 27 | AJ78: 28 | AK78: 29 | AL78: 30 | AM78: =AM70 -> 31 | AN78: 32 | AO78: 33 | AP78: 34 | AQ78: 35 | AR78: 36 | AS78: 37 | AT78: 38 | AU78: 39 | AV78: 40 | AW78: 41 | AX78: 42 | AY78: 43 | AZ78: 44 | BA78: 45 | BB78: 46 | BC78: 47 | BD78: 48 | BE78: 49 | BF78: 50 | BG78: 51 | BH78: 52 | BI78: 53 | BJ78: 54 | BK78: 55 | BL78: 56 | BM78: 57 | BN78: 58 | BO78: 59 | BP78: 60 | BQ78: 61 | BR78: 62 | BS78: =BS70 -> 63 | BT78: 64 | BU78: 65 | BV78: 66 | BW78: 67 | BX78: 68 | BY78: 69 | BZ78: 70 | CA78: 71 | CB78: 72 | CC78: 73 | CD78: 74 | CE78: 75 | CF78: 76 | CG78: 77 | CH78: 78 | CI78: 79 | CJ78: 80 | CK78: 81 | CL78: 82 | CM78: 83 | CN78: 84 | CO78: 85 | CP78: 86 | CQ78: 87 | CR78: 88 | CS78: 89 | CT78: 90 | CU78: 91 | CV78: 92 | CW78: 93 | CX78: 94 | CY78: 95 | CZ78: 96 | DA78: 97 | DB78: 98 | DC78: 99
D79: =$D$122 -> Alternativ projekt | E79: =$E$122 -> Txx | F79: =F71 -> Skadesomkostning før tiltag | G79: =SUMPRODUCT(H79:DC79,'Økonomiske parametre'!$E$27:$CZ$27) -> 90.06510631 | H79: =H$130 -> 1.978015232 | I79: 2.035949937 | J79: 2.064921075 | K79: 2.093908885 | L79: 2.122878688 | M79: 2.151892577 | N79: 2.180878333 | O79: 2.20990204 | P79: 2.238905444 | Q79: 2.268013238 | R79: 2.29712471 | S79: 2.326267012 | T79: 2.355381976 | U79: 2.384547264 | V79: 2.413671399 | W79: 2.44285462 | X79: 2.472001041 | Y79: 2.501178502 | Z79: 2.530358045 | AA79: 2.559517554 | AB79: 2.588813839 | AC79: 2.618101574 | AD79: 2.647424796 | AE79: 2.676757579 | AF79: 2.706275895 | AG79: 2.740231133 | AH79: 2.774161326 | AI79: 2.807633288 | AJ79: 2.84107441 | AK79: 2.874458364 | AL79: 2.907787518 | AM79: 2.941207527 | AN79: =AN$130 -> 2.974591562 | AO79: 3.007925977 | AP79: 3.04143564 | AQ79: 3.07495819 | AR79: 3.108432554 | AS79: 3.14188157 | AT79: 3.175414651 | AU79: 3.208902133 | AV79: 3.242345499 | AW79: 3.275785872 | AX79: 3.309302684 | AY79: 3.342767868 | AZ79: 3.376161085 | BA79: 3.40959514 | BB79: 3.443085646 | BC79: 3.476531151 | BD79: 3.509920793 | BE79: 3.543248919 | BF79: 3.5767604 | BG79: 3.61026214 | BH79: 3.643843909 | BI79: 3.67733119 | BJ79: 3.710879252 | BK79: 3.744495162 | BL79: 3.778094185 | BM79: 3.81159613 | BN79: 3.845074062 | BO79: 3.878520608 | BP79: 3.912141097 | BQ79: 3.945699304 | BR79: 3.979188762 | BS79: 4.012651915 | BT79: =BT$130 -> 4.051465348 | BU79: 4.092465878 | BV79: 4.133484458 | BW79: 4.174457482 | BX79: 4.215398447 | BY79: 4.256222587 | BZ79: 4.297036265 | CA79: 4.337925244 | CB79: 4.378907688 | CC79: 4.41987987 | CD79: 4.460742022 | CE79: 4.501790403 | CF79: 4.54282738 | CG79: 4.583734564 | CH79: 4.624846355 | CI79: 4.666061209 | CJ79: 4.707150282 | CK79: 4.748183777 | CL79: 4.789205166 | CM79: 4.830132815 | CN79: 4.870962337 | CO79: 4.911830279 | CP79: 4.953025502 | CQ79: 4.99404306 | CR79: 5.035047609 | CS79: 5.076039058 | CT79: 5.116931709 | CU79: 5.157708681 | CV79: 5.19847291 | CW79: 5.239222803 | CX79: 5.280128668 | CY79: 5.321105069 | CZ79: 5.362067776 | DA79: 5.403016967 | DB79: 5.443830005 | DC79: 5.484537107
D80: =$D$122 -> Alternativ projekt | E80: =$E$122 -> Txx | F80: =F72 -> Skadesomkostning efter tiltag | G80: =SUMPRODUCT(H80:DC80,'Økonomiske parametre'!$E$27:$CZ$27) -> 36.95913877 | H80: =(H$130-((H$130-H132)*DG148)) -> 0.7445289381 | I80: 0.7704401348 | J80: 0.7834514822 | K80: 0.796513049 | L80: 0.8095975924 | M80: 0.8227506327 | N80: 0.8359211421 | O80: 0.8491553068 | P80: 0.8624118973 | Q80: 0.8763139398 | R80: 0.8903884256 | S80: 0.9045261767 | T80: 0.9186805567 | U80: 0.9329082786 | V80: 0.9471414706 | W80: 0.9614587031 | X80: 0.9757867891 | Y80: 0.9901751265 | Z80: 1.004602289 | AA80: 1.019051956 | AB80: 1.034199676 | AC80: 1.049623914 | AD80: 1.065112796 | AE80: 1.080646921 | AF80: 1.096186866 | AG80: 1.111823619 | AH80: 1.127479484 | AI80: 1.142589732 | AJ80: 1.157636282 | AK80: 1.172677684 | AL80: 1.187711366 | AM80: 1.202844001 | AN80: =(AN$130-((AN$130-AN132)*EM148)) -> 1.217979391 | AO80: 1.233106101 | AP80: 1.249360023 | AQ80: 1.265696084 | AR80: 1.282022912 | AS80: 1.298358805 | AT80: 1.314804621 | AU80: 1.331240493 | AV80: 1.347666144 | AW80: 1.364142081 | AX80: 1.380695616 | AY80: 1.397239178 | AZ80: 1.413774681 | BA80: 1.430355586 | BB80: 1.44702825 | BC80: 1.463689716 | BD80: 1.480340921 | BE80: 1.496986377 | BF80: 1.513785611 | BG80: 1.531153172 | BH80: 1.549337819 | BI80: 1.567515243 | BJ80: 1.58573664 | BK80: 1.604076583 | BL80: 1.622401149 | BM80: 1.640718076 | BN80: 1.659020002 | BO80: 1.677353321 | BP80: 1.695833764 | BQ80: 1.714302732 | BR80: 1.732760216 | BS80: 1.751202183 | BT80: =(BT$130-((BT$130-BT132)*FS148)) -> 1.769636719 | BU80: 1.78818823 | BV80: 1.806816963 | BW80: 1.825431324 | BX80: 1.844029638 | BY80: 1.862620424 | BZ80: 1.881192763 | CA80: 1.899869312 | CB80: 1.918661341 | CC80: 1.937434645 | CD80: 1.956227788 | CE80: 1.976866693 | CF80: 1.997485782 | CG80: 2.018097599 | CH80: 2.038877209 | CI80: 2.059722592 | CJ80: 2.080559131 | CK80: 2.101379526 | CL80: 2.122179294 | CM80: 2.142966339 | CN80: 2.16374065 | CO80: 2.184531898 | CP80: 2.20556683 | CQ80: 2.226596811 | CR80: 2.247604844 | CS80: 2.268590801 | CT80: 2.289563723 | CU80: 2.310523482 | CV80: 2.331461651 | CW80: 2.352376138 | CX80: 2.373503255 | CY80: 2.394732195 | CZ80: =(CZ$130-((CZ$130-CZ132)*GY148)) -> 2.415937725 | DA80: 2.437120343 | DB80: 2.458291487 | DC80: 2.479447188
D81: =$D$122 -> Alternativ projekt | E81: =$E$122 -> Txx | F81: =F73 -> Afværges skade | G81: =SUMPRODUCT(H81:DC81,'Økonomiske parametre'!$E$27:$CZ$27) -> 53.10596754 | H81: =H79-H80 -> 1.233486293 | I81: 1.265509802 | J81: 1.281469593 | K81: 1.297395836 | L81: 1.313281096 | M81: 1.329141944 | N81: 1.344957191 | O81: 1.360746733 | P81: 1.376493546 | Q81: 1.391699299 | R81: 1.406736285 | S81: 1.421740835 | T81: 1.436701419 | U81: 1.451638986 | V81: 1.466529928 | W81: 1.481395917 | X81: 1.496214252 | Y81: 1.511003375 | Z81: 1.525755756 | AA81: 1.540465598 | AB81: 1.554614164 | AC81: 1.56847766 | AD81: 1.582311999 | AE81: 1.596110659 | AF81: 1.610089029 | AG81: 1.628407514 | AH81: 1.646681843 | AI81: 1.665043556 | AJ81: 1.683438128 | AK81: 1.701780679 | AL81: 1.720076152 | AM81: 1.738363526 | AN81: =AN79-AN80 -> 1.75661217 | AO81: 1.774819877 | AP81: 1.792075617 | AQ81: 1.809262106 | AR81: 1.826409643 | AS81: 1.843522765 | AT81: 1.86061003 | AU81: 1.87766164 | AV81: 1.894679355 | AW81: 1.911643791 | AX81: 1.928607067 | AY81: 1.945528691 | AZ81: 1.962386404 | BA81: 1.979239555 | BB81: 1.996057396 | BC81: 2.012841435 | BD81: 2.029579872 | BE81: 2.046262542 | BF81: 2.06297479 | BG81: 2.079108968 | BH81: 2.09450609 | BI81: 2.109815947 | BJ81: 2.125142612 | BK81: 2.140418579 | BL81: 2.155693036 | BM81: 2.170878054 | BN81: 2.18605406 | BO81: 2.201167286 | BP81: 2.216307333 | BQ81: 2.231396572 | BR81: 2.246428546 | BS81: 2.261449732 | BT81: =BT79-BT80 -> 2.28182863 | BU81: 2.304277648 | BV81: 2.326667495 | BW81: 2.349026158 | BX81: 2.371368809 | BY81: 2.393602163 | BZ81: 2.415843502 | CA81: 2.438055931 | CB81: 2.460246346 | CC81: 2.482445226 | CD81: 2.504514235 | CE81: 2.52492371 | CF81: 2.545341598 | CG81: 2.565636965 | CH81: 2.585969147 | CI81: 2.606338617 | CJ81: 2.626591152 | CK81: 2.646804251 | CL81: 2.667025872 | CM81: 2.687166476 | CN81: 2.707221687 | CO81: 2.727298381 | CP81: 2.747458672 | CQ81: 2.767446249 | CR81: 2.787442765 | CS81: 2.807448257 | CT81: 2.827367985 | CU81: 2.847185199 | CV81: 2.867011259 | CW81: 2.886846665 | CX81: 2.906625413 | CY81: 2.926372874 | CZ81: =CZ79-CZ80 -> 2.946130051 | DA81: 2.965896624 | DB81: 2.985538518 | DC81: 3.005089919
D82: =$D$122 -> Alternativ projekt | E82: =$E$122 -> Txx | F82: =F74 -> Tiltagsomkostning | G82: =SUMPRODUCT(H82:DC82,'Økonomiske parametre'!$E$27:$CZ$27) -> -26.48019433 | H82: =-H122 -> -1.92 | I82: =-I122 -> -1.9584 | J82: -1.9968 | K82: -2.0352 | L82: -2.0736 | M82: -2.112 | N82: -2.1504 | O82: -2.1888 | P82: -2.2272 | Q82: -2.2656 | R82: -0.384 | S82: -0.384 | T82: -0.384 | U82: -0.384 | V82: -0.384 | W82: -0.384 | X82: -0.384 | Y82: -0.384 | Z82: -0.384 | AA82: -0.384 | AB82: -0.384 | AC82: -0.384 | AD82: -0.384 | AE82: -0.384 | AF82: -0.384 | AG82: -0.384 | AH82: -0.384 | AI82: -0.384 | AJ82: -0.384 | AK82: -0.384 | AL82: -0.384 | AM82: -0.384 | AN82: -0.384 | AO82: -0.384 | AP82: -0.384 | AQ82: -0.384 | AR82: -0.384 | AS82: -0.384 | AT82: -0.384 | AU82: -0.384 | AV82: -0.384 | AW82: -0.384 | AX82: -0.384 | AY82: -0.384 | AZ82: -0.384 | BA82: -0.384 | BB82: -0.384 | BC82: -0.384 | BD82: -0.384 | BE82: -0.384 | BF82: -0.384 | BG82: -0.384 | BH82: -0.384 | BI82: -0.384 | BJ82: -0.384 | BK82: -0.384 | BL82: -0.384 | BM82: -0.384 | BN82: -0.384 | BO82: -0.384 | BP82: -0.384 | BQ82: -0.384 | BR82: -0.384 | BS82: -0.384 | BT82: -0.384 | BU82: =-BU122 -> -0.384 | BV82: -0.384 | BW82: -0.384 | BX82: -0.384 | BY82: -0.384 | BZ82: -0.384 | CA82: -0.384 | CB82: -0.384 | CC82: -0.384 | CD82: -0.384 | CE82: -0.384 | CF82: -0.384 | CG82: -0.384 | CH82: -0.384 | CI82: -0.384 | CJ82: -0.384 | CK82: -0.384 | CL82: -0.384 | CM82: -0.384 | CN82: -0.384 | CO82: -0.384 | CP82: -0.384 | CQ82: -0.384 | CR82: -0.384 | CS82: -0.384 | CT82: -0.384 | CU82: -0.384 | CV82: -0.384 | CW82: -0.384 | CX82: -0.384 | CY82: -0.384 | CZ82: -0.384 | DA82: -0.384 | DB82: -0.384 | DC82: -0.384
D83: =$D$122 -> Alternativ projekt | E83: =$E$122 -> Txx | F83: =F75 -> Nettogevinst | G83: =SUMPRODUCT(H83:DC83,'Økonomiske parametre'!$E$27:$CZ$27) -> 26.62577321 | H83: =H81+H82 -> -0.6865137066 | I83: =I81+I82 -> -0.692890198 | J83: =J81+J82 -> -0.7153304073 | K83: =K81+K82 -> -0.7378041644 | L83: =L81+L82 -> -0.7603189042 | M83: =M81+M82 -> -0.7828580557 | N83: =N81+N82 -> -0.8054428089 | O83: =O81+O82 -> -0.8280532667 | P83: =P81+P82 -> -0.8507064536 | Q83: =Q81+Q82 -> -0.8739007014 | R83: =R81+R82 -> 1.022736285 | S83: =S81+S82 -> 1.037740835 | T83: =T81+T82 -> 1.052701419 | U83: =U81+U82 -> 1.067638986 | V83: =V81+V82 -> 1.082529928 | W83: =W81+W82 -> 1.097395917 | X83: =X81+X82 -> 1.112214252 | Y83: =Y81+Y82 -> 1.127003375 | Z83: =Z81+Z82 -> 1.141755756 | AA83: =AA81+AA82 -> 1.156465598 | AB83: =AB81+AB82 -> 1.170614164 | AC83: =AC81+AC82 -> 1.18447766 | AD83: =AD81+AD82 -> 1.198311999 | AE83: =AE81+AE82 -> 1.212110659 | AF83: =AF81+AF82 -> 1.226089029 | AG83: =AG81+AG82 -> 1.244407514 | AH83: =AH81+AH82 -> 1.262681843 | AI83: =AI81+AI82 -> 1.281043556 | AJ83: =AJ81+AJ82 -> 1.299438128 | AK83: =AK81+AK82 -> 1.317780679 | AL83: =AL81+AL82 -> 1.336076152 | AM83: =AM81+AM82 -> 1.354363526 | AN83: =AN81+AN82 -> 1.37261217 | AO83: =AO81+AO82 -> 1.390819877 | AP83: =AP81+AP82 -> 1.408075617 | AQ83: =AQ81+AQ82 -> 1.425262106 | AR83: =AR81+AR82 -> 1.442409643 | AS83: =AS81+AS82 -> 1.459522765 | AT83: =AT81+AT82 -> 1.47661003 | AU83: =AU81+AU82 -> 1.49366164 | AV83: =AV81+AV82 -> 1.510679355 | AW83: =AW81+AW82 -> 1.527643791 | AX83: =AX81+AX82 -> 1.544607067 | AY83: =AY81+AY82 -> 1.561528691 | AZ83: =AZ81+AZ82 -> 1.578386404 | BA83: =BA81+BA82 -> 1.595239555 | BB83: =BB81+BB82 -> 1.612057396 | BC83: =BC81+BC82 -> 1.628841435 | BD83: =BD81+BD82 -> 1.645579872 | BE83: =BE81+BE82 -> 1.662262542 | BF83: =BF81+BF82 -> 1.67897479 | BG83: =BG81+BG82 -> 1.695108968 | BH83: =BH81+BH82 -> 1.71050609 | BI83: =BI81+BI82 -> 1.725815947 | BJ83: =BJ81+BJ82 -> 1.741142612 | BK83: =BK81+BK82 -> 1.756418579 | BL83: =BL81+BL82 -> 1.771693036 | BM83: =BM81+BM82 -> 1.786878054 | BN83: =BN81+BN82 -> 1.80205406 | BO83: =BO81+BO82 -> 1.817167286 | BP83: =BP81+BP82 -> 1.832307333 | BQ83: =BQ81+BQ82 -> 1.847396572 | BR83: =BR81+BR82 -> 1.862428546 | BS83: =BS81+BS82 -> 1.877449732 | BT83: =BT81+BT82 -> 1.89782863 | BU83: =BU81+BU82 -> 1.920277648 | BV83: =BV81+BV82 -> 1.942667495 | BW83: =BW81+BW82 -> 1.965026158 | BX83: =BX81+BX82 -> 1.987368809 | BY83: =BY81+BY82 -> 2.009602163 | BZ83: =BZ81+BZ82 -> 2.031843502 | CA83: =CA81+CA82 -> 2.054055931 | CB83: =CB81+CB82 -> 2.076246346 | CC83: =CC81+CC82 -> 2.098445226 | CD83: =CD81+CD82 -> 2.120514235 | CE83: =CE81+CE82 -> 2.14092371 | CF83: =CF81+CF82 -> 2.161341598 | CG83: =CG81+CG82 -> 2.181636965 | CH83: =CH81+CH82 -> 2.201969147 | CI83: =CI81+CI82 -> 2.222338617 | CJ83: =CJ81+CJ82 -> 2.242591152 | CK83: =CK81+CK82 -> 2.262804251 | CL83: =CL81+CL82 -> 2.283025872 | CM83: =CM81+CM82 -> 2.303166476 | CN83: =CN81+CN82 -> 2.323221687 | CO83: =CO81+CO82 -> 2.343298381 | CP83: =CP81+CP82 -> 2.363458672 | CQ83: =CQ81+CQ82 -> 2.383446249 | CR83: =CR81+CR82 -> 2.403442765 | CS83: =CS81+CS82 -> 2.423448257 | CT83: =CT81+CT82 -> 2.443367985 | CU83: =CU81+CU82 -> 2.463185199 | CV83: =CV81+CV82 -> 2.483011259 | CW83: =CW81+CW82 -> 2.502846665 | CX83: =CX81+CX82 -> 2.522625413 | CY83: =CY81+CY82 -> 2.542372874 | CZ83: =CZ81+CZ82 -> 2.562130051 | DA83: =DA81+DA82 -> 2.581896624 | DB83: =DB81+DB82 -> 2.601538518 | DC83: =DC81+DC82 -> 2.621089919
G86: =G78 -> NNV | H86: 0 | I86: 1 | J86: 2 | K86: 3 | L86: 4 | M86: 5 | N86: 6 | O86: 7 | P86: 8 | Q86: 9 | R86: 10 | S86: 11 | T86: 12 | U86: 13 | V86: 14 | W86: 15 | X86: 16 | Y86: 17 | Z86: 18 | AA86: 19 | AB86: 20 | AC86: 21 | AD86: 22 | AE86: 23 | AF86: 24 | AG86: 25 | AH86: 26 | AI86: 27 | AJ86: 28 | AK86: 29 | AL86: 30 | AM86: =AM78 -> 31 | AN86: 32 | AO86: 33 | AP86: 34 | AQ86: 35 | AR86: 36 | AS86: 37 | AT86: 38 | AU86: 39 | AV86: 40 | AW86: 41 | AX86: 42 | AY86: 43 | AZ86: 44 | BA86: 45 | BB86: 46 | BC86: 47 | BD86: 48 | BE86: 49 | BF86: 50 | BG86: 51 | BH86: 52 | BI86: 53 | BJ86: 54 | BK86: 55 | BL86: 56 | BM86: 57 | BN86: 58 | BO86: 59 | BP86: 60 | BQ86: 61 | BR86: 62 | BS86: =BS78 -> 63 | BT86: 64 | BU86: 65 | BV86: 66 | BW86: 67 | BX86: 68 | BY86: 69 | BZ86: 70 | CA86: 71 | CB86: 72 | CC86: 73 | CD86: 74 | CE86: 75 | CF86: 76 | CG86: 77 | CH86: 78 | CI86: 79 | CJ86: 80 | CK86: 81 | CL86: 82 | CM86: 83 | CN86: 84 | CO86: 85 | CP86: 86 | CQ86: 87 | CR86: 88 | CS86: 89 | CT86: 90 | CU86: 91 | CV86: 92 | CW86: 93 | CX86: 94 | CY86: 95 | CZ86: 96 | DA86: 97 | DB86: 98 | DC86: 99
D87: =$D$123 -> Alternativ projekt | E87: =$E$123 ->  | F87: =F79 -> Skadesomkostning før tiltag | G87: =SUMPRODUCT(H87:DC87,'Økonomiske parametre'!$E$27:$CZ$27) -> 90.06510631 | H87: =H$130 -> 1.978015232 | I87: 2.035949937 | J87: 2.064921075 | K87: 2.093908885 | L87: 2.122878688 | M87: 2.151892577 | N87: 2.180878333 | O87: 2.20990204 | P87: 2.238905444 | Q87: 2.268013238 | R87: 2.29712471 | S87: 2.326267012 | T87: 2.355381976 | U87: 2.384547264 | V87: 2.413671399 | W87: 2.44285462 | X87: 2.472001041 | Y87: 2.501178502 | Z87: 2.530358045 | AA87: 2.559517554 | AB87: 2.588813839 | AC87: 2.618101574 | AD87: 2.647424796 | AE87: 2.676757579 | AF87: 2.706275895 | AG87: 2.740231133 | AH87: 2.774161326 | AI87: 2.807633288 | AJ87: 2.84107441 | AK87: 2.874458364 | AL87: 2.907787518 | AM87: 2.941207527 | AN87: =AN$130 -> 2.974591562 | AO87: 3.007925977 | AP87: 3.04143564 | AQ87: 3.07495819 | AR87: 3.108432554 | AS87: 3.14188157 | AT87: 3.175414651 | AU87: 3.208902133 | AV87: 3.242345499 | AW87: 3.275785872 | AX87: 3.309302684 | AY87: 3.342767868 | AZ87: 3.376161085 | BA87: 3.40959514 | BB87: 3.443085646 | BC87: 3.476531151 | BD87: 3.509920793 | BE87: 3.543248919 | BF87: 3.5767604 | BG87: 3.61026214 | BH87: 3.643843909 | BI87: 3.67733119 | BJ87: 3.710879252 | BK87: 3.744495162 | BL87: 3.778094185 | BM87: 3.81159613 | BN87: 3.845074062 | BO87: 3.878520608 | BP87: 3.912141097 | BQ87: 3.945699304 | BR87: 3.979188762 | BS87: 4.012651915 | BT87: =BT$130 -> 4.051465348 | BU87: 4.092465878 | BV87: 4.133484458 | BW87: 4.174457482 | BX87: 4.215398447 | BY87: 4.256222587 | BZ87: 4.297036265 | CA87: 4.337925244 | CB87: 4.378907688 | CC87: 4.41987987 | CD87: 4.460742022 | CE87: 4.501790403 | CF87: 4.54282738 | CG87: 4.583734564 | CH87: 4.624846355 | CI87: 4.666061209 | CJ87: 4.707150282 | CK87: 4.748183777 | CL87: 4.789205166 | CM87: 4.830132815 | CN87: 4.870962337 | CO87: 4.911830279 | CP87: 4.953025502 | CQ87: 4.99404306 | CR87: 5.035047609 | CS87: 5.076039058 | CT87: 5.116931709 | CU87: 5.157708681 | CV87: 5.19847291 | CW87: 5.239222803 | CX87: 5.280128668 | CY87: 5.321105069 | CZ87: 5.362067776 | DA87: 5.403016967 | DB87: 5.443830005 | DC87: 5.484537107
D88: =$D$123 -> Alternativ projekt | E88: =$E$123 ->  | F88: =F80 -> Skadesomkostning efter tiltag | G88: =SUMPRODUCT(H88:DC88,'Økonomiske parametre'!$E$27:$CZ$27) -> 35.38306117 | H88: =(H$130-((H$130-H133)*DG149)) -> 0.7183764329 | I88: 0.7430165366 | J88: 0.7553777868 | K88: 0.7677788369 | L88: 0.7801928286 | M88: 0.7926655989 | N88: 0.8051451994 | O88: 0.8176788316 | P88: 0.8302245389 | Q88: 0.8434053659 | R88: 0.8567492648 | S88: 0.870145369 | T88: 0.8835479455 | U88: 0.897014182 | V88: 0.9104759975 | W88: 0.924010957 | X88: 0.9375462612 | Y88: 0.9511317639 | Z88: 0.9647459674 | AA88: 0.9783724768 | AB88: 0.9926867796 | AC88: 1.007267314 | AD88: 1.02190218 | AE88: 1.036571969 | AF88: 1.051237219 | AG88: 1.065989101 | AH88: 1.080749864 | AI88: 1.095029307 | AJ88: 1.10925921 | AK88: 1.123473881 | AL88: 1.137672079 | AM88: 1.151961227 | AN88: =(AN$130-((AN$130-AN133)*EM149)) -> 1.166245501 | AO88: 1.180513799 | AP88: 1.195898074 | AQ88: 1.21135614 | AR88: 1.22679821 | AS88: 1.242242251 | AT88: 1.257783511 | AU88: 1.2733089 | AV88: 1.288818567 | AW88: 1.304364155 | AX88: 1.319982655 | AY88: 1.33558397 | AZ88: 1.351164866 | BA88: 1.366788157 | BB88: 1.382489853 | BC88: 1.398175015 | BD88: 1.413841913 | BE88: 1.429492435 | BF88: 1.445293309 | BG88: 1.461647841 | BH88: 1.478819448 | BI88: 1.495966293 | BJ88: 1.513159107 | BK88: 1.530451765 | BL88: 1.547731426 | BM88: 1.564985514 | BN88: 1.582225272 | BO88: 1.599481568 | BP88: 1.61688163 | BQ88: 1.634261305 | BR88: 1.65161914 | BS88: 1.668961819 | BT88: =(BT$130-((BT$130-BT133)*FS149)) -> 1.686276191 | BU88: 1.703712267 | BV88: 1.721208287 | BW88: 1.738685658 | BX88: 1.756146249 | BY88: 1.773577199 | BZ88: 1.790994509 | CA88: 1.808503584 | CB88: 1.826116288 | CC88: 1.843715384 | CD88: 1.861313236 | CE88: 1.880752093 | CF88: 1.900176184 | CG88: 1.9195681 | CH88: 1.93912526 | CI88: 1.95875346 | CJ88: 1.978349146 | CK88: 1.997922686 | CL88: 2.017480699 | CM88: 2.037010423 | CN88: 2.056510879 | CO88: 2.076033502 | CP88: 2.095802031 | CQ88: 2.115528924 | CR88: 2.135239211 | CS88: 2.154932785 | CT88: 2.174596756 | CU88: 2.194227255 | CV88: 2.213841455 | CW88: 2.233437536 | CX88: 2.253219325 | CY88: 2.273089981 | CZ88: =(CZ$130-((CZ$130-CZ133)*GY149)) -> 2.292943047 | DA88: 2.312778819 | DB88: 2.332577679 | DC88: 2.352343633
D89: =$D$123 -> Alternativ projekt | E89: =$E$123 ->  | F89: =F81 -> Afværges skade | G89: =SUMPRODUCT(H89:DC89,'Økonomiske parametre'!$E$27:$CZ$27) -> 54.68204514 | H89: =H87-H88 -> 1.259638799 | I89: 1.2929334 | J89: 1.309543288 | K89: 1.326130048 | L89: 1.34268586 | M89: 1.359226978 | N89: 1.375733134 | O89: 1.392223208 | P89: 1.408680905 | Q89: 1.424607872 | R89: 1.440375445 | S89: 1.456121643 | T89: 1.47183403 | U89: 1.487533082 | V89: 1.503195401 | W89: 1.518843663 | X89: 1.53445478 | Y89: 1.550046738 | Z89: 1.565612078 | AA89: 1.581145077 | AB89: 1.59612706 | AC89: 1.61083426 | AD89: 1.625522616 | AE89: 1.64018561 | AF89: 1.655038676 | AG89: 1.674242032 | AH89: 1.693411462 | AI89: 1.712603981 | AJ89: 1.7318152 | AK89: 1.750984483 | AL89: 1.770115439 | AM89: 1.7892463 | AN89: =AN87-AN88 -> 1.80834606 | AO89: 1.827412179 | AP89: 1.845537566 | AQ89: 1.86360205 | AR89: 1.881634344 | AS89: 1.899639319 | AT89: 1.917631139 | AU89: 1.935593233 | AV89: 1.953526932 | AW89: 1.971421717 | AX89: 1.989320029 | AY89: 2.007183898 | AZ89: 2.024996218 | BA89: 2.042806983 | BB89: 2.060595794 | BC89: 2.078356135 | BD89: 2.096078881 | BE89: 2.113756484 | BF89: 2.131467092 | BG89: 2.148614298 | BH89: 2.165024461 | BI89: 2.181364897 | BJ89: 2.197720145 | BK89: 2.214043397 | BL89: 2.230362759 | BM89: 2.246610616 | BN89: 2.26284879 | BO89: 2.27903904 | BP89: 2.295259467 | BQ89: 2.311437998 | BR89: 2.327569622 | BS89: 2.343690096 | BT89: =BT87-BT88 -> 2.365189157 | BU89: 2.388753612 | BV89: 2.412276171 | BW89: 2.435771824 | BX89: 2.459252199 | BY89: 2.482645387 | BZ89: 2.506041756 | CA89: 2.52942166 | CB89: 2.5527914 | CC89: 2.576164486 | CD89: 2.599428786 | CE89: 2.62103831 | CF89: 2.642651196 | CG89: 2.664166464 | CH89: 2.685721095 | CI89: 2.70730775 | CJ89: 2.728801136 | CK89: 2.750261091 | CL89: 2.771724468 | CM89: 2.793122392 | CN89: 2.814451457 | CO89: 2.835796777 | CP89: 2.857223471 | CQ89: 2.878514135 | CR89: 2.899808398 | CS89: 2.921106273 | CT89: 2.942334953 | CU89: 2.963481425 | CV89: 2.984631455 | CW89: 3.005785267 | CX89: 3.026909343 | CY89: 3.048015087 | CZ89: =CZ87-CZ88 -> 3.069124729 | DA89: 3.090238148 | DB89: 3.111252326 | DC89: 3.132193474
D90: =$D$123 -> Alternativ projekt | E90: =$E$123 ->  | F90: =F82 -> Tiltagsomkostning | G90: =SUMPRODUCT(H90:DC90,'Økonomiske parametre'!$E$27:$CZ$27) -> -35.30692578 | H90: =-H123 -> -2.56 | I90: =-I123 -> -2.6112 | J90: -2.6624 | K90: -2.7136 | L90: -2.7648 | M90: -2.816 | N90: -2.8672 | O90: -2.9184 | P90: -2.9696 | Q90: -3.0208 | R90: -0.512 | S90: -0.512 | T90: -0.512 | U90: -0.512 | V90: -0.512 | W90: -0.512 | X90: -0.512 | Y90: -0.512 | Z90: -0.512 | AA90: -0.512 | AB90: -0.512 | AC90: -0.512 | AD90: -0.512 | AE90: -0.512 | AF90: -0.512 | AG90: -0.512 | AH90: -0.512 | AI90: -0.512 | AJ90: -0.512 | AK90: -0.512 | AL90: -0.512 | AM90: -0.512 | AN90: -0.512 | AO90: -0.512 | AP90: -0.512 | AQ90: -0.512 | AR90: -0.512 | AS90: -0.512 | AT90: -0.512 | AU90: -0.512 | AV90: -0.512 | AW90: -0.512 | AX90: -0.512 | AY90: -0.512 | AZ90: -0.512 | BA90: -0.512 | BB90: -0.512 | BC90: -0.512 | BD90: -0.512 | BE90: -0.512 | BF90: -0.512 | BG90: -0.512 | BH90: -0.512 | BI90: -0.512 | BJ90: -0.512 | BK90: -0.512 | BL90: -0.512 | BM90: -0.512 | BN90: -0.512 | BO90: -0.512 | BP90: -0.512 | BQ90: -0.512 | BR90: -0.512 | BS90: -0.512 | BT90: -0.512 | BU90: =-BU123 -> -0.512 | BV90: -0.512 | BW90: -0.512 | BX90: -0.512 | BY90: -0.512 | BZ90: -0.512 | CA90: -0.512 | CB90: -0.512 | CC90: -0.512 | CD90: -0.512 | CE90: -0.512 | CF90: -0.512 | CG90: -0.512 | CH90: -0.512 | CI90: -0.512 | CJ90: -0.512 | CK90: -0.512 | CL90: -0.512 | CM90: -0.512 | CN90: -0.512 | CO90: -0.512 | CP90: -0.512 | CQ90: -0.512 | CR90: -0.512 | CS90: -0.512 | CT90: -0.512 | CU90: -0.512 | CV90: -0.512 | CW90: -0.512 | CX90: -0.512 | CY90: -0.512 | CZ90: -0.512 | DA90: -0.512 | DB90: -0.512 | DC90: -0.512
D91: =$D$123 -> Alternativ projekt | E91: =$E$123 ->  | F91: =F83 -> Nettogevinst | G91: =SUMPRODUCT(H91:DC91,'Økonomiske parametre'!$E$27:$CZ$27) -> 19.37511937 | H91: =H89+H90 -> -1.300361201 | I91: =I89+I90 -> -1.3182666 | J91: =J89+J90 -> -1.352856712 | K91: =K89+K90 -> -1.387469952 | L91: =L89+L90 -> -1.42211414 | M91: =M89+M90 -> -1.456773022 | N91: =N89+N90 -> -1.491466866 | O91: =O89+O90 -> -1.526176792 | P91: =P89+P90 -> -1.560919095 | Q91: =Q89+Q90 -> -1.596192128 | R91: =R89+R90 -> 0.9283754455 | S91: =S89+S90 -> 0.9441216426 | T91: =T89+T90 -> 0.9598340301 | U91: =U89+U90 -> 0.9755330824 | V91: =V89+V90 -> 0.9911954011 | W91: =W89+W90 -> 1.006843663 | X91: =X89+X90 -> 1.02245478 | Y91: =Y89+Y90 -> 1.038046738 | Z91: =Z89+Z90 -> 1.053612078 | AA91: =AA89+AA90 -> 1.069145077 | AB91: =AB89+AB90 -> 1.08412706 | AC91: =AC89+AC90 -> 1.09883426 | AD91: =AD89+AD90 -> 1.113522616 | AE91: =AE89+AE90 -> 1.12818561 | AF91: =AF89+AF90 -> 1.143038676 | AG91: =AG89+AG90 -> 1.162242032 | AH91: =AH89+AH90 -> 1.181411462 | AI91: =AI89+AI90 -> 1.200603981 | AJ91: =AJ89+AJ90 -> 1.2198152 | AK91: =AK89+AK90 -> 1.238984483 | AL91: =AL89+AL90 -> 1.258115439 | AM91: =AM89+AM90 -> 1.2772463 | AN91: =AN89+AN90 -> 1.29634606 | AO91: =AO89+AO90 -> 1.315412179 | AP91: =AP89+AP90 -> 1.333537566 | AQ91: =AQ89+AQ90 -> 1.35160205 | AR91: =AR89+AR90 -> 1.369634344 | AS91: =AS89+AS90 -> 1.387639319 | AT91: =AT89+AT90 -> 1.405631139 | AU91: =AU89+AU90 -> 1.423593233 | AV91: =AV89+AV90 -> 1.441526932 | AW91: =AW89+AW90 -> 1.459421717 | AX91: =AX89+AX90 -> 1.477320029 | AY91: =AY89+AY90 -> 1.495183898 | AZ91: =AZ89+AZ90 -> 1.512996218 | BA91: =BA89+BA90 -> 1.530806983 | BB91: =BB89+BB90 -> 1.548595794 | BC91: =BC89+BC90 -> 1.566356135 | BD91: =BD89+BD90 -> 1.584078881 | BE91: =BE89+BE90 -> 1.601756484 | BF91: =BF89+BF90 -> 1.619467092 | BG91: =BG89+BG90 -> 1.636614298 | BH91: =BH89+BH90 -> 1.653024461 | BI91: =BI89+BI90 -> 1.669364897 | BJ91: =BJ89+BJ90 -> 1.685720145 | BK91: =BK89+BK90 -> 1.702043397 | BL91: =BL89+BL90 -> 1.718362759 | BM91: =BM89+BM90 -> 1.734610616 | BN91: =BN89+BN90 -> 1.75084879 | BO91: =BO89+BO90 -> 1.76703904 | BP91: =BP89+BP90 -> 1.783259467 | BQ91: =BQ89+BQ90 -> 1.799437998 | BR91: =BR89+BR90 -> 1.815569622 | BS91: =BS89+BS90 -> 1.831690096 | BT91: =BT89+BT90 -> 1.853189157 | BU91: =BU89+BU90 -> 1.876753612 | BV91: =BV89+BV90 -> 1.900276171 | BW91: =BW89+BW90 -> 1.923771824 | BX91: =BX89+BX90 -> 1.947252199 | BY91: =BY89+BY90 -> 1.970645387 | BZ91: =BZ89+BZ90 -> 1.994041756 | CA91: =CA89+CA90 -> 2.01742166 | CB91: =CB89+CB90 -> 2.0407914 | CC91: =CC89+CC90 -> 2.064164486 | CD91: =CD89+CD90 -> 2.087428786 | CE91: =CE89+CE90 -> 2.10903831 | CF91: =CF89+CF90 -> 2.130651196 | CG91: =CG89+CG90 -> 2.152166464 | CH91: =CH89+CH90 -> 2.173721095 | CI91: =CI89+CI90 -> 2.19530775 | CJ91: =CJ89+CJ90 -> 2.216801136 | CK91: =CK89+CK90 -> 2.238261091 | CL91: =CL89+CL90 -> 2.259724468 | CM91: =CM89+CM90 -> 2.281122392 | CN91: =CN89+CN90 -> 2.302451457 | CO91: =CO89+CO90 -> 2.323796777 | CP91: =CP89+CP90 -> 2.345223471 | CQ91: =CQ89+CQ90 -> 2.366514135 | CR91: =CR89+CR90 -> 2.387808398 | CS91: =CS89+CS90 -> 2.409106273 | CT91: =CT89+CT90 -> 2.430334953 | CU91: =CU89+CU90 -> 2.451481425 | CV91: =CV89+CV90 -> 2.472631455 | CW91: =CW89+CW90 -> 2.493785267 | CX91: =CX89+CX90 -> 2.514909343 | CY91: =CY89+CY90 -> 2.536015087 | CZ91: =CZ89+CZ90 -> 2.557124729 | DA91: =DA89+DA90 -> 2.578238148 | DB91: =DB89+DB90 -> 2.599252326 | DC91: =DC89+DC90 -> 2.620193474
G94: =G86 -> NNV | H94: 0 | I94: 1 | J94: 2 | K94: 3 | L94: 4 | M94: 5 | N94: 6 | O94: 7 | P94: 8 | Q94: 9 | R94: 10 | S94: 11 | T94: 12 | U94: 13 | V94: 14 | W94: 15 | X94: 16 | Y94: 17 | Z94: 18 | AA94: 19 | AB94: 20 | AC94: 21 | AD94: 22 | AE94: 23 | AF94: 24 | AG94: 25 | AH94: 26 | AI94: 27 | AJ94: 28 | AK94: 29 | AL94: 30 | AM94: =AM86 -> 31 | AN94: 32 | AO94: 33 | AP94: 34 | AQ94: 35 | AR94: 36 | AS94: 37 | AT94: 38 | AU94: 39 | AV94: 40 | AW94: 41 | AX94: 42 | AY94: 43 | AZ94: 44 | BA94: 45 | BB94: 46 | BC94: 47 | BD94: 48 | BE94: 49 | BF94: 50 | BG94: 51 | BH94: 52 | BI94: 53 | BJ94: 54 | BK94: 55 | BL94: 56 | BM94: 57 | BN94: 58 | BO94: 59 | BP94: 60 | BQ94: 61 | BR94: 62 | BS94: =BS86 -> 63 | BT94: 64 | BU94: 65 | BV94: 66 | BW94: 67 | BX94: 68 | BY94: 69 | BZ94: 70 | CA94: 71 | CB94: 72 | CC94: 73 | CD94: 74 | CE94: 75 | CF94: 76 | CG94: 77 | CH94: 78 | CI94: 79 | CJ94: 80 | CK94: 81 | CL94: 82 | CM94: 83 | CN94: 84 | CO94: 85 | CP94: 86 | CQ94: 87 | CR94: 88 | CS94: 89 | CT94: 90 | CU94: 91 | CV94: 92 | CW94: 93 | CX94: 94 | CY94: 95 | CZ94: 96 | DA94: 97 | DB94: 98 | DC94: 99
D95: =$D$124 -> Alternativ projekt | E95: =$E$124 ->  | F95: =F87 -> Skadesomkostning før tiltag | G95: =SUMPRODUCT(H95:DC95,'Økonomiske parametre'!$E$27:$CZ$27) -> 90.06510631 | H95: =H$130 -> 1.978015232 | I95: 2.035949937 | J95: 2.064921075 | K95: 2.093908885 | L95: 2.122878688 | M95: 2.151892577 | N95: 2.180878333 | O95: 2.20990204 | P95: 2.238905444 | Q95: 2.268013238 | R95: 2.29712471 | S95: 2.326267012 | T95: 2.355381976 | U95: 2.384547264 | V95: 2.413671399 | W95: 2.44285462 | X95: 2.472001041 | Y95: 2.501178502 | Z95: 2.530358045 | AA95: 2.559517554 | AB95: 2.588813839 | AC95: 2.618101574 | AD95: 2.647424796 | AE95: 2.676757579 | AF95: 2.706275895 | AG95: 2.740231133 | AH95: 2.774161326 | AI95: 2.807633288 | AJ95: 2.84107441 | AK95: 2.874458364 | AL95: 2.907787518 | AM95: 2.941207527 | AN95: =AN$130 -> 2.974591562 | AO95: 3.007925977 | AP95: 3.04143564 | AQ95: 3.07495819 | AR95: 3.108432554 | AS95: 3.14188157 | AT95: 3.175414651 | AU95: 3.208902133 | AV95: 3.242345499 | AW95: 3.275785872 | AX95: 3.309302684 | AY95: 3.342767868 | AZ95: 3.376161085 | BA95: 3.40959514 | BB95: 3.443085646 | BC95: 3.476531151 | BD95: 3.509920793 | BE95: 3.543248919 | BF95: 3.5767604 | BG95: 3.61026214 | BH95: 3.643843909 | BI95: 3.67733119 | BJ95: 3.710879252 | BK95: 3.744495162 | BL95: 3.778094185 | BM95: 3.81159613 | BN95: 3.845074062 | BO95: 3.878520608 | BP95: 3.912141097 | BQ95: 3.945699304 | BR95: 3.979188762 | BS95: 4.012651915 | BT95: =BT$130 -> 4.051465348 | BU95: 4.092465878 | BV95: 4.133484458 | BW95: 4.174457482 | BX95: 4.215398447 | BY95: 4.256222587 | BZ95: 4.297036265 | CA95: 4.337925244 | CB95: 4.378907688 | CC95: 4.41987987 | CD95: 4.460742022 | CE95: 4.501790403 | CF95: 4.54282738 | CG95: 4.583734564 | CH95: 4.624846355 | CI95: 4.666061209 | CJ95: 4.707150282 | CK95: 4.748183777 | CL95: 4.789205166 | CM95: 4.830132815 | CN95: 4.870962337 | CO95: 4.911830279 | CP95: 4.953025502 | CQ95: 4.99404306 | CR95: 5.035047609 | CS95: 5.076039058 | CT95: 5.116931709 | CU95: 5.157708681 | CV95: 5.19847291 | CW95: 5.239222803 | CX95: 5.280128668 | CY95: 5.321105069 | CZ95: 5.362067776 | DA95: 5.403016967 | DB95: 5.443830005 | DC95: 5.484537107
D96: =$D$124 -> Alternativ projekt | E96: =$E$124 ->  | F96: =F88 -> Skadesomkostning efter tiltag | G96: =SUMPRODUCT(H96:DC96,'Økonomiske parametre'!$E$27:$CZ$27) -> 0 | H96: =(H$130-((H$130-H134)*DG150)) -> 0 | I96: 0 | J96: 0 | K96: 0 | L96: 0 | M96: 0 | N96: 0 | O96: 0 | P96: 0 | Q96: 0 | R96: 0 | S96: 0 | T96: 0 | U96: 0 | V96: 0 | W96: 0 | X96: 0 | Y96: 0 | Z96: 0 | AA96: 0 | AB96: 0 | AC96: 0 | AD96: 0 | AE96: 0 | AF96: 0 | AG96: 0 | AH96: 0 | AI96: 0 | AJ96: 0 | AK96: 0 | AL96: 0 | AM96: 0 | AN96: =(AN$130-((AN$130-AN134)*EM150)) -> 0 | AO96: 0 | AP96: 0 | AQ96: 0 | AR96: 0 | AS96: 0 | AT96: 0 | AU96: 0 | AV96: 0 | AW96: 0 | AX96: 0 | AY96: 0 | AZ96: 0 | BA96: 0 | BB96: 0 | BC96: 0 | BD96: 0 | BE96: 0 | BF96: 0 | BG96: 0 | BH96: 0 | BI96: 0 | BJ96: 0 | BK96: 0 | BL96: 0 | BM96: 0 | BN96: 0 | BO96: 0 | BP96: 0 | BQ96: 0 | BR96: 0 | BS96: 0 | BT96: =(BT$130-((BT$130-BT134)*FS150)) -> 0 | BU96: 0 | BV96: 0 | BW96: 0 | BX96: 0 | BY96: 0 | BZ96: 0 | CA96: 0 | CB96: 0 | CC96: 0 | CD96: 0 | CE96: 0 | CF96: 0 | CG96: 0 | CH96: 0 | CI96: 0 | CJ96: 0 | CK96: 0 | CL96: 0 | CM96: 0 | CN96: 0 | CO96: 0 | CP96: 0 | CQ96: 0 | CR96: 0 | CS96: 0 | CT96: 0 | CU96: 0 | CV96: 0 | CW96: 0 | CX96: 0 | CY96: 0 | CZ96: =(CZ$130-((CZ$130-CZ134)*GY150)) -> 0 | DA96: 0 | DB96: 0 | DC96: 0
D97: =$D$124 -> Alternativ projekt | E97: =$E$124 ->  | F97: =F89 -> Afværges skade | G97: =SUMPRODUCT(H97:DC97,'Økonomiske parametre'!$E$27:$CZ$27) -> 90.06510631 | H97: =H95-H96 -> 1.978015232 | I97: 2.035949937 | J97: 2.064921075 | K97: 2.093908885 | L97: 2.122878688 | M97: 2.151892577 | N97: 2.180878333 | O97: 2.20990204 | P97: 2.238905444 | Q97: 2.268013238 | R97: 2.29712471 | S97: 2.326267012 | T97: 2.355381976 | U97: 2.384547264 | V97: 2.413671399 | W97: 2.44285462 | X97: 2.472001041 | Y97: 2.501178502 | Z97: 2.530358045 | AA97: 2.559517554 | AB97: 2.588813839 | AC97: 2.618101574 | AD97: 2.647424796 | AE97: 2.676757579 | AF97: 2.706275895 | AG97: 2.740231133 | AH97: 2.774161326 | AI97: 2.807633288 | AJ97: 2.84107441 | AK97: 2.874458364 | AL97: 2.907787518 | AM97: 2.941207527 | AN97: =AN95-AN96 -> 2.974591562 | AO97: 3.007925977 | AP97: 3.04143564 | AQ97: 3.07495819 | AR97: 3.108432554 | AS97: 3.14188157 | AT97: 3.175414651 | AU97: 3.208902133 | AV97: 3.242345499 | AW97: 3.275785872 | AX97: 3.309302684 | AY97: 3.342767868 | AZ97: 3.376161085 | BA97: 3.40959514 | BB97: 3.443085646 | BC97: 3.476531151 | BD97: 3.509920793 | BE97: 3.543248919 | BF97: 3.5767604 | BG97: 3.61026214 | BH97: 3.643843909 | BI97: 3.67733119 | BJ97: 3.710879252 | BK97: 3.744495162 | BL97: 3.778094185 | BM97: 3.81159613 | BN97: 3.845074062 | BO97: 3.878520608 | BP97: 3.912141097 | BQ97: 3.945699304 | BR97: 3.979188762 | BS97: 4.012651915 | BT97: =BT95-BT96 -> 4.051465348 | BU97: 4.092465878 | BV97: 4.133484458 | BW97: 4.174457482 | BX97: 4.215398447 | BY97: 4.256222587 | BZ97: 4.297036265 | CA97: 4.337925244 | CB97: 4.378907688 | CC97: 4.41987987 | CD97: 4.460742022 | CE97: 4.501790403 | CF97: 4.54282738 | CG97: 4.583734564 | CH97: 4.624846355 | CI97: 4.666061209 | CJ97: 4.707150282 | CK97: 4.748183777 | CL97: 4.789205166 | CM97: 4.830132815 | CN97: 4.870962337 | CO97: 4.911830279 | CP97: 4.953025502 | CQ97: 4.99404306 | CR97: 5.035047609 | CS97: 5.076039058 | CT97: 5.116931709 | CU97: 5.157708681 | CV97: 5.19847291 | CW97: 5.239222803 | CX97: 5.280128668 | CY97: 5.321105069 | CZ97: =CZ95-CZ96 -> 5.362067776 | DA97: 5.403016967 | DB97: 5.443830005 | DC97: 5.484537107
D98: =$D$124 -> Alternativ projekt | E98: =$E$124 ->  | F98: =F90 -> Tiltagsomkostning | G98: =SUMPRODUCT(H98:DC98,'Økonomiske parametre'!$E$27:$CZ$27) -> 0 | H98: =-H124 -> 0 | I98: =-I124 -> 0 | J98: 0 | K98: 0 | L98: 0 | M98: 0 | N98: 0 | O98: 0 | P98: 0 | Q98: 0 | R98: 0 | S98: 0 | T98: 0 | U98: 0 | V98: 0 | W98: 0 | X98: 0 | Y98: 0 | Z98: 0 | AA98: 0 | AB98: 0 | AC98: 0 | AD98: 0 | AE98: 0 | AF98: 0 | AG98: 0 | AH98: 0 | AI98: 0 | AJ98: 0 | AK98: 0 | AL98: 0 | AM98: 0 | AN98: 0 | AO98: 0 | AP98: 0 | AQ98: 0 | AR98: 0 | AS98: 0 | AT98: 0 | AU98: 0 | AV98: 0 | AW98: 0 | AX98: 0 | AY98: 0 | AZ98: 0 | BA98: 0 | BB98: 0 | BC98: 0 | BD98: 0 | BE98: 0 | BF98: 0 | BG98: 0 | BH98: 0 | BI98: 0 | BJ98: 0 | BK98: 0 | BL98: 0 | BM98: 0 | BN98: 0 | BO98: 0 | BP98: 0 | BQ98: 0 | BR98: 0 | BS98: 0 | BT98: 0 | BU98: =-BU124 -> 0 | BV98: 0 | BW98: 0 | BX98: 0 | BY98: 0 | BZ98: 0 | CA98: 0 | CB98: 0 | CC98: 0 | CD98: 0 | CE98: 0 | CF98: 0 | CG98: 0 | CH98: 0 | CI98: 0 | CJ98: 0 | CK98: 0 | CL98: 0 | CM98: 0 | CN98: 0 | CO98: 0 | CP98: 0 | CQ98: 0 | CR98: 0 | CS98: 0 | CT98: 0 | CU98: 0 | CV98: 0 | CW98: 0 | CX98: 0 | CY98: 0 | CZ98: 0 | DA98: 0 | DB98: 0 | DC98: 0
D99: =$D$124 -> Alternativ projekt | E99: =$E$124 ->  | F99: =F91 -> Nettogevinst | G99: =SUMPRODUCT(H99:DC99,'Økonomiske parametre'!$E$27:$CZ$27) -> 90.06510631 | H99: =H97+H98 -> 1.978015232 | I99: =I97+I98 -> 2.035949937 | J99: =J97+J98 -> 2.064921075 | K99: =K97+K98 -> 2.093908885 | L99: =L97+L98 -> 2.122878688 | M99: =M97+M98 -> 2.151892577 | N99: =N97+N98 -> 2.180878333 | O99: =O97+O98 -> 2.20990204 | P99: =P97+P98 -> 2.238905444 | Q99: =Q97+Q98 -> 2.268013238 | R99: =R97+R98 -> 2.29712471 | S99: =S97+S98 -> 2.326267012 | T99: =T97+T98 -> 2.355381976 | U99: =U97+U98 -> 2.384547264 | V99: =V97+V98 -> 2.413671399 | W99: =W97+W98 -> 2.44285462 | X99: =X97+X98 -> 2.472001041 | Y99: =Y97+Y98 -> 2.501178502 | Z99: =Z97+Z98 -> 2.530358045 | AA99: =AA97+AA98 -> 2.559517554 | AB99: =AB97+AB98 -> 2.588813839 | AC99: =AC97+AC98 -> 2.618101574 | AD99: =AD97+AD98 -> 2.647424796 | AE99: =AE97+AE98 -> 2.676757579 | AF99: =AF97+AF98 -> 2.706275895 | AG99: =AG97+AG98 -> 2.740231133 | AH99: =AH97+AH98 -> 2.774161326 | AI99: =AI97+AI98 -> 2.807633288 | AJ99: =AJ97+AJ98 -> 2.84107441 | AK99: =AK97+AK98 -> 2.874458364 | AL99: =AL97+AL98 -> 2.907787518 | AM99: =AM97+AM98 -> 2.941207527 | AN99: =AN97+AN98 -> 2.974591562 | AO99: =AO97+AO98 -> 3.007925977 | AP99: =AP97+AP98 -> 3.04143564 | AQ99: =AQ97+AQ98 -> 3.07495819 | AR99: =AR97+AR98 -> 3.108432554 | AS99: =AS97+AS98 -> 3.14188157 | AT99: =AT97+AT98 -> 3.175414651 | AU99: =AU97+AU98 -> 3.208902133 | AV99: =AV97+AV98 -> 3.242345499 | AW99: =AW97+AW98 -> 3.275785872 | AX99: =AX97+AX98 -> 3.309302684 | AY99: =AY97+AY98 -> 3.342767868 | AZ99: =AZ97+AZ98 -> 3.376161085 | BA99: =BA97+BA98 -> 3.40959514 | BB99: =BB97+BB98 -> 3.443085646 | BC99: =BC97+BC98 -> 3.476531151 | BD99: =BD97+BD98 -> 3.509920793 | BE99: =BE97+BE98 -> 3.543248919 | BF99: =BF97+BF98 -> 3.5767604 | BG99: =BG97+BG98 -> 3.61026214 | BH99: =BH97+BH98 -> 3.643843909 | BI99: =BI97+BI98 -> 3.67733119 | BJ99: =BJ97+BJ98 -> 3.710879252 | BK99: =BK97+BK98 -> 3.744495162 | BL99: =BL97+BL98 -> 3.778094185 | BM99: =BM97+BM98 -> 3.81159613 | BN99: =BN97+BN98 -> 3.845074062 | BO99: =BO97+BO98 -> 3.878520608 | BP99: =BP97+BP98 -> 3.912141097 | BQ99: =BQ97+BQ98 -> 3.945699304 | BR99: =BR97+BR98 -> 3.979188762 | BS99: =BS97+BS98 -> 4.012651915 | BT99: =BT97+BT98 -> 4.051465348 | BU99: =BU97+BU98 -> 4.092465878 | BV99: =BV97+BV98 -> 4.133484458 | BW99: =BW97+BW98 -> 4.174457482 | BX99: =BX97+BX98 -> 4.215398447 | BY99: =BY97+BY98 -> 4.256222587 | BZ99: =BZ97+BZ98 -> 4.297036265 | CA99: =CA97+CA98 -> 4.337925244 | CB99: =CB97+CB98 -> 4.378907688 | CC99: =CC97+CC98 -> 4.41987987 | CD99: =CD97+CD98 -> 4.460742022 | CE99: =CE97+CE98 -> 4.501790403 | CF99: =CF97+CF98 -> 4.54282738 | CG99: =CG97+CG98 -> 4.583734564 | CH99: =CH97+CH98 -> 4.624846355 | CI99: =CI97+CI98 -> 4.666061209 | CJ99: =CJ97+CJ98 -> 4.707150282 | CK99: =CK97+CK98 -> 4.748183777 | CL99: =CL97+CL98 -> 4.789205166 | CM99: =CM97+CM98 -> 4.830132815 | CN99: =CN97+CN98 -> 4.870962337 | CO99: =CO97+CO98 -> 4.911830279 | CP99: =CP97+CP98 -> 4.953025502 | CQ99: =CQ97+CQ98 -> 4.99404306 | CR99: =CR97+CR98 -> 5.035047609 | CS99: =CS97+CS98 -> 5.076039058 | CT99: =CT97+CT98 -> 5.116931709 | CU99: =CU97+CU98 -> 5.157708681 | CV99: =CV97+CV98 -> 5.19847291 | CW99: =CW97+CW98 -> 5.239222803 | CX99: =CX97+CX98 -> 5.280128668 | CY99: =CY97+CY98 -> 5.321105069 | CZ99: =CZ97+CZ98 -> 5.362067776 | DA99: =DA97+DA98 -> 5.403016967 | DB99: =DB97+DB98 -> 5.443830005 | DC99: =DC97+DC98 -> 5.484537107
G102: =G94 -> NNV | H102: 0 | I102: 1 | J102: 2 | K102: 3 | L102: 4 | M102: 5 | N102: 6 | O102: 7 | P102: 8 | Q102: 9 | R102: 10 | S102: 11 | T102: 12 | U102: 13 | V102: 14 | W102: 15 | X102: 16 | Y102: 17 | Z102: 18 | AA102: 19 | AB102: 20 | AC102: 21 | AD102: 22 | AE102: 23 | AF102: 24 | AG102: 25 | AH102: 26 | AI102: 27 | AJ102: 28 | AK102: 29 | AL102: 30 | AM102: =AM94 -> 31 | AN102: 32 | AO102: 33 | AP102: 34 | AQ102: 35 | AR102: 36 | AS102: 37 | AT102: 38 | AU102: 39 | AV102: 40 | AW102: 41 | AX102: 42 | AY102: 43 | AZ102: 44 | BA102: 45 | BB102: 46 | BC102: 47 | BD102: 48 | BE102: 49 | BF102: 50 | BG102: 51 | BH102: 52 | BI102: 53 | BJ102: 54 | BK102: 55 | BL102: 56 | BM102: 57 | BN102: 58 | BO102: 59 | BP102: 60 | BQ102: 61 | BR102: 62 | BS102: =BS94 -> 63 | BT102: 64 | BU102: 65 | BV102: 66 | BW102: 67 | BX102: 68 | BY102: 69 | BZ102: 70 | CA102: 71 | CB102: 72 | CC102: 73 | CD102: 74 | CE102: 75 | CF102: 76 | CG102: 77 | CH102: 78 | CI102: 79 | CJ102: 80 | CK102: 81 | CL102: 82 | CM102: 83 | CN102: 84 | CO102: 85 | CP102: 86 | CQ102: 87 | CR102: 88 | CS102: 89 | CT102: 90 | CU102: 91 | CV102: 92 | CW102: 93 | CX102: 94 | CY102: 95 | CZ102: 96 | DA102: 97 | DB102: 98 | DC102: 99
D103: =$D$125 -> Alternativ projekt | E103: =$E$125 ->  | F103: =F95 -> Skadesomkostning før tiltag | G103: =SUMPRODUCT(H103:DC103,'Økonomiske parametre'!$E$27:$CZ$27) -> 90.06510631 | H103: =H$130 -> 1.978015232 | I103: =I$130 -> 2.035949937 | J103: 2.064921075 | K103: 2.093908885 | L103: 2.122878688 | M103: 2.151892577 | N103: 2.180878333 | O103: 2.20990204 | P103: 2.238905444 | Q103: 2.268013238 | R103: 2.29712471 | S103: 2.326267012 | T103: 2.355381976 | U103: 2.384547264 | V103: 2.413671399 | W103: 2.44285462 | X103: 2.472001041 | Y103: 2.501178502 | Z103: 2.530358045 | AA103: 2.559517554 | AB103: 2.588813839 | AC103: 2.618101574 | AD103: 2.647424796 | AE103: 2.676757579 | AF103: 2.706275895 | AG103: 2.740231133 | AH103: 2.774161326 | AI103: 2.807633288 | AJ103: 2.84107441 | AK103: 2.874458364 | AL103: 2.907787518 | AM103: 2.941207527 | AN103: =AN$130 -> 2.974591562 | AO103: 3.007925977 | AP103: 3.04143564 | AQ103: 3.07495819 | AR103: 3.108432554 | AS103: 3.14188157 | AT103: 3.175414651 | AU103: 3.208902133 | AV103: 3.242345499 | AW103: 3.275785872 | AX103: 3.309302684 | AY103: 3.342767868 | AZ103: 3.376161085 | BA103: 3.40959514 | BB103: 3.443085646 | BC103: 3.476531151 | BD103: 3.509920793 | BE103: 3.543248919 | BF103: 3.5767604 | BG103: 3.61026214 | BH103: 3.643843909 | BI103: 3.67733119 | BJ103: 3.710879252 | BK103: 3.744495162 | BL103: 3.778094185 | BM103: 3.81159613 | BN103: 3.845074062 | BO103: 3.878520608 | BP103: 3.912141097 | BQ103: 3.945699304 | BR103: 3.979188762 | BS103: 4.012651915 | BT103: =BT$130 -> 4.051465348 | BU103: 4.092465878 | BV103: 4.133484458 | BW103: 4.174457482 | BX103: 4.215398447 | BY103: 4.256222587 | BZ103: 4.297036265 | CA103: 4.337925244 | CB103: 4.378907688 | CC103: 4.41987987 | CD103: 4.460742022 | CE103: 4.501790403 | CF103: 4.54282738 | CG103: 4.583734564 | CH103: 4.624846355 | CI103: 4.666061209 | CJ103: 4.707150282 | CK103: 4.748183777 | CL103: 4.789205166 | CM103: 4.830132815 | CN103: 4.870962337 | CO103: 4.911830279 | CP103: 4.953025502 | CQ103: 4.99404306 | CR103: 5.035047609 | CS103: 5.076039058 | CT103: 5.116931709 | CU103: 5.157708681 | CV103: 5.19847291 | CW103: 5.239222803 | CX103: 5.280128668 | CY103: 5.321105069 | CZ103: 5.362067776 | DA103: 5.403016967 | DB103: 5.443830005 | DC103: 5.484537107
D104: =$D$125 -> Alternativ projekt | E104: =$E$125 ->  | F104: =F96 -> Skadesomkostning efter tiltag | G104: =SUMPRODUCT(H104:DC104,'Økonomiske parametre'!$E$27:$CZ$27) -> 0 | H104: =(H$130-((H$130-H135)*DG151)) -> 0 | I104: 0 | J104: 0 | K104: 0 | L104: 0 | M104: 0 | N104: 0 | O104: 0 | P104: 0 | Q104: 0 | R104: 0 | S104: 0 | T104: 0 | U104: 0 | V104: 0 | W104: 0 | X104: 0 | Y104: 0 | Z104: 0 | AA104: 0 | AB104: 0 | AC104: 0 | AD104: 0 | AE104: 0 | AF104: 0 | AG104: 0 | AH104: 0 | AI104: 0 | AJ104: 0 | AK104: 0 | AL104: 0 | AM104: 0 | AN104: =(AN$130-((AN$130-AN135)*EM151)) -> 0 | AO104: 0 | AP104: 0 | AQ104: 0 | AR104: 0 | AS104: 0 | AT104: 0 | AU104: 0 | AV104: 0 | AW104: 0 | AX104: 0 | AY104: 0 | AZ104: 0 | BA104: 0 | BB104: 0 | BC104: 0 | BD104: 0 | BE104: 0 | BF104: 0 | BG104: 0 | BH104: 0 | BI104: 0 | BJ104: 0 | BK104: 0 | BL104: 0 | BM104: 0 | BN104: 0 | BO104: 0 | BP104: 0 | BQ104: 0 | BR104: 0 | BS104: 0 | BT104: =(BT$130-((BT$130-BT135)*FS151)) -> 0 | BU104: 0 | BV104: 0 | BW104: 0 | BX104: 0 | BY104: 0 | BZ104: 0 | CA104: 0 | CB104: 0 | CC104: 0 | CD104: 0 | CE104: 0 | CF104: 0 | CG104: 0 | CH104: 0 | CI104: 0 | CJ104: 0 | CK104: 0 | CL104: 0 | CM104: 0 | CN104: 0 | CO104: 0 | CP104: 0 | CQ104: 0 | CR104: 0 | CS104: 0 | CT104: 0 | CU104: 0 | CV104: 0 | CW104: 0 | CX104: 0 | CY104: 0 | CZ104: =(CZ$130-((CZ$130-CZ135)*GY151)) -> 0 | DA104: 0 | DB104: 0 | DC104: 0
D105: =$D$125 -> Alternativ projekt | E105: =$E$125 ->  | F105: =F97 -> Afværges skade | G105: =SUMPRODUCT(H105:DC105,'Økonomiske parametre'!$E$27:$CZ$27) -> 90.06510631 | H105: =H103-H104 -> 1.978015232 | I105: 2.035949937 | J105: 2.064921075 | K105: 2.093908885 | L105: 2.122878688 | M105: 2.151892577 | N105: 2.180878333 | O105: 2.20990204 | P105: 2.238905444 | Q105: 2.268013238 | R105: 2.29712471 | S105: 2.326267012 | T105: 2.355381976 | U105: 2.384547264 | V105: 2.413671399 | W105: 2.44285462 | X105: 2.472001041 | Y105: 2.501178502 | Z105: 2.530358045 | AA105: 2.559517554 | AB105: 2.588813839 | AC105: 2.618101574 | AD105: 2.647424796 | AE105: 2.676757579 | AF105: 2.706275895 | AG105: 2.740231133 | AH105: 2.774161326 | AI105: 2.807633288 | AJ105: 2.84107441 | AK105: 2.874458364 | AL105: 2.907787518 | AM105: 2.941207527 | AN105: =AN103-AN104 -> 2.974591562 | AO105: 3.007925977 | AP105: 3.04143564 | AQ105: 3.07495819 | AR105: 3.108432554 | AS105: 3.14188157 | AT105: 3.175414651 | AU105: 3.208902133 | AV105: 3.242345499 | AW105: 3.275785872 | AX105: 3.309302684 | AY105: 3.342767868 | AZ105: 3.376161085 | BA105: 3.40959514 | BB105: 3.443085646 | BC105: 3.476531151 | BD105: 3.509920793 | BE105: 3.543248919 | BF105: 3.5767604 | BG105: 3.61026214 | BH105: 3.643843909 | BI105: 3.67733119 | BJ105: 3.710879252 | BK105: 3.744495162 | BL105: 3.778094185 | BM105: 3.81159613 | BN105: 3.845074062 | BO105: 3.878520608 | BP105: 3.912141097 | BQ105: 3.945699304 | BR105: 3.979188762 | BS105: 4.012651915 | BT105: =BT103-BT104 -> 4.051465348 | BU105: 4.092465878 | BV105: 4.133484458 | BW105: 4.174457482 | BX105: 4.215398447 | BY105: 4.256222587 | BZ105: 4.297036265 | CA105: 4.337925244 | CB105: 4.378907688 | CC105: 4.41987987 | CD105: 4.460742022 | CE105: 4.501790403 | CF105: 4.54282738 | CG105: 4.583734564 | CH105: 4.624846355 | CI105: 4.666061209 | CJ105: 4.707150282 | CK105: 4.748183777 | CL105: 4.789205166 | CM105: 4.830132815 | CN105: 4.870962337 | CO105: 4.911830279 | CP105: 4.953025502 | CQ105: 4.99404306 | CR105: 5.035047609 | CS105: 5.076039058 | CT105: 5.116931709 | CU105: 5.157708681 | CV105: 5.19847291 | CW105: 5.239222803 | CX105: 5.280128668 | CY105: 5.321105069 | CZ105: =CZ103-CZ104 -> 5.362067776 | DA105: 5.403016967 | DB105: 5.443830005 | DC105: 5.484537107
D106: =$D$125 -> Alternativ projekt | E106: =$E$125 ->  | F106: =F98 -> Tiltagsomkostning | G106: =SUMPRODUCT(H106:DC106,'Økonomiske parametre'!$E$27:$CZ$27) -> 0 | H106: =-H125 -> 0 | I106: =-I125 -> 0 | J106: 0 | K106: 0 | L106: 0 | M106: 0 | N106: 0 | O106: 0 | P106: 0 | Q106: 0 | R106: 0 | S106: 0 | T106: 0 | U106: 0 | V106: 0 | W106: 0 | X106: 0 | Y106: 0 | Z106: 0 | AA106: 0 | AB106: 0 | AC106: 0 | AD106: 0 | AE106: 0 | AF106: 0 | AG106: 0 | AH106: 0 | AI106: 0 | AJ106: 0 | AK106: 0 | AL106: 0 | AM106: 0 | AN106: 0 | AO106: 0 | AP106: 0 | AQ106: 0 | AR106: 0 | AS106: 0 | AT106: 0 | AU106: 0 | AV106: 0 | AW106: 0 | AX106: 0 | AY106: 0 | AZ106: 0 | BA106: 0 | BB106: 0 | BC106: 0 | BD106: 0 | BE106: 0 | BF106: 0 | BG106: 0 | BH106: 0 | BI106: 0 | BJ106: 0 | BK106: 0 | BL106: 0 | BM106: 0 | BN106: 0 | BO106: 0 | BP106: 0 | BQ106: 0 | BR106: 0 | BS106: 0 | BT106: 0 | BU106: =-BU125 -> 0 | BV106: 0 | BW106: 0 | BX106: 0 | BY106: 0 | BZ106: 0 | CA106: 0 | CB106: 0 | CC106: 0 | CD106: 0 | CE106: 0 | CF106: 0 | CG106: 0 | CH106: 0 | CI106: 0 | CJ106: 0 | CK106: 0 | CL106: 0 | CM106: 0 | CN106: 0 | CO106: 0 | CP106: 0 | CQ106: 0 | CR106: 0 | CS106: 0 | CT106: 0 | CU106: 0 | CV106: 0 | CW106: 0 | CX106: 0 | CY106: 0 | CZ106: 0 | DA106: 0 | DB106: 0 | DC106: 0
D107: =$D$125 -> Alternativ projekt | E107: =$E$125 ->  | F107: =F99 -> Nettogevinst | G107: =SUMPRODUCT(H107:DC107,'Økonomiske parametre'!$E$27:$CZ$27) -> 90.06510631 | H107: =H105+H106 -> 1.978015232 | I107: =I105+I106 -> 2.035949937 | J107: 2.064921075 | K107: 2.093908885 | L107: 2.122878688 | M107: 2.151892577 | N107: 2.180878333 | O107: 2.20990204 | P107: 2.238905444 | Q107: 2.268013238 | R107: 2.29712471 | S107: 2.326267012 | T107: 2.355381976 | U107: 2.384547264 | V107: 2.413671399 | W107: 2.44285462 | X107: 2.472001041 | Y107: 2.501178502 | Z107: 2.530358045 | AA107: 2.559517554 | AB107: 2.588813839 | AC107: 2.618101574 | AD107: 2.647424796 | AE107: 2.676757579 | AF107: 2.706275895 | AG107: 2.740231133 | AH107: 2.774161326 | AI107: 2.807633288 | AJ107: 2.84107441 | AK107: 2.874458364 | AL107: 2.907787518 | AM107: 2.941207527 | AN107: 2.974591562 | AO107: 3.007925977 | AP107: 3.04143564 | AQ107: 3.07495819 | AR107: 3.108432554 | AS107: 3.14188157 | AT107: 3.175414651 | AU107: 3.208902133 | AV107: 3.242345499 | AW107: 3.275785872 | AX107: 3.309302684 | AY107: 3.342767868 | AZ107: 3.376161085 | BA107: 3.40959514 | BB107: 3.443085646 | BC107: 3.476531151 | BD107: 3.509920793 | BE107: 3.543248919 | BF107: 3.5767604 | BG107: 3.61026214 | BH107: 3.643843909 | BI107: 3.67733119 | BJ107: 3.710879252 | BK107: 3.744495162 | BL107: 3.778094185 | BM107: 3.81159613 | BN107: 3.845074062 | BO107: 3.878520608 | BP107: 3.912141097 | BQ107: 3.945699304 | BR107: 3.979188762 | BS107: 4.012651915 | BT107: 4.051465348 | BU107: =BU105+BU106 -> 4.092465878 | BV107: 4.133484458 | BW107: 4.174457482 | BX107: 4.215398447 | BY107: 4.256222587 | BZ107: 4.297036265 | CA107: 4.337925244 | CB107: 4.378907688 | CC107: 4.41987987 | CD107: 4.460742022 | CE107: 4.501790403 | CF107: 4.54282738 | CG107: 4.583734564 | CH107: 4.624846355 | CI107: 4.666061209 | CJ107: 4.707150282 | CK107: 4.748183777 | CL107: 4.789205166 | CM107: 4.830132815 | CN107: 4.870962337 | CO107: 4.911830279 | CP107: 4.953025502 | CQ107: 4.99404306 | CR107: 5.035047609 | CS107: 5.076039058 | CT107: 5.116931709 | CU107: 5.157708681 | CV107: 5.19847291 | CW107: 5.239222803 | CX107: 5.280128668 | CY107: 5.321105069 | CZ107: 5.362067776 | DA107: 5.403016967 | DB107: 5.443830005 | DC107: 5.484537107
D110: Resultater for tiltagsomkostninger og skadesomkostninger
D113: Tiltagsomkostninger
H115: =Tiltagsomkostninger!F13 -> 0 | I115: =Tiltagsomkostninger!G13 -> 1 | J115: =Tiltagsomkostninger!H13 -> 2 | K115: =Tiltagsomkostninger!I13 -> 3 | L115: =Tiltagsomkostninger!J13 -> 4 | M115: =Tiltagsomkostninger!K13 -> 5 | N115: =Tiltagsomkostninger!L13 -> 6 | O115: =Tiltagsomkostninger!M13 -> 7 | P115: =Tiltagsomkostninger!N13 -> 8 | Q115: =Tiltagsomkostninger!O13 -> 9 | R115: =Tiltagsomkostninger!P13 -> 10 | S115: =Tiltagsomkostninger!Q13 -> 11 | T115: =Tiltagsomkostninger!R13 -> 12 | U115: =Tiltagsomkostninger!S13 -> 13 | V115: =Tiltagsomkostninger!T13 -> 14 | W115: =Tiltagsomkostninger!U13 -> 15 | X115: =Tiltagsomkostninger!V13 -> 16 | Y115: =Tiltagsomkostninger!W13 -> 17 | Z115: =Tiltagsomkostninger!X13 -> 18 | AA115: =Tiltagsomkostninger!Y13 -> 19 | AB115: =Tiltagsomkostninger!Z13 -> 20 | AC115: =Tiltagsomkostninger!AA13 -> 21 | AD115: =Tiltagsomkostninger!AB13 -> 22 | AE115: =Tiltagsomkostninger!AC13 -> 23 | AF115: =Tiltagsomkostninger!AD13 -> 24 | AG115: =Tiltagsomkostninger!AE13 -> 25 | AH115: =Tiltagsomkostninger!AF13 -> 26 | AI115: =Tiltagsomkostninger!AG13 -> 27 | AJ115: =Tiltagsomkostninger!AH13 -> 28 | AK115: =Tiltagsomkostninger!AI13 -> 29 | AL115: =Tiltagsomkostninger!AJ13 -> 30 | AM115: =Tiltagsomkostninger!AK13 -> 31 | AN115: =Tiltagsomkostninger!AL13 -> 32 | AO115: =Tiltagsomkostninger!AM13 -> 33 | AP115: =Tiltagsomkostninger!AN13 -> 34 | AQ115: =Tiltagsomkostninger!AO13 -> 35 | AR115: =Tiltagsomkostninger!AP13 -> 36 | AS115: =Tiltagsomkostninger!AQ13 -> 37 | AT115: =Tiltagsomkostninger!AR13 -> 38 | AU115: =Tiltagsomkostninger!AS13 -> 39 | AV115: =Tiltagsomkostninger!AT13 -> 40 | AW115: =Tiltagsomkostninger!AU13 -> 41 | AX115: =Tiltagsomkostninger!AV13 -> 42 | AY115: =Tiltagsomkostninger!AW13 -> 43 | AZ115: =Tiltagsomkostninger!AX13 -> 44 | BA115: =Tiltagsomkostninger!AY13 -> 45 | BB115: =Tiltagsomkostninger!AZ13 -> 46 | BC115: =Tiltagsomkostninger!BA13 -> 47 | BD115: =Tiltagsomkostninger!BB13 -> 48 | BE115: =Tiltagsomkostninger!BC13 -> 49 | BF115: =Tiltagsomkostninger!BD13 -> 50 | BG115: =Tiltagsomkostninger!BE13 -> 51 | BH115: =Tiltagsomkostninger!BF13 -> 52 | BI115: =Tiltagsomkostninger!BG13 -> 53 | BJ115: =Tiltagsomkostninger!BH13 -> 54 | BK115: =Tiltagsomkostninger!BI13 -> 55 | BL115: =Tiltagsomkostninger!BJ13 -> 56 | BM115: =Tiltagsomkostninger!BK13 -> 57 | BN115: =Tiltagsomkostninger!BL13 -> 58 | BO115: =Tiltagsomkostninger!BM13 -> 59 | BP115: =Tiltagsomkostninger!BN13 -> 60 | BQ115: =Tiltagsomkostninger!BO13 -> 61 | BR115: =Tiltagsomkostninger!BP13 -> 62 | BS115: =Tiltagsomkostninger!BQ13 -> 63 | BT115: =Tiltagsomkostninger!BR13 -> 64 | BU115: =Tiltagsomkostninger!BS13 -> 65 | BV115: =Tiltagsomkostninger!BT13 -> 66 | BW115: =Tiltagsomkostninger!BU13 -> 67 | BX115: =Tiltagsomkostninger!BV13 -> 68 | BY115: =Tiltagsomkostninger!BW13 -> 69 | BZ115: =Tiltagsomkostninger!BX13 -> 70 | CA115: =Tiltagsomkostninger!BY13 -> 71 | CB115: =Tiltagsomkostninger!BZ13 -> 72 | CC115: =Tiltagsomkostninger!CA13 -> 73 | CD115: =Tiltagsomkostninger!CB13 -> 74 | CE115: =Tiltagsomkostninger!CC13 -> 75 | CF115: =Tiltagsomkostninger!CD13 -> 76 | CG115: =Tiltagsomkostninger!CE13 -> 77 | CH115: =Tiltagsomkostninger!CF13 -> 78 | CI115: =Tiltagsomkostninger!CG13 -> 79 | CJ115: =Tiltagsomkostninger!CH13 -> 80 | CK115: =Tiltagsomkostninger!CI13 -> 81 | CL115: =Tiltagsomkostninger!CJ13 -> 82 | CM115: =Tiltagsomkostninger!CK13 -> 83 | CN115: =Tiltagsomkostninger!CL13 -> 84 | CO115: =Tiltagsomkostninger!CM13 -> 85 | CP115: =Tiltagsomkostninger!CN13 -> 86 | CQ115: =Tiltagsomkostninger!CO13 -> 87 | CR115: =Tiltagsomkostninger!CP13 -> 88 | CS115: =Tiltagsomkostninger!CQ13 -> 89 | CT115: =Tiltagsomkostninger!CR13 -> 90 | CU115: =Tiltagsomkostninger!CS13 -> 91 | CV115: =Tiltagsomkostninger!CT13 -> 92 | CW115: =Tiltagsomkostninger!CU13 -> 93 | CX115: =Tiltagsomkostninger!CV13 -> 94 | CY115: =Tiltagsomkostninger!CW13 -> 95 | CZ115: =Tiltagsomkostninger!CX13 -> 96 | DA115: =Tiltagsomkostninger!CY13 -> 97 | DB115: =Tiltagsomkostninger!CZ13 -> 98 | DC115: =Tiltagsomkostninger!DA13 -> 99
D116: =Tiltagsomkostninger!D14 -> Projekt | E116: =Tiltagsomkostninger!E14 -> Txx | H116: =Tiltagsomkostninger!F14 -> 1.085952 | I116: =Tiltagsomkostninger!G14 -> 1.10726016 | J116: =Tiltagsomkostninger!H14 -> 1.12856832 | K116: =Tiltagsomkostninger!I14 -> 1.14987648 | L116: =Tiltagsomkostninger!J14 -> 1.17118464 | M116: =Tiltagsomkostninger!K14 -> 1.1924928 | N116: =Tiltagsomkostninger!L14 -> 1.21380096 | O116: =Tiltagsomkostninger!M14 -> 1.23510912 | P116: =Tiltagsomkostninger!N14 -> 1.25641728 | Q116: =Tiltagsomkostninger!O14 -> 1.27772544 | R116: =Tiltagsomkostninger!P14 -> 0.2130816 | S116: =Tiltagsomkostninger!Q14 -> 0.2130816 | T116: =Tiltagsomkostninger!R14 -> 0.2130816 | U116: =Tiltagsomkostninger!S14 -> 0.2130816 | V116: =Tiltagsomkostninger!T14 -> 0.2130816 | W116: =Tiltagsomkostninger!U14 -> 0.2130816 | X116: =Tiltagsomkostninger!V14 -> 0.2130816 | Y116: =Tiltagsomkostninger!W14 -> 0.2130816 | Z116: =Tiltagsomkostninger!X14 -> 0.2130816 | AA116: =Tiltagsomkostninger!Y14 -> 0.2130816 | AB116: =Tiltagsomkostninger!Z14 -> 0.2130816 | AC116: =Tiltagsomkostninger!AA14 -> 0.2130816 | AD116: =Tiltagsomkostninger!AB14 -> 0.2130816 | AE116: =Tiltagsomkostninger!AC14 -> 0.2130816 | AF116: =Tiltagsomkostninger!AD14 -> 0.2130816 | AG116: =Tiltagsomkostninger!AE14 -> 0.2130816 | AH116: =Tiltagsomkostninger!AF14 -> 0.2130816 | AI116: =Tiltagsomkostninger!AG14 -> 0.2130816 | AJ116: =Tiltagsomkostninger!AH14 -> 0.2130816 | AK116: =Tiltagsomkostninger!AI14 -> 0.2130816 | AL116: =Tiltagsomkostninger!AJ14 -> 0.2130816 | AM116: =Tiltagsomkostninger!AK14 -> 0.2130816 | AN116: =Tiltagsomkostninger!AL14 -> 0.2130816 | AO116: =Tiltagsomkostninger!AM14 -> 0.2130816 | AP116: =Tiltagsomkostninger!AN14 -> 0.2130816 | AQ116: =Tiltagsomkostninger!AO14 -> 0.2130816 | AR116: =Tiltagsomkostninger!AP14 -> 0.2130816 | AS116: =Tiltagsomkostninger!AQ14 -> 0.2130816 | AT116: =Tiltagsomkostninger!AR14 -> 0.2130816 | AU116: =Tiltagsomkostninger!AS14 -> 0.2130816 | AV116: =Tiltagsomkostninger!AT14 -> 1.2579456 | AW116: =Tiltagsomkostninger!AU14 -> 1.2579456 | AX116: =Tiltagsomkostninger!AV14 -> 1.2579456 | AY116: =Tiltagsomkostninger!AW14 -> 1.2579456 | AZ116: =Tiltagsomkostninger!AX14 -> 1.2579456 | BA116: =Tiltagsomkostninger!AY14 -> 1.2579456 | BB116: =Tiltagsomkostninger!AZ14 -> 1.2579456 | BC116: =Tiltagsomkostninger!BA14 -> 1.2579456 | BD116: =Tiltagsomkostninger!BB14 -> 1.2579456 | BE116: =Tiltagsomkostninger!BC14 -> 1.2579456 | BF116: =Tiltagsomkostninger!BD14 -> 0.2541696 | BG116: =Tiltagsomkostninger!BE14 -> 0.2541696 | BH116: =Tiltagsomkostninger!BF14 -> 0.2541696 | BI116: =Tiltagsomkostninger!BG14 -> 0.2541696 | BJ116: =Tiltagsomkostninger!BH14 -> 0.2541696 | BK116: =Tiltagsomkostninger!BI14 -> 0.2541696 | BL116: =Tiltagsomkostninger!BJ14 -> 0.2541696 | BM116: =Tiltagsomkostninger!BK14 -> 0.2541696 | BN116: =Tiltagsomkostninger!BL14 -> 0.2541696 | BO116: =Tiltagsomkostninger!BM14 -> 0.2541696 | BP116: =Tiltagsomkostninger!BN14 -> 0.2130816 | BQ116: =Tiltagsomkostninger!BO14 -> 0.2130816 | BR116: =Tiltagsomkostninger!BP14 -> 0.2130816 | BS116: =Tiltagsomkostninger!BQ14 -> 0.2130816 | BT116: =Tiltagsomkostninger!BR14 -> 0.2130816 | BU116: =Tiltagsomkostninger!BS14 -> 0.2130816 | BV116: =Tiltagsomkostninger!BT14 -> 0.2130816 | BW116: =Tiltagsomkostninger!BU14 -> 0.2130816 | BX116: =Tiltagsomkostninger!BV14 -> 0.2130816 | BY116: =Tiltagsomkostninger!BW14 -> 0.2130816 | BZ116: =Tiltagsomkostninger!BX14 -> 0.2130816 | CA116: =Tiltagsomkostninger!BY14 -> 0.2130816 | CB116: =Tiltagsomkostninger!BZ14 -> 0.2130816 | CC116: =Tiltagsomkostninger!CA14 -> 0.2130816 | CD116: =Tiltagsomkostninger!CB14 -> 0.2130816 | CE116: =Tiltagsomkostninger!CC14 -> 0.2130816 | CF116: =Tiltagsomkostninger!CD14 -> 0.2130816 | CG116: =Tiltagsomkostninger!CE14 -> 0.2130816 | CH116: =Tiltagsomkostninger!CF14 -> 0.2130816 | CI116: =Tiltagsomkostninger!CG14 -> 0.2130816 | CJ116: =Tiltagsomkostninger!CH14 -> 1.2579456 | CK116: =Tiltagsomkostninger!CI14 -> 1.2579456 | CL116: =Tiltagsomkostninger!CJ14 -> 1.2579456 | CM116: =Tiltagsomkostninger!CK14 -> 1.2579456 | CN116: =Tiltagsomkostninger!CL14 -> 1.2579456 | CO116: =Tiltagsomkostninger!CM14 -> 1.2579456 | CP116: =Tiltagsomkostninger!CN14 -> 1.2579456 | CQ116: =Tiltagsomkostninger!CO14 -> 1.2579456 | CR116: =Tiltagsomkostninger!CP14 -> 1.2579456 | CS116: =Tiltagsomkostninger!CQ14 -> 1.2579456 | CT116: =Tiltagsomkostninger!CR14 -> 0.2130816 | CU116: =Tiltagsomkostninger!CS14 -> 0.2130816 | CV116: =Tiltagsomkostninger!CT14 -> 0.2130816 | CW116: =Tiltagsomkostninger!CU14 -> 0.2130816 | CX116: =Tiltagsomkostninger!CV14 -> 0.2130816 | CY116: =Tiltagsomkostninger!CW14 -> 0.2130816 | CZ116: =Tiltagsomkostninger!CX14 -> 0.2130816 | DA116: =Tiltagsomkostninger!CY14 -> 0.2130816 | DB116: =Tiltagsomkostninger!CZ14 -> 0.2130816 | DC116: =Tiltagsomkostninger!DA14 -> -8.370860544
D117: =Tiltagsomkostninger!D15 -> Projekt | E117: =Tiltagsomkostninger!E15 -> Txx | H117: =Tiltagsomkostninger!F15 -> 1.292416 | I117: =Tiltagsomkostninger!G15 -> 1.31780096 | J117: =Tiltagsomkostninger!H15 -> 1.34318592 | K117: =Tiltagsomkostninger!I15 -> 1.36857088 | L117: =Tiltagsomkostninger!J15 -> 1.39395584 | M117: =Tiltagsomkostninger!K15 -> 1.4193408 | N117: =Tiltagsomkostninger!L15 -> 1.44472576 | O117: =Tiltagsomkostninger!M15 -> 1.47011072 | P117: =Tiltagsomkostninger!N15 -> 1.49549568 | Q117: =Tiltagsomkostninger!O15 -> 1.52088064 | R117: =Tiltagsomkostninger!P15 -> 0.2538496 | S117: =Tiltagsomkostninger!Q15 -> 0.2538496 | T117: =Tiltagsomkostninger!R15 -> 0.2538496 | U117: =Tiltagsomkostninger!S15 -> 0.2538496 | V117: =Tiltagsomkostninger!T15 -> 0.2538496 | W117: =Tiltagsomkostninger!U15 -> 0.2538496 | X117: =Tiltagsomkostninger!V15 -> 0.2538496 | Y117: =Tiltagsomkostninger!W15 -> 0.2538496 | Z117: =Tiltagsomkostninger!X15 -> 0.2538496 | AA117: =Tiltagsomkostninger!Y15 -> 0.2538496 | AB117: =Tiltagsomkostninger!Z15 -> 0.2538496 | AC117: =Tiltagsomkostninger!AA15 -> 0.2538496 | AD117: =Tiltagsomkostninger!AB15 -> 0.2538496 | AE117: =Tiltagsomkostninger!AC15 -> 0.2538496 | AF117: =Tiltagsomkostninger!AD15 -> 0.2538496 | AG117: =Tiltagsomkostninger!AE15 -> 0.2538496 | AH117: =Tiltagsomkostninger!AF15 -> 0.2538496 | AI117: =Tiltagsomkostninger!AG15 -> 0.2538496 | AJ117: =Tiltagsomkostninger!AH15 -> 0.2538496 | AK117: =Tiltagsomkostninger!AI15 -> 0.2538496 | AL117: =Tiltagsomkostninger!AJ15 -> 0.2538496 | AM117: =Tiltagsomkostninger!AK15 -> 0.2538496 | AN117: =Tiltagsomkostninger!AL15 -> 0.2538496 | AO117: =Tiltagsomkostninger!AM15 -> 0.2538496 | AP117: =Tiltagsomkostninger!AN15 -> 0.2538496 | AQ117: =Tiltagsomkostninger!AO15 -> 0.2538496 | AR117: =Tiltagsomkostninger!AP15 -> 0.2538496 | AS117: =Tiltagsomkostninger!AQ15 -> 0.2538496 | AT117: =Tiltagsomkostninger!AR15 -> 0.2538496 | AU117: =Tiltagsomkostninger!AS15 -> 0.2538496 | AV117: =Tiltagsomkostninger!AT15 -> 1.4999296 | AW117: =Tiltagsomkostninger!AU15 -> 1.4999296 | AX117: =Tiltagsomkostninger!AV15 -> 1.4999296 | AY117: =Tiltagsomkostninger!AW15 -> 1.4999296 | AZ117: =Tiltagsomkostninger!AX15 -> 1.4999296 | BA117: =Tiltagsomkostninger!AY15 -> 1.4999296 | BB117: =Tiltagsomkostninger!AZ15 -> 1.4999296 | BC117: =Tiltagsomkostninger!BA15 -> 1.4999296 | BD117: =Tiltagsomkostninger!BB15 -> 1.4999296 | BE117: =Tiltagsomkostninger!BC15 -> 1.4999296 | BF117: =Tiltagsomkostninger!BD15 -> 0.3001856 | BG117: =Tiltagsomkostninger!BE15 -> 0.3001856 | BH117: =Tiltagsomkostninger!BF15 -> 0.3001856 | BI117: =Tiltagsomkostninger!BG15 -> 0.3001856 | BJ117: =Tiltagsomkostninger!BH15 -> 0.3001856 | BK117: =Tiltagsomkostninger!BI15 -> 0.3001856 | BL117: =Tiltagsomkostninger!BJ15 -> 0.3001856 | BM117: =Tiltagsomkostninger!BK15 -> 0.3001856 | BN117: =Tiltagsomkostninger!BL15 -> 0.3001856 | BO117: =Tiltagsomkostninger!BM15 -> 0.3001856 | BP117: =Tiltagsomkostninger!BN15 -> 0.2538496 | BQ117: =Tiltagsomkostninger!BO15 -> 0.2538496 | BR117: =Tiltagsomkostninger!BP15 -> 0.2538496 | BS117: =Tiltagsomkostninger!BQ15 -> 0.2538496 | BT117: =Tiltagsomkostninger!BR15 -> 0.2538496 | BU117: =Tiltagsomkostninger!BS15 -> 0.2538496 | BV117: =Tiltagsomkostninger!BT15 -> 0.2538496 | BW117: =Tiltagsomkostninger!BU15 -> 0.2538496 | BX117: =Tiltagsomkostninger!BV15 -> 0.2538496 | BY117: =Tiltagsomkostninger!BW15 -> 0.2538496 | BZ117: =Tiltagsomkostninger!BX15 -> 0.2538496 | CA117: =Tiltagsomkostninger!BY15 -> 0.2538496 | CB117: =Tiltagsomkostninger!BZ15 -> 0.2538496 | CC117: =Tiltagsomkostninger!CA15 -> 0.2538496 | CD117: =Tiltagsomkostninger!CB15 -> 0.2538496 | CE117: =Tiltagsomkostninger!CC15 -> 0.2538496 | CF117: =Tiltagsomkostninger!CD15 -> 0.2538496 | CG117: =Tiltagsomkostninger!CE15 -> 0.2538496 | CH117: =Tiltagsomkostninger!CF15 -> 0.2538496 | CI117: =Tiltagsomkostninger!CG15 -> 0.2538496 | CJ117: =Tiltagsomkostninger!CH15 -> 1.4999296 | CK117: =Tiltagsomkostninger!CI15 -> 1.4999296 | CL117: =Tiltagsomkostninger!CJ15 -> 1.4999296 | CM117: =Tiltagsomkostninger!CK15 -> 1.4999296 | CN117: =Tiltagsomkostninger!CL15 -> 1.4999296 | CO117: =Tiltagsomkostninger!CM15 -> 1.4999296 | CP117: =Tiltagsomkostninger!CN15 -> 1.4999296 | CQ117: =Tiltagsomkostninger!CO15 -> 1.4999296 | CR117: =Tiltagsomkostninger!CP15 -> 1.4999296 | CS117: =Tiltagsomkostninger!CQ15 -> 1.4999296 | CT117: =Tiltagsomkostninger!CR15 -> 0.2538496 | CU117: =Tiltagsomkostninger!CS15 -> 0.2538496 | CV117: =Tiltagsomkostninger!CT15 -> 0.2538496 | CW117: =Tiltagsomkostninger!CU15 -> 0.2538496 | CX117: =Tiltagsomkostninger!CV15 -> 0.2538496 | CY117: =Tiltagsomkostninger!CW15 -> 0.2538496 | CZ117: =Tiltagsomkostninger!CX15 -> 0.2538496 | DA117: =Tiltagsomkostninger!CY15 -> 0.2538496 | DB117: =Tiltagsomkostninger!CZ15 -> 0.2538496 | DC117: =Tiltagsomkostninger!DA15 -> -9.979404288
D118: =Tiltagsomkostninger!D16 -> Projekt | E118: =Tiltagsomkostninger!E16 ->  | H118: =Tiltagsomkostninger!F16 -> 0.4931264 | I118: =Tiltagsomkostninger!G16 -> 0.502889344 | J118: =Tiltagsomkostninger!H16 -> 0.512652288 | K118: =Tiltagsomkostninger!I16 -> 0.522415232 | L118: =Tiltagsomkostninger!J16 -> 0.532178176 | M118: =Tiltagsomkostninger!K16 -> 0.54194112 | N118: =Tiltagsomkostninger!L16 -> 0.551704064 | O118: =Tiltagsomkostninger!M16 -> 0.561467008 | P118: =Tiltagsomkostninger!N16 -> 0.571229952 | Q118: =Tiltagsomkostninger!O16 -> 0.580992896 | R118: =Tiltagsomkostninger!P16 -> 0.59075584 | S118: =Tiltagsomkostninger!Q16 -> 0.600518784 | T118: =Tiltagsomkostninger!R16 -> 0.610281728 | U118: =Tiltagsomkostninger!S16 -> 0.620044672 | V118: =Tiltagsomkostninger!T16 -> 0.629807616 | W118: =Tiltagsomkostninger!U16 -> 0.63957056 | X118: =Tiltagsomkostninger!V16 -> 0.649333504 | Y118: =Tiltagsomkostninger!W16 -> 0.659096448 | Z118: =Tiltagsomkostninger!X16 -> 0.668859392 | AA118: =Tiltagsomkostninger!Y16 -> 0.678622336 | AB118: =Tiltagsomkostninger!Z16 -> 0.68838528 | AC118: =Tiltagsomkostninger!AA16 -> 0.698148224 | AD118: =Tiltagsomkostninger!AB16 -> 0.707911168 | AE118: =Tiltagsomkostninger!AC16 -> 0.717674112 | AF118: =Tiltagsomkostninger!AD16 -> 0.727437056 | AG118: =Tiltagsomkostninger!AE16 -> 0.7372 | AH118: =Tiltagsomkostninger!AF16 -> 0.746962944 | AI118: =Tiltagsomkostninger!AG16 -> 0.756725888 | AJ118: =Tiltagsomkostninger!AH16 -> 0.766488832 | AK118: =Tiltagsomkostninger!AI16 -> 0.776251776 | AL118: =Tiltagsomkostninger!AJ16 -> 0.78601472 | AM118: =Tiltagsomkostninger!AK16 -> 0.795777664 | AN118: =Tiltagsomkostninger!AL16 -> 0.805540608 | AO118: =Tiltagsomkostninger!AM16 -> 0.815303552 | AP118: =Tiltagsomkostninger!AN16 -> 0.825066496 | AQ118: =Tiltagsomkostninger!AO16 -> 0.83482944 | AR118: =Tiltagsomkostninger!AP16 -> 0.844592384 | AS118: =Tiltagsomkostninger!AQ16 -> 0.854355328 | AT118: =Tiltagsomkostninger!AR16 -> 0.864118272 | AU118: =Tiltagsomkostninger!AS16 -> 1.277049216 | AV118: =Tiltagsomkostninger!AT16 -> 0.88364416 | AW118: =Tiltagsomkostninger!AU16 -> 0.885343744 | AX118: =Tiltagsomkostninger!AV16 -> 0.887043328 | AY118: =Tiltagsomkostninger!AW16 -> 0.888742912 | AZ118: =Tiltagsomkostninger!AX16 -> 0.890442496 | BA118: =Tiltagsomkostninger!AY16 -> 0.89214208 | BB118: =Tiltagsomkostninger!AZ16 -> 0.893841664 | BC118: =Tiltagsomkostninger!BA16 -> 0.895541248 | BD118: =Tiltagsomkostninger!BB16 -> 0.897240832 | BE118: =Tiltagsomkostninger!BC16 -> 0.908898816 | BF118: =Tiltagsomkostninger!BD16 -> 0.90064 | BG118: =Tiltagsomkostninger!BE16 -> 0.90224 | BH118: =Tiltagsomkostninger!BF16 -> 0.90384 | BI118: =Tiltagsomkostninger!BG16 -> 0.90544 | BJ118: =Tiltagsomkostninger!BH16 -> 0.90704 | BK118: =Tiltagsomkostninger!BI16 -> 0.90864 | BL118: =Tiltagsomkostninger!BJ16 -> 0.91024 | BM118: =Tiltagsomkostninger!BK16 -> 0.91184 | BN118: =Tiltagsomkostninger!BL16 -> 0.91344 | BO118: =Tiltagsomkostninger!BM16 -> 0.91504 | BP118: =Tiltagsomkostninger!BN16 -> 0.91664 | BQ118: =Tiltagsomkostninger!BO16 -> 0.91824 | BR118: =Tiltagsomkostninger!BP16 -> 0.91984 | BS118: =Tiltagsomkostninger!BQ16 -> 0.92144 | BT118: =Tiltagsomkostninger!BR16 -> 0.92304 | BU118: =Tiltagsomkostninger!BS16 -> 0.92464 | BV118: =Tiltagsomkostninger!BT16 -> 0.92624 | BW118: =Tiltagsomkostninger!BU16 -> 0.92784 | BX118: =Tiltagsomkostninger!BV16 -> 0.92944 | BY118: =Tiltagsomkostninger!BW16 -> 0.93104 | BZ118: =Tiltagsomkostninger!BX16 -> 0.93264 | CA118: =Tiltagsomkostninger!BY16 -> 0.93424 | CB118: =Tiltagsomkostninger!BZ16 -> 0.93584 | CC118: =Tiltagsomkostninger!CA16 -> 0.93744 | CD118: =Tiltagsomkostninger!CB16 -> 0.93904 | CE118: =Tiltagsomkostninger!CC16 -> 0.94064 | CF118: =Tiltagsomkostninger!CD16 -> 0.94224 | CG118: =Tiltagsomkostninger!CE16 -> 0.94384 | CH118: =Tiltagsomkostninger!CF16 -> 0.94544 | CI118: =Tiltagsomkostninger!CG16 -> 1.02704 | CJ118: =Tiltagsomkostninger!CH16 -> 0.94864 | CK118: =Tiltagsomkostninger!CI16 -> 0.94864 | CL118: =Tiltagsomkostninger!CJ16 -> 0.94864 | CM118: =Tiltagsomkostninger!CK16 -> 0.94864 | CN118: =Tiltagsomkostninger!CL16 -> 0.94864 | CO118: =Tiltagsomkostninger!CM16 -> 0.94864 | CP118: =Tiltagsomkostninger!CN16 -> 0.94864 | CQ118: =Tiltagsomkostninger!CO16 -> 0.94864 | CR118: =Tiltagsomkostninger!CP16 -> 0.94864 | CS118: =Tiltagsomkostninger!CQ16 -> 0.94864 | CT118: =Tiltagsomkostninger!CR16 -> 0.94864 | CU118: =Tiltagsomkostninger!CS16 -> 0.94864 | CV118: =Tiltagsomkostninger!CT16 -> 0.94864 | CW118: =Tiltagsomkostninger!CU16 -> 0.94864 | CX118: =Tiltagsomkostninger!CV16 -> 0.94864 | CY118: =Tiltagsomkostninger!CW16 -> 0.94864 | CZ118: =Tiltagsomkostninger!CX16 -> 0.94864 | DA118: =Tiltagsomkostninger!CY16 -> 0.94864 | DB118: =Tiltagsomkostninger!CZ16 -> 0.94864 | DC118: =Tiltagsomkostninger!DA16 -> -11.8371305
D119: =Tiltagsomkostninger!D17 -> Projekt | E119: =Tiltagsomkostninger!E17 ->  | H119: =Tiltagsomkostninger!F17 -> 0 | I119: =Tiltagsomkostninger!G17 -> 0 | J119: =Tiltagsomkostninger!H17 -> 0 | K119: =Tiltagsomkostninger!I17 -> 0 | L119: =Tiltagsomkostninger!J17 -> 0 | M119: =Tiltagsomkostninger!K17 -> 0 | N119: =Tiltagsomkostninger!L17 -> 0 | O119: =Tiltagsomkostninger!M17 -> 0 | P119: =Tiltagsomkostninger!N17 -> 0 | Q119: =Tiltagsomkostninger!O17 -> 0 | R119: =Tiltagsomkostninger!P17 -> 0 | S119: =Tiltagsomkostninger!Q17 -> 0 | T119: =Tiltagsomkostninger!R17 -> 0 | U119: =Tiltagsomkostninger!S17 -> 0 | V119: =Tiltagsomkostninger!T17 -> 0 | W119: =Tiltagsomkostninger!U17 -> 0 | X119: =Tiltagsomkostninger!V17 -> 0 | Y119: =Tiltagsomkostninger!W17 -> 0 | Z119: =Tiltagsomkostninger!X17 -> 0 | AA119: =Tiltagsomkostninger!Y17 -> 0 | AB119: =Tiltagsomkostninger!Z17 -> 0 | AC119: =Tiltagsomkostninger!AA17 -> 0 | AD119: =Tiltagsomkostninger!AB17 -> 0 | AE119: =Tiltagsomkostninger!AC17 -> 0 | AF119: =Tiltagsomkostninger!AD17 -> 0 | AG119: =Tiltagsomkostninger!AE17 -> 0 | AH119: =Tiltagsomkostninger!AF17 -> 0 | AI119: =Tiltagsomkostninger!AG17 -> 0 | AJ119: =Tiltagsomkostninger!AH17 -> 0 | AK119: =Tiltagsomkostninger!AI17 -> 0 | AL119: =Tiltagsomkostninger!AJ17 -> 0 | AM119: =Tiltagsomkostninger!AK17 -> 0 | AN119: =Tiltagsomkostninger!AL17 -> 0 | AO119: =Tiltagsomkostninger!AM17 -> 0 | AP119: =Tiltagsomkostninger!AN17 -> 0 | AQ119: =Tiltagsomkostninger!AO17 -> 0 | AR119: =Tiltagsomkostninger!AP17 -> 0 | AS119: =Tiltagsomkostninger!AQ17 -> 0 | AT119: =Tiltagsomkostninger!AR17 -> 0 | AU119: =Tiltagsomkostninger!AS17 -> 0 | AV119: =Tiltagsomkostninger!AT17 -> 0 | AW119: =Tiltagsomkostninger!AU17 -> 0 | AX119: =Tiltagsomkostninger!AV17 -> 0 | AY119: =Tiltagsomkostninger!AW17 -> 0 | AZ119: =Tiltagsomkostninger!AX17 -> 0 | BA119: =Tiltagsomkostninger!AY17 -> 0 | BB119: =Tiltagsomkostninger!AZ17 -> 0 | BC119: =Tiltagsomkostninger!BA17 -> 0 | BD119: =Tiltagsomkostninger!BB17 -> 0 | BE119: =Tiltagsomkostninger!BC17 -> 0 | BF119: =Tiltagsomkostninger!BD17 -> 0 | BG119: =Tiltagsomkostninger!BE17 -> 0 | BH119: =Tiltagsomkostninger!BF17 -> 0 | BI119: =Tiltagsomkostninger!BG17 -> 0 | BJ119: =Tiltagsomkostninger!BH17 -> 0 | BK119: =Tiltagsomkostninger!BI17 -> 0 | BL119: =Tiltagsomkostninger!BJ17 -> 0 | BM119: =Tiltagsomkostninger!BK17 -> 0 | BN119: =Tiltagsomkostninger!BL17 -> 0 | BO119: =Tiltagsomkostninger!BM17 -> 0 | BP119: =Tiltagsomkostninger!BN17 -> 0 | BQ119: =Tiltagsomkostninger!BO17 -> 0 | BR119: =Tiltagsomkostninger!BP17 -> 0 | BS119: =Tiltagsomkostninger!BQ17 -> 0 | BT119: =Tiltagsomkostninger!BR17 -> 0 | BU119: =Tiltagsomkostninger!BS17 -> 0 | BV119: =Tiltagsomkostninger!BT17 -> 0 | BW119: =Tiltagsomkostninger!BU17 -> 0 | BX119: =Tiltagsomkostninger!BV17 -> 0 | BY119: =Tiltagsomkostninger!BW17 -> 0 | BZ119: =Tiltagsomkostninger!BX17 -> 0 | CA119: =Tiltagsomkostninger!BY17 -> 0 | CB119: =Tiltagsomkostninger!BZ17 -> 0 | CC119: =Tiltagsomkostninger!CA17 -> 0 | CD119: =Tiltagsomkostninger!CB17 -> 0 | CE119: =Tiltagsomkostninger!CC17 -> 0 | CF119: =Tiltagsomkostninger!CD17 -> 0 | CG119: =Tiltagsomkostninger!CE17 -> 0 | CH119: =Tiltagsomkostninger!CF17 -> 0 | CI119: =Tiltagsomkostninger!CG17 -> 0 | CJ119: =Tiltagsomkostninger!CH17 -> 0 | CK119: =Tiltagsomkostninger!CI17 -> 0 | CL119: =Tiltagsomkostninger!CJ17 -> 0 | CM119: =Tiltagsomkostninger!CK17 -> 0 | CN119: =Tiltagsomkostninger!CL17 -> 0 | CO119: =Tiltagsomkostninger!CM17 -> 0 | CP119: =Tiltagsomkostninger!CN17 -> 0 | CQ119: =Tiltagsomkostninger!CO17 -> 0 | CR119: =Tiltagsomkostninger!CP17 -> 0 | CS119: =Tiltagsomkostninger!CQ17 -> 0 | CT119: =Tiltagsomkostninger!CR17 -> 0 | CU119: =Tiltagsomkostninger!CS17 -> 0 | CV119: =Tiltagsomkostninger!CT17 -> 0 | CW119: =Tiltagsomkostninger!CU17 -> 0 | CX119: =Tiltagsomkostninger!CV17 -> 0 | CY119: =Tiltagsomkostninger!CW17 -> 0 | CZ119: =Tiltagsomkostninger!CX17 -> 0 | DA119: =Tiltagsomkostninger!CY17 -> 0 | DB119: =Tiltagsomkostninger!CZ17 -> 0 | DC119: =Tiltagsomkostninger!DA17 -> 0
D120: =Tiltagsomkostninger!D18 -> Projekt | E120: =Tiltagsomkostninger!E18 ->  | H120: =Tiltagsomkostninger!F18 -> 0 | I120: =Tiltagsomkostninger!G18 -> 0 | J120: =Tiltagsomkostninger!H18 -> 0 | K120: =Tiltagsomkostninger!I18 -> 0 | L120: =Tiltagsomkostninger!J18 -> 0 | M120: =Tiltagsomkostninger!K18 -> 0 | N120: =Tiltagsomkostninger!L18 -> 0 | O120: =Tiltagsomkostninger!M18 -> 0 | P120: =Tiltagsomkostninger!N18 -> 0 | Q120: =Tiltagsomkostninger!O18 -> 0 | R120: =Tiltagsomkostninger!P18 -> 0 | S120: =Tiltagsomkostninger!Q18 -> 0 | T120: =Tiltagsomkostninger!R18 -> 0 | U120: =Tiltagsomkostninger!S18 -> 0 | V120: =Tiltagsomkostninger!T18 -> 0 | W120: =Tiltagsomkostninger!U18 -> 0 | X120: =Tiltagsomkostninger!V18 -> 0 | Y120: =Tiltagsomkostninger!W18 -> 0 | Z120: =Tiltagsomkostninger!X18 -> 0 | AA120: =Tiltagsomkostninger!Y18 -> 0 | AB120: =Tiltagsomkostninger!Z18 -> 0 | AC120: =Tiltagsomkostninger!AA18 -> 0 | AD120: =Tiltagsomkostninger!AB18 -> 0 | AE120: =Tiltagsomkostninger!AC18 -> 0 | AF120: =Tiltagsomkostninger!AD18 -> 0 | AG120: =Tiltagsomkostninger!AE18 -> 0 | AH120: =Tiltagsomkostninger!AF18 -> 0 | AI120: =Tiltagsomkostninger!AG18 -> 0 | AJ120: =Tiltagsomkostninger!AH18 -> 0 | AK120: =Tiltagsomkostninger!AI18 -> 0 | AL120: =Tiltagsomkostninger!AJ18 -> 0 | AM120: =Tiltagsomkostninger!AK18 -> 0 | AN120: =Tiltagsomkostninger!AL18 -> 0 | AO120: =Tiltagsomkostninger!AM18 -> 0 | AP120: =Tiltagsomkostninger!AN18 -> 0 | AQ120: =Tiltagsomkostninger!AO18 -> 0 | AR120: =Tiltagsomkostninger!AP18 -> 0 | AS120: =Tiltagsomkostninger!AQ18 -> 0 | AT120: =Tiltagsomkostninger!AR18 -> 0 | AU120: =Tiltagsomkostninger!AS18 -> 0 | AV120: =Tiltagsomkostninger!AT18 -> 0 | AW120: =Tiltagsomkostninger!AU18 -> 0 | AX120: =Tiltagsomkostninger!AV18 -> 0 | AY120: =Tiltagsomkostninger!AW18 -> 0 | AZ120: =Tiltagsomkostninger!AX18 -> 0 | BA120: =Tiltagsomkostninger!AY18 -> 0 | BB120: =Tiltagsomkostninger!AZ18 -> 0 | BC120: =Tiltagsomkostninger!BA18 -> 0 | BD120: =Tiltagsomkostninger!BB18 -> 0 | BE120: =Tiltagsomkostninger!BC18 -> 0 | BF120: =Tiltagsomkostninger!BD18 -> 0 | BG120: =Tiltagsomkostninger!BE18 -> 0 | BH120: =Tiltagsomkostninger!BF18 -> 0 | BI120: =Tiltagsomkostninger!BG18 -> 0 | BJ120: =Tiltagsomkostninger!BH18 -> 0 | BK120: =Tiltagsomkostninger!BI18 -> 0 | BL120: =Tiltagsomkostninger!BJ18 -> 0 | BM120: =Tiltagsomkostninger!BK18 -> 0 | BN120: =Tiltagsomkostninger!BL18 -> 0 | BO120: =Tiltagsomkostninger!BM18 -> 0 | BP120: =Tiltagsomkostninger!BN18 -> 0 | BQ120: =Tiltagsomkostninger!BO18 -> 0 | BR120: =Tiltagsomkostninger!BP18 -> 0 | BS120: =Tiltagsomkostninger!BQ18 -> 0 | BT120: =Tiltagsomkostninger!BR18 -> 0 | BU120: =Tiltagsomkostninger!BS18 -> 0 | BV120: =Tiltagsomkostninger!BT18 -> 0 | BW120: =Tiltagsomkostninger!BU18 -> 0 | BX120: =Tiltagsomkostninger!BV18 -> 0 | BY120: =Tiltagsomkostninger!BW18 -> 0 | BZ120: =Tiltagsomkostninger!BX18 -> 0 | CA120: =Tiltagsomkostninger!BY18 -> 0 | CB120: =Tiltagsomkostninger!BZ18 -> 0 | CC120: =Tiltagsomkostninger!CA18 -> 0 | CD120: =Tiltagsomkostninger!CB18 -> 0 | CE120: =Tiltagsomkostninger!CC18 -> 0 | CF120: =Tiltagsomkostninger!CD18 -> 0 | CG120: =Tiltagsomkostninger!CE18 -> 0 | CH120: =Tiltagsomkostninger!CF18 -> 0 | CI120: =Tiltagsomkostninger!CG18 -> 0 | CJ120: =Tiltagsomkostninger!CH18 -> 0 | CK120: =Tiltagsomkostninger!CI18 -> 0 | CL120: =Tiltagsomkostninger!CJ18 -> 0 | CM120: =Tiltagsomkostninger!CK18 -> 0 | CN120: =Tiltagsomkostninger!CL18 -> 0 | CO120: =Tiltagsomkostninger!CM18 -> 0 | CP120: =Tiltagsomkostninger!CN18 -> 0 | CQ120: =Tiltagsomkostninger!CO18 -> 0 | CR120: =Tiltagsomkostninger!CP18 -> 0 | CS120: =Tiltagsomkostninger!CQ18 -> 0 | CT120: =Tiltagsomkostninger!CR18 -> 0 | CU120: =Tiltagsomkostninger!CS18 -> 0 | CV120: =Tiltagsomkostninger!CT18 -> 0 | CW120: =Tiltagsomkostninger!CU18 -> 0 | CX120: =Tiltagsomkostninger!CV18 -> 0 | CY120: =Tiltagsomkostninger!CW18 -> 0 | CZ120: =Tiltagsomkostninger!CX18 -> 0 | DA120: =Tiltagsomkostninger!CY18 -> 0 | DB120: =Tiltagsomkostninger!CZ18 -> 0 | DC120: =Tiltagsomkostninger!DA18 -> 0
D121: =Tiltagsomkostninger!D19 -> Alternativ projekt | E121: =Tiltagsomkostninger!E19 -> Txx | H121: =Tiltagsomkostninger!F19 -> 1.5744 | I121: =Tiltagsomkostninger!G19 -> 1.605888 | J121: =Tiltagsomkostninger!H19 -> 1.637376 | K121: =Tiltagsomkostninger!I19 -> 1.668864 | L121: =Tiltagsomkostninger!J19 -> 1.700352 | M121: =Tiltagsomkostninger!K19 -> 1.73184 | N121: =Tiltagsomkostninger!L19 -> 1.763328 | O121: =Tiltagsomkostninger!M19 -> 1.794816 | P121: =Tiltagsomkostninger!N19 -> 1.826304 | Q121: =Tiltagsomkostninger!O19 -> 1.857792 | R121: =Tiltagsomkostninger!P19 -> 0.31488 | S121: =Tiltagsomkostninger!Q19 -> 0.31488 | T121: =Tiltagsomkostninger!R19 -> 0.31488 | U121: =Tiltagsomkostninger!S19 -> 0.31488 | V121: =Tiltagsomkostninger!T19 -> 0.31488 | W121: =Tiltagsomkostninger!U19 -> 0.31488 | X121: =Tiltagsomkostninger!V19 -> 0.31488 | Y121: =Tiltagsomkostninger!W19 -> 0.31488 | Z121: =Tiltagsomkostninger!X19 -> 0.31488 | AA121: =Tiltagsomkostninger!Y19 -> 0.31488 | AB121: =Tiltagsomkostninger!Z19 -> 0.31488 | AC121: =Tiltagsomkostninger!AA19 -> 0.31488 | AD121: =Tiltagsomkostninger!AB19 -> 0.31488 | AE121: =Tiltagsomkostninger!AC19 -> 0.31488 | AF121: =Tiltagsomkostninger!AD19 -> 0.31488 | AG121: =Tiltagsomkostninger!AE19 -> 0.31488 | AH121: =Tiltagsomkostninger!AF19 -> 0.31488 | AI121: =Tiltagsomkostninger!AG19 -> 0.31488 | AJ121: =Tiltagsomkostninger!AH19 -> 0.31488 | AK121: =Tiltagsomkostninger!AI19 -> 0.31488 | AL121: =Tiltagsomkostninger!AJ19 -> 0.31488 | AM121: =Tiltagsomkostninger!AK19 -> 0.31488 | AN121: =Tiltagsomkostninger!AL19 -> 0.31488 | AO121: =Tiltagsomkostninger!AM19 -> 0.31488 | AP121: =Tiltagsomkostninger!AN19 -> 0.31488 | AQ121: =Tiltagsomkostninger!AO19 -> 0.31488 | AR121: =Tiltagsomkostninger!AP19 -> 0.31488 | AS121: =Tiltagsomkostninger!AQ19 -> 0.31488 | AT121: =Tiltagsomkostninger!AR19 -> 0.31488 | AU121: =Tiltagsomkostninger!AS19 -> 0.31488 | AV121: =Tiltagsomkostninger!AT19 -> 0.31488 | AW121: =Tiltagsomkostninger!AU19 -> 0.31488 | AX121: =Tiltagsomkostninger!AV19 -> 0.31488 | AY121: =Tiltagsomkostninger!AW19 -> 0.31488 | AZ121: =Tiltagsomkostninger!AX19 -> 0.31488 | BA121: =Tiltagsomkostninger!AY19 -> 0.31488 | BB121: =Tiltagsomkostninger!AZ19 -> 0.31488 | BC121: =Tiltagsomkostninger!BA19 -> 0.31488 | BD121: =Tiltagsomkostninger!BB19 -> 0.31488 | BE121: =Tiltagsomkostninger!BC19 -> 0.31488 | BF121: =Tiltagsomkostninger!BD19 -> 0.31488 | BG121: =Tiltagsomkostninger!BE19 -> 0.31488 | BH121: =Tiltagsomkostninger!BF19 -> 0.31488 | BI121: =Tiltagsomkostninger!BG19 -> 0.31488 | BJ121: =Tiltagsomkostninger!BH19 -> 0.31488 | BK121: =Tiltagsomkostninger!BI19 -> 0.31488 | BL121: =Tiltagsomkostninger!BJ19 -> 0.31488 | BM121: =Tiltagsomkostninger!BK19 -> 0.31488 | BN121: =Tiltagsomkostninger!BL19 -> 0.31488 | BO121: =Tiltagsomkostninger!BM19 -> 0.31488 | BP121: =Tiltagsomkostninger!BN19 -> 0.31488 | BQ121: =Tiltagsomkostninger!BO19 -> 0.31488 | BR121: =Tiltagsomkostninger!BP19 -> 0.31488 | BS121: =Tiltagsomkostninger!BQ19 -> 0.31488 | BT121: =Tiltagsomkostninger!BR19 -> 0.31488 | BU121: =Tiltagsomkostninger!BS19 -> 0.31488 | BV121: =Tiltagsomkostninger!BT19 -> 0.31488 | BW121: =Tiltagsomkostninger!BU19 -> 0.31488 | BX121: =Tiltagsomkostninger!BV19 -> 0.31488 | BY121: =Tiltagsomkostninger!BW19 -> 0.31488 | BZ121: =Tiltagsomkostninger!BX19 -> 0.31488 | CA121: =Tiltagsomkostninger!BY19 -> 0.31488 | CB121: =Tiltagsomkostninger!BZ19 -> 0.31488 | CC121: =Tiltagsomkostninger!CA19 -> 0.31488 | CD121: =Tiltagsomkostninger!CB19 -> 0.31488 | CE121: =Tiltagsomkostninger!CC19 -> 0.31488 | CF121: =Tiltagsomkostninger!CD19 -> 0.31488 | CG121: =Tiltagsomkostninger!CE19 -> 0.31488 | CH121: =Tiltagsomkostninger!CF19 -> 0.31488 | CI121: =Tiltagsomkostninger!CG19 -> 0.31488 | CJ121: =Tiltagsomkostninger!CH19 -> 0.31488 | CK121: =Tiltagsomkostninger!CI19 -> 0.31488 | CL121: =Tiltagsomkostninger!CJ19 -> 0.31488 | CM121: =Tiltagsomkostninger!CK19 -> 0.31488 | CN121: =Tiltagsomkostninger!CL19 -> 0.31488 | CO121: =Tiltagsomkostninger!CM19 -> 0.31488 | CP121: =Tiltagsomkostninger!CN19 -> 0.31488 | CQ121: =Tiltagsomkostninger!CO19 -> 0.31488 | CR121: =Tiltagsomkostninger!CP19 -> 0.31488 | CS121: =Tiltagsomkostninger!CQ19 -> 0.31488 | CT121: =Tiltagsomkostninger!CR19 -> 0.31488 | CU121: =Tiltagsomkostninger!CS19 -> 0.31488 | CV121: =Tiltagsomkostninger!CT19 -> 0.31488 | CW121: =Tiltagsomkostninger!CU19 -> 0.31488 | CX121: =Tiltagsomkostninger!CV19 -> 0.31488 | CY121: =Tiltagsomkostninger!CW19 -> 0.31488 | CZ121: =Tiltagsomkostninger!CX19 -> 0.31488 | DA121: =Tiltagsomkostninger!CY19 -> 0.31488 | DB121: =Tiltagsomkostninger!CZ19 -> 0.31488 | DC121: =Tiltagsomkostninger!DA19 -> 0.31488
D122: =Tiltagsomkostninger!D20 -> Alternativ projekt | E122: =Tiltagsomkostninger!E20 -> Txx | H122: =Tiltagsomkostninger!F20 -> 1.92 | I122: =Tiltagsomkostninger!G20 -> 1.9584 | J122: =Tiltagsomkostninger!H20 -> 1.9968 | K122: =Tiltagsomkostninger!I20 -> 2.0352 | L122: =Tiltagsomkostninger!J20 -> 2.0736 | M122: =Tiltagsomkostninger!K20 -> 2.112 | N122: =Tiltagsomkostninger!L20 -> 2.1504 | O122: =Tiltagsomkostninger!M20 -> 2.1888 | P122: =Tiltagsomkostninger!N20 -> 2.2272 | Q122: =Tiltagsomkostninger!O20 -> 2.2656 | R122: =Tiltagsomkostninger!P20 -> 0.384 | S122: =Tiltagsomkostninger!Q20 -> 0.384 | T122: =Tiltagsomkostninger!R20 -> 0.384 | U122: =Tiltagsomkostninger!S20 -> 0.384 | V122: =Tiltagsomkostninger!T20 -> 0.384 | W122: =Tiltagsomkostninger!U20 -> 0.384 | X122: =Tiltagsomkostninger!V20 -> 0.384 | Y122: =Tiltagsomkostninger!W20 -> 0.384 | Z122: =Tiltagsomkostninger!X20 -> 0.384 | AA122: =Tiltagsomkostninger!Y20 -> 0.384 | AB122: =Tiltagsomkostninger!Z20 -> 0.384 | AC122: =Tiltagsomkostninger!AA20 -> 0.384 | AD122: =Tiltagsomkostninger!AB20 -> 0.384 | AE122: =Tiltagsomkostninger!AC20 -> 0.384 | AF122: =Tiltagsomkostninger!AD20 -> 0.384 | AG122: =Tiltagsomkostninger!AE20 -> 0.384 | AH122: =Tiltagsomkostninger!AF20 -> 0.384 | AI122: =Tiltagsomkostninger!AG20 -> 0.384 | AJ122: =Tiltagsomkostninger!AH20 -> 0.384 | AK122: =Tiltagsomkostninger!AI20 -> 0.384 | AL122: =Tiltagsomkostninger!AJ20 -> 0.384 | AM122: =Tiltagsomkostninger!AK20 -> 0.384 | AN122: =Tiltagsomkostninger!AL20 -> 0.384 | AO122: =Tiltagsomkostninger!AM20 -> 0.384 | AP122: =Tiltagsomkostninger!AN20 -> 0.384 | AQ122: =Tiltagsomkostninger!AO20 -> 0.384 | AR122: =Tiltagsomkostninger!AP20 -> 0.384 | AS122: =Tiltagsomkostninger!AQ20 -> 0.384 | AT122: =Tiltagsomkostninger!AR20 -> 0.384 | AU122: =Tiltagsomkostninger!AS20 -> 0.384 | AV122: =Tiltagsomkostninger!AT20 -> 0.384 | AW122: =Tiltagsomkostninger!AU20 -> 0.384 | AX122: =Tiltagsomkostninger!AV20 -> 0.384 | AY122: =Tiltagsomkostninger!AW20 -> 0.384 | AZ122: =Tiltagsomkostninger!AX20 -> 0.384 | BA122: =Tiltagsomkostninger!AY20 -> 0.384 | BB122: =Tiltagsomkostninger!AZ20 -> 0.384 | BC122: =Tiltagsomkostninger!BA20 -> 0.384 | BD122: =Tiltagsomkostninger!BB20 -> 0.384 | BE122: =Tiltagsomkostninger!BC20 -> 0.384 | BF122: =Tiltagsomkostninger!BD20 -> 0.384 | BG122: =Tiltagsomkostninger!BE20 -> 0.384 | BH122: =Tiltagsomkostninger!BF20 -> 0.384 | BI122: =Tiltagsomkostninger!BG20 -> 0.384 | BJ122: =Tiltagsomkostninger!BH20 -> 0.384 | BK122: =Tiltagsomkostninger!BI20 -> 0.384 | BL122: =Tiltagsomkostninger!BJ20 -> 0.384 | BM122: =Tiltagsomkostninger!BK20 -> 0.384 | BN122: =Tiltagsomkostninger!BL20 -> 0.384 | BO122: =Tiltagsomkostninger!BM20 -> 0.384 | BP122: =Tiltagsomkostninger!BN20 -> 0.384 | BQ122: =Tiltagsomkostninger!BO20 -> 0.384 | BR122: =Tiltagsomkostninger!BP20 -> 0.384 | BS122: =Tiltagsomkostninger!BQ20 -> 0.384 | BT122: =Tiltagsomkostninger!BR20 -> 0.384 | BU122: =Tiltagsomkostninger!BS20 -> 0.384 | BV122: =Tiltagsomkostninger!BT20 -> 0.384 | BW122: =Tiltagsomkostninger!BU20 -> 0.384 | BX122: =Tiltagsomkostninger!BV20 -> 0.384 | BY122: =Tiltagsomkostninger!BW20 -> 0.384 | BZ122: =Tiltagsomkostninger!BX20 -> 0.384 | CA122: =Tiltagsomkostninger!BY20 -> 0.384 | CB122: =Tiltagsomkostninger!BZ20 -> 0.384 | CC122: =Tiltagsomkostninger!CA20 -> 0.384 | CD122: =Tiltagsomkostninger!CB20 -> 0.384 | CE122: =Tiltagsomkostninger!CC20 -> 0.384 | CF122: =Tiltagsomkostninger!CD20 -> 0.384 | CG122: =Tiltagsomkostninger!CE20 -> 0.384 | CH122: =Tiltagsomkostninger!CF20 -> 0.384 | CI122: =Tiltagsomkostninger!CG20 -> 0.384 | CJ122: =Tiltagsomkostninger!CH20 -> 0.384 | CK122: =Tiltagsomkostninger!CI20 -> 0.384 | CL122: =Tiltagsomkostninger!CJ20 -> 0.384 | CM122: =Tiltagsomkostninger!CK20 -> 0.384 | CN122: =Tiltagsomkostninger!CL20 -> 0.384 | CO122: =Tiltagsomkostninger!CM20 -> 0.384 | CP122: =Tiltagsomkostninger!CN20 -> 0.384 | CQ122: =Tiltagsomkostninger!CO20 -> 0.384 | CR122: =Tiltagsomkostninger!CP20 -> 0.384 | CS122: =Tiltagsomkostninger!CQ20 -> 0.384 | CT122: =Tiltagsomkostninger!CR20 -> 0.384 | CU122: =Tiltagsomkostninger!CS20 -> 0.384 | CV122: =Tiltagsomkostninger!CT20 -> 0.384 | CW122: =Tiltagsomkostninger!CU20 -> 0.384 | CX122: =Tiltagsomkostninger!CV20 -> 0.384 | CY122: =Tiltagsomkostninger!CW20 -> 0.384 | CZ122: =Tiltagsomkostninger!CX20 -> 0.384 | DA122: =Tiltagsomkostninger!CY20 -> 0.384 | DB122: =Tiltagsomkostninger!CZ20 -> 0.384 | DC122: =Tiltagsomkostninger!DA20 -> 0.384
D123: =Tiltagsomkostninger!D21 -> Alternativ projekt | E123: =Tiltagsomkostninger!E21 ->  | H123: =Tiltagsomkostninger!F21 -> 2.56 | I123: =Tiltagsomkostninger!G21 -> 2.6112 | J123: =Tiltagsomkostninger!H21 -> 2.6624 | K123: =Tiltagsomkostninger!I21 -> 2.7136 | L123: =Tiltagsomkostninger!J21 -> 2.7648 | M123: =Tiltagsomkostninger!K21 -> 2.816 | N123: =Tiltagsomkostninger!L21 -> 2.8672 | O123: =Tiltagsomkostninger!M21 -> 2.9184 | P123: =Tiltagsomkostninger!N21 -> 2.9696 | Q123: =Tiltagsomkostninger!O21 -> 3.0208 | R123: =Tiltagsomkostninger!P21 -> 0.512 | S123: =Tiltagsomkostninger!Q21 -> 0.512 | T123: =Tiltagsomkostninger!R21 -> 0.512 | U123: =Tiltagsomkostninger!S21 -> 0.512 | V123: =Tiltagsomkostninger!T21 -> 0.512 | W123: =Tiltagsomkostninger!U21 -> 0.512 | X123: =Tiltagsomkostninger!V21 -> 0.512 | Y123: =Tiltagsomkostninger!W21 -> 0.512 | Z123: =Tiltagsomkostninger!X21 -> 0.512 | AA123: =Tiltagsomkostninger!Y21 -> 0.512 | AB123: =Tiltagsomkostninger!Z21 -> 0.512 | AC123: =Tiltagsomkostninger!AA21 -> 0.512 | AD123: =Tiltagsomkostninger!AB21 -> 0.512 | AE123: =Tiltagsomkostninger!AC21 -> 0.512 | AF123: =Tiltagsomkostninger!AD21 -> 0.512 | AG123: =Tiltagsomkostninger!AE21 -> 0.512 | AH123: =Tiltagsomkostninger!AF21 -> 0.512 | AI123: =Tiltagsomkostninger!AG21 -> 0.512 | AJ123: =Tiltagsomkostninger!AH21 -> 0.512 | AK123: =Tiltagsomkostninger!AI21 -> 0.512 | AL123: =Tiltagsomkostninger!AJ21 -> 0.512 | AM123: =Tiltagsomkostninger!AK21 -> 0.512 | AN123: =Tiltagsomkostninger!AL21 -> 0.512 | AO123: =Tiltagsomkostninger!AM21 -> 0.512 | AP123: =Tiltagsomkostninger!AN21 -> 0.512 | AQ123: =Tiltagsomkostninger!AO21 -> 0.512 | AR123: =Tiltagsomkostninger!AP21 -> 0.512 | AS123: =Tiltagsomkostninger!AQ21 -> 0.512 | AT123: =Tiltagsomkostninger!AR21 -> 0.512 | AU123: =Tiltagsomkostninger!AS21 -> 0.512 | AV123: =Tiltagsomkostninger!AT21 -> 0.512 | AW123: =Tiltagsomkostninger!AU21 -> 0.512 | AX123: =Tiltagsomkostninger!AV21 -> 0.512 | AY123: =Tiltagsomkostninger!AW21 -> 0.512 | AZ123: =Tiltagsomkostninger!AX21 -> 0.512 | BA123: =Tiltagsomkostninger!AY21 -> 0.512 | BB123: =Tiltagsomkostninger!AZ21 -> 0.512 | BC123: =Tiltagsomkostninger!BA21 -> 0.512 | BD123: =Tiltagsomkostninger!BB21 -> 0.512 | BE123: =Tiltagsomkostninger!BC21 -> 0.512 | BF123: =Tiltagsomkostninger!BD21 -> 0.512 | BG123: =Tiltagsomkostninger!BE21 -> 0.512 | BH123: =Tiltagsomkostninger!BF21 -> 0.512 | BI123: =Tiltagsomkostninger!BG21 -> 0.512 | BJ123: =Tiltagsomkostninger!BH21 -> 0.512 | BK123: =Tiltagsomkostninger!BI21 -> 0.512 | BL123: =Tiltagsomkostninger!BJ21 -> 0.512 | BM123: =Tiltagsomkostninger!BK21 -> 0.512 | BN123: =Tiltagsomkostninger!BL21 -> 0.512 | BO123: =Tiltagsomkostninger!BM21 -> 0.512 | BP123: =Tiltagsomkostninger!BN21 -> 0.512 | BQ123: =Tiltagsomkostninger!BO21 -> 0.512 | BR123: =Tiltagsomkostninger!BP21 -> 0.512 | BS123: =Tiltagsomkostninger!BQ21 -> 0.512 | BT123: =Tiltagsomkostninger!BR21 -> 0.512 | BU123: =Tiltagsomkostninger!BS21 -> 0.512 | BV123: =Tiltagsomkostninger!BT21 -> 0.512 | BW123: =Tiltagsomkostninger!BU21 -> 0.512 | BX123: =Tiltagsomkostninger!BV21 -> 0.512 | BY123: =Tiltagsomkostninger!BW21 -> 0.512 | BZ123: =Tiltagsomkostninger!BX21 -> 0.512 | CA123: =Tiltagsomkostninger!BY21 -> 0.512 | CB123: =Tiltagsomkostninger!BZ21 -> 0.512 | CC123: =Tiltagsomkostninger!CA21 -> 0.512 | CD123: =Tiltagsomkostninger!CB21 -> 0.512 | CE123: =Tiltagsomkostninger!CC21 -> 0.512 | CF123: =Tiltagsomkostninger!CD21 -> 0.512 | CG123: =Tiltagsomkostninger!CE21 -> 0.512 | CH123: =Tiltagsomkostninger!CF21 -> 0.512 | CI123: =Tiltagsomkostninger!CG21 -> 0.512 | CJ123: =Tiltagsomkostninger!CH21 -> 0.512 | CK123: =Tiltagsomkostninger!CI21 -> 0.512 | CL123: =Tiltagsomkostninger!CJ21 -> 0.512 | CM123: =Tiltagsomkostninger!CK21 -> 0.512 | CN123: =Tiltagsomkostninger!CL21 -> 0.512 | CO123: =Tiltagsomkostninger!CM21 -> 0.512 | CP123: =Tiltagsomkostninger!CN21 -> 0.512 | CQ123: =Tiltagsomkostninger!CO21 -> 0.512 | CR123: =Tiltagsomkostninger!CP21 -> 0.512 | CS123: =Tiltagsomkostninger!CQ21 -> 0.512 | CT123: =Tiltagsomkostninger!CR21 -> 0.512 | CU123: =Tiltagsomkostninger!CS21 -> 0.512 | CV123: =Tiltagsomkostninger!CT21 -> 0.512 | CW123: =Tiltagsomkostninger!CU21 -> 0.512 | CX123: =Tiltagsomkostninger!CV21 -> 0.512 | CY123: =Tiltagsomkostninger!CW21 -> 0.512 | CZ123: =Tiltagsomkostninger!CX21 -> 0.512 | DA123: =Tiltagsomkostninger!CY21 -> 0.512 | DB123: =Tiltagsomkostninger!CZ21 -> 0.512 | DC123: =Tiltagsomkostninger!DA21 -> 0.512
D124: =Tiltagsomkostninger!D22 -> Alternativ projekt | E124: =Tiltagsomkostninger!E22 ->  | H124: =Tiltagsomkostninger!F22 -> 0 | I124: =Tiltagsomkostninger!G22 -> 0 | J124: =Tiltagsomkostninger!H22 -> 0 | K124: =Tiltagsomkostninger!I22 -> 0 | L124: =Tiltagsomkostninger!J22 -> 0 | M124: =Tiltagsomkostninger!K22 -> 0 | N124: =Tiltagsomkostninger!L22 -> 0 | O124: =Tiltagsomkostninger!M22 -> 0 | P124: =Tiltagsomkostninger!N22 -> 0 | Q124: =Tiltagsomkostninger!O22 -> 0 | R124: =Tiltagsomkostninger!P22 -> 0 | S124: =Tiltagsomkostninger!Q22 -> 0 | T124: =Tiltagsomkostninger!R22 -> 0 | U124: =Tiltagsomkostninger!S22 -> 0 | V124: =Tiltagsomkostninger!T22 -> 0 | W124: =Tiltagsomkostninger!U22 -> 0 | X124: =Tiltagsomkostninger!V22 -> 0 | Y124: =Tiltagsomkostninger!W22 -> 0 | Z124: =Tiltagsomkostninger!X22 -> 0 | AA124: =Tiltagsomkostninger!Y22 -> 0 | AB124: =Tiltagsomkostninger!Z22 -> 0 | AC124: =Tiltagsomkostninger!AA22 -> 0 | AD124: =Tiltagsomkostninger!AB22 -> 0 | AE124: =Tiltagsomkostninger!AC22 -> 0 | AF124: =Tiltagsomkostninger!AD22 -> 0 | AG124: =Tiltagsomkostninger!AE22 -> 0 | AH124: =Tiltagsomkostninger!AF22 -> 0 | AI124: =Tiltagsomkostninger!AG22 -> 0 | AJ124: =Tiltagsomkostninger!AH22 -> 0 | AK124: =Tiltagsomkostninger!AI22 -> 0 | AL124: =Tiltagsomkostninger!AJ22 -> 0 | AM124: =Tiltagsomkostninger!AK22 -> 0 | AN124: =Tiltagsomkostninger!AL22 -> 0 | AO124: =Tiltagsomkostninger!AM22 -> 0 | AP124: =Tiltagsomkostninger!AN22 -> 0 | AQ124: =Tiltagsomkostninger!AO22 -> 0 | AR124: =Tiltagsomkostninger!AP22 -> 0 | AS124: =Tiltagsomkostninger!AQ22 -> 0 | AT124: =Tiltagsomkostninger!AR22 -> 0 | AU124: =Tiltagsomkostninger!AS22 -> 0 | AV124: =Tiltagsomkostninger!AT22 -> 0 | AW124: =Tiltagsomkostninger!AU22 -> 0 | AX124: =Tiltagsomkostninger!AV22 -> 0 | AY124: =Tiltagsomkostninger!AW22 -> 0 | AZ124: =Tiltagsomkostninger!AX22 -> 0 | BA124: =Tiltagsomkostninger!AY22 -> 0 | BB124: =Tiltagsomkostninger!AZ22 -> 0 | BC124: =Tiltagsomkostninger!BA22 -> 0 | BD124: =Tiltagsomkostninger!BB22 -> 0 | BE124: =Tiltagsomkostninger!BC22 -> 0 | BF124: =Tiltagsomkostninger!BD22 -> 0 | BG124: =Tiltagsomkostninger!BE22 -> 0 | BH124: =Tiltagsomkostninger!BF22 -> 0 | BI124: =Tiltagsomkostninger!BG22 -> 0 | BJ124: =Tiltagsomkostninger!BH22 -> 0 | BK124: =Tiltagsomkostninger!BI22 -> 0 | BL124: =Tiltagsomkostninger!BJ22 -> 0 | BM124: =Tiltagsomkostninger!BK22 -> 0 | BN124: =Tiltagsomkostninger!BL22 -> 0 | BO124: =Tiltagsomkostninger!BM22 -> 0 | BP124: =Tiltagsomkostninger!BN22 -> 0 | BQ124: =Tiltagsomkostninger!BO22 -> 0 | BR124: =Tiltagsomkostninger!BP22 -> 0 | BS124: =Tiltagsomkostninger!BQ22 -> 0 | BT124: =Tiltagsomkostninger!BR22 -> 0 | BU124: =Tiltagsomkostninger!BS22 -> 0 | BV124: =Tiltagsomkostninger!BT22 -> 0 | BW124: =Tiltagsomkostninger!BU22 -> 0 | BX124: =Tiltagsomkostninger!BV22 -> 0 | BY124: =Tiltagsomkostninger!BW22 -> 0 | BZ124: =Tiltagsomkostninger!BX22 -> 0 | CA124: =Tiltagsomkostninger!BY22 -> 0 | CB124: =Tiltagsomkostninger!BZ22 -> 0 | CC124: =Tiltagsomkostninger!CA22 -> 0 | CD124: =Tiltagsomkostninger!CB22 -> 0 | CE124: =Tiltagsomkostninger!CC22 -> 0 | CF124: =Tiltagsomkostninger!CD22 -> 0 | CG124: =Tiltagsomkostninger!CE22 -> 0 | CH124: =Tiltagsomkostninger!CF22 -> 0 | CI124: =Tiltagsomkostninger!CG22 -> 0 | CJ124: =Tiltagsomkostninger!CH22 -> 0 | CK124: =Tiltagsomkostninger!CI22 -> 0 | CL124: =Tiltagsomkostninger!CJ22 -> 0 | CM124: =Tiltagsomkostninger!CK22 -> 0 | CN124: =Tiltagsomkostninger!CL22 -> 0 | CO124: =Tiltagsomkostninger!CM22 -> 0 | CP124: =Tiltagsomkostninger!CN22 -> 0 | CQ124: =Tiltagsomkostninger!CO22 -> 0 | CR124: =Tiltagsomkostninger!CP22 -> 0 | CS124: =Tiltagsomkostninger!CQ22 -> 0 | CT124: =Tiltagsomkostninger!CR22 -> 0 | CU124: =Tiltagsomkostninger!CS22 -> 0 | CV124: =Tiltagsomkostninger!CT22 -> 0 | CW124: =Tiltagsomkostninger!CU22 -> 0 | CX124: =Tiltagsomkostninger!CV22 -> 0 | CY124: =Tiltagsomkostninger!CW22 -> 0 | CZ124: =Tiltagsomkostninger!CX22 -> 0 | DA124: =Tiltagsomkostninger!CY22 -> 0 | DB124: =Tiltagsomkostninger!CZ22 -> 0 | DC124: =Tiltagsomkostninger!DA22 -> 0
D125: =Tiltagsomkostninger!D23 -> Alternativ projekt | E125: =Tiltagsomkostninger!E23 ->  | H125: =Tiltagsomkostninger!F23 -> 0 | I125: =Tiltagsomkostninger!G23 -> 0 | J125: =Tiltagsomkostninger!H23 -> 0 | K125: =Tiltagsomkostninger!I23 -> 0 | L125: =Tiltagsomkostninger!J23 -> 0 | M125: =Tiltagsomkostninger!K23 -> 0 | N125: =Tiltagsomkostninger!L23 -> 0 | O125: =Tiltagsomkostninger!M23 -> 0 | P125: =Tiltagsomkostninger!N23 -> 0 | Q125: =Tiltagsomkostninger!O23 -> 0 | R125: =Tiltagsomkostninger!P23 -> 0 | S125: =Tiltagsomkostninger!Q23 -> 0 | T125: =Tiltagsomkostninger!R23 -> 0 | U125: =Tiltagsomkostninger!S23 -> 0 | V125: =Tiltagsomkostninger!T23 -> 0 | W125: =Tiltagsomkostninger!U23 -> 0 | X125: =Tiltagsomkostninger!V23 -> 0 | Y125: =Tiltagsomkostninger!W23 -> 0 | Z125: =Tiltagsomkostninger!X23 -> 0 | AA125: =Tiltagsomkostninger!Y23 -> 0 | AB125: =Tiltagsomkostninger!Z23 -> 0 | AC125: =Tiltagsomkostninger!AA23 -> 0 | AD125: =Tiltagsomkostninger!AB23 -> 0 | AE125: =Tiltagsomkostninger!AC23 -> 0 | AF125: =Tiltagsomkostninger!AD23 -> 0 | AG125: =Tiltagsomkostninger!AE23 -> 0 | AH125: =Tiltagsomkostninger!AF23 -> 0 | AI125: =Tiltagsomkostninger!AG23 -> 0 | AJ125: =Tiltagsomkostninger!AH23 -> 0 | AK125: =Tiltagsomkostninger!AI23 -> 0 | AL125: =Tiltagsomkostninger!AJ23 -> 0 | AM125: =Tiltagsomkostninger!AK23 -> 0 | AN125: =Tiltagsomkostninger!AL23 -> 0 | AO125: =Tiltagsomkostninger!AM23 -> 0 | AP125: =Tiltagsomkostninger!AN23 -> 0 | AQ125: =Tiltagsomkostninger!AO23 -> 0 | AR125: =Tiltagsomkostninger!AP23 -> 0 | AS125: =Tiltagsomkostninger!AQ23 -> 0 | AT125: =Tiltagsomkostninger!AR23 -> 0 | AU125: =Tiltagsomkostninger!AS23 -> 0 | AV125: =Tiltagsomkostninger!AT23 -> 0 | AW125: =Tiltagsomkostninger!AU23 -> 0 | AX125: =Tiltagsomkostninger!AV23 -> 0 | AY125: =Tiltagsomkostninger!AW23 -> 0 | AZ125: =Tiltagsomkostninger!AX23 -> 0 | BA125: =Tiltagsomkostninger!AY23 -> 0 | BB125: =Tiltagsomkostninger!AZ23 -> 0 | BC125: =Tiltagsomkostninger!BA23 -> 0 | BD125: =Tiltagsomkostninger!BB23 -> 0 | BE125: =Tiltagsomkostninger!BC23 -> 0 | BF125: =Tiltagsomkostninger!BD23 -> 0 | BG125: =Tiltagsomkostninger!BE23 -> 0 | BH125: =Tiltagsomkostninger!BF23 -> 0 | BI125: =Tiltagsomkostninger!BG23 -> 0 | BJ125: =Tiltagsomkostninger!BH23 -> 0 | BK125: =Tiltagsomkostninger!BI23 -> 0 | BL125: =Tiltagsomkostninger!BJ23 -> 0 | BM125: =Tiltagsomkostninger!BK23 -> 0 | BN125: =Tiltagsomkostninger!BL23 -> 0 | BO125: =Tiltagsomkostninger!BM23 -> 0 | BP125: =Tiltagsomkostninger!BN23 -> 0 | BQ125: =Tiltagsomkostninger!BO23 -> 0 | BR125: =Tiltagsomkostninger!BP23 -> 0 | BS125: =Tiltagsomkostninger!BQ23 -> 0 | BT125: =Tiltagsomkostninger!BR23 -> 0 | BU125: =Tiltagsomkostninger!BS23 -> 0 | BV125: =Tiltagsomkostninger!BT23 -> 0 | BW125: =Tiltagsomkostninger!BU23 -> 0 | BX125: =Tiltagsomkostninger!BV23 -> 0 | BY125: =Tiltagsomkostninger!BW23 -> 0 | BZ125: =Tiltagsomkostninger!BX23 -> 0 | CA125: =Tiltagsomkostninger!BY23 -> 0 | CB125: =Tiltagsomkostninger!BZ23 -> 0 | CC125: =Tiltagsomkostninger!CA23 -> 0 | CD125: =Tiltagsomkostninger!CB23 -> 0 | CE125: =Tiltagsomkostninger!CC23 -> 0 | CF125: =Tiltagsomkostninger!CD23 -> 0 | CG125: =Tiltagsomkostninger!CE23 -> 0 | CH125: =Tiltagsomkostninger!CF23 -> 0 | CI125: =Tiltagsomkostninger!CG23 -> 0 | CJ125: =Tiltagsomkostninger!CH23 -> 0 | CK125: =Tiltagsomkostninger!CI23 -> 0 | CL125: =Tiltagsomkostninger!CJ23 -> 0 | CM125: =Tiltagsomkostninger!CK23 -> 0 | CN125: =Tiltagsomkostninger!CL23 -> 0 | CO125: =Tiltagsomkostninger!CM23 -> 0 | CP125: =Tiltagsomkostninger!CN23 -> 0 | CQ125: =Tiltagsomkostninger!CO23 -> 0 | CR125: =Tiltagsomkostninger!CP23 -> 0 | CS125: =Tiltagsomkostninger!CQ23 -> 0 | CT125: =Tiltagsomkostninger!CR23 -> 0 | CU125: =Tiltagsomkostninger!CS23 -> 0 | CV125: =Tiltagsomkostninger!CT23 -> 0 | CW125: =Tiltagsomkostninger!CU23 -> 0 | CX125: =Tiltagsomkostninger!CV23 -> 0 | CY125: =Tiltagsomkostninger!CW23 -> 0 | CZ125: =Tiltagsomkostninger!CX23 -> 0 | DA125: =Tiltagsomkostninger!CY23 -> 0 | DB125: =Tiltagsomkostninger!CZ23 -> 0 | DC125: =Tiltagsomkostninger!DA23 -> 0
D127: Skadesomkostninger
H129: =Skadesomkostninger!F11 -> 0 | I129: =Skadesomkostninger!G11 -> 1 | J129: =Skadesomkostninger!H11 -> 2 | K129: =Skadesomkostninger!I11 -> 3 | L129: =Skadesomkostninger!J11 -> 4 | M129: =Skadesomkostninger!K11 -> 5 | N129: =Skadesomkostninger!L11 -> 6 | O129: =Skadesomkostninger!M11 -> 7 | P129: =Skadesomkostninger!N11 -> 8 | Q129: =Skadesomkostninger!O11 -> 9 | R129: =Skadesomkostninger!P11 -> 10 | S129: =Skadesomkostninger!Q11 -> 11 | T129: =Skadesomkostninger!R11 -> 12 | U129: =Skadesomkostninger!S11 -> 13 | V129: =Skadesomkostninger!T11 -> 14 | W129: =Skadesomkostninger!U11 -> 15 | X129: =Skadesomkostninger!V11 -> 16 | Y129: =Skadesomkostninger!W11 -> 17 | Z129: =Skadesomkostninger!X11 -> 18 | AA129: =Skadesomkostninger!Y11 -> 19 | AB129: =Skadesomkostninger!Z11 -> 20 | AC129: =Skadesomkostninger!AA11 -> 21 | AD129: =Skadesomkostninger!AB11 -> 22 | AE129: =Skadesomkostninger!AC11 -> 23 | AF129: =Skadesomkostninger!AD11 -> 24 | AG129: =Skadesomkostninger!AE11 -> 25 | AH129: =Skadesomkostninger!AF11 -> 26 | AI129: =Skadesomkostninger!AG11 -> 27 | AJ129: =Skadesomkostninger!AH11 -> 28 | AK129: =Skadesomkostninger!AI11 -> 29 | AL129: =Skadesomkostninger!AJ11 -> 30 | AM129: =Skadesomkostninger!AK11 -> 31 | AN129: =Skadesomkostninger!AL11 -> 32 | AO129: =Skadesomkostninger!AM11 -> 33 | AP129: =Skadesomkostninger!AN11 -> 34 | AQ129: =Skadesomkostninger!AO11 -> 35 | AR129: =Skadesomkostninger!AP11 -> 36 | AS129: =Skadesomkostninger!AQ11 -> 37 | AT129: =Skadesomkostninger!AR11 -> 38 | AU129: =Skadesomkostninger!AS11 -> 39 | AV129: =Skadesomkostninger!AT11 -> 40 | AW129: =Skadesomkostninger!AU11 -> 41 | AX129: =Skadesomkostninger!AV11 -> 42 | AY129: =Skadesomkostninger!AW11 -> 43 | AZ129: =Skadesomkostninger!AX11 -> 44 | BA129: =Skadesomkostninger!AY11 -> 45 | BB129: =Skadesomkostninger!AZ11 -> 46 | BC129: =Skadesomkostninger!BA11 -> 47 | BD129: =Skadesomkostninger!BB11 -> 48 | BE129: =Skadesomkostninger!BC11 -> 49 | BF129: =Skadesomkostninger!BD11 -> 50 | BG129: =Skadesomkostninger!BE11 -> 51 | BH129: =Skadesomkostninger!BF11 -> 52 | BI129: =Skadesomkostninger!BG11 -> 53 | BJ129: =Skadesomkostninger!BH11 -> 54 | BK129: =Skadesomkostninger!BI11 -> 55 | BL129: =Skadesomkostninger!BJ11 -> 56 | BM129: =Skadesomkostninger!BK11 -> 57 | BN129: =Skadesomkostninger!BL11 -> 58 | BO129: =Skadesomkostninger!BM11 -> 59 | BP129: =Skadesomkostninger!BN11 -> 60 | BQ129: =Skadesomkostninger!BO11 -> 61 | BR129: =Skadesomkostninger!BP11 -> 62 | BS129: =Skadesomkostninger!BQ11 -> 63 | BT129: =Skadesomkostninger!BR11 -> 64 | BU129: =Skadesomkostninger!BS11 -> 65 | BV129: =Skadesomkostninger!BT11 -> 66 | BW129: =Skadesomkostninger!BU11 -> 67 | BX129: =Skadesomkostninger!BV11 -> 68 | BY129: =Skadesomkostninger!BW11 -> 69 | BZ129: =Skadesomkostninger!BX11 -> 70 | CA129: =Skadesomkostninger!BY11 -> 71 | CB129: =Skadesomkostninger!BZ11 -> 72 | CC129: =Skadesomkostninger!CA11 -> 73 | CD129: =Skadesomkostninger!CB11 -> 74 | CE129: =Skadesomkostninger!CC11 -> 75 | CF129: =Skadesomkostninger!CD11 -> 76 | CG129: =Skadesomkostninger!CE11 -> 77 | CH129: =Skadesomkostninger!CF11 -> 78 | CI129: =Skadesomkostninger!CG11 -> 79 | CJ129: =Skadesomkostninger!CH11 -> 80 | CK129: =Skadesomkostninger!CI11 -> 81 | CL129: =Skadesomkostninger!CJ11 -> 82 | CM129: =Skadesomkostninger!CK11 -> 83 | CN129: =Skadesomkostninger!CL11 -> 84 | CO129: =Skadesomkostninger!CM11 -> 85 | CP129: =Skadesomkostninger!CN11 -> 86 | CQ129: =Skadesomkostninger!CO11 -> 87 | CR129: =Skadesomkostninger!CP11 -> 88 | CS129: =Skadesomkostninger!CQ11 -> 89 | CT129: =Skadesomkostninger!CR11 -> 90 | CU129: =Skadesomkostninger!CS11 -> 91 | CV129: =Skadesomkostninger!CT11 -> 92 | CW129: =Skadesomkostninger!CU11 -> 93 | CX129: =Skadesomkostninger!CV11 -> 94 | CY129: =Skadesomkostninger!CW11 -> 95 | CZ129: =Skadesomkostninger!CX11 -> 96 | DA129: =Skadesomkostninger!CY11 -> 97 | DB129: =Skadesomkostninger!CZ11 -> 98 | DC129: =Skadesomkostninger!DA11 -> 99
D130: =Skadesomkostninger!D12 -> Baseline | H130: =Skadesomkostninger!F12 -> 1.978015232 | I130: =Skadesomkostninger!G12 -> 2.035949937 | J130: =Skadesomkostninger!H12 -> 2.064921075 | K130: =Skadesomkostninger!I12 -> 2.093908885 | L130: =Skadesomkostninger!J12 -> 2.122878688 | M130: =Skadesomkostninger!K12 -> 2.151892577 | N130: =Skadesomkostninger!L12 -> 2.180878333 | O130: =Skadesomkostninger!M12 -> 2.20990204 | P130: =Skadesomkostninger!N12 -> 2.238905444 | Q130: =Skadesomkostninger!O12 -> 2.268013238 | R130: =Skadesomkostninger!P12 -> 2.29712471 | S130: =Skadesomkostninger!Q12 -> 2.326267012 | T130: =Skadesomkostninger!R12 -> 2.355381976 | U130: =Skadesomkostninger!S12 -> 2.384547264 | V130: =Skadesomkostninger!T12 -> 2.413671399 | W130: =Skadesomkostninger!U12 -> 2.44285462 | X130: =Skadesomkostninger!V12 -> 2.472001041 | Y130: =Skadesomkostninger!W12 -> 2.501178502 | Z130: =Skadesomkostninger!X12 -> 2.530358045 | AA130: =Skadesomkostninger!Y12 -> 2.559517554 | AB130: =Skadesomkostninger!Z12 -> 2.588813839 | AC130: =Skadesomkostninger!AA12 -> 2.618101574 | AD130: =Skadesomkostninger!AB12 -> 2.647424796 | AE130: =Skadesomkostninger!AC12 -> 2.676757579 | AF130: =Skadesomkostninger!AD12 -> 2.706275895 | AG130: =Skadesomkostninger!AE12 -> 2.740231133 | AH130: =Skadesomkostninger!AF12 -> 2.774161326 | AI130: =Skadesomkostninger!AG12 -> 2.807633288 | AJ130: =Skadesomkostninger!AH12 -> 2.84107441 | AK130: =Skadesomkostninger!AI12 -> 2.874458364 | AL130: =Skadesomkostninger!AJ12 -> 2.907787518 | AM130: =Skadesomkostninger!AK12 -> 2.941207527 | AN130: =Skadesomkostninger!AL12 -> 2.974591562 | AO130: =Skadesomkostninger!AM12 -> 3.007925977 | AP130: =Skadesomkostninger!AN12 -> 3.04143564 | AQ130: =Skadesomkostninger!AO12 -> 3.07495819 | AR130: =Skadesomkostninger!AP12 -> 3.108432554 | AS130: =Skadesomkostninger!AQ12 -> 3.14188157 | AT130: =Skadesomkostninger!AR12 -> 3.175414651 | AU130: =Skadesomkostninger!AS12 -> 3.208902133 | AV130: =Skadesomkostninger!AT12 -> 3.242345499 | AW130: =Skadesomkostninger!AU12 -> 3.275785872 | AX130: =Skadesomkostninger!AV12 -> 3.309302684 | AY130: =Skadesomkostninger!AW12 -> 3.342767868 | AZ130: =Skadesomkostninger!AX12 -> 3.376161085 | BA130: =Skadesomkostninger!AY12 -> 3.40959514 | BB130: =Skadesomkostninger!AZ12 -> 3.443085646 | BC130: =Skadesomkostninger!BA12 -> 3.476531151 | BD130: =Skadesomkostninger!BB12 -> 3.509920793 | BE130: =Skadesomkostninger!BC12 -> 3.543248919 | BF130: =Skadesomkostninger!BD12 -> 3.5767604 | BG130: =Skadesomkostninger!BE12 -> 3.61026214 | BH130: =Skadesomkostninger!BF12 -> 3.643843909 | BI130: =Skadesomkostninger!BG12 -> 3.67733119 | BJ130: =Skadesomkostninger!BH12 -> 3.710879252 | BK130: =Skadesomkostninger!BI12 -> 3.744495162 | BL130: =Skadesomkostninger!BJ12 -> 3.778094185 | BM130: =Skadesomkostninger!BK12 -> 3.81159613 | BN130: =Skadesomkostninger!BL12 -> 3.845074062 | BO130: =Skadesomkostninger!BM12 -> 3.878520608 | BP130: =Skadesomkostninger!BN12 -> 3.912141097 | BQ130: =Skadesomkostninger!BO12 -> 3.945699304 | BR130: =Skadesomkostninger!BP12 -> 3.979188762 | BS130: =Skadesomkostninger!BQ12 -> 4.012651915 | BT130: =Skadesomkostninger!BR12 -> 4.051465348 | BU130: =Skadesomkostninger!BS12 -> 4.092465878 | BV130: =Skadesomkostninger!BT12 -> 4.133484458 | BW130: =Skadesomkostninger!BU12 -> 4.174457482 | BX130: =Skadesomkostninger!BV12 -> 4.215398447 | BY130: =Skadesomkostninger!BW12 -> 4.256222587 | BZ130: =Skadesomkostninger!BX12 -> 4.297036265 | CA130: =Skadesomkostninger!BY12 -> 4.337925244 | CB130: =Skadesomkostninger!BZ12 -> 4.378907688 | CC130: =Skadesomkostninger!CA12 -> 4.41987987 | CD130: =Skadesomkostninger!CB12 -> 4.460742022 | CE130: =Skadesomkostninger!CC12 -> 4.501790403 | CF130: =Skadesomkostninger!CD12 -> 4.54282738 | CG130: =Skadesomkostninger!CE12 -> 4.583734564 | CH130: =Skadesomkostninger!CF12 -> 4.624846355 | CI130: =Skadesomkostninger!CG12 -> 4.666061209 | CJ130: =Skadesomkostninger!CH12 -> 4.707150282 | CK130: =Skadesomkostninger!CI12 -> 4.748183777 | CL130: =Skadesomkostninger!CJ12 -> 4.789205166 | CM130: =Skadesomkostninger!CK12 -> 4.830132815 | CN130: =Skadesomkostninger!CL12 -> 4.870962337 | CO130: =Skadesomkostninger!CM12 -> 4.911830279 | CP130: =Skadesomkostninger!CN12 -> 4.953025502 | CQ130: =Skadesomkostninger!CO12 -> 4.99404306 | CR130: =Skadesomkostninger!CP12 -> 5.035047609 | CS130: =Skadesomkostninger!CQ12 -> 5.076039058 | CT130: =Skadesomkostninger!CR12 -> 5.116931709 | CU130: =Skadesomkostninger!CS12 -> 5.157708681 | CV130: =Skadesomkostninger!CT12 -> 5.19847291 | CW130: =Skadesomkostninger!CU12 -> 5.239222803 | CX130: =Skadesomkostninger!CV12 -> 5.280128668 | CY130: =Skadesomkostninger!CW12 -> 5.321105069 | CZ130: =Skadesomkostninger!CX12 -> 5.362067776 | DA130: =Skadesomkostninger!CY12 -> 5.403016967 | DB130: =Skadesomkostninger!CZ12 -> 5.443830005 | DC130: =Skadesomkostninger!DA12 -> 5.484537107
D131: =Skadesomkostninger!D13 -> Txx | H131: =Skadesomkostninger!F13 -> 0.8224682447 | I131: =Skadesomkostninger!G13 -> 0.8514657581 | J131: =Skadesomkostninger!H13 -> 0.8660375887 | K131: =Skadesomkostninger!I13 -> 0.8806810383 | L131: =Skadesomkostninger!J13 -> 0.8953458763 | M131: =Skadesomkostninger!K13 -> 0.9101181424 | N131: =Skadesomkostninger!L13 -> 0.9249001554 | O131: =Skadesomkostninger!M13 -> 0.9397807338 | P131: =Skadesomkostninger!N13 -> 0.9546809881 | Q131: =Skadesomkostninger!O13 -> 0.9702571043 | R131: =Skadesomkostninger!P13 -> 0.986005567 | S131: =Skadesomkostninger!Q13 -> 1.001848733 | T131: =Skadesomkostninger!R13 -> 1.017701144 | U131: =Skadesomkostninger!S13 -> 1.033670175 | V131: =Skadesomkostninger!T13 -> 1.049628118 | W131: =Skadesomkostninger!U13 -> 1.065720086 | X131: =Skadesomkostninger!V13 -> 1.081809713 | Y131: =Skadesomkostninger!W13 -> 1.097990617 | Z131: =Skadesomkostninger!X13 -> 1.114222475 | AA131: =Skadesomkostninger!Y13 -> 1.130474526 | AB131: =Skadesomkostninger!Z13 -> 1.147474008 | AC131: =Skadesomkostninger!AA13 -> 1.164732855 | AD131: =Skadesomkostninger!AB13 -> 1.182090661 | AE131: =Skadesomkostninger!AC13 -> 1.199511043 | AF131: =Skadesomkostninger!AD13 -> 1.216920002 | AG131: =Skadesomkostninger!AE13 -> 1.234488535 | AH131: =Skadesomkostninger!AF13 -> 1.252070855 | AI131: =Skadesomkostninger!AG13 -> 1.268990419 | AJ131: =Skadesomkostninger!AH13 -> 1.285892805 | AK131: =Skadesomkostninger!AI13 -> 1.302769226 | AL131: =Skadesomkostninger!AJ13 -> 1.319617861 | AM131: =Skadesomkostninger!AK13 -> 1.33664039 | AN131: =Skadesomkostninger!AL13 -> 1.35365735 | AO131: =Skadesomkostninger!AM13 -> 1.370648075 | AP131: =Skadesomkostninger!AN13 -> 1.388811344 | AQ131: =Skadesomkostninger!AO13 -> 1.407077577 | AR131: =Skadesomkostninger!AP13 -> 1.425317898 | AS131: =Skadesomkostninger!AQ13 -> 1.443565973 | AT131: =Skadesomkostninger!AR13 -> 1.46199866 | AU131: =Skadesomkostninger!AS13 -> 1.480406131 | AV131: =Skadesomkostninger!AT13 -> 1.498788863 | AW131: =Skadesomkostninger!AU13 -> 1.517240949 | AX131: =Skadesomkostninger!AV13 -> 1.535834855 | AY131: =Skadesomkostninger!AW13 -> 1.554400962 | AZ131: =Skadesomkostninger!AX13 -> 1.572931608 | BA131: =Skadesomkostninger!AY13 -> 1.591547619 | BB131: =Skadesomkostninger!AZ13 -> 1.61031328 | BC131: =Skadesomkostninger!BA13 -> 1.629053185 | BD131: =Skadesomkostninger!BB13 -> 1.647763332 | BE131: =Skadesomkostninger!BC13 -> 1.666446505 | BF131: =Skadesomkostninger!BD13 -> 1.685417626 | BG131: =Skadesomkostninger!BE13 -> 1.704925222 | BH131: =Skadesomkostninger!BF13 -> 1.725244888 | BI131: =Skadesomkostninger!BG13 -> 1.745519937 | BJ131: =Skadesomkostninger!BH13 -> 1.765889199 | BK131: =Skadesomkostninger!BI13 -> 1.78644725 | BL131: =Skadesomkostninger!BJ13 -> 1.806989246 | BM131: =Skadesomkostninger!BK13 -> 1.827485277 | BN131: =Skadesomkostninger!BL13 -> 1.847962334 | BO131: =Skadesomkostninger!BM13 -> 1.868473447 | BP131: =Skadesomkostninger!BN13 -> 1.889260953 | BQ131: =Skadesomkostninger!BO13 -> 1.910015259 | BR131: =Skadesomkostninger!BP13 -> 1.930733423 | BS131: =Skadesomkostninger!BQ13 -> 1.951431289 | BT131: =Skadesomkostninger!BR13 -> 1.9720776 | BU131: =Skadesomkostninger!BS13 -> 1.992961765 | BV131: =Skadesomkostninger!BT13 -> 2.013961213 | BW131: =Skadesomkostninger!BU13 -> 2.034932645 | BX131: =Skadesomkostninger!BV13 -> 2.055880816 | BY131: =Skadesomkostninger!BW13 -> 2.076774997 | BZ131: =Skadesomkostninger!BX13 -> 2.097653626 | CA131: =Skadesomkostninger!BY13 -> 2.118708992 | CB131: =Skadesomkostninger!BZ13 -> 2.139963689 | CC131: =Skadesomkostninger!CA13 -> 2.161203245 | CD131: =Skadesomkostninger!CB13 -> 2.182417504 | CE131: =Skadesomkostninger!CC13 -> 2.205462837 | CF131: =Skadesomkostninger!CD13 -> 2.22849116 | CG131: =Skadesomkostninger!CE13 -> 2.2514604 | CH131: =Skadesomkostninger!CF13 -> 2.274747748 | CI131: =Skadesomkostninger!CG13 -> 2.298179173 | CJ131: =Skadesomkostninger!CH13 -> 2.321551585 | CK131: =Skadesomkostninger!CI13 -> 2.344889883 | CL131: =Skadesomkostninger!CJ13 -> 2.368210052 | CM131: =Skadesomkostninger!CK13 -> 2.391481733 | CN131: =Skadesomkostninger!CL13 -> 2.414702955 | CO131: =Skadesomkostninger!CM13 -> 2.437977045 | CP131: =Skadesomkostninger!CN13 -> 2.461722522 | CQ131: =Skadesomkostninger!CO13 -> 2.48538806 | CR131: =Skadesomkostninger!CP13 -> 2.509034077 | CS131: =Skadesomkostninger!CQ13 -> 2.532660432 | CT131: =Skadesomkostninger!CR13 -> 2.556235849 | CU131: =Skadesomkostninger!CS13 -> 2.579752561 | CV131: =Skadesomkostninger!CT13 -> 2.603250165 | CW131: =Skadesomkostninger!CU13 -> 2.626726166 | CX131: =Skadesomkostninger!CV13 -> 2.650551907 | CY131: =Skadesomkostninger!CW13 -> 2.674550621 | CZ131: =Skadesomkostninger!CX13 -> 2.698528842 | DA131: =Skadesomkostninger!CY13 -> 2.722486797 | DB131: =Skadesomkostninger!CZ13 -> 2.74637808 | DC131: =Skadesomkostninger!DA13 -> 2.770213072
D132: =Skadesomkostninger!D14 -> Txx | H132: =Skadesomkostninger!F14 -> 0.7445289381 | I132: =Skadesomkostninger!G14 -> 0.7704401348 | J132: =Skadesomkostninger!H14 -> 0.7834514822 | K132: =Skadesomkostninger!I14 -> 0.796513049 | L132: =Skadesomkostninger!J14 -> 0.8095975924 | M132: =Skadesomkostninger!K14 -> 0.8227506327 | N132: =Skadesomkostninger!L14 -> 0.8359211421 | O132: =Skadesomkostninger!M14 -> 0.8491553068 | P132: =Skadesomkostninger!N14 -> 0.8624118973 | Q132: =Skadesomkostninger!O14 -> 0.8763139398 | R132: =Skadesomkostninger!P14 -> 0.8903884256 | S132: =Skadesomkostninger!Q14 -> 0.9045261767 | T132: =Skadesomkostninger!R14 -> 0.9186805567 | U132: =Skadesomkostninger!S14 -> 0.9329082786 | V132: =Skadesomkostninger!T14 -> 0.9471414706 | W132: =Skadesomkostninger!U14 -> 0.9614587031 | X132: =Skadesomkostninger!V14 -> 0.9757867891 | Y132: =Skadesomkostninger!W14 -> 0.9901751265 | Z132: =Skadesomkostninger!X14 -> 1.004602289 | AA132: =Skadesomkostninger!Y14 -> 1.019051956 | AB132: =Skadesomkostninger!Z14 -> 1.034199676 | AC132: =Skadesomkostninger!AA14 -> 1.049623914 | AD132: =Skadesomkostninger!AB14 -> 1.065112796 | AE132: =Skadesomkostninger!AC14 -> 1.080646921 | AF132: =Skadesomkostninger!AD14 -> 1.096186866 | AG132: =Skadesomkostninger!AE14 -> 1.111823619 | AH132: =Skadesomkostninger!AF14 -> 1.127479484 | AI132: =Skadesomkostninger!AG14 -> 1.142589732 | AJ132: =Skadesomkostninger!AH14 -> 1.157636282 | AK132: =Skadesomkostninger!AI14 -> 1.172677684 | AL132: =Skadesomkostninger!AJ14 -> 1.187711366 | AM132: =Skadesomkostninger!AK14 -> 1.202844001 | AN132: =Skadesomkostninger!AL14 -> 1.217979391 | AO132: =Skadesomkostninger!AM14 -> 1.233106101 | AP132: =Skadesomkostninger!AN14 -> 1.249360023 | AQ132: =Skadesomkostninger!AO14 -> 1.265696084 | AR132: =Skadesomkostninger!AP14 -> 1.282022912 | AS132: =Skadesomkostninger!AQ14 -> 1.298358805 | AT132: =Skadesomkostninger!AR14 -> 1.314804621 | AU132: =Skadesomkostninger!AS14 -> 1.331240493 | AV132: =Skadesomkostninger!AT14 -> 1.347666144 | AW132: =Skadesomkostninger!AU14 -> 1.364142081 | AX132: =Skadesomkostninger!AV14 -> 1.380695616 | AY132: =Skadesomkostninger!AW14 -> 1.397239178 | AZ132: =Skadesomkostninger!AX14 -> 1.413774681 | BA132: =Skadesomkostninger!AY14 -> 1.430355586 | BB132: =Skadesomkostninger!AZ14 -> 1.44702825 | BC132: =Skadesomkostninger!BA14 -> 1.463689716 | BD132: =Skadesomkostninger!BB14 -> 1.480340921 | BE132: =Skadesomkostninger!BC14 -> 1.496986377 | BF132: =Skadesomkostninger!BD14 -> 1.513785611 | BG132: =Skadesomkostninger!BE14 -> 1.531153172 | BH132: =Skadesomkostninger!BF14 -> 1.549337819 | BI132: =Skadesomkostninger!BG14 -> 1.567515243 | BJ132: =Skadesomkostninger!BH14 -> 1.58573664 | BK132: =Skadesomkostninger!BI14 -> 1.604076583 | BL132: =Skadesomkostninger!BJ14 -> 1.622401149 | BM132: =Skadesomkostninger!BK14 -> 1.640718076 | BN132: =Skadesomkostninger!BL14 -> 1.659020002 | BO132: =Skadesomkostninger!BM14 -> 1.677353321 | BP132: =Skadesomkostninger!BN14 -> 1.695833764 | BQ132: =Skadesomkostninger!BO14 -> 1.714302732 | BR132: =Skadesomkostninger!BP14 -> 1.732760216 | BS132: =Skadesomkostninger!BQ14 -> 1.751202183 | BT132: =Skadesomkostninger!BR14 -> 1.769636719 | BU132: =Skadesomkostninger!BS14 -> 1.78818823 | BV132: =Skadesomkostninger!BT14 -> 1.806816963 | BW132: =Skadesomkostninger!BU14 -> 1.825431324 | BX132: =Skadesomkostninger!BV14 -> 1.844029638 | BY132: =Skadesomkostninger!BW14 -> 1.862620424 | BZ132: =Skadesomkostninger!BX14 -> 1.881192763 | CA132: =Skadesomkostninger!BY14 -> 1.899869312 | CB132: =Skadesomkostninger!BZ14 -> 1.918661341 | CC132: =Skadesomkostninger!CA14 -> 1.937434645 | CD132: =Skadesomkostninger!CB14 -> 1.956227788 | CE132: =Skadesomkostninger!CC14 -> 1.976866693 | CF132: =Skadesomkostninger!CD14 -> 1.997485782 | CG132: =Skadesomkostninger!CE14 -> 2.018097599 | CH132: =Skadesomkostninger!CF14 -> 2.038877209 | CI132: =Skadesomkostninger!CG14 -> 2.059722592 | CJ132: =Skadesomkostninger!CH14 -> 2.080559131 | CK132: =Skadesomkostninger!CI14 -> 2.101379526 | CL132: =Skadesomkostninger!CJ14 -> 2.122179294 | CM132: =Skadesomkostninger!CK14 -> 2.142966339 | CN132: =Skadesomkostninger!CL14 -> 2.16374065 | CO132: =Skadesomkostninger!CM14 -> 2.184531898 | CP132: =Skadesomkostninger!CN14 -> 2.20556683 | CQ132: =Skadesomkostninger!CO14 -> 2.226596811 | CR132: =Skadesomkostninger!CP14 -> 2.247604844 | CS132: =Skadesomkostninger!CQ14 -> 2.268590801 | CT132: =Skadesomkostninger!CR14 -> 2.289563723 | CU132: =Skadesomkostninger!CS14 -> 2.310523482 | CV132: =Skadesomkostninger!CT14 -> 2.331461651 | CW132: =Skadesomkostninger!CU14 -> 2.352376138 | CX132: =Skadesomkostninger!CV14 -> 2.373503255 | CY132: =Skadesomkostninger!CW14 -> 2.394732195 | CZ132: =Skadesomkostninger!CX14 -> 2.415937725 | DA132: =Skadesomkostninger!CY14 -> 2.437120343 | DB132: =Skadesomkostninger!CZ14 -> 2.458291487 | DC132: =Skadesomkostninger!DA14 -> 2.479447188
D133: =Skadesomkostninger!D15 ->  | H133: =Skadesomkostninger!F15 -> 0.7183764329 | I133: =Skadesomkostninger!G15 -> 0.7430165366 | J133: =Skadesomkostninger!H15 -> 0.7553777868 | K133: =Skadesomkostninger!I15 -> 0.7677788369 | L133: =Skadesomkostninger!J15 -> 0.7801928286 | M133: =Skadesomkostninger!K15 -> 0.7926655989 | N133: =Skadesomkostninger!L15 -> 0.8051451994 | O133: =Skadesomkostninger!M15 -> 0.8176788316 | P133: =Skadesomkostninger!N15 -> 0.8302245389 | Q133: =Skadesomkostninger!O15 -> 0.8434053659 | R133: =Skadesomkostninger!P15 -> 0.8567492648 | S133: =Skadesomkostninger!Q15 -> 0.870145369 | T133: =Skadesomkostninger!R15 -> 0.8835479455 | U133: =Skadesomkostninger!S15 -> 0.897014182 | V133: =Skadesomkostninger!T15 -> 0.9104759975 | W133: =Skadesomkostninger!U15 -> 0.924010957 | X133: =Skadesomkostninger!V15 -> 0.9375462612 | Y133: =Skadesomkostninger!W15 -> 0.9511317639 | Z133: =Skadesomkostninger!X15 -> 0.9647459674 | AA133: =Skadesomkostninger!Y15 -> 0.9783724768 | AB133: =Skadesomkostninger!Z15 -> 0.9926867796 | AC133: =Skadesomkostninger!AA15 -> 1.007267314 | AD133: =Skadesomkostninger!AB15 -> 1.02190218 | AE133: =Skadesomkostninger!AC15 -> 1.036571969 | AF133: =Skadesomkostninger!AD15 -> 1.051237219 | AG133: =Skadesomkostninger!AE15 -> 1.065989101 | AH133: =Skadesomkostninger!AF15 -> 1.080749864 | AI133: =Skadesomkostninger!AG15 -> 1.095029307 | AJ133: =Skadesomkostninger!AH15 -> 1.10925921 | AK133: =Skadesomkostninger!AI15 -> 1.123473881 | AL133: =Skadesomkostninger!AJ15 -> 1.137672079 | AM133: =Skadesomkostninger!AK15 -> 1.151961227 | AN133: =Skadesomkostninger!AL15 -> 1.166245501 | AO133: =Skadesomkostninger!AM15 -> 1.180513799 | AP133: =Skadesomkostninger!AN15 -> 1.195898074 | AQ133: =Skadesomkostninger!AO15 -> 1.21135614 | AR133: =Skadesomkostninger!AP15 -> 1.22679821 | AS133: =Skadesomkostninger!AQ15 -> 1.242242251 | AT133: =Skadesomkostninger!AR15 -> 1.257783511 | AU133: =Skadesomkostninger!AS15 -> 1.2733089 | AV133: =Skadesomkostninger!AT15 -> 1.288818567 | AW133: =Skadesomkostninger!AU15 -> 1.304364155 | AX133: =Skadesomkostninger!AV15 -> 1.319982655 | AY133: =Skadesomkostninger!AW15 -> 1.33558397 | AZ133: =Skadesomkostninger!AX15 -> 1.351164866 | BA133: =Skadesomkostninger!AY15 -> 1.366788157 | BB133: =Skadesomkostninger!AZ15 -> 1.382489853 | BC133: =Skadesomkostninger!BA15 -> 1.398175015 | BD133: =Skadesomkostninger!BB15 -> 1.413841913 | BE133: =Skadesomkostninger!BC15 -> 1.429492435 | BF133: =Skadesomkostninger!BD15 -> 1.445293309 | BG133: =Skadesomkostninger!BE15 -> 1.461647841 | BH133: =Skadesomkostninger!BF15 -> 1.478819448 | BI133: =Skadesomkostninger!BG15 -> 1.495966293 | BJ133: =Skadesomkostninger!BH15 -> 1.513159107 | BK133: =Skadesomkostninger!BI15 -> 1.530451765 | BL133: =Skadesomkostninger!BJ15 -> 1.547731426 | BM133: =Skadesomkostninger!BK15 -> 1.564985514 | BN133: =Skadesomkostninger!BL15 -> 1.582225272 | BO133: =Skadesomkostninger!BM15 -> 1.599481568 | BP133: =Skadesomkostninger!BN15 -> 1.61688163 | BQ133: =Skadesomkostninger!BO15 -> 1.634261305 | BR133: =Skadesomkostninger!BP15 -> 1.65161914 | BS133: =Skadesomkostninger!BQ15 -> 1.668961819 | BT133: =Skadesomkostninger!BR15 -> 1.686276191 | BU133: =Skadesomkostninger!BS15 -> 1.703712267 | BV133: =Skadesomkostninger!BT15 -> 1.721208287 | BW133: =Skadesomkostninger!BU15 -> 1.738685658 | BX133: =Skadesomkostninger!BV15 -> 1.756146249 | BY133: =Skadesomkostninger!BW15 -> 1.773577199 | BZ133: =Skadesomkostninger!BX15 -> 1.790994509 | CA133: =Skadesomkostninger!BY15 -> 1.808503584 | CB133: =Skadesomkostninger!BZ15 -> 1.826116288 | CC133: =Skadesomkostninger!CA15 -> 1.843715384 | CD133: =Skadesomkostninger!CB15 -> 1.861313236 | CE133: =Skadesomkostninger!CC15 -> 1.880752093 | CF133: =Skadesomkostninger!CD15 -> 1.900176184 | CG133: =Skadesomkostninger!CE15 -> 1.9195681 | CH133: =Skadesomkostninger!CF15 -> 1.93912526 | CI133: =Skadesomkostninger!CG15 -> 1.95875346 | CJ133: =Skadesomkostninger!CH15 -> 1.978349146 | CK133: =Skadesomkostninger!CI15 -> 1.997922686 | CL133: =Skadesomkostninger!CJ15 -> 2.017480699 | CM133: =Skadesomkostninger!CK15 -> 2.037010423 | CN133: =Skadesomkostninger!CL15 -> 2.056510879 | CO133: =Skadesomkostninger!CM15 -> 2.076033502 | CP133: =Skadesomkostninger!CN15 -> 2.095802031 | CQ133: =Skadesomkostninger!CO15 -> 2.115528924 | CR133: =Skadesomkostninger!CP15 -> 2.135239211 | CS133: =Skadesomkostninger!CQ15 -> 2.154932785 | CT133: =Skadesomkostninger!CR15 -> 2.174596756 | CU133: =Skadesomkostninger!CS15 -> 2.194227255 | CV133: =Skadesomkostninger!CT15 -> 2.213841455 | CW133: =Skadesomkostninger!CU15 -> 2.233437536 | CX133: =Skadesomkostninger!CV15 -> 2.253219325 | CY133: =Skadesomkostninger!CW15 -> 2.273089981 | CZ133: =Skadesomkostninger!CX15 -> 2.292943047 | DA133: =Skadesomkostninger!CY15 -> 2.312778819 | DB133: =Skadesomkostninger!CZ15 -> 2.332577679 | DC133: =Skadesomkostninger!DA15 -> 2.352343633
D134: =Skadesomkostninger!D16 ->  | H134: =Skadesomkostninger!F16 -> 0 | I134: =Skadesomkostninger!G16 -> 0 | J134: =Skadesomkostninger!H16 -> 0 | K134: =Skadesomkostninger!I16 -> 0 | L134: =Skadesomkostninger!J16 -> 0 | M134: =Skadesomkostninger!K16 -> 0 | N134: =Skadesomkostninger!L16 -> 0 | O134: =Skadesomkostninger!M16 -> 0 | P134: =Skadesomkostninger!N16 -> 0 | Q134: =Skadesomkostninger!O16 -> 0 | R134: =Skadesomkostninger!P16 -> 0 | S134: =Skadesomkostninger!Q16 -> 0 | T134: =Skadesomkostninger!R16 -> 0 | U134: =Skadesomkostninger!S16 -> 0 | V134: =Skadesomkostninger!T16 -> 0 | W134: =Skadesomkostninger!U16 -> 0 | X134: =Skadesomkostninger!V16 -> 0 | Y134: =Skadesomkostninger!W16 -> 0 | Z134: =Skadesomkostninger!X16 -> 0 | AA134: =Skadesomkostninger!Y16 -> 0 | AB134: =Skadesomkostninger!Z16 -> 0 | AC134: =Skadesomkostninger!AA16 -> 0 | AD134: =Skadesomkostninger!AB16 -> 0 | AE134: =Skadesomkostninger!AC16 -> 0 | AF134: =Skadesomkostninger!AD16 -> 0 | AG134: =Skadesomkostninger!AE16 -> 0 | AH134: =Skadesomkostninger!AF16 -> 0 | AI134: =Skadesomkostninger!AG16 -> 0 | AJ134: =Skadesomkostninger!AH16 -> 0 | AK134: =Skadesomkostninger!AI16 -> 0 | AL134: =Skadesomkostninger!AJ16 -> 0 | AM134: =Skadesomkostninger!AK16 -> 0 | AN134: =Skadesomkostninger!AL16 -> 0 | AO134: =Skadesomkostninger!AM16 -> 0 | AP134: =Skadesomkostninger!AN16 -> 0 | AQ134: =Skadesomkostninger!AO16 -> 0 | AR134: =Skadesomkostninger!AP16 -> 0 | AS134: =Skadesomkostninger!AQ16 -> 0 | AT134: =Skadesomkostninger!AR16 -> 0 | AU134: =Skadesomkostninger!AS16 -> 0 | AV134: =Skadesomkostninger!AT16 -> 0 | AW134: =Skadesomkostninger!AU16 -> 0 | AX134: =Skadesomkostninger!AV16 -> 0 | AY134: =Skadesomkostninger!AW16 -> 0 | AZ134: =Skadesomkostninger!AX16 -> 0 | BA134: =Skadesomkostninger!AY16 -> 0 | BB134: =Skadesomkostninger!AZ16 -> 0 | BC134: =Skadesomkostninger!BA16 -> 0 | BD134: =Skadesomkostninger!BB16 -> 0 | BE134: =Skadesomkostninger!BC16 -> 0 | BF134: =Skadesomkostninger!BD16 -> 0 | BG134: =Skadesomkostninger!BE16 -> 0 | BH134: =Skadesomkostninger!BF16 -> 0 | BI134: =Skadesomkostninger!BG16 -> 0 | BJ134: =Skadesomkostninger!BH16 -> 0 | BK134: =Skadesomkostninger!BI16 -> 0 | BL134: =Skadesomkostninger!BJ16 -> 0 | BM134: =Skadesomkostninger!BK16 -> 0 | BN134: =Skadesomkostninger!BL16 -> 0 | BO134: =Skadesomkostninger!BM16 -> 0 | BP134: =Skadesomkostninger!BN16 -> 0 | BQ134: =Skadesomkostninger!BO16 -> 0 | BR134: =Skadesomkostninger!BP16 -> 0 | BS134: =Skadesomkostninger!BQ16 -> 0 | BT134: =Skadesomkostninger!BR16 -> 0 | BU134: =Skadesomkostninger!BS16 -> 0 | BV134: =Skadesomkostninger!BT16 -> 0 | BW134: =Skadesomkostninger!BU16 -> 0 | BX134: =Skadesomkostninger!BV16 -> 0 | BY134: =Skadesomkostninger!BW16 -> 0 | BZ134: =Skadesomkostninger!BX16 -> 0 | CA134: =Skadesomkostninger!BY16 -> 0 | CB134: =Skadesomkostninger!BZ16 -> 0 | CC134: =Skadesomkostninger!CA16 -> 0 | CD134: =Skadesomkostninger!CB16 -> 0 | CE134: =Skadesomkostninger!CC16 -> 0 | CF134: =Skadesomkostninger!CD16 -> 0 | CG134: =Skadesomkostninger!CE16 -> 0 | CH134: =Skadesomkostninger!CF16 -> 0 | CI134: =Skadesomkostninger!CG16 -> 0 | CJ134: =Skadesomkostninger!CH16 -> 0 | CK134: =Skadesomkostninger!CI16 -> 0 | CL134: =Skadesomkostninger!CJ16 -> 0 | CM134: =Skadesomkostninger!CK16 -> 0 | CN134: =Skadesomkostninger!CL16 -> 0 | CO134: =Skadesomkostninger!CM16 -> 0 | CP134: =Skadesomkostninger!CN16 -> 0 | CQ134: =Skadesomkostninger!CO16 -> 0 | CR134: =Skadesomkostninger!CP16 -> 0 | CS134: =Skadesomkostninger!CQ16 -> 0 | CT134: =Skadesomkostninger!CR16 -> 0 | CU134: =Skadesomkostninger!CS16 -> 0 | CV134: =Skadesomkostninger!CT16 -> 0 | CW134: =Skadesomkostninger!CU16 -> 0 | CX134: =Skadesomkostninger!CV16 -> 0 | CY134: =Skadesomkostninger!CW16 -> 0 | CZ134: =Skadesomkostninger!CX16 -> 0 | DA134: =Skadesomkostninger!CY16 -> 0 | DB134: =Skadesomkostninger!CZ16 -> 0 | DC134: =Skadesomkostninger!DA16 -> 0
D135: =Skadesomkostninger!D17 ->  | H135: =Skadesomkostninger!F17 -> 0 | I135: =Skadesomkostninger!G17 -> 0 | J135: =Skadesomkostninger!H17 -> 0 | K135: =Skadesomkostninger!I17 -> 0 | L135: =Skadesomkostninger!J17 -> 0 | M135: =Skadesomkostninger!K17 -> 0 | N135: =Skadesomkostninger!L17 -> 0 | O135: =Skadesomkostninger!M17 -> 0 | P135: =Skadesomkostninger!N17 -> 0 | Q135: =Skadesomkostninger!O17 -> 0 | R135: =Skadesomkostninger!P17 -> 0 | S135: =Skadesomkostninger!Q17 -> 0 | T135: =Skadesomkostninger!R17 -> 0 | U135: =Skadesomkostninger!S17 -> 0 | V135: =Skadesomkostninger!T17 -> 0 | W135: =Skadesomkostninger!U17 -> 0 | X135: =Skadesomkostninger!V17 -> 0 | Y135: =Skadesomkostninger!W17 -> 0 | Z135: =Skadesomkostninger!X17 -> 0 | AA135: =Skadesomkostninger!Y17 -> 0 | AB135: =Skadesomkostninger!Z17 -> 0 | AC135: =Skadesomkostninger!AA17 -> 0 | AD135: =Skadesomkostninger!AB17 -> 0 | AE135: =Skadesomkostninger!AC17 -> 0 | AF135: =Skadesomkostninger!AD17 -> 0 | AG135: =Skadesomkostninger!AE17 -> 0 | AH135: =Skadesomkostninger!AF17 -> 0 | AI135: =Skadesomkostninger!AG17 -> 0 | AJ135: =Skadesomkostninger!AH17 -> 0 | AK135: =Skadesomkostninger!AI17 -> 0 | AL135: =Skadesomkostninger!AJ17 -> 0 | AM135: =Skadesomkostninger!AK17 -> 0 | AN135: =Skadesomkostninger!AL17 -> 0 | AO135: =Skadesomkostninger!AM17 -> 0 | AP135: =Skadesomkostninger!AN17 -> 0 | AQ135: =Skadesomkostninger!AO17 -> 0 | AR135: =Skadesomkostninger!AP17 -> 0 | AS135: =Skadesomkostninger!AQ17 -> 0 | AT135: =Skadesomkostninger!AR17 -> 0 | AU135: =Skadesomkostninger!AS17 -> 0 | AV135: =Skadesomkostninger!AT17 -> 0 | AW135: =Skadesomkostninger!AU17 -> 0 | AX135: =Skadesomkostninger!AV17 -> 0 | AY135: =Skadesomkostninger!AW17 -> 0 | AZ135: =Skadesomkostninger!AX17 -> 0 | BA135: =Skadesomkostninger!AY17 -> 0 | BB135: =Skadesomkostninger!AZ17 -> 0 | BC135: =Skadesomkostninger!BA17 -> 0 | BD135: =Skadesomkostninger!BB17 -> 0 | BE135: =Skadesomkostninger!BC17 -> 0 | BF135: =Skadesomkostninger!BD17 -> 0 | BG135: =Skadesomkostninger!BE17 -> 0 | BH135: =Skadesomkostninger!BF17 -> 0 | BI135: =Skadesomkostninger!BG17 -> 0 | BJ135: =Skadesomkostninger!BH17 -> 0 | BK135: =Skadesomkostninger!BI17 -> 0 | BL135: =Skadesomkostninger!BJ17 -> 0 | BM135: =Skadesomkostninger!BK17 -> 0 | BN135: =Skadesomkostninger!BL17 -> 0 | BO135: =Skadesomkostninger!BM17 -> 0 | BP135: =Skadesomkostninger!BN17 -> 0 | BQ135: =Skadesomkostninger!BO17 -> 0 | BR135: =Skadesomkostninger!BP17 -> 0 | BS135: =Skadesomkostninger!BQ17 -> 0 | BT135: =Skadesomkostninger!BR17 -> 0 | BU135: =Skadesomkostninger!BS17 -> 0 | BV135: =Skadesomkostninger!BT17 -> 0 | BW135: =Skadesomkostninger!BU17 -> 0 | BX135: =Skadesomkostninger!BV17 -> 0 | BY135: =Skadesomkostninger!BW17 -> 0 | BZ135: =Skadesomkostninger!BX17 -> 0 | CA135: =Skadesomkostninger!BY17 -> 0 | CB135: =Skadesomkostninger!BZ17 -> 0 | CC135: =Skadesomkostninger!CA17 -> 0 | CD135: =Skadesomkostninger!CB17 -> 0 | CE135: =Skadesomkostninger!CC17 -> 0 | CF135: =Skadesomkostninger!CD17 -> 0 | CG135: =Skadesomkostninger!CE17 -> 0 | CH135: =Skadesomkostninger!CF17 -> 0 | CI135: =Skadesomkostninger!CG17 -> 0 | CJ135: =Skadesomkostninger!CH17 -> 0 | CK135: =Skadesomkostninger!CI17 -> 0 | CL135: =Skadesomkostninger!CJ17 -> 0 | CM135: =Skadesomkostninger!CK17 -> 0 | CN135: =Skadesomkostninger!CL17 -> 0 | CO135: =Skadesomkostninger!CM17 -> 0 | CP135: =Skadesomkostninger!CN17 -> 0 | CQ135: =Skadesomkostninger!CO17 -> 0 | CR135: =Skadesomkostninger!CP17 -> 0 | CS135: =Skadesomkostninger!CQ17 -> 0 | CT135: =Skadesomkostninger!CR17 -> 0 | CU135: =Skadesomkostninger!CS17 -> 0 | CV135: =Skadesomkostninger!CT17 -> 0 | CW135: =Skadesomkostninger!CU17 -> 0 | CX135: =Skadesomkostninger!CV17 -> 0 | CY135: =Skadesomkostninger!CW17 -> 0 | CZ135: =Skadesomkostninger!CX17 -> 0 | DA135: =Skadesomkostninger!CY17 -> 0 | DB135: =Skadesomkostninger!CZ17 -> 0 | DC135: =Skadesomkostninger!DA17 -> 0
D137: Reduktion i skadesomkostninger i byggeperioden
D139: I nedenstående tabel er angivet en standard udvikling i skadesreduktionen over analyserperioden for hvert serviceniveau og begge projekter. Denne standardudvikling kan overskrives, hvis brugeren er bekendt med en mere retvisende indfasning af skadesreduktion i analyseperioden.
